Workbook

Sheet PI vs y
A1: Measurement | B1: Hall
A2: Type | B2: Off-axis
A4: PS type | B4: SXR
A5: PS serial no | B5: 16334
A7: Measurement date | B7: ='DF raw data'!B2 -> 28. feb 2017
C11: Nominal gap [mm] | D11: Encoder [counts] | E11: Encoder [mm] | F11: PI [T^2mm^3] | G11: y [mm] | H11: Encoder offset
C12: 10 | D12: =' 10 y=-0.2'!B3 -> 390659 | E12: =(D12-$H$12)*0.00005+10 -> 9.9994 | F12: =' 10 y=-0.2'!Q3 -> 4520.717279 | G12: -0.2 | H12: 390671
C13: 10 | D13: ='10 y=-0.1'!B3 -> 390663 | E13: =(D13-$H$12)*0.00005+10 -> 9.9996 | F13: ='10 y=-0.1'!Q3 -> 4518.65791 | G13: -0.1
C14: 10 | D14: ='10 y=0'!B3 -> 390665 | E14: 9.9997 | F14: ='10 y=0'!Q3 -> 4518.892897 | G14: 0
C15: 10 | D15: ='10 y=0.1'!B3 -> 390667 | E15: 9.9998 | F15: ='10 y=0.1'!Q3 -> 4519.00061 | G15: 0.1
C16: 10 | D16: ='10 y=0.2'!B3 -> 390668 | E16: 9.99985 | F16: ='10 y=0.2'!Q3 -> 4520.897575 | G16: 0.2
A41: Measuring series at 10 mm gap:
A42: Reference magnet
A43: Tref | B43: 20.93 | C43: degC
A44: Hall ref field | B44: 0.50529 | C44: T
A45: NMR ref field | B45: 0.5065 | C45: T
A53: Offset from Faro | B53: -1.119

Sheet 10 y=-0.2
A1: dz | B1: ='DF raw data'!B7 -> 0.50023 | C1: mm | F1: T_coeff | G1: -0.0008 | H1: /degC | L1: Hallref | M1: ='PI vs y'!B44 -> 0.50529 | N1: T | P1: IBy total | Q1: =P1203*1000 -> -11.04352896 | R1: muTm
A2: Tref | B2: ='DF raw data'!B8 -> 21.14 | C2: degC | F2: Tcorr | G2: 20 | H2: degC | L2: NMRref | M2: ='PI vs y'!B45 -> 0.5065 | N2: T | P2: JBy total | Q2: =Q1203 -> -7.931499221 | R2: muTm^2
A3: Encoder | B3: ='DF raw data'!B9 -> 390659 | P3: PI total | Q3: =R1203 -> 4520.717279 | R3: T^2mm^3
J4: SXR-rotation
A5: z [mm] | B5: Bx | C5: By | D5: Bz | F5: Bx_corr | G5: By_corr | H5: Bz_corr | J5: Bx_rot | K5: By_rot | L5: Bz_rot | N5: Ix | O5: Jx | P5: Iy | Q5: Jy | R5: PI
A6: ='PI vs y'!B53 -> -1.119 | B6: ='DF raw data'!A11 -> -1.3007414e-06 | C6: ='DF raw data'!B11 -> 6.8649133e-06 | D6: ='DF raw data'!C11 -> 3.6339534e-06 | F6: =(1-$G$1*($B$2-$G$2))*B6 -> -1.301927676e-06 | G6: =(1-$G$1*($B$2-$G$2))*C6*$M$2/$M$1 -> 6.887628257e-06 | H6: =(1-$G$1*($B$2-$G$2))*D6 -> 3.637267566e-06 | J6: =-CELL("contents", INDEX($F$6:$F$1203,1204-CELL("row",F6))) -> -2.643956191e-06 | K6: =CELL("contents", INDEX($G$6:$G$1203,1204-CELL("row",G6))) -> 7.439704168e-06 | L6: =-CELL("contents", INDEX($H$6:$H$1203,1204-CELL("row",H6))) -> 5.280051319e-06 | N6: =J6*$B$1 -> -1.322586205e-06 | O6: =N6*$B$1 -> -6.615972975e-07 | P6: =K6*$B$1 -> 3.721563216e-06 | Q6: =P6*$B$1 -> 1.861637568e-06 | R6: =(N6^2+P6^2)*$B$1 -> 7.803221353e-12
A7: =A6+$B$1 -> -0.61877 | B7: ='DF raw data'!A12 -> -9.5130804e-07 | C7: ='DF raw data'!B12 -> -2.012395e-06 | D7: ='DF raw data'!C12 -> 7.3697665e-06 | F7: =(1-$G$1*($B$2-$G$2))*B7 -> -9.521756329e-07 | G7: =(1-$G$1*($B$2-$G$2))*C7*$M$2/$M$1 -> -2.01905371e-06 | H7: =(1-$G$1*($B$2-$G$2))*D7 -> 7.376487727e-06 | J7: =-CELL("contents", INDEX($F$6:$F$1203,1204-CELL("row",F7))) -> -2.983886725e-06 | K7: =CELL("contents", INDEX($G$6:$G$1203,1204-CELL("row",G7))) -> 2.201018518e-06 | L7: =-CELL("contents", INDEX($H$6:$H$1203,1204-CELL("row",H7))) -> 4.832066229e-06 | N7: =J7*$B$1+N6 -> -2.815215862e-06 | O7: =N7*$B$1+O6 -> -2.069852728e-06 | P7: =K7*$B$1+P6 -> 4.822578709e-06 | Q7: =P7*$B$1+Q6 -> 4.274036115e-06 | R7: =(N7^2+P7^2)*$B$1+R6 -> 2.340174625e-11
A8: =A7+$B$1 -> -0.11854 | B8: ='DF raw data'!A13 -> -1.00077e-06 | C8: ='DF raw data'!B13 -> -5.571053e-07 | D8: ='DF raw data'!C13 -> 7.7459972e-06 | F8: -1.001682702e-06 | G8: -5.58948677e-07 | H8: 7.753061549e-06 | J8: -1.176683758e-05 | K8: 3.19874315e-06 | L8: 4.242125193e-06 | N8: =J8*$B$1+N7 -> -8.701341023e-06 | O8: =N8*$B$1+O7 -> -6.422524548e-06 | P8: =K8*$B$1+P7 -> 6.422685996e-06 | Q8: =P8*$B$1+Q7 -> 7.486856331e-06 | R8: =(N8^2+P8^2)*$B$1+R7 -> 8.191076353e-11
A9: 0.38169 | B9: ='DF raw data'!A14 -> -9.6198914e-07 | C9: ='DF raw data'!B14 -> -3.2977002e-06 | D9: ='DF raw data'!C14 -> -2.6544731e-06 | F9: -9.628664741e-07 | G9: -3.30861179e-06 | H9: -2.656893979e-06 | J9: -1.286887272e-05 | K9: 8.243317333e-06 | L9: 4.454292613e-06 | N9: -1.513873722e-05 | O9: -1.399537507e-05 | P9: 1.054624063e-05 | Q9: 1.276240228e-05 | R9: 2.521913346e-10
A10: 0.88192 | B10: ='DF raw data'!A15 -> -5.3345707e-07 | C10: ='DF raw data'!B15 -> -1.461646e-05 | D10: ='DF raw data'!C15 -> -1.2510463e-06 | F10: -5.339435828e-07 | G10: -1.466482365e-05 | H10: -1.252187254e-06 | J10: -8.812485864e-06 | K10: 7.239701573e-06 | L10: 4.995138015e-06 | N10: -1.954700703e-05 | O10: -2.377337439e-05 | P10: 1.416775654e-05 | Q10: 1.984953913e-05 | R10: 5.437307857e-10
A11: 1.38215 | B11: ='DF raw data'!A16 -> -1.1793911e-06 | C11: ='DF raw data'!B16 -> 2.0966256e-06 | D11: ='DF raw data'!C16 -> -7.3670999e-06 | F11: =(1-$G$1*($B$2-$G$2))*B11 -> -1.180466705e-06 | G11: 2.103563016e-06 | H11: =(1-$G$1*($B$2-$G$2))*D11 -> -7.373818695e-06 | J11: -1.4592245e-05 | K11: -2.231773045e-06 | L11: 4.833264221e-06 | N11: -2.684648574e-05 | O11: -3.720279196e-05 | P11: 1.305135671e-05 | Q11: 2.63782193e-05 | R11: 9.894715866e-10
A12: 1.88238 | B12: ='DF raw data'!A17 -> -1.3170286e-06 | C12: ='DF raw data'!B17 -> 5.3166259e-06 | D12: ='DF raw data'!C17 -> -1.0416075e-05 | F12: -1.31822973e-06 | G12: 5.334217809e-06 | H12: -1.042557446e-05 | J12: -1.216362412e-05 | K12: 9.698314621e-07 | L12: 4.427314232e-06 | N12: -3.293109544e-05 | O12: -5.367591383e-05 | P12: 1.35364955e-05 | Q12: 3.314958045e-05 | R12: 1.623610035e-09
A13: 2.38261 | B13: ='DF raw data'!A18 -> -1.497385e-06 | C13: ='DF raw data'!B18 -> 1.1135649e-05 | D13: ='DF raw data'!C18 -> -4.3156615e-06 | F13: -1.498750615e-06 | G13: 1.117249517e-05 | H13: -4.319597383e-06 | J13: -3.086307248e-06 | K13: 6.336223961e-06 | L13: 4.53583211e-06 | N13: -3.447495891e-05 | O13: -7.092132252e-05 | P13: 1.670606482e-05 | Q13: 4.150645525e-05 | R13: 2.357755283e-09
A14: 2.88284 | B14: ='DF raw data'!A19 -> -1.3536066e-06 | C14: ='DF raw data'!B19 -> 7.4102318e-06 | D14: ='DF raw data'!C19 -> -2.28723e-06 | F14: -1.354841089e-06 | G14: 7.434751134e-06 | H14: -2.289315954e-06 | J14: -3.16053328e-06 | K14: -3.371665838e-06 | L14: 4.642347363e-06 | N14: -3.605595247e-05 | O14: -8.895759163e-05 | P14: 1.501945641e-05 | Q14: 4.901963793e-05 | R14: 3.120914065e-09
A15: 3.38307 | B15: ='DF raw data'!A20 -> -1.2822513e-06 | C15: ='DF raw data'!B20 -> 7.2810726e-06 | D15: ='DF raw data'!C20 -> 9.2563751e-06 | F15: -1.283420713e-06 | G15: 7.305164565e-06 | H15: 9.264816914e-06 | J15: -7.459776918e-06 | K15: 3.301151687e-06 | L15: 4.144800614e-06 | N15: -3.978755668e-05 | O15: -0.0001088605211 | P15: 1.667079152e-05 | Q15: 5.735886798e-05 | R15: 4.051824565e-09
A16: 3.8833 | B16: ='DF raw data'!A21 -> -7.9972074e-07 | C16: ='DF raw data'!B21 -> -7.2077819e-06 | D16: ='DF raw data'!C21 -> 1.18756e-06 | F16: -8.004500853e-07 | G16: -7.231631357e-06 | H16: 1.188643055e-06 | J16: -8.994343167e-06 | K16: -5.921596647e-06 | L16: 3.43069134e-06 | N16: -4.428679696e-05 | O16: -0.0001310141056 | P16: 1.370863123e-05 | Q16: 6.421633658e-05 | R16: 5.126942369e-09
A17: 4.38353 | B17: ='DF raw data'!A22 -> -4.7685376e-07 | C17: ='DF raw data'!B22 -> -1.4722005e-05 | D17: ='DF raw data'!C22 -> 7.829256e-06 | F17: -4.772886506e-07 | G17: -1.477071788e-05 | H17: 7.836396281e-06 | J17: -5.781168321e-06 | K17: 1.310984443e-05 | L17: 4.070926002e-06 | N17: -4.717871079e-05 | O17: -0.0001546143121 | P17: 2.026656871e-05 | Q17: 7.435428225e-05 | R17: 6.445831059e-09
A18: 4.88376 | B18: ='DF raw data'!A23 -> -9.375583e-07 | C18: ='DF raw data'!B23 -> -3.7042516e-06 | D18: ='DF raw data'!C23 -> -2.3028697e-06 | F18: -9.384133532e-07 | G18: -3.716508407e-06 | H18: -2.304969917e-06 | J18: -1.612537995e-06 | K18: 1.068253532e-05 | L18: 5.267528809e-06 | N18: -4.798535067e-05 | O18: -0.000178618024 | P18: 2.561029335e-05 | Q18: 8.716531929e-05 | R18: 7.925752012e-09
A19: 5.38399 | B19: ='DF raw data'!A24 -> -1.0826718e-06 | C19: ='DF raw data'!B24 -> 8.5975648e-07 | D19: ='DF raw data'!C24 -> 1.7229868e-06 | F19: -1.083659197e-06 | G19: 8.626012838e-07 | H19: 1.724558164e-06 | J19: -2.913402102e-06 | K19: -9.42266314e-06 | L19: 4.88269476e-06 | N19: -4.944272181e-05 | O19: -0.0002033507568 | P19: 2.089679457e-05 | Q19: 9.761852284e-05 | R19: 9.367044083e-09
A20: 5.88422 | B20: ='DF raw data'!A25 -> -1.3736992e-06 | C20: ='DF raw data'!B25 -> 7.9546116e-06 | D20: ='DF raw data'!C25 -> -2.0963525e-06 | F20: -1.374952014e-06 | G20: 7.980932204e-06 | H20: -2.098264373e-06 | J20: -5.891404966e-06 | K20: -3.311273067e-08 | L20: 3.78621298e-06 | N20: -5.238977931e-05 | O20: -0.0002295576961 | P20: 2.088023059e-05 | Q20: 0.0001080634406 | R20: 1.095811214e-08
A21: 6.38445 | B21: ='DF raw data'!A26 -> -6.88917e-07 | C21: ='DF raw data'!B26 -> -1.0426047e-05 | D21: ='DF raw data'!C26 -> 3.1781436e-08 | F21: -6.895452923e-07 | G21: -1.046054521e-05 | H21: 3.181042067e-08 | J21: -1.885191028e-06 | K21: 1.020382155e-05 | L21: 4.195629428e-06 | N21: -5.333280842e-05 | O21: -0.0002562363668 | P21: 2.598448824e-05 | Q21: 0.0001210616611 | R21: 1.271871269e-08
A22: 6.88468 | B22: ='DF raw data'!A27 -> 9.6052986e-07 | C22: ='DF raw data'!B27 -> -2.1688633e-05 | D22: ='DF raw data'!C27 -> -6.9470116e-06 | F22: 9.614058632e-07 | G22: -2.17603974e-05 | H22: -6.953347275e-06 | J22: 3.573880109e-06 | K22: 5.750144509e-06 | L22: 5.30802731e-06 | N22: -5.154504637e-05 | O22: -0.0002820207454 | P22: 2.886088303e-05 | Q22: 0.0001354987407 | R22: 1.446443654e-08
A23: 7.38491 | B23: ='DF raw data'!A28 -> 1.9410779e-06 | C23: ='DF raw data'!B28 -> -3.5961782e-06 | D23: ='DF raw data'!C28 -> -7.4477648e-06 | F23: 1.942848163e-06 | G23: -3.608077408e-06 | H23: -7.454557161e-06 | J23: 5.716910872e-07 | K23: -7.774337668e-06 | L23: 2.884649804e-06 | N23: -5.125906934e-05 | O23: -0.0003076620696 | P23: 2.49719261e-05 | Q23: 0.0001479904473 | R23: 1.609072893e-08
A24: 7.88514 | B24: ='DF raw data'!A29 -> 1.5435851e-06 | C24: ='DF raw data'!B29 -> -5.5568889e-06 | D24: ='DF raw data'!C29 -> 3.7685259e-06 | F24: 1.54499285e-06 | G24: -5.575275803e-06 | H24: 3.771962796e-06 | J24: -4.968287049e-06 | K24: -2.855600989e-06 | L24: 2.319749184e-05 | N24: -5.374435557e-05 | O24: -0.0003345466086 | P24: 2.354346882e-05 | Q24: 0.0001597675967 | R24: 1.78128961e-08
A25: 8.38537 | B25: ='DF raw data'!A30 -> 4.7664589e-08 | C25: ='DF raw data'!B30 -> 2.2847601e-06 | D25: ='DF raw data'!C30 -> 4.9418357e-08 | F25: 4.770805911e-08 | G25: 2.292320025e-06 | H25: 4.946342654e-08 | J25: -1.564597813e-05 | K25: 2.856707438e-06 | L25: 8.291239721e-06 | N25: -6.157094321e-05 | O25: -0.0003653462415 | P25: 2.497247958e-05 | Q25: 0.0001722595801 | R25: 2.002121435e-08
A26: 8.8856 | B26: ='DF raw data'!A31 -> -1.7334445e-07 | C26: ='DF raw data'!B31 -> -3.47129e-06 | D26: ='DF raw data'!C31 -> 2.633049e-06 | F26: -1.735025401e-07 | G26: -3.482775972e-06 | H26: 2.635450341e-06 | J26: -1.396088773e-05 | K26: 1.725174014e-05 | L26: 1.940457885e-05 | N26: -6.855459808e-05 | O26: -0.0003996393081 | P26: 3.360231755e-05 | Q26: 0.0001890684674 | R26: 2.293697932e-08
A27: 9.38583 | B27: ='DF raw data'!A32 -> 5.3834137e-06 | C27: ='DF raw data'!B32 -> 3.0418234e-06 | D27: ='DF raw data'!C32 -> 1.3782717e-05 | F27: 5.388323373e-06 | G27: 3.051888332e-06 | H27: 1.379528684e-05 | J27: -1.217284352e-05 | K27: -1.130836928e-06 | L27: 2.066546573e-05 | N27: -7.464381959e-05 | O27: -0.000436978386 | P27: 3.303663899e-05 | Q27: 0.0002055943853 | R27: 2.62700715e-08
A28: 9.88606 | B28: ='DF raw data'!A33 -> 5.2385003e-06 | C28: ='DF raw data'!B33 -> -1.9036522e-06 | D28: ='DF raw data'!C33 -> 1.3456935e-05 | F28: 5.243277812e-06 | G28: -1.909951097e-06 | H28: 1.346920772e-05 | J28: -1.841279317e-05 | K28: 2.754970516e-06 | L28: 5.193250029e-06 | N28: -8.385445112e-05 | O28: -0.0004789248981 | P28: 3.441475789e-05 | Q28: 0.0002228096797 | R28: 3.037993343e-08
A29: 10.38629 | B29: ='DF raw data'!A34 -> -3.5572366e-08 | C29: ='DF raw data'!B34 -> 2.1805538e-06 | D29: ='DF raw data'!C34 -> 2.1731137e-05 | F29: -3.5604808e-08 | G29: 2.187768922e-06 | H29: 2.17509558e-05 | J29: -1.552638716e-05 | K29: 7.247870313e-06 | L29: 2.077811237e-06 | N29: -9.162121577e-05 | O29: -0.0005247565788 | P29: 3.804036006e-05 | Q29: 0.000241838609 | R29: 3.530295507e-08
A30: 10.88652 | B30: ='DF raw data'!A35 -> -1.7939531e-06 | C30: ='DF raw data'!B35 -> 3.1346901e-06 | D30: ='DF raw data'!C35 -> 5.3879199e-07 | F30: -1.795589185e-06 | G30: 3.145062314e-06 | H30: 5.392833683e-07 | J30: -1.21257426e-05 | K30: 8.097532043e-06 | L30: 5.932542549e-06 | N30: -9.768687599e-05 | O30: -0.0005736224848 | P30: 4.209098851e-05 | Q30: 0.0002628937842 | R30: 4.09627459e-08
A31: 11.38675 | B31: ='DF raw data'!A36 -> -4.4708233e-07 | C31: ='DF raw data'!B36 -> 6.7282622e-07 | D31: ='DF raw data'!C36 -> 1.4878464e-05 | F31: -4.474900691e-07 | G31: 6.750525e-07 | H31: 1.489203316e-05 | J31: -1.359603729e-05 | K31: -7.598165965e-06 | L31: 2.418480044e-06 | N31: -0.0001044880217 | O31: -0.0006258905279 | P31: 3.829015795e-05 | Q31: 0.0002820476699 | R31: 4.715753563e-08
A32: 11.88698 | B32: ='DF raw data'!A37 -> -1.1265258e-06 | C32: ='DF raw data'!B37 -> -1.2223752e-06 | D32: ='DF raw data'!C37 -> 2.0246771e-06 | F32: -1.127553192e-06 | G32: -1.226419854e-06 | H32: 2.026523606e-06 | J32: -1.095235345e-05 | K32: -6.953186163e-06 | L32: -1.117364608e-06 | N32: -0.0001099667175 | O32: -0.000680899179 | P32: 3.481196564e-05 | Q32: 0.0002994616595 | R32: 5.381287163e-08
A33: 12.38721 | B33: ='DF raw data'!A38 -> -1.668732e-06 | C33: ='DF raw data'!B38 -> 4.749425e-06 | D33: ='DF raw data'!C38 -> 4.4845146e-06 | F33: -1.670253884e-06 | G33: 4.765140127e-06 | H33: 4.488604477e-06 | J33: -1.097032482e-05 | K33: -9.121186389e-06 | L33: 3.923107514e-06 | N33: -0.0001154544031 | O33: -0.0007386529351 | P33: 3.024927457e-05 | Q33: 0.0003145932541 | R33: 6.093851682e-08
A34: 12.88744 | B34: ='DF raw data'!A39 -> 1.1937516e-06 | C34: ='DF raw data'!B39 -> -1.1089716e-05 | D34: ='DF raw data'!C39 -> 1.3398567e-05 | F34: 1.194840301e-06 | G34: -1.112641019e-05 | H34: 1.341078649e-05 | J34: -1.116173623e-05 | K34: -5.504191772e-06 | L34: 8.516996523e-06 | N34: -0.0001210378384 | O34: -0.000799199693 | P34: 2.749591272e-05 | Q34: 0.0003283475345 | R34: 6.864515201e-08
A35: 13.38767 | B35: ='DF raw data'!A40 -> -2.8935412e-07 | C35: ='DF raw data'!B40 -> -3.0175031e-06 | D35: ='DF raw data'!C40 -> 2.8850882e-06 | F35: -2.89618011e-07 | G35: -3.02748756e-06 | H35: 2.8877194e-06 | J35: -1.393650251e-05 | K35: 2.136064705e-07 | L35: 5.130433992e-06 | N35: -0.000128009295 | O35: -0.0008632337826 | P35: 2.760276508e-05 | Q35: 0.0003421552657 | R35: 7.722324225e-08
A36: 13.8879 | B36: ='DF raw data'!A41 -> -1.5043281e-06 | C36: ='DF raw data'!B41 -> 3.7581799e-07 | D36: ='DF raw data'!C41 -> -9.9987301e-07 | F36: -1.505700047e-06 | G36: 3.770615147e-07 | H36: -1.000784894e-06 | J36: -1.161083543e-05 | K36: -1.278236442e-05 | L36: -2.778338436e-06 | N36: -0.0001338173832 | O36: -0.0009301732522 | P36: 2.120864293e-05 | Q36: 0.0003527644651 | R36: 8.640591363e-08
A37: 14.38813 | B37: ='DF raw data'!A42 -> -9.6492499e-07 | C37: ='DF raw data'!B42 -> -4.4723929e-06 | D37: ='DF raw data'!C42 -> -8.3833147e-06 | F37: -9.658050016e-07 | G37: -4.48719137e-06 | H37: -8.390960283e-06 | J37: -3.612037677e-06 | K37: -2.153056844e-06 | L37: -3.808401197e-06 | N37: -0.0001356242329 | O37: -0.0009980165622 | P37: 2.01316193e-05 | Q37: 0.000362834905 | R37: 9.580984477e-08
A38: 14.88836 | B38: ='DF raw data'!A43 -> -9.3795848e-07 | C38: ='DF raw data'!B43 -> -7.3123883e-06 | D38: ='DF raw data'!C43 -> 1.0637013e-06 | F38: -9.388138981e-07 | G38: -7.336583884e-06 | H38: 1.064671396e-06 | J38: 3.282853134e-06 | K38: 4.318117575e-07 | L38: -8.190374215e-08 | N38: -0.0001339820512 | O38: -0.001065038404 | P38: 2.03476245e-05 | Q38: 0.0003730133973 | R38: 1.049966767e-07
A39: 15.38859 | B39: ='DF raw data'!A44 -> -4.6881414e-06 | C39: ='DF raw data'!B44 -> 3.6634631e-06 | D39: ='DF raw data'!C44 -> 1.6018603e-06 | F39: -4.692416985e-06 | G39: 3.675584944e-06 | H39: 1.603321197e-06 | J39: 4.022243644e-06 | K39: 4.611594845e-06 | L39: -5.057961358e-06 | N39: -0.0001319700043 | O39: -0.001131053759 | P39: 2.265448259e-05 | Q39: 0.0003843458491 | R39: 1.139654543e-07
A40: 15.88882 | B40: ='DF raw data'!A45 -> -5.1611278e-06 | C40: ='DF raw data'!B45 -> -3.6865092e-06 | D40: ='DF raw data'!C45 -> -8.2319057e-06 | F40: -5.165834749e-06 | G40: -3.6987073e-06 | H40: -8.239413198e-06 | J40: -2.417869888e-06 | K40: -3.412359844e-06 | L40: -4.668797764e-06 | N40: -0.0001331794953 | O40: -0.001197674138 | P40: 2.094751782e-05 | Q40: 0.0003948244259 | R40: 1.230574229e-07
A41: 16.38905 | B41: ='DF raw data'!A46 -> -6.1807932e-06 | C41: ='DF raw data'!B46 -> 5.1934694e-06 | D41: ='DF raw data'!C46 -> -4.4365261e-06 | F41: -6.186430083e-06 | G41: 5.210653803e-06 | H41: -4.440572212e-06 | J41: -4.372121141e-07 | K41: 5.930601243e-06 | L41: -6.113605928e-06 | N41: -0.000133398202 | O41: -0.00126440392 | P41: 2.391418248e-05 | Q41: 0.0004067870174 | R41: 1.322451315e-07
A42: 16.88928 | B42: ='DF raw data'!A47 -> -3.8178623e-06 | C42: ='DF raw data'!B47 -> -1.9607612e-06 | D42: ='DF raw data'!C47 -> 4.1161384e-06 | F42: -3.82134419e-06 | G42: -1.967249062e-06 | H42: 4.119892318e-06 | J42: -1.802213121e-06 | K42: 1.086406198e-05 | L42: 1.206616432e-05 | N42: -0.000134299723 | O42: -0.001331584671 | P42: 2.934871221e-05 | Q42: 0.0004214681237 | R42: 1.416983592e-07
A43: 17.38951 | B43: ='DF raw data'!A48 -> 7.4867548e-06 | C43: ='DF raw data'!B48 -> -4.9723458e-06 | D43: ='DF raw data'!C48 -> 3.6448552e-07 | F43: 7.49358272e-06 | G43: -4.988798538e-06 | H43: 3.648179308e-07 | J43: -5.123687645e-06 | K43: 3.959384396e-06 | L43: 8.217230386e-06 | N43: -0.0001368627453 | O43: -0.001400047522 | P43: 3.132931507e-05 | Q43: 0.000437139987 | R43: 1.515593617e-07
A44: 17.88974 | B44: ='DF raw data'!A49 -> 1.6445108e-06 | C44: ='DF raw data'!B49 -> -5.7745092e-06 | D44: ='DF raw data'!C49 -> -2.9732831e-07 | F44: 1.646010594e-06 | G44: -5.793616175e-06 | H44: -2.975994734e-07 | J44: -1.032259863e-05 | K44: 2.90824932e-06 | L44: 2.125367269e-05 | N44: -0.0001420264188 | O44: -0.001471093398 | P44: 3.278410862e-05 | Q44: 0.0004535395817 | R44: 1.621873991e-07
A45: 18.38997 | B45: ='DF raw data'!A50 -> -4.7231188e-06 | C45: ='DF raw data'!B50 -> -6.5709355e-06 | D45: ='DF raw data'!C50 -> 1.0187932e-05 | F45: -4.727426284e-06 | G45: -6.592677729e-06 | H45: 1.019722339e-05 | J45: -9.960353666e-06 | K45: -8.379152709e-06 | L45: 1.34177118e-05 | N45: -0.0001470088865 | O45: -0.001544631653 | P45: 2.859260506e-05 | Q45: 0.0004678424605 | R45: 1.734071327e-07
A46: 18.8902 | B46: ='DF raw data'!A51 -> 4.4742572e-07 | C46: ='DF raw data'!B51 -> -9.4351321e-07 | D46: ='DF raw data'!C51 -> 6.7969358e-06 | F46: 4.478337723e-07 | G46: -9.466351522e-07 | H46: 6.803134605e-06 | J46: -1.064315471e-05 | K46: -7.332568943e-06 | L46: 6.990251801e-06 | N46: -0.0001523329118 | O46: -0.001620833145 | P46: 2.49246341e-05 | Q46: 0.0004803105102 | R46: 1.853258895e-07
A47: 19.39043 | B47: ='DF raw data'!A52 -> 1.034343e-05 | C47: ='DF raw data'!B52 -> -7.5931239e-06 | D47: ='DF raw data'!C52 -> 7.5968279e-07 | F47: 1.035286321e-05 | G47: -7.618248396e-06 | H47: 7.603756207e-07 | J47: -1.19653975e-05 | K47: -7.921192386e-06 | L47: 9.585163604e-06 | N47: -0.0001583183626 | O47: -0.00170002874 | P47: 2.096221603e-05 | Q47: 0.0004907964395 | R47: 1.980838146e-07
A48: 19.89066 | B48: ='DF raw data'!A53 -> 1.0807273e-05 | C48: ='DF raw data'!B53 -> 7.3407136e-06 | D48: ='DF raw data'!C53 -> -1.5615224e-06 | F48: 1.081712923e-05 | G48: 7.365002908e-06 | H48: -1.562946508e-06 | J48: -5.147071152e-06 | K48: -8.828287226e-06 | L48: 4.522242828e-06 | N48: -0.000160893082 | O48: -0.001780512286 | P48: 1.654604191e-05 | Q48: 0.0004990732661 | R48: 2.111700092e-07
A49: 20.39089 | B49: ='DF raw data'!A54 -> 4.8971442e-06 | C49: ='DF raw data'!B54 -> 4.7342146e-06 | D49: ='DF raw data'!C54 -> -4.6968198e-06 | F49: 4.901610396e-06 | G49: 4.749879398e-06 | H49: -4.7011033e-06 | J49: -1.974716801e-06 | K49: 3.749344498e-06 | L49: 1.265217327e-05 | N49: -0.0001618808946 | O49: -0.001861489966 | P49: 1.842157651e-05 | Q49: 0.0005082882913 | R49: 2.244485038e-07
A50: 20.89112 | B50: ='DF raw data'!A55 -> 8.3844475e-07 | C50: ='DF raw data'!B55 -> -1.0314638e-05 | D50: ='DF raw data'!C55 -> 6.2958497e-06 | F50: 8.392094116e-07 | G50: -1.034876757e-05 | H50: 6.301591515e-06 | J50: -8.472153964e-06 | K50: 2.310256177e-06 | L50: 3.480387721e-06 | N50: -0.0001661189202 | O50: -0.001944587634 | P50: 1.957723596e-05 | Q50: 0.000518081412 | R50: 2.384443208e-07
A51: 21.39135 | B51: ='DF raw data'!A56 -> 2.4792123e-06 | C51: ='DF raw data'!B56 -> -1.4853293e-05 | D51: ='DF raw data'!C56 -> 4.4733333e-06 | F51: 2.481473342e-06 | G51: -1.490244029e-05 | H51: 4.47741298e-06 | J51: -1.370320093e-05 | K51: -2.636056144e-06 | L51: -1.846465142e-06 | N51: -0.0001729736724 | O51: -0.002031114254 | P51: 1.825860159e-05 | Q51: 0.0005272149123 | R51: 2.53577913e-07
A52: 21.89158 | B52: ='DF raw data'!A57 -> 3.3407475e-06 | C52: ='DF raw data'!B57 -> -6.1003375e-06 | D52: ='DF raw data'!C57 -> -3.4138575e-06 | F52: 3.343794262e-06 | G52: -6.120522592e-06 | H52: -3.416970938e-06 | J52: -3.600545706e-06 | K52: 5.965608395e-08 | L52: 2.090868935e-06 | N52: -0.0001747747733 | O52: -0.002118541839 | P52: 1.828844336e-05 | Q52: 0.0005363633403 | R52: 2.690253598e-07
A53: 22.39181 | B53: ='DF raw data'!A58 -> 6.9146131e-07 | C53: ='DF raw data'!B58 -> 6.7048022e-06 | D53: ='DF raw data'!C58 -> -6.2921208e-06 | F53: 6.920919227e-07 | G53: 6.726987374e-06 | H53: -6.297859214e-06 | J53: 1.323775383e-06 | K53: 1.38910518e-06 | L53: 9.378323338e-06 | N53: -0.0001741125812 | O53: -0.002205638175 | P53: 1.898331544e-05 | Q53: 0.0005458593642 | R53: 2.843701938e-07
A54: 22.89204 | B54: ='DF raw data'!A59 -> 6.3519269e-07 | C54: ='DF raw data'!B59 -> 1.7605237e-06 | D54: ='DF raw data'!C59 -> -6.5036293e-06 | F54: 6.357719857e-07 | G54: 1.766349006e-06 | H54: -6.50956061e-06 | J54: -3.588386527e-06 | K54: 1.408249517e-06 | L54: 4.165985617e-06 | N54: -0.0001759075998 | O54: -0.002293632434 | P54: 1.96877641e-05 | Q54: 0.0005557077745 | R54: 3.000429458e-07
A55: 23.39227 | B55: ='DF raw data'!A60 -> -1.7936857e-06 | C55: ='DF raw data'!B60 -> -7.2589296e-07 | D55: ='DF raw data'!C60 -> 4.8037091e-06 | F55: -1.795321541e-06 | G55: -7.282948297e-07 | H55: 4.808090083e-06 | J55: -5.212679132e-06 | K55: -1.260351358e-05 | L55: 6.200334353e-06 | N55: -0.0001785151383 | O55: -0.002382931061 | P55: 1.33831085e-05 | Q55: 0.0005624024068 | R55: 3.160736976e-07
A56: 23.8925 | B56: ='DF raw data'!A61 -> -2.352512e-06 | C56: ='DF raw data'!B61 -> 9.7014417e-06 | D56: ='DF raw data'!C61 -> 2.2084314e-06 | F56: -2.354657491e-06 | G56: 9.7335423e-06 | H56: 2.210445489e-06 | J56: -6.454282042e-06 | K56: 3.204232755e-06 | L56: 5.34480392e-07 | N56: -0.0001817437638 | O56: -0.002473844744 | P56: 1.498596185e-05 | Q56: 0.0005698988345 | R56: 3.327090337e-07
A57: 24.39273 | B57: ='DF raw data'!A62 -> -4.4916324e-06 | C57: ='DF raw data'!B62 -> 9.7524098e-06 | D57: ='DF raw data'!C62 -> -2.5889167e-06 | F57: -4.495728769e-06 | G57: 9.784679045e-06 | H57: -2.591277792e-06 | J57: -9.144065089e-06 | K57: -6.423470294e-06 | L57: 5.259266781e-06 | N57: -0.0001863178994 | O57: -0.002567046547 | P57: 1.17727493e-05 | Q57: 0.0005757879169 | R57: 3.501435285e-07
A58: 24.89296 | B58: ='DF raw data'!A63 -> -4.3553538e-07 | C58: ='DF raw data'!B63 -> -8.245981e-06 | D58: ='DF raw data'!C63 -> 2.7770693e-06 | F58: -4.359325883e-07 | G58: -8.273265701e-06 | H58: 2.779601987e-06 | J58: -1.060607493e-05 | K58: -1.115786593e-05 | L58: 2.223584061e-05 | N58: -0.0001916233763 | O58: -0.002662902309 | P58: 6.191250031e-06 | Q58: 0.0005788849659 | R58: 3.685309078e-07
A59: 25.39319 | B59: ='DF raw data'!A64 -> 2.0717068e-06 | C59: ='DF raw data'!B64 -> 1.784407e-06 | D59: ='DF raw data'!C64 -> -1.1222e-06 | F59: 2.073596197e-06 | G59: 1.790311332e-06 | H59: -1.123223446e-06 | J59: -9.403756912e-06 | K59: 9.479592489e-06 | L59: 9.724188279e-06 | N59: -0.0001963274176 | O59: -0.002761111173 | P59: 1.093322658e-05 | Q59: 0.0005843540938 | R59: 3.878717957e-07
A60: 25.89342 | B60: ='DF raw data'!A65 -> -4.0659706e-06 | C60: ='DF raw data'!B65 -> -4.159408e-07 | D60: ='DF raw data'!C65 -> 9.7145676e-07 | F60: -4.069678765e-06 | G60: -4.17317085e-07 | H60: 9.723427286e-07 | J60: -7.493316077e-06 | K60: 6.156119789e-07 | L60: 7.025517134e-07 | N60: -0.0002000757991 | O60: -0.00286119509 | P60: 1.124117416e-05 | Q60: 0.0005899772664 | R60: 4.079593764e-07
A61: 26.39365 | B61: ='DF raw data'!A66 -> -9.4062598e-06 | C61: ='DF raw data'!B66 -> -4.8916227e-06 | D61: ='DF raw data'!C66 -> -3.5421072e-06 | F61: -9.414838309e-06 | G61: -4.907808338e-06 | H61: -3.545337602e-06 | J61: -6.408115877e-06 | K61: -1.143912952e-05 | L61: 3.303857673e-06 | N61: -0.0002032813309 | O61: -0.00296288251 | P61: 5.518978404e-06 | Q61: 0.000592738025 | R61: 4.286457671e-07
A62: 26.89388 | B62: ='DF raw data'!A67 -> -1.2098664e-05 | C62: ='DF raw data'!B67 -> -7.401919e-06 | D62: ='DF raw data'!C67 -> -5.749971e-06 | F62: -1.210969798e-05 | G62: -7.426410828e-06 | H62: -5.755214974e-06 | J62: -5.322515211e-06 | K62: -1.431908442e-06 | L62: 2.11325203e-06 | N62: -0.0002059438127 | O62: -0.003065901783 | P62: 4.802694844e-06 | Q62: 0.000595140477 | R62: 4.498734873e-07
A63: 27.39411 | B63: ='DF raw data'!A68 -> -4.7355334e-06 | C63: ='DF raw data'!B68 -> -1.9743267e-05 | D63: ='DF raw data'!C68 -> -3.3656688e-06 | F63: -4.739852206e-06 | G63: -1.980859448e-05 | H63: -3.36873829e-06 | J63: -9.091084214e-06 | K63: 5.18026739e-06 | L63: 7.200219917e-06 | N63: -0.0002104914458 | O63: -0.003171195919 | P63: 7.394020001e-06 | Q63: 0.0005988391876 | R63: 4.720643506e-07
A64: 27.89434 | B64: ='DF raw data'!A69 -> -8.4717999e-07 | C64: ='DF raw data'!B69 -> 5.6607314e-06 | D64: ='DF raw data'!C69 -> 5.5167693e-06 | F64: -8.479526182e-07 | G64: 5.679461902e-06 | H64: 5.521800594e-06 | J64: -1.020474525e-05 | K64: -5.875976494e-07 | L64: 7.233796311e-06 | N64: -0.0002155961655 | O64: -0.003279043589 | P64: 7.100086029e-06 | Q64: 0.0006023908637 | R64: 4.953411118e-07
A65: 28.39457 | B65: ='DF raw data'!A70 -> -4.2781667e-06 | C65: ='DF raw data'!B70 -> 9.0912799e-06 | D65: ='DF raw data'!C70 -> 5.9339291e-06 | F65: -4.282068388e-06 | G65: 9.121361567e-06 | H65: 5.939340843e-06 | J65: -4.816627962e-06 | K65: -1.521198816e-06 | L65: 4.260113183e-06 | N65: -0.0002180055873 | O65: -0.003388096524 | P65: 6.339136745e-06 | Q65: 0.00060556189 | R65: 5.191353625e-07
A66: 28.8948 | B66: ='DF raw data'!A71 -> -1.523684e-06 | C66: ='DF raw data'!B71 -> -2.8349748e-06 | D66: ='DF raw data'!C71 -> 5.5699456e-06 | F66: -1.5250736e-06 | G66: -2.844355302e-06 | H66: 5.57502539e-06 | J66: -9.757984974e-06 | K66: -3.271129777e-06 | L66: 1.414227901e-05 | N66: -0.0002228868241 | O66: -0.0034995912 | P66: 4.702819496e-06 | Q66: 0.0006079143814 | R66: 5.439971201e-07
A67: 29.39503 | B67: ='DF raw data'!A72 -> -1.1898048e-06 | C67: ='DF raw data'!B72 -> 1.301217e-05 | D67: ='DF raw data'!C72 -> -4.415826e-06 | F67: -1.190889902e-06 | G67: 1.30552253e-05 | H67: -4.419853233e-06 | J67: -1.019145013e-05 | K67: -1.652924238e-06 | L67: 5.972312786e-06 | N67: -0.0002279848932 | O67: -0.003613636083 | P67: 3.875977205e-06 | Q67: 0.0006098532615 | R67: 5.700051457e-07
A68: 29.89526 | B68: ='DF raw data'!A73 -> -2.7591507e-06 | C68: ='DF raw data'!B73 -> 4.0661434e-06 | D68: ='DF raw data'!C73 -> -7.2211478e-06 | F68: -2.761667045e-06 | G68: 4.079597652e-06 | H68: -7.227733487e-06 | J68: -8.61993772e-06 | K68: 1.115027389e-05 | L68: 4.789765286e-06 | N68: -0.0002322968447 | O68: -0.003729837934 | P68: 9.453678713e-06 | Q68: 0.0006145822752 | R68: 5.970431755e-07
A69: 30.39549 | B69: ='DF raw data'!A74 -> 3.2292753e-06 | C69: ='DF raw data'!B74 -> 6.3479843e-07 | D69: ='DF raw data'!C74 -> 3.0300434e-06 | F69: 3.232220399e-06 | G69: 6.368988818e-07 | H69: 3.0328068e-06 | J69: -9.084403327e-06 | K69: -6.004493535e-07 | L69: 4.724950128e-06 | N69: -0.0002368411357 | O69: -0.003848312975 | P69: 9.153315932e-06 | Q69: 0.0006191610384 | R69: 6.251448497e-07
A70: 30.89572 | B70: ='DF raw data'!A75 -> 9.4497891e-06 | C70: ='DF raw data'!B75 -> -7.0823626e-06 | D70: ='DF raw data'!C75 -> 3.9656521e-07 | F70: 9.458407308e-06 | G70: -7.105797064e-06 | H70: 3.969268775e-07 | J70: -8.135095447e-06 | K70: -2.152388841e-06 | L70: -4.79936193e-06 | N70: -0.0002409105545 | O70: -0.003968823662 | P70: 8.076626463e-06 | Q70: 0.0006232012093 | R70: 6.54209777e-07
A71: 31.39595 | B71: ='DF raw data'!A76 -> 6.436987e-06 | C71: ='DF raw data'!B76 -> -5.1474017e-06 | D71: ='DF raw data'!C76 -> -2.5652262e-06 | F71: 6.442857532e-06 | G71: =(1-$G$1*($B$2-$G$2))*C71*$M$2/$M$1 -> -5.164433672e-06 | H71: -2.567565686e-06 | J71: =-CELL("contents", INDEX($F$6:$F$1203,1204-CELL("row",F71))) -> -5.720170242e-06 | K71: =CELL("contents", INDEX($G$6:$G$1203,1204-CELL("row",G71))) -> 8.486801227e-07 | L71: =-CELL("contents", INDEX($H$6:$H$1203,1204-CELL("row",H71))) -> -1.073507247e-05 | N71: -0.0002437719553 | O71: -0.004090765707 | P71: 8.501161721e-06 | Q71: 0.0006274537454 | R71: 6.839719793e-07
A72: =A71+$B$1 -> 31.89618 | B72: ='DF raw data'!A77 -> -7.4431796e-07 | C72: ='DF raw data'!B77 -> -6.459702e-07 | D72: ='DF raw data'!C77 -> 1.3977988e-05 | F72: -7.44996778e-07 | G72: -6.481076175e-07 | H72: 1.399073593e-05 | J72: -3.735221118e-08 | K72: 1.351921551e-05 | L72: 4.620830958e-06 | N72: =J72*$B$1+N71 -> -0.00024379064 | O72: =N72*$B$1+O71 -> -0.004212717099 | P72: =K72*$B$1+P71 -> 1.526387889e-05 | Q72: =P72*$B$1+Q71 -> 0.0006350891956 | R72: =(N72^2+P72^2)*$B$1+R71 -> 7.138191338e-07
A73: 32.39641 | B73: ='DF raw data'!A78 -> -6.2026866e-06 | C73: ='DF raw data'!B78 -> -9.7445009e-06 | D73: ='DF raw data'!C78 -> 4.4918361e-06 | F73: -6.20834345e-06 | G73: -9.776743976e-06 | H73: 4.495932655e-06 | J73: -3.344321642e-09 | K73: 9.316778439e-07 | L73: 4.404665395e-06 | N73: -0.0002437923129 | O73: -0.004334669328 | P73: 1.57299321e-05 | Q73: 0.0006429577795 | R73: 7.43673922e-07
A74: 32.89664 | B74: ='DF raw data'!A79 -> -1.6614396e-05 | C74: ='DF raw data'!B79 -> -3.7396128e-06 | D74: ='DF raw data'!C79 -> -6.8744012e-06 | F74: -1.662954833e-05 | G74: -3.751986612e-06 | H74: -6.880670654e-06 | J74: -7.948474904e-07 | K74: 6.960719809e-06 | L74: 6.574441227e-06 | N74: -0.0002441899195 | O74: -0.004456820451 | P74: 1.921189297e-05 | Q74: 0.0006525681447 | R74: 7.736866283e-07
A75: 33.39687 | B75: ='DF raw data'!A80 -> -1.4558047e-05 | C75: ='DF raw data'!B80 -> 1.4874815e-05 | D75: ='DF raw data'!C80 -> -1.0376942e-05 | F75: =(1-$G$1*($B$2-$G$2))*B75 -> -1.457132394e-05 | G75: 1.492403351e-05 | H75: =(1-$G$1*($B$2-$G$2))*D75 -> -1.038640577e-05 | J75: -4.815625749e-06 | K75: 6.294055292e-06 | L75: 7.990472271e-06 | N75: -0.00024659884 | O75: -0.004580176589 | P75: 2.236036825e-05 | Q75: 0.0006637534717 | R75: 8.043562168e-07
A76: 33.8971 | B76: ='DF raw data'!A81 -> -4.1425992e-06 | C76: ='DF raw data'!B81 -> 2.2251154e-06 | D76: ='DF raw data'!C81 -> -5.4054872e-06 | F76: -4.14637725e-06 | G76: 2.232477969e-06 | H76: -5.410417004e-06 | J76: -1.322116371e-05 | K76: 7.890572403e-06 | L76: -7.146773519e-07 | N76: -0.0002532124627 | O76: -0.004706841059 | P76: 2.630746928e-05 | Q76: 0.0006769132571 | R76: 8.367754398e-07
A77: 34.39733 | B77: ='DF raw data'!A82 -> -3.5054748e-06 | C77: ='DF raw data'!B82 -> 3.3725921e-06 | D77: ='DF raw data'!C82 -> 7.5878652e-06 | F77: -3.508671793e-06 | G77: 3.383751496e-06 | H77: 7.594785333e-06 | J77: -1.27941126e-05 | K77: 7.531403587e-06 | L77: 6.093018069e-06 | N77: -0.0002596124616 | O77: -0.004836707001 | P77: 3.00749033e-05 | Q77: 0.000691957626 | R77: 8.709427146e-07
A78: 34.89756 | B78: ='DF raw data'!A83 -> -4.4909648e-06 | C78: ='DF raw data'!B83 -> -2.246026e-06 | D78: ='DF raw data'!C83 -> 1.6962986e-06 | F78: -4.49506056e-06 | G78: -2.25345776e-06 | H78: 1.697845624e-06 | J78: -4.951918535e-06 | K78: 1.609471434e-05 | L78: 1.438312145e-06 | N78: -0.0002620895598 | O78: -0.004967812061 | P78: 3.812596225e-05 | Q78: 0.0007110293761 | R78: 9.06031111e-07
A79: 35.39779 | B79: ='DF raw data'!A84 -> 1.1306072e-06 | C79: ='DF raw data'!B84 -> -6.7289147e-06 | D79: ='DF raw data'!C84 -> -3.6488194e-07 | F79: 1.131638314e-06 | G79: -6.751179659e-06 | H79: -3.652147123e-07 | J79: -3.348404162e-06 | K79: -1.196566399e-06 | L79: 2.177801245e-06 | N79: -0.000263764532 | O79: -0.005099754993 | P79: 3.752740384e-05 | Q79: 0.0007298017093 | R79: 9.415374536e-07
A80: 35.89802 | B80: ='DF raw data'!A85 -> 4.4500566e-06 | C80: ='DF raw data'!B85 -> -7.6540964e-06 | D80: ='DF raw data'!C85 -> -4.8015063e-06 | F80: 4.454115052e-06 | G80: -7.679422645e-06 | H80: -4.805885274e-06 | J80: -4.631228632e-06 | K80: -5.186561448e-07 | L80: 9.471584214e-06 | N80: -0.0002660812115 | O80: -0.005232856797 | P80: 3.726795648e-05 | Q80: 0.0007484442592 | R80: 9.776481127e-07
A81: 36.39825 | B81: ='DF raw data'!A86 -> -1.6104589e-06 | C81: ='DF raw data'!B86 -> 2.9037258e-06 | D81: ='DF raw data'!C86 -> -6.3785737e-06 | F81: -1.611927639e-06 | G81: 2.913333788e-06 | H81: -6.384390959e-06 | J81: -3.860438112e-06 | K81: 1.173715338e-05 | L81: 6.815921056e-06 | N81: -0.0002680123185 | O81: -0.0053669246 | P81: 4.313923272e-05 | Q81: 0.0007700237975 | R81: 1.01451086e-06
A82: 36.89848 | B82: ='DF raw data'!A87 -> -3.0039212e-06 | C82: ='DF raw data'!B87 -> 8.838033e-06 | D82: ='DF raw data'!C87 -> -4.0855193e-06 | F82: -3.006660776e-06 | G82: 8.867276711e-06 | H82: -4.089245294e-06 | J82: -1.079581681e-05 | K82: 1.020957753e-05 | L82: 7.819673644e-06 | N82: -0.0002734127099 | O82: -0.005503693839 | P82: 4.824636968e-05 | Q82: 0.000794158079 | R82: 1.0530697e-06
A83: 37.39871 | B83: ='DF raw data'!A88 -> 1.9991946e-07 | C83: ='DF raw data'!B88 -> -6.8497975e-06 | D83: ='DF raw data'!C88 -> 4.5768247e-06 | F83: 2.001017865e-07 | G83: -6.872462441e-06 | H83: 4.580998764e-06 | J83: -1.701378543e-05 | K83: 5.66406974e-06 | L83: 1.354620989e-05 | N83: -0.0002819235158 | O83: -0.00564472044 | P83: 5.107970729e-05 | Q83: 0.000819709681 | R83: 1.094133583e-06
A84: 37.89894 | B84: ='DF raw data'!A89 -> -2.6398686e-06 | C84: ='DF raw data'!B89 -> 1.7224959e-06 | D84: ='DF raw data'!C89 -> 1.8978244e-06 | F84: -2.64227616e-06 | G84: 1.728195378e-06 | H84: 1.899555216e-06 | J84: -1.434217414e-05 | K84: 2.916680827e-06 | L84: 1.17628009e-05 | N84: -0.0002890979016 | O84: -0.005789335883 | P84: 5.253871854e-05 | Q84: 0.0008459911242 | R84: 1.137322398e-06
A85: 38.39917 | B85: ='DF raw data'!A90 -> -1.5838252e-06 | C85: ='DF raw data'!B90 -> 2.5485426e-06 | D85: ='DF raw data'!C90 -> 2.0536281e-06 | F85: -1.585269649e-06 | G85: 2.556975341e-06 | H85: 2.055501009e-06 | J85: -8.307266023e-06 | K85: 9.163931761e-06 | L85: 1.240783163e-05 | N85: -0.0002932534453 | O85: -0.005936030054 | P85: 5.712279213e-05 | Q85: 0.0008745656585 | R85: 1.181973226e-06
A86: 38.8994 | B86: ='DF raw data'!A91 -> 3.0104437e-07 | C86: ='DF raw data'!B91 -> 3.4775987e-06 | D86: ='DF raw data'!C91 -> -3.5803059e-06 | F86: 3.013189225e-07 | G86: 3.489105547e-06 | H86: -3.583571139e-06 | J86: -4.015304221e-06 | K86: 6.147602098e-06 | L86: 2.216882555e-05 | N86: -0.0002952620209 | O86: -0.006083728975 | P86: 6.019800712e-05 | Q86: 0.0009046785076 | R86: 1.227395841e-06
A87: 39.39963 | B87: ='DF raw data'!A92 -> -2.9210171e-06 | C87: ='DF raw data'!B92 -> 1.0764418e-06 | D87: ='DF raw data'!C92 -> -4.3355612e-06 | F87: -2.923681068e-06 | G87: 1.080003583e-06 | H87: -4.339515232e-06 | J87: -2.766285554e-06 | K87: -1.913166802e-06 | L87: 1.819845387e-05 | N87: -0.0002966457999 | O87: -0.006232120103 | P87: 5.924098369e-05 | Q87: 0.0009343126249 | R87: 1.273171001e-06
A88: 39.89986 | B88: ='DF raw data'!A93 -> -4.6350416e-07 | C88: ='DF raw data'!B93 -> 3.3673862e-06 | D88: ='DF raw data'!C93 -> 3.714018e-06 | F88: -4.639268758e-07 | G88: 3.37852837e-06 | H88: 3.717405184e-06 | J88: -6.059078945e-07 | K88: -1.825748903e-06 | L88: 2.017024951e-05 | N88: -0.0002969488932 | O88: -0.006380662848 | P88: 5.832768932e-05 | Q88: 0.0009634898849 | R88: 1.318982446e-06
A89: 40.40009 | B89: ='DF raw data'!A94 -> 4.5190754e-06 | C89: ='DF raw data'!B94 -> -9.0182584e-06 | D89: ='DF raw data'!C94 -> -1.7545972e-06 | F89: 4.523196797e-06 | G89: -9.04809845e-06 | H89: -1.756197393e-06 | J89: -1.553878546e-06 | K89: 7.178890923e-07 | L89: 9.10520428e-06 | N89: -0.0002977261899 | O89: -0.00652959442 | P89: 5.868679898e-05 | Q89: 0.0009928467824 | R89: 1.365046138e-06
A90: 40.90032 | B90: ='DF raw data'!A95 -> 3.7589323e-06 | C90: ='DF raw data'!B95 -> -1.4052064e-05 | D90: ='DF raw data'!C95 -> 1.3162098e-06 | F90: 3.762360446e-06 | G90: -1.409856015e-05 | H90: 1.317410183e-06 | J90: 9.527764504e-07 | K90: 2.701556159e-06 | L90: -5.687603368e-06 | N90: -0.0002972495825 | O90: -0.006678287579 | P90: 6.003819842e-05 | Q90: 0.00102287969 | R90: 1.411048239e-06
A91: 41.40055 | B91: ='DF raw data'!A96 -> 2.5332126e-06 | C91: ='DF raw data'!B96 -> 4.9553018e-06 | D91: ='DF raw data'!C96 -> -5.9583508e-06 | F91: 2.53552289e-06 | G91: 4.971698142e-06 | H91: -5.963784816e-06 | J91: 6.375970487e-06 | K91: -1.098037859e-06 | L91: 1.192502772e-06 | N91: -0.0002940601308 | O91: -0.006825385278 | P91: 5.948892694e-05 | Q91: 0.001052637836 | R91: 1.456074088e-06
A92: 41.90078 | B92: ='DF raw data'!A97 -> 3.222334e-06 | C92: ='DF raw data'!B97 -> 2.3892085e-07 | D92: ='DF raw data'!C97 -> -2.3414032e-06 | F92: 3.225272769e-06 | G92: 2.397114029e-07 | H92: -2.34353856e-06 | J92: 3.874592709e-06 | K92: -7.62038725e-06 | L92: 1.293022262e-05 | N92: -0.0002921219433 | O92: -0.006971513438 | P92: 5.567698063e-05 | Q92: 0.001080489132 | R92: 1.500312006e-06
A93: 42.40101 | B93: ='DF raw data'!A98 -> -1.2635267e-07 | C93: ='DF raw data'!B98 -> 4.4412081e-06 | D93: ='DF raw data'!C98 -> -7.1209428e-07 | F93: -1.264679036e-07 | G93: 4.455903384e-06 | H93: -7.1274371e-07 | J93: -1.030353826e-06 | K93: 2.943858858e-06 | L93: -3.977243241e-07 | N93: -0.0002926373572 | O93: -0.007117899423 | P93: 5.714958714e-05 | Q93: 0.00110907707 | R93: 1.544783803e-06
A94: 42.90124 | B94: ='DF raw data'!A99 -> -2.7965964e-06 | C94: ='DF raw data'!B99 -> 9.3656054e-06 | D94: ='DF raw data'!C99 -> -4.3552645e-06 | F94: -2.799146896e-06 | G94: 9.396594768e-06 | H94: -4.359236501e-06 | J94: 3.542612319e-06 | K94: 1.744259055e-06 | L94: 1.140541526e-06 | N94: -0.0002908652363 | O94: -0.00726339894 | P94: 5.802211785e-05 | Q94: 0.001138101474 | R94: 1.588788612e-06
A95: 43.40147 | B95: ='DF raw data'!A100 -> 3.8400331e-06 | C95: ='DF raw data'!B100 -> -8.0247969e-07 | D95: ='DF raw data'!C100 -> -6.6120208e-08 | F95: 3.84353521e-06 | G95: -8.051349736e-07 | H95: -6.618050963e-08 | J95: 7.463041392e-06 | K95: -1.177285713e-05 | L95: -4.881231527e-07 | N95: -0.0002871319991 | O95: -0.00740703098 | P95: 5.213298153e-05 | Q95: 0.001164179956 | R95: 1.631389515e-06
A96: 43.9017 | B96: ='DF raw data'!A101 -> 8.2652541e-06 | C96: ='DF raw data'!B101 -> 1.1335524e-05 | D96: ='DF raw data'!C101 -> -3.0257797e-06 | F96: 8.272792012e-06 | G96: 1.137303153e-05 | H96: -3.028539211e-06 | J96: 2.828075154e-06 | K96: -1.509416559e-06 | L96: 6.453942833e-07 | N96: -0.000285717311 | O96: -0.00754995535 | P96: 5.137792608e-05 | Q96: 0.001189880736 | R96: 1.673545935e-06
A97: 44.40193 | B97: ='DF raw data'!A102 -> 6.629225e-06 | C97: ='DF raw data'!B102 -> 2.7581593e-06 | D97: ='DF raw data'!C102 -> -1.1276155e-05 | F97: 6.635270853e-06 | G97: 2.767285631e-06 | H97: -1.128643885e-05 | J97: 2.164783884e-06 | K97: 5.069022211e-06 | L97: 6.492238927e-06 | N97: -0.0002846344212 | O97: -0.007692338027 | P97: 5.391360306e-05 | Q97: 0.001216849937 | R97: 1.715526953e-06
A98: 44.90216 | B98: ='DF raw data'!A103 -> 4.2725032e-06 | C98: ='DF raw data'!B103 -> -6.5529239e-06 | D98: ='DF raw data'!C103 -> -6.3598709e-06 | F98: 4.276399723e-06 | G98: -6.574606532e-06 | H98: -6.365671102e-06 | J98: -1.063023494e-06 | K98: -1.019055179e-06 | L98: 1.592895397e-05 | N98: -0.0002851661774 | O98: -0.007834986704 | P98: 5.340384109e-05 | Q98: 0.001243564141 | R98: 1.757632172e-06
A99: 45.40239 | B99: ='DF raw data'!A104 -> 3.8581893e-06 | C99: ='DF raw data'!B104 -> -4.3892687e-06 | D99: ='DF raw data'!C104 -> -5.7564248e-06 | F99: 3.861707969e-06 | G99: -4.403792125e-06 | H99: -5.761674659e-06 | J99: -9.700995947e-06 | K99: -8.566732034e-07 | L99: 1.717118585e-05 | N99: -0.0002900189066 | O99: -0.007980062862 | P99: 5.297530745e-05 | Q99: 0.001270063979 | R99: 1.801110837e-06
A100: 45.90262 | B100: ='DF raw data'!A105 -> 2.5924862e-06 | C100: ='DF raw data'!B105 -> 1.8500543e-06 | D100: ='DF raw data'!C105 -> -6.1245373e-06 | F100: 2.594850547e-06 | G100: 1.856175849e-06 | H100: -6.130122878e-06 | J100: -8.959267507e-06 | K100: 4.258714969e-06 | L100: 8.725034681e-06 | N100: -0.000294500601 | O100: -0.008127380897 | P100: 5.510564444e-05 | Q100: 0.001297629475 | R100: 1.846015102e-06
A101: 46.40285 | B101: ='DF raw data'!A106 -> 5.6644285e-06 | C101: ='DF raw data'!B106 -> 4.4187946e-06 | D101: ='DF raw data'!C106 -> -5.0613999e-06 | F101: 5.669594459e-06 | G101: 4.433415721e-06 | H101: -5.066015897e-06 | J101: -5.593431261e-06 | K101: -1.38344722e-06 | L101: 1.206070234e-05 | N101: -0.0002972986031 | O101: -0.008276098577 | P101: 5.441360264e-05 | Q101: 0.001324848792 | R101: 1.891709761e-06
A102: 46.90308 | B102: ='DF raw data'!A107 -> 3.8449061e-06 | C102: ='DF raw data'!B107 -> 2.3660143e-06 | D102: ='DF raw data'!C107 -> -4.0014602e-06 | F102: 3.848412654e-06 | G102: 2.373843083e-06 | H102: -4.005109532e-06 | J102: -1.015557244e-05 | K102: -1.485454233e-06 | L102: 1.276102245e-05 | N102: -0.0003023787251 | O102: -0.008427357487 | P102: 5.367053387e-05 | Q102: 0.001351696403 | R102: 1.938888163e-06
A103: 47.40331 | B103: ='DF raw data'!A108 -> -1.4897089e-06 | C103: ='DF raw data'!B108 -> -3.4620823e-06 | D103: ='DF raw data'!C108 -> -4.1215244e-06 | F103: -1.491067515e-06 | G103: -3.473537805e-06 | H103: -4.12528323e-06 | J103: -9.587284637e-06 | K103: -5.069252169e-06 | L103: 7.020693038e-06 | N103: -0.0003071745725 | O103: -0.008581015423 | P103: 5.113474186e-05 | Q103: 0.001377275535 | R103: 1.987395957e-06
A104: 47.90354 | B104: ='DF raw data'!A109 -> 2.7333942e-06 | C104: ='DF raw data'!B109 -> 7.1204267e-06 | D104: ='DF raw data'!C109 -> 5.8744972e-06 | F104: 2.735887056e-06 | G104: 7.143987112e-06 | H104: 5.879854741e-06 | J104: -3.74512344e-06 | K104: 1.350636312e-05 | L104: 9.13970922e-06 | N104: -0.0003090479956 | O104: -0.008735610502 | P104: 5.789102988e-05 | Q104: 0.001406234365 | R104: 2.036849712e-06
A105: 48.40377 | B105: ='DF raw data'!A110 -> 6.4761016e-06 | C105: ='DF raw data'!B110 -> 9.6516328e-07 | D105: ='DF raw data'!C110 -> 7.7758796e-06 | F105: 6.482007805e-06 | G105: 9.68356859e-07 | H105: 7.782971202e-06 | J105: -5.224303924e-06 | K105: 8.273703746e-06 | L105: 1.266782753e-05 | N105: -0.0003116613492 | O105: -0.008891512859 | P105: 6.202978471e-05 | Q105: 0.001437263524 | R105: 2.087363183e-06
A106: 48.904 | B106: ='DF raw data'!A111 -> 4.3100827e-06 | C106: ='DF raw data'!B111 -> -7.9687356e-07 | D106: ='DF raw data'!C111 -> 3.5693974e-06 | F106: 4.314013495e-06 | G106: -7.995102938e-07 | H106: 3.57265269e-06 | J106: -8.409619184e-06 | K106: -6.292945732e-06 | L106: 8.468367014e-06 | N106: -0.000315868093 | O106: -0.009049519555 | P106: 5.888186446e-05 | Q106: 0.001466717999 | R106: 2.139006791e-06
A107: 49.40423 | B107: ='DF raw data'!A112 -> -2.8441556e-07 | C107: ='DF raw data'!B112 -> -7.2436742e-06 | D107: ='DF raw data'!C112 -> -3.371278e-07 | F107: -2.84674947e-07 | G107: -7.26764242e-06 | H107: -3.374352606e-07 | J107: -8.522528564e-06 | K107: -4.191895503e-07 | L107: 2.416481023e-06 | N107: -0.0003201313174 | O107: -0.009209658844 | P107: 5.867217327e-05 | Q107: 0.00149606758 | R107: 2.191994397e-06
A108: 49.90446 | B108: ='DF raw data'!A113 -> -2.9531241e-06 | C108: ='DF raw data'!B113 -> 7.5062962e-06 | D108: ='DF raw data'!C113 -> -4.3492073e-06 | F108: -2.955817349e-06 | G108: 7.531133396e-06 | H108: -4.353173777e-06 | J108: -1.061689879e-05 | K108: 4.172189915e-07 | L108: 3.306654221e-06 | N108: -0.0003254422087 | O108: -0.0093724548 | P108: 5.888087873e-05 | Q108: 0.001525521562 | R108: 2.246709349e-06
A109: 50.40469 | B109: ='DF raw data'!A114 -> 2.1814209e-07 | C109: ='DF raw data'!B114 -> -1.7737308e-07 | D109: ='DF raw data'!C114 -> 3.4880013e-06 | F109: 2.183410356e-07 | G109: -1.779599806e-07 | H109: 3.491182357e-06 | J109: -1.38151079e-05 | K109: 5.754545021e-07 | L109: 2.054029968e-06 | N109: -0.0003323529402 | O109: -0.009538707711 | P109: 5.916873834e-05 | Q109: 0.00155511954 | R109: 2.303715267e-06
A110: 50.90492 | B110: ='DF raw data'!A115 -> 3.6235649e-06 | C110: ='DF raw data'!B115 -> 3.8758772e-06 | D110: ='DF raw data'!C115 -> 6.9790276e-06 | F110: 3.626869591e-06 | G110: 3.88870189e-06 | H110: 6.985392473e-06 | J110: -1.153700917e-05 | K110: 6.226318299e-06 | L110: 1.136083965e-07 | N110: -0.0003381240982 | O110: -0.009707847529 | P110: 6.228332954e-05 | Q110: 0.00158627553 | R110: 2.362846015e-06
A111: 51.40515 | B111: ='DF raw data'!A116 -> 7.8189005e-06 | C111: ='DF raw data'!B116 -> -8.1393737e-06 | D111: ='DF raw data'!C116 -> 1.8285942e-07 | F111: 7.826031337e-06 | G111: -8.166305654e-06 | H111: 1.830261878e-07 | J111: -3.604888863e-06 | K111: 5.235152699e-06 | L111: 6.762295694e-06 | N111: -0.0003399273718 | O111: -0.009877889398 | P111: 6.490210997e-05 | Q111: 0.001618741513 | R111: 2.422755011e-06
A112: 51.90538 | B112: ='DF raw data'!A117 -> 8.9174628e-06 | C112: ='DF raw data'!B117 -> -3.1624038e-06 | D112: ='DF raw data'!C117 -> -1.1983426e-05 | F112: 8.925595526e-06 | G112: -3.172867715e-06 | H112: -1.199435488e-05 | J112: -7.682656198e-06 | K112: -2.56711468e-06 | L112: 3.435821914e-06 | N112: -0.0003437704669 | O112: -0.0100498537 | P112: 6.36179622e-05 | Q112: 0.001650565126 | R112: 2.483895812e-06
A113: 52.40561 | B113: ='DF raw data'!A118 -> 4.7252643e-06 | C113: ='DF raw data'!B118 -> 6.0941056e-06 | D113: ='DF raw data'!C118 -> -8.1854487e-06 | F113: 4.729573741e-06 | G113: 6.114270071e-06 | H113: -8.192913829e-06 | J113: -1.571225352e-05 | K113: -5.720258145e-06 | L113: 1.537034999e-06 | N113: -0.0003516302075 | O113: -0.01022574968 | P113: 6.075651746e-05 | Q113: 0.001680957358 | R113: 2.547592678e-06
A114: 52.90584 | B114: ='DF raw data'!A119 -> -6.6655616e-07 | C114: ='DF raw data'!B119 -> -1.7627533e-06 | D114: ='DF raw data'!C119 -> -7.2001822e-06 | F114: -6.671640592e-07 | G114: -1.768585983e-06 | H114: -7.206748766e-06 | J114: -1.192417594e-05 | K114: 4.726408392e-07 | L114: 1.727883694e-05 | N114: -0.000357595038 | O114: -0.01040462944 | P114: 6.099294659e-05 | Q114: 0.00171146786 | R114: 2.61342012e-06
A115: 53.40607 | B115: ='DF raw data'!A120 -> -5.7628749e-06 | C115: ='DF raw data'!B120 -> 1.3268839e-06 | D115: ='DF raw data'!C120 -> -5.377733e-06 | F115: -5.768130642e-06 | G115: 1.331274358e-06 | H115: -5.382637492e-06 | J115: -4.465205557e-06 | K115: 8.138897664e-06 | L115: 1.676123832e-05 | N115: -0.0003598286678 | O115: -0.01058462654 | P115: 6.506426737e-05 | Q115: 0.001744014959 | R115: 2.680305888e-06
A116: 53.9063 | B116: ='DF raw data'!A121 -> -5.9425638e-06 | C116: ='DF raw data'!B121 -> 4.7100657e-06 | D116: ='DF raw data'!C121 -> -7.0429815e-06 | F116: -5.947983418e-06 | G116: 4.725650593e-06 | H116: -7.049404699e-06 | J116: -1.563967639e-06 | K116: 4.114674333e-06 | L116: 1.290018225e-05 | N116: -0.0003606110113 | O116: -0.01076501498 | P116: 6.712255091e-05 | Q116: 0.001777591672 | R116: 2.747609703e-06
A117: 54.40653 | B117: ='DF raw data'!A122 -> -5.8296901e-06 | C117: ='DF raw data'!B122 -> 4.9444971e-06 | D117: ='DF raw data'!C122 -> -2.8667164e-06 | F117: -5.835006777e-06 | G117: 4.960857691e-06 | H117: -2.869330845e-06 | J117: -1.512456904e-06 | K117: -8.597365261e-06 | L117: 5.774331792e-06 | N117: -0.0003613675876 | O117: -0.01094578189 | P117: 6.282189089e-05 | Q117: 0.001809017067 | R117: 2.814907207e-06
A118: 54.90676 | B118: ='DF raw data'!A123 -> -6.4140149e-06 | C118: ='DF raw data'!B123 -> 6.8324916e-06 | D118: ='DF raw data'!C123 -> -1.1814991e-06 | F118: -6.419864482e-06 | G118: 6.855099279e-06 | H118: -1.182576627e-06 | J118: -2.152967417e-06 | K118: -1.134609068e-05 | L118: 2.644702871e-06 | N118: -0.0003624445665 | O118: -0.01112708754 | P118: 5.714623595e-05 | Q118: 0.001837603328 | R118: 2.88225405e-06
A119: 55.40699 | B119: ='DF raw data'!A124 -> -4.9897153e-06 | C119: ='DF raw data'!B124 -> 5.2568503e-06 | D119: ='DF raw data'!C124 -> 4.254638e-06 | F119: -4.99426592e-06 | G119: 5.274244421e-06 | H119: 4.25851823e-06 | J119: -6.267413473e-06 | K119: 4.797939196e-06 | L119: 8.080335852e-06 | N119: -0.0003655797148 | O119: -0.01130996148 | P119: 5.954630907e-05 | Q119: 0.001867390179 | R119: 2.95088275e-06
A120: 55.90722 | B120: ='DF raw data'!A125 -> -1.9086294e-06 | C120: ='DF raw data'!B125 -> 5.5195669e-06 | D120: ='DF raw data'!C125 -> -2.3209723e-06 | F120: -1.91037007e-06 | G120: 5.53783031e-06 | H120: -2.323089027e-06 | J120: -1.003958976e-05 | K120: -1.325616398e-06 | L120: 4.759123766e-06 | N120: -0.0003706018188 | O120: -0.01149534763 | P120: 5.888319598e-05 | Q120: 0.00189684532 | R120: 3.021321607e-06
A121: 56.40745 | B121: ='DF raw data'!A126 -> 2.1722315e-06 | C121: ='DF raw data'!B126 -> 1.2092025e-06 | D121: ='DF raw data'!C126 -> -3.7703867e-06 | F121: 2.174212575e-06 | G121: 1.213203568e-06 | H121: -3.773825293e-06 | J121: -9.339417888e-06 | K121: -1.458838556e-05 | L121: -5.566898085e-06 | N121: -0.0003752736758 | O121: -0.01168307078 | P121: 5.158564787e-05 | Q121: 0.001922650008 | R121: 3.093100315e-06
A122: 56.90768 | B122: ='DF raw data'!A127 -> 1.7772088e-06 | C122: ='DF raw data'!B127 -> -3.4979746e-06 | D122: ='DF raw data'!C127 -> 6.882392e-06 | F122: 1.778829614e-06 | G122: -3.509548868e-06 | H122: 6.888668742e-06 | J122: -6.546213006e-06 | K122: -4.428155975e-06 | L122: -2.945139019e-06 | N122: -0.0003785482879 | O122: -0.01187243199 | P122: 4.937055141e-05 | Q122: 0.001947346639 | R122: 3.166001963e-06
A123: 57.40791 | B123: ='DF raw data'!A128 -> -2.8358447e-06 | C123: ='DF raw data'!B128 -> -4.2380962e-06 | D123: ='DF raw data'!C128 -> -4.4155234e-07 | F123: -2.83843099e-06 | G123: -4.252119418e-06 | H123: -4.419550357e-07 | J123: -7.395705638e-06 | K123: 7.877686506e-07 | L123: -2.479635667e-06 | N123: -0.0003822478417 | O123: -0.01206364383 | P123: 4.976461692e-05 | Q123: 0.001972240394 | R123: 3.240331104e-06
A124: 57.90814 | B124: ='DF raw data'!A129 -> 1.1437567e-06 | C124: ='DF raw data'!B129 -> 4.2672182e-06 | D124: ='DF raw data'!C129 -> -3.4931218e-06 | F124: 1.144799806e-06 | G124: 4.281337778e-06 | H124: -3.496307527e-06 | J124: -5.94973031e-06 | K124: -4.462561041e-06 | L124: 3.154506288e-06 | N124: -0.0003852240753 | O124: -0.01225634446 | P124: 4.753231001e-05 | Q124: 0.001996017481 | R124: 3.315694209e-06
A125: 58.40837 | B125: ='DF raw data'!A130 -> 8.3584364e-06 | C125: ='DF raw data'!B130 -> 1.3632474e-05 | D125: ='DF raw data'!C130 -> 4.0555078e-06 | F125: 8.366059294e-06 | G125: 1.367758179e-05 | H125: 4.059206423e-06 | J125: 4.003815052e-09 | K125: -1.115372026e-05 | L125: 7.385212277e-06 | N125: -0.0003852220725 | O125: -0.0124490441 | P125: 4.195288452e-05 | Q125: 0.002017003572 | R125: 3.39080679e-06
A126: 58.9086 | B126: ='DF raw data'!A131 -> 8.7819617e-06 | C126: ='DF raw data'!B131 -> 5.3533149e-06 | D126: ='DF raw data'!C131 -> -5.256672e-06 | F126: 8.789970849e-06 | G126: 5.371028207e-06 | H126: -5.261466085e-06 | J126: 2.544867905e-06 | K126: -1.845973101e-05 | L126: 1.105235456e-05 | N126: -0.0003839490532 | O126: -0.01264110694 | P126: 3.271877328e-05 | Q126: 0.002033370484 | R126: 3.465084639e-06
A127: 59.40883 | B127: ='DF raw data'!A132 -> 7.0077613e-06 | C127: ='DF raw data'!B132 -> 5.0090748e-06 | D127: ='DF raw data'!C132 -> 7.8512185e-06 | F127: 7.014152378e-06 | G127: 5.025649069e-06 | H127: 7.858378811e-06 | J127: -1.189429271e-06 | K127: -2.416109876e-06 | L127: 2.599004632e-06 | N127: -0.0003845440414 | O127: -0.0128334674 | P127: 3.151016264e-05 | Q127: 0.002049132813 | R127: 3.539552383e-06
A128: 59.90906 | B128: ='DF raw data'!A133 -> 7.3530564e-06 | C128: ='DF raw data'!B133 -> -4.6810942e-07 | D128: ='DF raw data'!C133 -> 1.287086e-05 | F128: 7.359762387e-06 | G128: -4.696583231e-07 | H128: 1.288259822e-05 | J128: -8.391113222e-06 | K128: -1.360287842e-06 | L128: -2.525599748e-06 | N128: -0.000388741528 | O128: -0.01302792758 | P128: 3.082970585e-05 | Q128: 0.002064554757 | R128: 3.615622583e-06
A129: 60.40929 | B129: ='DF raw data'!A134 -> 1.0787448e-05 | C129: ='DF raw data'!B134 -> 1.5459739e-06 | D129: ='DF raw data'!C134 -> -9.8447745e-06 | F129: 1.079728615e-05 | G129: 1.551089293e-06 | H129: -9.853752934e-06 | J129: -1.191609157e-05 | K129: -7.061485828e-06 | L129: 7.258841131e-06 | N129: -0.0003947023145 | O129: -0.01322536952 | P129: 2.729733879e-05 | Q129: 0.002078209705 | R129: 3.693926117e-06
A130: 60.90952 | B130: ='DF raw data'!A135 -> 1.3108192e-05 | C130: ='DF raw data'!B135 -> -3.141356e-07 | D130: ='DF raw data'!C135 -> -9.1280563e-06 | F130: 1.312014667e-05 | G130: -3.151750271e-07 | H130: -9.136381087e-06 | J130: -5.812101106e-06 | K130: -9.006327692e-06 | L130: 8.990026434e-06 | N130: -0.0003976097018 | O130: -0.01342426582 | P130: 2.279210349e-05 | Q130: 0.002089610998 | R130: 3.773269075e-06
A131: 61.40975 | B131: ='DF raw data'!A136 -> 1.4128858e-05 | C131: ='DF raw data'!B136 -> 1.209179e-05 | D131: ='DF raw data'!C136 -> 1.0173135e-06 | F131: 1.414174352e-05 | G131: 1.21317999e-05 | H131: 1.01824129e-06 | J131: 1.388714253e-06 | K131: -1.232787855e-05 | L131: 1.807561494e-05 | N131: -0.0003969150253 | O131: -0.01362281462 | P131: 1.66253288e-05 | Q131: 0.002097927487 | R131: 3.852214343e-06
A132: 61.90998 | B132: ='DF raw data'!A137 -> 8.5076208e-06 | C132: ='DF raw data'!B137 -> 5.4093543e-06 | D132: ='DF raw data'!C137 -> 5.8237165e-06 | F132: 8.51537975e-06 | G132: 5.427253033e-06 | H132: 5.829027729e-06 | J132: -6.52663737e-06 | K132: -6.963895381e-06 | L132: 2.682799584e-05 | N132: -0.0004001798451 | O132: -0.01382299658 | P132: 1.314177942e-05 | Q132: 0.002104501399 | R132: 3.932409523e-06
A133: 62.41021 | B133: ='DF raw data'!A138 -> -2.1043381e-06 | C133: ='DF raw data'!B138 -> 9.3994481e-07 | D133: ='DF raw data'!C138 -> 9.6700023e-07 | F133: -2.106257256e-06 | G133: 9.430549449e-07 | H133: 9.678821342e-07 | J133: -1.560495475e-05 | K133: -1.312788191e-05 | L133: 8.676605454e-06 | N133: -0.0004079859116 | O133: -0.01402708338 | P133: 6.574819046e-06 | Q133: 0.002107790321 | R133: 4.015695683e-06
A134: 62.91044 | B134: ='DF raw data'!A139 -> -4.9220603e-07 | C134: ='DF raw data'!B139 -> -2.1739759e-06 | D134: ='DF raw data'!C139 -> 5.8951282e-06 | F134: -4.926549219e-07 | G134: -2.181169257e-06 | H134: 5.900504557e-06 | J134: -1.59897834e-05 | K134: -5.430432218e-06 | L134: 1.269427363e-05 | N134: -0.000415984481 | O134: -0.01423517129 | P134: 3.858353938e-06 | Q134: 0.002109720385 | R134: 4.102264474e-06
A135: 63.41067 | B135: ='DF raw data'!A140 -> 1.5362427e-06 | C135: ='DF raw data'!B140 -> 1.0643969e-05 | D135: ='DF raw data'!C140 -> 1.1728858e-05 | F135: 1.537643753e-06 | G135: =(1-$G$1*($B$2-$G$2))*C135*$M$2/$M$1 -> 1.067918828e-05 | H135: 1.173955472e-05 | J135: =-CELL("contents", INDEX($F$6:$F$1203,1204-CELL("row",F135))) -> -1.413365915e-05 | K135: =CELL("contents", INDEX($G$6:$G$1203,1204-CELL("row",G135))) -> -1.077005194e-05 | L135: =-CELL("contents", INDEX($H$6:$H$1203,1204-CELL("row",H135))) -> 1.623471757e-05 | N135: -0.0004230545613 | O135: -0.01444679588 | P135: -1.529149145e-06 | Q135: 0.002108955459 | R135: 4.191794389e-06
A136: =A135+$B$1 -> 63.9109 | B136: ='DF raw data'!A141 -> -4.9829068e-06 | C136: ='DF raw data'!B141 -> 1.7360562e-05 | D136: ='DF raw data'!C141 -> 3.1927011e-06 | F136: -4.987451211e-06 | G136: 1.741800547e-05 | H136: 3.195612843e-06 | J136: -1.157074891e-05 | K136: -1.49505038e-05 | L136: -7.643547764e-06 | N136: =J136*$B$1+N135 -> -0.000428842597 | O136: =N136*$B$1+O135 -> -0.01466131581 | P136: =K136*$B$1+P135 -> -9.007839663e-06 | Q136: =P136*$B$1+Q135 -> 0.002104449467 | R136: =(N136^2+P136^2)*$B$1+R135 -> 4.283830263e-06
A137: 64.41113 | B137: ='DF raw data'!A142 -> -2.6998771e-06 | C137: ='DF raw data'!B142 -> 8.2158622e-06 | D137: ='DF raw data'!C142 -> 1.1871816e-05 | F137: -2.702339388e-06 | G137: 8.243047242e-06 | H137: 1.18826431e-05 | J137: -8.833931304e-06 | K137: 2.483350932e-06 | L137: 6.103540857e-07 | N137: -0.0004332615945 | O137: -0.01487804626 | P137: -7.765593026e-06 | Q137: 0.002100564885 | R137: 4.377761408e-06
A138: 64.91136 | B138: ='DF raw data'!A143 -> 7.0331926e-06 | C138: ='DF raw data'!B143 -> 7.1587201e-06 | D138: ='DF raw data'!C143 -> 8.1871167e-06 | F138: 7.039606872e-06 | G138: 7.182407219e-06 | H138: 8.19458335e-06 | J138: -7.923106489e-06 | K138: 3.66018917e-06 | L138: 6.124526178e-06 | N138: -0.00043722497 | O138: -0.0150967593 | P138: -5.934656598e-06 | Q138: 0.002097596191 | R138: 4.473405832e-06
A139: 65.41159 | B139: ='DF raw data'!A144 -> 1.1834613e-05 | C139: ='DF raw data'!B144 -> 1.2399607e-05 | D139: ='DF raw data'!C144 -> -1.341763e-06 | F139: =(1-$G$1*($B$2-$G$2))*B139 -> 1.184540617e-05 | G139: 1.244063542e-05 | H139: =(1-$G$1*($B$2-$G$2))*D139 -> -1.342986688e-06 | J139: -1.610730348e-05 | K139: 5.808245422e-06 | L139: -1.765992418e-06 | N139: -0.0004452823264 | O139: -0.01531950288 | P139: -3.029197991e-06 | Q139: 0.002096080896 | R139: 4.572594201e-06
A140: 65.91182 | B140: ='DF raw data'!A145 -> 3.9877496e-06 | C140: ='DF raw data'!B145 -> 1.2416418e-05 | D140: ='DF raw data'!C145 -> 4.3808905e-06 | F140: 3.991386428e-06 | G140: 1.245750204e-05 | H140: 4.384885872e-06 | J140: -1.706075323e-05 | K140: 9.057639616e-06 | L140: 2.368186418e-06 | N140: -0.000453816627 | O140: -0.01554651557 | P140: 1.501705074e-06 | Q140: 0.002096832094 | R140: 4.675617463e-06
A141: 66.41205 | B141: ='DF raw data'!A146 -> -2.0789741e-06 | C141: ='DF raw data'!B146 -> 3.574067e-06 | D141: ='DF raw data'!C146 -> 1.8134997e-06 | F141: -2.080870124e-06 | G141: 3.585893046e-06 | H141: 1.815153612e-06 | J141: -3.580169039e-06 | K141: 3.7012847e-06 | L141: 1.050878228e-06 | N141: -0.000455607535 | O141: -0.01577442413 | P141: 3.35319872e-06 | Q141: 0.002098509464 | R141: 4.779459943e-06
A142: 66.91228 | B142: ='DF raw data'!A147 -> -3.6333006e-06 | C142: ='DF raw data'!B147 -> 9.1312563e-07 | D142: ='DF raw data'!C147 -> 6.6588364e-06 | F142: -3.63661417e-06 | G142: 9.161470243e-07 | H142: 6.664909259e-06 | J142: 6.906911564e-06 | K142: -9.061618137e-06 | L142: 4.532034249e-06 | N142: -0.0004521524906 | O142: -0.01600060437 | P142: -1.179694521e-06 | Q142: 0.002097919346 | R142: 4.881728598e-06
A143: 67.41251 | B143: ='DF raw data'!A148 -> -1.488241e-06 | C143: ='DF raw data'!B148 -> 6.9417388e-07 | D143: ='DF raw data'!C148 -> 1.099104e-05 | F143: -1.489598276e-06 | G143: 6.964707961e-07 | H143: 1.100106383e-05 | J143: 5.154344579e-06 | K143: -7.361754395e-06 | L143: 1.288545983e-05 | N143: -0.0004495741328 | O143: -0.01622549484 | P143: -4.862264922e-06 | Q143: 0.002095487095 | R143: 4.982845362e-06
A144: 67.91274 | B144: ='DF raw data'!A149 -> 2.5931538e-06 | C144: ='DF raw data'!B149 -> 2.8945217e-06 | D144: ='DF raw data'!C149 -> 5.2047635e-06 | F144: 2.595518756e-06 | G144: 2.904099233e-06 | H144: 5.209510244e-06 | J144: -1.777827401e-06 | K144: 7.132340001e-06 | L144: 2.019324746e-06 | N144: -0.0004504634554 | O144: -0.01645083017 | P144: -1.294454483e-06 | Q144: 0.00209483957 | R144: 5.084351534e-06
A145: 68.41297 | B145: ='DF raw data'!A150 -> -6.7930364e-07 | C145: ='DF raw data'!B150 -> -3.0549961e-06 | D145: ='DF raw data'!C150 -> -3.4996447e-06 | F145: -6.799231649e-07 | G145: -3.065104619e-06 | H145: -3.502836376e-06 | J145: -9.804751986e-06 | K145: -1.060729016e-07 | L145: -7.622763226e-06 | N145: -0.0004553680865 | O145: -0.01667861895 | P145: -1.347515331e-06 | Q145: 0.002094165502 | R145: 5.188080182e-06
A146: 68.9132 | B146: ='DF raw data'!A151 -> -4.6685182e-06 | C146: ='DF raw data'!B151 -> -5.8763144e-06 | D146: ='DF raw data'!C151 -> -1.0369688e-05 | F146: -4.672775889e-06 | G146: -5.895758233e-06 | H146: -1.037914516e-05 | J146: -1.018590508e-05 | K146: -2.246632249e-06 | L146: 2.722510067e-06 | N146: -0.0004604633818 | O146: -0.01690895655 | P146: -2.471348181e-06 | Q146: 0.00209292926 | R146: 5.294145266e-06
A147: 69.41343 | B147: ='DF raw data'!A152 -> 5.6957811e-07 | C147: ='DF raw data'!B152 -> 9.5660143e-06 | D147: ='DF raw data'!C152 -> -4.2202264e-06 | F147: 5.700975652e-07 | G147: 9.597666791e-06 | H147: -4.224075246e-06 | J147: -9.288308719e-06 | K147: 1.124398093e-05 | L147: -2.16641497e-06 | N147: -0.0004651096725 | O147: -0.01714161836 | P147: 3.1532284e-06 | Q147: 0.002094506599 | R147: 5.402363499e-06
A148: 69.91366 | B148: ='DF raw data'!A153 -> 8.7428461e-06 | C148: ='DF raw data'!B153 -> -1.1616646e-06 | D148: ='DF raw data'!C153 -> -1.186489e-05 | F148: 8.750819576e-06 | G148: -1.165508372e-06 | H148: -1.187571078e-05 | J148: -1.262889105e-05 | K148: -1.815734978e-07 | L148: -1.795435946e-06 | N148: -0.0004714270227 | O148: -0.0173774403 | P148: 3.062399889e-06 | Q148: 0.002096038503 | R148: 5.513541025e-06
A149: 70.41389 | B149: ='DF raw data'!A154 -> 1.2511319e-05 | C149: ='DF raw data'!B154 -> -6.6811822e-07 | D149: ='DF raw data'!C154 -> -4.3217879e-06 | F149: 1.252272932e-05 | G149: -6.703289219e-07 | H149: -4.325729371e-06 | J149: -1.057854985e-05 | K149: 2.200084036e-06 | L149: 3.563256329e-06 | N149: -0.0004767187307 | O149: -0.01761590931 | P149: 4.162947926e-06 | Q149: 0.002098120935 | R149: 5.627232338e-06
A150: 70.91412 | B150: ='DF raw data'!A155 -> 1.2641881e-05 | C150: ='DF raw data'!B155 -> 6.3510852e-06 | D150: ='DF raw data'!C155 -> 3.9719162e-06 | F150: 1.26534104e-05 | G150: 6.372099978e-06 | H150: 3.975538588e-06 | J150: -6.017877203e-06 | K150: 1.143581458e-05 | L150: -3.174562563e-06 | N150: -0.0004797290534 | O150: -0.01785588417 | P150: 9.883485456e-06 | Q150: 0.002103064951 | R150: 5.742404117e-06
A151: 71.41435 | B151: ='DF raw data'!A156 -> 7.3179463e-06 | C151: ='DF raw data'!B156 -> 5.0332237e-06 | D151: ='DF raw data'!C156 -> -2.0514926e-06 | F151: 7.324620267e-06 | G151: 5.049877874e-06 | H151: -2.053363561e-06 | J151: -6.627119826e-06 | K151: 7.326181377e-06 | L151: 2.076212681e-06 | N151: -0.0004830441375 | O151: -0.01809751734 | P151: 1.354826117e-05 | Q151: 0.002109842198 | R151: 5.859215422e-06
A152: 71.91458 | B152: ='DF raw data'!A157 -> 2.5854104e-06 | C152: ='DF raw data'!B157 -> 4.3391374e-06 | D152: ='DF raw data'!C157 -> 1.6270824e-06 | F152: 2.587768294e-06 | G152: 4.353494948e-06 | H152: 1.628566299e-06 | J152: -5.961288742e-06 | K152: -4.690135968e-06 | L152: 1.136577614e-05 | N152: -0.000486026153 | O152: -0.01834064221 | P152: 1.120211445e-05 | Q152: 0.002115445831 | R152: 5.977443236e-06
A153: 72.41481 | B153: ='DF raw data'!A158 -> 1.2438811e-06 | C153: ='DF raw data'!B158 -> -1.7147211e-06 | D153: ='DF raw data'!C158 -> -2.5685513e-06 | F153: 1.24501552e-06 | G153: -1.720394852e-06 | H153: -2.570893819e-06 | J153: -2.627787959e-06 | K153: -5.72471986e-07 | L153: 1.486817842e-05 | N153: -0.0004873406514 | O153: -0.01858442462 | P153: 1.091574679e-05 | Q153: 0.002120906215 | R153: 6.096307921e-06
A154: 72.91504 | B154: ='DF raw data'!A159 -> -7.837009e-07 | C154: ='DF raw data'!B159 -> 5.4024167e-06 | D154: ='DF raw data'!C159 -> 1.5266523e-06 | F154: -7.844156352e-07 | G154: 5.420292478e-06 | H154: 1.528044607e-06 | J154: -5.132773524e-06 | K154: -2.241945693e-06 | L154: 1.182222004e-05 | N154: -0.0004899082187 | O154: -0.01882949141 | P154: 9.794258295e-06 | Q154: 0.002125805597 | R154: 6.21641614e-06
A155: 73.41527 | B155: ='DF raw data'!A160 -> -8.7447938e-07 | C155: ='DF raw data'!B160 -> 6.6711764e-06 | D155: ='DF raw data'!C160 -> -5.9669364e-06 | F155: -8.752769052e-07 | G155: 6.693250311e-06 | H155: -5.972378246e-06 | J155: -1.172601638e-05 | K155: -1.352533268e-05 | L155: 9.996841312e-06 | N155: -0.0004957739238 | O155: -0.0190774924 | P155: 3.028481128e-06 | Q155: 0.002127320534 | R155: 6.339373152e-06
A156: 73.9155 | B156: ='DF raw data'!A161 -> -3.4785082e-06 | C156: ='DF raw data'!B161 -> 1.8554805e-07 | D156: ='DF raw data'!C161 -> -1.0801225e-05 | F156: -3.481680599e-06 | G156: 1.861620004e-07 | H156: -1.081107572e-05 | J156: -1.149024255e-05 | K156: -3.753724042e-06 | L156: 1.068930276e-05 | N156: -0.0005015216879 | O156: -0.01932836859 | P156: 1.150755751e-06 | Q156: 0.002127896177 | R156: 6.465193667e-06
A157: 74.41573 | B157: ='DF raw data'!A162 -> -9.843201e-06 | C157: ='DF raw data'!B162 -> -2.1558296e-06 | D157: ='DF raw data'!C162 -> -3.4840705e-06 | F157: -9.852177999e-06 | G157: -2.162962913e-06 | H157: -3.487247972e-06 | J157: -1.077804462e-05 | K157: -2.356672957e-06 | L157: 6.790941796e-06 | N157: -0.0005069131891 | O157: -0.01958194178 | P157: -2.812276245e-08 | Q157: 0.002127882109 | R157: 6.593733259e-06
A158: 74.91596 | B158: ='DF raw data'!A163 -> -4.1117601e-06 | C158: ='DF raw data'!B163 -> -3.8175349e-06 | D158: ='DF raw data'!C163 -> 6.856099e-07 | F158: -4.115510025e-06 | G158: -3.830166544e-06 | H158: 6.862351762e-07 | J158: -9.882185041e-06 | K158: -1.823606337e-06 | L158: 2.304569352e-06 | N158: -0.0005118565545 | O158: -0.01983798778 | P158: -9.403453604e-07 | Q158: 0.00212741172 | R158: 6.724792527e-06
A159: 75.41619 | B159: ='DF raw data'!A164 -> 5.965202e-06 | C159: ='DF raw data'!B164 -> -1.058136e-05 | D159: ='DF raw data'!C164 -> 2.7448586e-06 | F159: 5.970642264e-06 | G159: -1.061637212e-05 | H159: 2.747361911e-06 | J159: -6.094642149e-06 | K159: 7.521590926e-07 | L159: 2.759749698e-06 | N159: -0.0005149052774 | O159: -0.02009555885 | P159: -5.640928175e-07 | Q159: 0.002127129544 | R159: 6.857417388e-06
A160: 75.91642 | B160: ='DF raw data'!A165 -> 3.2087835e-06 | C160: ='DF raw data'!B165 -> -7.085433e-06 | D160: ='DF raw data'!C165 -> -6.5626627e-06 | F160: 3.211709911e-06 | G160: -7.108877624e-06 | H160: -6.568647848e-06 | J160: -6.993173963e-06 | K160: 7.027634188e-07 | L160: 1.541641996e-05 | N160: -0.0005184034728 | O160: -0.02035487982 | P160: -2.125494726e-07 | Q160: 0.00212702322 | R160: 6.991850301e-06
A161: 76.41665 | B161: ='DF raw data'!A166 -> -1.9187084e-06 | C161: ='DF raw data'!B166 -> 2.827139e-06 | D161: ='DF raw data'!C166 -> -8.6384825e-06 | F161: -1.920458262e-06 | G161: 2.836493574e-06 | H161: -8.646360796e-06 | J161: -9.072978817e-06 | K161: -7.318114875e-06 | L161: 1.839156983e-05 | N161: -0.000522942049 | O161: -0.02061647112 | P161: -3.873290076e-06 | Q161: 0.002125085684 | R161: 7.128654897e-06
A162: 76.91688 | B162: ='DF raw data'!A167 -> -2.6198742e-07 | C162: ='DF raw data'!B167 -> 5.2350988e-06 | D162: ='DF raw data'!C167 -> -1.4726065e-06 | F162: -2.622263525e-07 | G162: 5.252420948e-06 | H162: -1.473949517e-06 | J162: -1.224025494e-05 | K162: -1.378825077e-05 | L162: 1.134412441e-05 | N162: -0.0005290649917 | O162: -0.0208811253 | P162: -1.077058676e-05 | Q162: 0.002119697914 | R162: 7.268732188e-06
A163: 77.41711 | B163: ='DF raw data'!A168 -> 3.1324223e-06 | C163: ='DF raw data'!B168 -> 1.6737056e-05 | D163: ='DF raw data'!C168 -> 1.8424507e-06 | F163: 3.135279069e-06 | G163: 1.679243638e-05 | H163: 1.844131015e-06 | J163: -5.648483123e-06 | K163: -5.723871662e-06 | L163: 6.138315843e-06 | N163: -0.0005318905324 | O163: -0.0211471929 | P163: -1.363383908e-05 | Q163: 0.002112877858 | R163: 7.41034401e-06
A164: 77.91734 | B164: ='DF raw data'!A169 -> 4.3247363e-07 | C164: ='DF raw data'!B169 -> 9.4579373e-06 | D164: ='DF raw data'!C169 -> 4.5183242e-06 | F164: 4.32868046e-07 | G164: 9.489232181e-06 | H164: 4.522444912e-06 | J164: -7.962493878e-07 | K164: -8.134579723e-06 | L164: 5.426602552e-06 | N164: -0.0005322888403 | O164: -0.02141345975 | P164: -1.77029999e-05 | Q164: 0.002104022287 | R164: 7.552231651e-06
A165: 78.41757 | B165: ='DF raw data'!A170 -> -4.2485299e-06 | C165: ='DF raw data'!B170 -> 1.0641703e-05 | D165: ='DF raw data'!C170 -> -1.2523124e-06 | F165: -4.252404559e-06 | G165: 1.067691478e-05 | H165: -1.253454509e-06 | J165: -9.859603565e-06 | K165: -2.24181426e-06 | L165: -7.817609564e-07 | N165: -0.0005372209098 | O165: -0.02168219376 | P165: -1.882442264e-05 | Q165: 0.002094605746 | R165: 7.696778444e-06
A166: 78.9178 | B166: ='DF raw data'!A171 -> -4.0600298e-06 | C166: ='DF raw data'!B171 -> 1.1328986e-05 | D166: ='DF raw data'!C171 -> -1.1596745e-05 | F166: -4.063732547e-06 | G166: 1.13664719e-05 | H166: -1.160732123e-05 | J166: -1.205044699e-05 | K166: 4.962463688e-06 | L166: 7.978150143e-06 | N166: -0.0005432489049 | O166: -0.02195394316 | P166: -1.634204943e-05 | Q166: 0.002086430962 | R166: 7.844539601e-06
A167: 79.41803 | B167: ='DF raw data'!A172 -> -1.7484336e-08 | C167: ='DF raw data'!B172 -> 1.7273017e-06 | D167: ='DF raw data'!C172 -> -5.5809905e-06 | F167: -1.750028171e-08 | G167: 1.733017079e-06 | H167: -5.586080363e-06 | J167: -5.99937034e-06 | K167: 4.402222649e-06 | L167: 2.254939631e-05 | N167: -0.0005462499699 | O167: -0.02222719378 | P167: -1.41399256e-05 | Q167: 0.002079357747 | R167: 7.99390276e-06
A168: 79.91826 | B168: ='DF raw data'!A173 -> 6.5420509e-06 | C168: ='DF raw data'!B173 -> 6.9692542e-06 | D168: ='DF raw data'!C173 -> -4.1333254e-07 | F168: 6.54801725e-06 | G168: 6.992314405e-06 | H168: -4.137094993e-07 | J168: -7.124590106e-06 | K168: 2.648276848e-06 | L168: 1.465674677e-05 | N168: -0.0005498139036 | O168: -0.02250222719 | P168: -1.281517807e-05 | Q168: 0.002072947211 | R168: 8.145202104e-06
A169: 80.41849 | B169: ='DF raw data'!A174 -> 8.3276645e-06 | C169: ='DF raw data'!B174 -> 7.528979e-06 | D169: ='DF raw data'!C174 -> -1.048356e-05 | F169: 8.33525933e-06 | G169: 7.55389125e-06 | H169: -1.049312101e-05 | J169: -1.302013154e-05 | K169: -5.137525731e-06 | L169: 7.27396341e-06 | N169: -0.000556326964 | O169: -0.02278051863 | P169: -1.538512257e-05 | Q169: 0.002065251111 | R169: 8.30014154e-06
A170: 80.91872 | B170: ='DF raw data'!A175 -> -6.1338348e-08 | C170: ='DF raw data'!B175 -> 1.1369149e-05 | D170: ='DF raw data'!C175 -> -4.5477391e-06 | F170: -6.139428857e-08 | G170: 1.140676779e-05 | H170: -4.551886638e-06 | J170: -1.501435361e-05 | K170: -1.146040869e-05 | L170: 7.838990745e-06 | N170: -0.0005638375941 | O170: -0.02306256711 | P170: -2.111796281e-05 | Q170: 0.002054687272 | R170: 8.459394163e-06
A171: 81.41895 | B171: ='DF raw data'!A176 -> -2.573119e-06 | C171: ='DF raw data'!B176 -> 1.2457647e-05 | D171: ='DF raw data'!C176 -> 5.0651221e-07 | F171: -2.575465685e-06 | G171: 1.249886747e-05 | H171: 5.069741491e-07 | J171: -8.455717988e-06 | K171: -1.46585309e-05 | L171: 6.103541458e-06 | N171: -0.0005680673979 | O171: -0.02334673146 | P171: -2.845059972e-05 | Q171: 0.002040455429 | R171: 8.621223573e-06
A172: 81.91918 | B172: ='DF raw data'!A177 -> 5.0759654e-06 | C172: ='DF raw data'!B177 -> 6.3123916e-06 | D172: ='DF raw data'!C177 -> 4.4630851e-06 | F172: 5.08059468e-06 | G172: 6.333278347e-06 | H172: 4.467155434e-06 | J172: -2.68664769e-06 | K172: -8.570747075e-07 | L172: 6.0655044e-06 | N172: -0.0005694113397 | O172: -0.0236315681 | P172: -2.88793342e-05 | Q172: 0.00202600912 | R172: 8.783829982e-06
A173: 82.41941 | B173: ='DF raw data'!A178 -> 8.5996016e-06 | C173: ='DF raw data'!B178 -> -3.7871102e-06 | D173: ='DF raw data'!C178 -> 1.588749e-06 | F173: 8.607444437e-06 | G173: -3.799641173e-06 | H173: 1.590197939e-06 | J173: -1.662959837e-07 | K173: 1.072375024e-06 | L173: -5.295443044e-06 | N173: -0.0005694945259 | O173: -0.02391644635 | P173: -2.834290004e-05 | Q173: 0.002011831151 | R173: 8.946468429e-06
A174: 82.91964 | B174: ='DF raw data'!A179 -> 6.9333355e-06 | C174: ='DF raw data'!B179 -> 2.3201176e-06 | D174: ='DF raw data'!C179 -> -6.5947424e-06 | F174: 6.939658702e-06 | G174: 2.327794517e-06 | H174: -6.600756805e-06 | J174: 4.853049648e-07 | K174: -7.636717506e-06 | L174: -1.001803012e-05 | N174: -0.0005692517618 | O174: -0.02420120315 | P174: -3.216301524e-05 | Q174: 0.001995742246 | R174: 9.109084212e-06
A175: 83.41987 | B175: ='DF raw data'!A180 -> 4.4056678e-06 | C175: ='DF raw data'!B180 -> 1.3684508e-05 | D175: ='DF raw data'!C180 -> -7.2859979e-07 | F175: 4.409685769e-06 | G175: 1.372978796e-05 | H175: -7.29264273e-07 | J175: -2.546546935e-06 | K175: -5.987994121e-06 | L175: -3.337501428e-06 | N175: -0.000570525621 | O175: -0.02448659719 | P175: -3.515838954e-05 | Q175: 0.001978154964 | R175: 9.272527159e-06
A176: 83.9201 | B176: ='DF raw data'!A181 -> 2.9113478e-06 | C176: ='DF raw data'!B181 -> 2.7627925e-07 | D176: ='DF raw data'!C181 -> 6.6170396e-06 | F176: 2.914002949e-06 | G176: 2.771934161e-07 | H176: 6.62307434e-06 | J176: -8.287156e-06 | K176: -5.972463302e-06 | L176: 1.039679724e-05 | N176: -0.000574671105 | O176: -0.02477406491 | P176: -3.814599485e-05 | Q176: 0.001959073193 | R176: 9.438454449e-06
A177: 84.42033 | B177: ='DF raw data'!A182 -> 1.4585181e-07 | C177: ='DF raw data'!B182 -> -3.5469907e-07 | D177: ='DF raw data'!C182 -> 4.8787848e-07 | F177: 1.459848269e-07 | G177: -3.558727154e-07 | H177: 4.883234252e-07 | J177: -8.847962089e-06 | K177: -3.75329001e-08 | L177: 1.996134416e-05 | N177: -0.0005790971211 | O177: -0.02506374667 | P177: -3.816476994e-05 | Q177: 0.001939982031 | R177: 9.606936928e-06
A178: 84.92056 | B178: ='DF raw data'!A183 -> -3.6045988e-06 | C178: ='DF raw data'!B183 -> 1.0020067e-05 | D178: ='DF raw data'!C183 -> 1.6823215e-06 | F178: -3.607886194e-06 | G178: 1.005322188e-05 | H178: 1.683855777e-06 | J178: -6.720120365e-06 | K178: -2.726686036e-06 | L178: 1.099240094e-05 | N178: -0.0005824587269 | O178: -0.02535510999 | P178: -3.952874009e-05 | Q178: 0.001920208569 | R178: 9.777425661e-06
A179: 85.42079 | B179: ='DF raw data'!A184 -> -4.6209261e-06 | C179: ='DF raw data'!B184 -> 3.484671e-06 | D179: ='DF raw data'!C184 -> 3.096995e-06 | F179: -4.625140385e-06 | G179: 3.496201248e-06 | H179: 3.099819459e-06 | J179: -6.833697854e-06 | K179: -1.371301665e-05 | L179: -1.784978217e-06 | N179: -0.0005858771476 | O179: -0.02564818332 | P179: -4.638840241e-05 | Q179: 0.001897003698 | R179: 9.950207062e-06
A180: 85.92102 | B180: ='DF raw data'!A185 -> -4.4451081e-06 | C180: ='DF raw data'!B185 -> 3.2315586e-06 | D180: ='DF raw data'!C185 -> -1.5770311e-06 | F180: -4.449162039e-06 | G180: 3.242251337e-06 | H180: -1.578469352e-06 | J180: -2.747511948e-06 | K180: -1.177674094e-05 | L180: 3.778886704e-06 | N180: -0.0005872515355 | O180: -0.02594194416 | P180: -5.227948153e-05 | Q180: 0.001870851933 | R180: 1.012408576e-05
A181: 86.42125 | B181: ='DF raw data'!A186 -> -2.4736621e-06 | C181: ='DF raw data'!B186 -> 1.9853647e-05 | D181: ='DF raw data'!C186 -> -3.4579134e-06 | F181: -2.47591808e-06 | G181: 1.991933971e-05 | H181: -3.461067017e-06 | J181: 1.831867341e-06 | K181: -7.141406602e-06 | L181: -6.629137164e-06 | N181: -0.0005863351805 | O181: -0.0262352466 | P181: -5.585182736e-05 | Q181: 0.001842913174 | R181: 1.029761974e-05
A182: 86.92148 | B182: ='DF raw data'!A187 -> 1.1330756e-06 | C182: ='DF raw data'!B187 -> 1.2511016e-05 | D182: ='DF raw data'!C187 -> 2.1235101e-06 | F182: 1.134108965e-06 | G182: 1.255241306e-05 | H182: 2.125446741e-06 | J182: 1.879329987e-07 | K182: -9.40084338e-06 | L182: -7.390810778e-06 | N182: -0.0005862411708 | O182: -0.02652850202 | P182: -6.055441124e-05 | Q182: 0.001812622041 | R182: 1.04713724e-05
A183: 87.42171 | B183: ='DF raw data'!A188 -> 1.6899e-06 | C183: ='DF raw data'!B188 -> 1.8369758e-06 | D183: ='DF raw data'!C188 -> 4.2583652e-06 | F183: 1.691441189e-06 | G183: 1.843054074e-06 | H183: 4.262248829e-06 | J183: -4.536558572e-06 | K183: -6.413027555e-06 | L183: 9.588189461e-07 | N183: -0.0005885104935 | O183: -0.02682289263 | P183: -6.376240001e-05 | Q183: 0.001780726175 | R183: 1.064665812e-05
A184: 87.92194 | B184: ='DF raw data'!A189 -> -1.9534184e-06 | C184: ='DF raw data'!B189 -> -1.3620736e-06 | D184: ='DF raw data'!C189 -> 4.9517239e-06 | F184: -1.955199918e-06 | G184: -1.366580495e-06 | H184: 4.956239872e-06 | J184: -8.396391332e-06 | K184: -4.665104115e-06 | L184: 2.859870726e-06 | N184: -0.0005927106203 | O184: -0.02711938426 | P184: -6.609602505e-05 | Q184: 0.001747662961 | R184: 1.082457721e-05
A185: 88.42217 | B185: ='DF raw data'!A190 -> -6.0317416e-06 | C185: ='DF raw data'!B190 -> 3.4989464e-06 | D185: ='DF raw data'!C190 -> 4.4919034e-06 | F185: -6.037242548e-06 | G185: 3.510523883e-06 | H185: 4.496000016e-06 | J185: -8.259028871e-06 | K185: -4.602451591e-06 | L185: 3.323109214e-06 | N185: -0.0005968420343 | O185: -0.02741794255 | P185: -6.83983094e-05 | Q185: 0.001713448074 | R185: 1.100510958e-05
A186: 88.9224 | B186: ='DF raw data'!A191 -> -7.7087552e-06 | C186: ='DF raw data'!B191 -> 9.0025496e-06 | D186: ='DF raw data'!C191 -> 5.2237974e-06 | F186: -7.715785585e-06 | G186: 9.032337672e-06 | H186: 5.228561503e-06 | J186: -1.002863378e-05 | K186: -7.104900507e-07 | L186: -2.73970063e-06 | N186: -0.0006018586578 | O186: -0.02771901031 | P186: -6.875371784e-05 | Q186: 0.001679055402 | R186: 1.118867444e-05
A187: 89.42263 | B187: ='DF raw data'!A192 -> -1.021366e-05 | C187: ='DF raw data'!B192 -> -2.9585476e-07 | D187: ='DF raw data'!C192 -> 2.5565096e-06 | F187: -1.022297486e-05 | G187: -2.968336985e-07 | H187: 2.558841137e-06 | J187: -1.181788009e-05 | K187: 2.593522973e-06 | L187: -1.98389126e-06 | N187: -0.000607770316 | O187: -0.02802303525 | P187: -6.745635985e-05 | Q187: 0.001645311707 | R187: 1.137572801e-05
A188: 89.92286 | B188: ='DF raw data'!A193 -> -9.1324528e-06 | C188: ='DF raw data'!B193 -> 1.4579673e-05 | D188: ='DF raw data'!C193 -> 2.7141759e-06 | F188: -9.140781597e-06 | G188: 1.462791493e-05 | H188: 2.716651228e-06 | J188: -6.493699958e-06 | K188: 7.720021738e-06 | L188: -6.770160861e-06 | N188: -0.0006110186595 | O188: -0.02832868512 | P188: -6.359457337e-05 | Q188: 0.001613499794 | R188: 1.156450884e-05
A189: 90.42309 | B189: ='DF raw data'!A194 -> 1.5178864e-06 | C189: ='DF raw data'!B194 -> 4.5745037e-06 | D189: ='DF raw data'!C194 -> 2.9071161e-06 | F189: 1.519270712e-06 | G189: 4.589640039e-06 | H189: 2.90976739e-06 | J189: -5.952844047e-07 | K189: -1.051583555e-05 | L189: 3.140982466e-06 | N189: -0.0006113164386 | O189: -0.02863448394 | P189: -6.885490979e-05 | Q189: 0.001579056502 | R189: 1.175382028e-05
A190: 90.92332 | B190: ='DF raw data'!A195 -> 3.968793e-06 | C190: ='DF raw data'!B195 -> 4.0786872e-06 | D190: ='DF raw data'!C195 -> 1.3739773e-06 | F190: 3.972412539e-06 | G190: 4.092182958e-06 | H190: 1.375230367e-06 | J190: 6.582101107e-07 | K190: -8.40914121e-06 | L190: 1.365705789e-05 | N190: -0.0006109871822 | O190: -0.02894011806 | P190: -7.30614145e-05 | Q190: 0.001542508991 | R190: 1.194322902e-05
A191: 91.42355 | B191: ='DF raw data'!A196 -> 2.5958232e-06 | C191: ='DF raw data'!B196 -> 1.9304862e-05 | D191: ='DF raw data'!C196 -> 5.9741942e-06 | F191: 2.598190591e-06 | G191: 1.936873886e-05 | H191: 5.979642665e-06 | J191: -7.448686512e-06 | K191: 2.251622306e-06 | L191: 1.077510294e-05 | N191: -0.0006147132386 | O191: -0.02924761606 | P191: -7.193508547e-05 | Q191: 0.001506524903 | R191: 1.213484063e-05
A192: 91.92378 | B192: ='DF raw data'!A197 -> 4.6366213e-06 | C192: ='DF raw data'!B197 -> 1.2770401e-05 | D192: ='DF raw data'!C197 -> 6.5494223e-06 | F192: 4.640849899e-06 | G192: 1.281265632e-05 | H192: 6.555395373e-06 | J192: -9.244747828e-06 | K192: -1.31437061e-06 | L192: 1.841814805e-05 | N192: -0.0006193377388 | O192: -0.02955742738 | P192: -7.259257308e-05 | Q192: 0.00147021192 | R192: 1.232935453e-05
A193: 92.42401 | B193: ='DF raw data'!A198 -> 6.2996169e-06 | C193: ='DF raw data'!B198 -> 1.4160144e-06 | D193: ='DF raw data'!C198 -> -5.4019583e-06 | F193: 6.305362151e-06 | G193: 1.420699777e-06 | H193: -5.406884886e-06 | J193: -7.122986144e-06 | K193: -3.925745859e-06 | L193: 2.158987803e-05 | N193: -0.0006229008702 | O193: -0.02986902108 | P193: -7.455634893e-05 | Q193: 0.001432916598 | R193: 1.252622712e-05
A194: 92.92424 | B194: ='DF raw data'!A199 -> 9.1366674e-06 | C194: ='DF raw data'!B199 -> 1.7379755e-06 | D194: ='DF raw data'!C199 -> 1.6268168e-06 | F194: 9.145000041e-06 | G194: 1.743726197e-06 | H194: 1.628300457e-06 | J194: -6.351327132e-06 | K194: -4.04636425e-06 | L194: 1.145857069e-05 | N194: -0.0006260779945 | O194: -0.03018220408 | P194: -7.658046172e-05 | Q194: 0.001394608753 | R194: 1.272523773e-05
A195: 93.42447 | B195: ='DF raw data'!A200 -> 7.4835516e-06 | C195: ='DF raw data'!B200 -> 6.9915368e-06 | D195: ='DF raw data'!C200 -> -5.2034266e-06 | F195: 7.490376599e-06 | G195: 7.014670735e-06 | H195: -5.208172125e-06 | J195: 1.686554136e-06 | K195: -2.682374901e-06 | L195: 5.513800704e-06 | N195: -0.0006252343296 | O195: -0.03049496505 | P195: -7.792226612e-05 | Q195: 0.001355629698 | R195: 1.292382396e-05
A196: 93.9247 | B196: ='DF raw data'!A201 -> 3.3560325e-06 | C196: ='DF raw data'!B201 -> 1.1376218e-05 | D196: ='DF raw data'!C201 -> -4.7113281e-06 | F196: 3.359093202e-06 | G196: 1.141386018e-05 | H196: -4.715624831e-06 | J196: 4.246793347e-06 | K196: 5.322127636e-07 | L196: 6.496903477e-06 | N196: -0.0006231099561 | O196: -0.03080666334 | P196: -7.765603733e-05 | Q196: 0.001316783819 | R196: 1.312106289e-05
A197: 94.42493 | B197: ='DF raw data'!A202 -> -1.6844845e-06 | C197: ='DF raw data'!B202 -> 1.3084889e-05 | D197: ='DF raw data'!C202 -> 1.4742072e-06 | F197: -1.68602075e-06 | G197: 1.312818491e-05 | H197: 1.475551677e-06 | J197: -2.77664139e-06 | K197: 4.008382188e-06 | L197: 1.402643445e-05 | N197: -0.0006244989155 | O197: -0.03111905643 | P197: -7.565092431e-05 | Q197: 0.001278940957 | R197: 1.331901488e-05
A198: 94.92516 | B198: ='DF raw data'!A203 -> -4.8810471e-06 | C198: ='DF raw data'!B203 -> 1.8345654e-05 | D198: ='DF raw data'!C203 -> 2.4452311e-06 | F198: -4.885498615e-06 | G198: 1.840635699e-05 | H198: 2.447461151e-06 | J198: -7.728354437e-06 | K198: -7.036052551e-06 | L198: 2.023859578e-05 | N198: -0.0006283648702 | O198: -0.03143338339 | P198: -7.917056887e-05 | Q198: 0.001239337463 | R198: 1.351966233e-05
A199: 95.42539 | B199: ='DF raw data'!A204 -> -4.3577329e-06 | C199: ='DF raw data'!B204 -> 1.583829e-05 | D199: ='DF raw data'!C204 -> 5.2701853e-06 | F199: -4.361707152e-06 | G199: =(1-$G$1*($B$2-$G$2))*C199*$M$2/$M$1 -> 1.58906965e-05 | H199: 5.274991709e-06 | J199: =-CELL("contents", INDEX($F$6:$F$1203,1204-CELL("row",F199))) -> -6.517283747e-06 | K199: =CELL("contents", INDEX($G$6:$G$1203,1204-CELL("row",G199))) -> -8.461482428e-06 | L199: =-CELL("contents", INDEX($H$6:$H$1203,1204-CELL("row",H199))) -> 7.629219208e-06 | N199: -0.000631625011 | O199: -0.03174934117 | P199: -8.340325623e-05 | Q199: 0.001197616652 | R199: 1.372270882e-05
A200: =A199+$B$1 -> 95.92562 | B200: ='DF raw data'!A205 -> -8.043502e-06 | C200: ='DF raw data'!B205 -> 8.9826681e-06 | D200: ='DF raw data'!C205 -> 2.7057837e-07 | F200: -8.050837674e-06 | G200: 9.012390387e-06 | H200: 2.708251375e-07 | J200: -6.050948337e-06 | K200: -5.791473609e-06 | L200: 1.28177101e-05 | N200: =J200*$B$1+N199 -> -0.0006346518769 | O200: =N200*$B$1+O199 -> -0.03206681308 | P200: =K200*$B$1+P199 -> -8.630032507e-05 | Q200: =P200*$B$1+Q199 -> 0.001154446641 | R200: =(N200^2+P200^2)*$B$1+R199 -> 1.392791855e-05
... 1003 more rows

Sheet 10 y=-0.1
A1: dz | B1: ='DF raw data'!E7 -> 0.5001 | C1: mm | F1: T_coeff | G1: -0.0008 | H1: /degC | L1: Hallref | M1: ='PI vs y'!B44 -> 0.50529 | N1: T | P1: IBy total | Q1: =P1203*1000 -> -12.39086519 | R1: muTm
A2: Tref | B2: ='DF raw data'!E8 -> 21.11 | C2: degC | F2: Tcorr | G2: 20 | H2: degC | L2: NMRref | M2: ='PI vs y'!B45 -> 0.5065 | N2: T | P2: JBy total | Q2: =Q1203 -> -8.467181148 | R2: muTm^2
A3: Encoder | B3: ='DF raw data'!E9 -> 390663 | P3: PI total | Q3: =R1203 -> 4518.65791 | R3: T^2mm^3
J4: SXR-rotation
A5: z [mm] | B5: Bx | C5: By | D5: Bz | F5: Bx_corr | G5: By_corr | H5: Bz_corr | J5: Bx_rot | K5: By_rot | L5: Bz_rot | N5: Ix | O5: Jx | P5: Iy | Q5: Jy | R5: PI
A6: ='PI vs y'!B53 -> -1.119 | B6: ='DF raw data'!D11 -> -2.832365e-06 | C6: ='DF raw data'!E11 -> -1.0273905e-05 | D6: ='DF raw data'!F11 -> -8.050115e-06 | F6: =(1-$G$1*($B$2-$G$2))*B6 -> -2.83488014e-06 | G6: =(1-$G$1*($B$2-$G$2))*C6*$M$2/$M$1 -> -1.030765263e-05 | H6: =(1-$G$1*($B$2-$G$2))*D6 -> -8.057263502e-06 | J6: =-CELL("contents", INDEX($F$6:$F$1203,1204-CELL("row",F6))) -> -1.606550351e-05 | K6: =CELL("contents", INDEX($G$6:$G$1203,1204-CELL("row",G6))) -> -2.488971985e-06 | L6: =-CELL("contents", INDEX($H$6:$H$1203,1204-CELL("row",H6))) -> -7.553803226e-08 | N6: =J6*$B$1 -> -8.034358305e-06 | O6: =N6*$B$1 -> -4.017982589e-06 | P6: =K6*$B$1 -> -1.24473489e-06 | Q6: =P6*$B$1 -> -6.224919183e-07 | R6: =(N6^2+P6^2)*$B$1 -> 3.305674919e-11
A7: =A6+$B$1 -> -0.6189 | B7: ='DF raw data'!D12 -> -3.0480335e-06 | C7: ='DF raw data'!E12 -> -2.1013564e-06 | D7: ='DF raw data'!F12 -> 5.9095996e-06 | F7: =(1-$G$1*($B$2-$G$2))*B7 -> -3.050740154e-06 | G7: =(1-$G$1*($B$2-$G$2))*C7*$M$2/$M$1 -> -2.108258916e-06 | H7: 5.914847324e-06 | J7: =-CELL("contents", INDEX($F$6:$F$1203,1204-CELL("row",F7))) -> -1.602214604e-05 | K7: =CELL("contents", INDEX($G$6:$G$1203,1204-CELL("row",G7))) -> -7.17573582e-06 | L7: =-CELL("contents", INDEX($H$6:$H$1203,1204-CELL("row",H7))) -> -4.163297328e-07 | N7: =J7*$B$1+N6 -> -1.604703354e-05 | O7: =N7*$B$1+O6 -> -1.204310406e-05 | P7: =K7*$B$1+P6 -> -4.833320373e-06 | Q7: =P7*$B$1+Q6 -> -3.039635437e-06 | R7: =(N7^2+P7^2)*$B$1+R6 -> 1.735189717e-10
A8: =A7+$B$1 -> -0.1188 | B8: ='DF raw data'!D13 -> -3.0937556e-06 | C8: ='DF raw data'!E13 -> -1.6630489e-06 | D8: ='DF raw data'!F13 -> 1.6217866e-06 | F8: -3.096502855e-06 | G8: -1.668511668e-06 | H8: 1.623226747e-06 | J8: -1.098964615e-05 | K8: -9.59455141e-06 | L8: -1.430581329e-06 | N8: =J8*$B$1+N7 -> -2.154295558e-05 | O8: =N8*$B$1+O7 -> -2.281673615e-05 | P8: =K8*$B$1+P7 -> -9.631555534e-06 | Q8: =P8*$B$1+Q7 -> -7.856376359e-06 | R8: =(N8^2+P8^2)*$B$1+R7 -> 4.520075568e-10
A9: 0.3813 | B9: ='DF raw data'!D14 -> -3.1466882e-06 | C9: ='DF raw data'!E14 -> -4.8235023e-07 | D9: ='DF raw data'!F14 -> 3.4807567e-07 | F9: -3.149482459e-06 | G9: -4.839346497e-07 | H9: 3.483847612e-07 | J9: -8.649335896e-06 | K9: -1.185018594e-05 | L9: -2.494659192e-06 | N9: -2.586848846e-05 | O9: -3.575356723e-05 | P9: -1.555783352e-05 | Q9: -1.56368489e-05 | R9: 9.077111189e-10
A10: 0.8814 | B10: ='DF raw data'!D15 -> -2.9348923e-06 | C10: ='DF raw data'!E15 -> -5.3236231e-06 | D10: ='DF raw data'!F15 -> 5.9152567e-06 | F10: -2.937498484e-06 | G10: -5.341110089e-06 | H10: 5.920509448e-06 | J10: -6.72424263e-06 | K10: 5.052204501e-06 | L10: -2.333524732e-06 | N10: -2.92312822e-05 | O10: -5.037213146e-05 | P10: -1.303122605e-05 | Q10: -2.215376505e-05 | R10: 1.419953903e-09
A11: 1.3815 | B11: ='DF raw data'!D16 -> -3.1886068e-06 | C11: ='DF raw data'!E16 -> 1.153598e-06 | D11: ='DF raw data'!F16 -> 3.3758854e-06 | F11: -3.191438283e-06 | G11: 1.157387328e-06 | H11: 3.378883186e-06 | J11: -4.813046493e-06 | K11: 1.889230911e-06 | L11: -1.441239085e-06 | N11: -3.163828675e-05 | O11: -6.619443866e-05 | P11: -1.208642167e-05 | Q11: -2.819818453e-05 | R11: 1.993599998e-09
A12: 1.8816 | B12: ='DF raw data'!D17 -> -3.1167185e-06 | C12: ='DF raw data'!E17 -> -8.9757822e-07 | D12: ='DF raw data'!F17 -> 3.2024448e-06 | F12: -3.119486146e-06 | G12: -9.005265768e-07 | H12: 3.205288571e-06 | J12: -3.716582097e-06 | K12: -2.894183462e-06 | L12: -1.186911542e-06 | N12: -3.349694946e-05 | O12: -8.294626308e-05 | P12: -1.353380282e-05 | Q12: -3.496643932e-05 | R12: 2.64633524e-09
A13: 2.3817 | B13: ='DF raw data'!D18 -> -3.0499689e-06 | C13: ='DF raw data'!E18 -> -5.3306953e-06 | D13: ='DF raw data'!F18 -> -1.2486077e-05 | F13: -3.052677272e-06 | G13: -5.348205519e-06 | H13: -1.249716464e-05 | J13: -4.811977845e-06 | K13: -1.910673515e-06 | L13: -1.573866554e-06 | N13: -3.590341958e-05 | O13: -0.0001009015632 | P13: -1.448933065e-05 | Q13: -4.221255358e-05 | R13: 3.395983259e-09
A14: 2.8818 | B14: ='DF raw data'!D19 -> -2.7294375e-06 | C14: ='DF raw data'!E19 -> -1.3593706e-05 | D14: ='DF raw data'!F19 -> -1.0285136e-05 | F14: -2.731861241e-06 | G14: -1.363835848e-05 | H14: -1.02942692e-05 | J14: -1.105004073e-05 | K14: 2.751190598e-06 | L14: -1.674586013e-06 | N14: -4.142954495e-05 | O14: -0.0001216204786 | P14: -1.311346023e-05 | Q14: -4.877059504e-05 | R14: 4.340357113e-09
A15: 3.3819 | B15: ='DF raw data'!D20 -> -3.2494829e-06 | C15: ='DF raw data'!E20 -> 1.7666956e-06 | D15: ='DF raw data'!F20 -> -3.4677348e-06 | F15: -3.252368441e-06 | G15: 1.772498826e-06 | H15: -3.470814149e-06 | J15: -1.836432505e-05 | K15: 1.865404101e-06 | L15: -1.525704223e-06 | N15: -5.061354391e-05 | O15: -0.000146932312 | P15: -1.218057164e-05 | Q15: -5.486209891e-05 | R15: 5.695676699e-09
A16: 3.882 | B16: ='DF raw data'!D21 -> -3.2618975e-06 | C16: ='DF raw data'!E21 -> 4.9338582e-06 | D16: ='DF raw data'!F21 -> 1.3966634e-05 | F16: -3.264794065e-06 | G16: 4.950064893e-06 | H16: 1.397903637e-05 | J16: -1.788022956e-05 | K16: 6.19384076e-07 | L16: -1.49712807e-06 | N16: -5.955544671e-05 | O16: -0.0001767159909 | P16: -1.187081766e-05 | Q16: -6.079869483e-05 | R16: 7.539929248e-09
A17: 4.3821 | B17: ='DF raw data'!D22 -> -2.8238212e-06 | C17: ='DF raw data'!E22 -> -8.3118557e-06 | D17: ='DF raw data'!F22 -> 6.2126214e-06 | F17: -2.826328753e-06 | G17: -8.339158408e-06 | H17: 6.218138208e-06 | J17: -9.091944083e-06 | K17: 4.528523651e-06 | L17: -1.459157482e-06 | N17: -6.410232794e-05 | O17: -0.0002087735651 | P17: -9.606102983e-06 | Q17: -6.560270693e-05 | R17: 9.641042218e-09
A18: 4.8822 | B18: ='DF raw data'!D23 -> -3.0197318e-06 | C18: ='DF raw data'!E23 -> -3.9321108e-06 | D18: ='DF raw data'!F23 -> -3.2412095e-07 | F18: -3.022413322e-06 | G18: -3.945026962e-06 | H18: -3.244087694e-07 | J18: -3.607683581e-06 | K18: 2.659223394e-06 | L18: -1.453164065e-06 | N18: -6.59065305e-05 | O18: -0.000241733421 | P18: -8.276225364e-06 | Q18: -6.974164723e-05 | R18: 1.184756677e-08
A19: 5.3823 | B19: ='DF raw data'!D24 -> -3.3525432e-06 | C19: ='DF raw data'!E24 -> 5.571505e-06 | D19: ='DF raw data'!F24 -> 2.1065655e-06 | F19: -3.355520258e-06 | G19: 5.589806229e-06 | H19: 2.10843613e-06 | J19: -4.096522985e-06 | K19: 2.456283662e-06 | L19: -1.620495824e-06 | N19: -6.795520165e-05 | O19: -0.0002757178173 | P19: -7.047837904e-06 | Q19: -7.326627097e-05 | R19: 1.418182425e-08
A20: 5.8824 | B20: ='DF raw data'!D25 -> -3.7876164e-06 | C20: ='DF raw data'!E25 -> 1.6845033e-05 | D20: ='DF raw data'!F25 -> -6.6967073e-07 | F20: -3.790979803e-06 | G20: 1.690036541e-05 | H20: -6.702653976e-07 | J20: -3.690726858e-06 | K20: 5.553263085e-06 | L20: -1.757718469e-06 | N20: -6.980093415e-05 | O20: -0.0003106252645 | P20: -4.270651035e-06 | Q20: -7.540202355e-05 | R20: 1.662751773e-08
A21: 6.3825 | B21: ='DF raw data'!D26 -> -3.1099773e-06 | C21: ='DF raw data'!E26 -> -2.4265189e-06 | D21: ='DF raw data'!F26 -> -4.9620089e-06 | F21: -3.11273896e-06 | G21: -2.434489507e-06 | H21: -4.966415164e-06 | J21: -3.549092898e-06 | K21: 6.455649632e-06 | L21: -1.580460804e-06 | N21: -7.157583551e-05 | O21: -0.0003464203398 | P21: -1.042180655e-06 | Q21: -7.59232181e-05 | R21: 1.919012333e-08
A22: 6.8826 | B22: ='DF raw data'!D27 -> -3.1161183e-06 | C22: ='DF raw data'!E27 -> 6.3908833e-06 | D22: ='DF raw data'!F27 -> -4.0536092e-06 | F22: -3.118885413e-06 | G22: 6.411876015e-06 | H22: -4.057208805e-06 | J22: -4.401905724e-06 | K22: 8.621995025e-06 | L22: -1.200234763e-06 | N22: -7.377722856e-05 | O22: -0.0003833163318 | P22: 3.269679058e-06 | Q22: -7.42880516e-05 | R22: 2.191755384e-08
A23: 7.3827 | B23: ='DF raw data'!D28 -> -2.48934e-06 | C23: ='DF raw data'!E28 -> 6.3871471e-06 | D23: ='DF raw data'!F28 -> -3.8307867e-06 | F23: =(1-$G$1*($B$2-$G$2))*B23 -> -2.491550534e-06 | G23: 6.408127543e-06 | H23: -3.834188439e-06 | J23: -4.396961938e-06 | K23: 5.57133395e-06 | L23: -7.071640445e-07 | N23: -7.597614923e-05 | O23: -0.000421312004 | P23: 6.055903166e-06 | Q23: -7.125949443e-05 | R23: 2.482265935e-08
A24: 7.8828 | B24: ='DF raw data'!D29 -> -3.8758594e-06 | C24: ='DF raw data'!E29 -> 2.30094e-06 | D24: ='DF raw data'!F29 -> -2.1106305e-06 | F24: -3.879301163e-06 | G24: 2.308498107e-06 | H24: -2.11250474e-06 | J24: -2.481355589e-06 | K24: 2.767389032e-06 | L24: 7.378541632e-06 | N24: -7.721707516e-05 | O24: -0.0004599282633 | P24: 7.439874421e-06 | Q24: -6.753881323e-05 | R24: 2.783217534e-08
A25: 8.3829 | B25: ='DF raw data'!D30 -> -6.1620271e-06 | C25: ='DF raw data'!E30 -> -1.2789111e-06 | D25: ='DF raw data'!F30 -> 2.5575366e-06 | F25: -6.16749898e-06 | G25: -1.283112056e-06 | H25: 2.559807693e-06 | J25: -2.185593785e-06 | K25: 9.557847741e-06 | L25: 7.500445586e-06 | N25: -7.831009061e-05 | O25: -0.0004990911396 | P25: 1.221975408e-05 | Q25: -6.142771422e-05 | R25: 3.097369986e-08
A26: 8.883 | B26: ='DF raw data'!D31 -> -3.9183128e-06 | C26: ='DF raw data'!E31 -> 8.0428646e-07 | D26: ='DF raw data'!F31 -> 7.923526e-06 | F26: -3.921792262e-06 | G26: 8.069283729e-07 | H26: 7.930562091e-06 | J26: -5.165127764e-06 | K26: -1.722326259e-06 | L26: 7.562928822e-06 | N26: -8.0893171e-05 | O26: -0.0005395458145 | P26: 1.135841871e-05 | Q26: -5.574736902e-05 | R26: 3.431072653e-08
A27: 9.3831 | B27: ='DF raw data'!D32 -> -2.285353e-06 | C27: ='DF raw data'!E32 -> 8.6763557e-06 | D27: ='DF raw data'!F32 -> 7.7739778e-06 | F27: -2.287382393e-06 | G27: 8.704855714e-06 | H27: 7.780881092e-06 | J27: -4.126988114e-06 | K27: -4.51087537e-06 | L27: 6.156256806e-06 | N27: -8.295707776e-05 | O27: -0.000581032649 | P27: 9.102529942e-06 | Q27: -5.119519379e-05 | R27: 3.77937894e-08
A28: 9.8832 | B28: ='DF raw data'!D33 -> -4.3575897e-06 | C28: ='DF raw data'!E33 -> 2.0416903e-06 | D28: ='DF raw data'!F33 -> -2.3162818e-06 | F28: -4.36145924e-06 | G28: 2.048396826e-06 | H28: -2.318338658e-06 | J28: -1.305322198e-06 | K28: -3.751055292e-06 | L28: -1.854243307e-06 | N28: -8.360986939e-05 | O28: -0.0006228459447 | P28: 7.226627191e-06 | Q28: -4.758115753e-05 | R28: 4.131591089e-08
A29: 10.3833 | B29: ='DF raw data'!D34 -> -7.4179848e-06 | C29: ='DF raw data'!E34 -> -4.4949061e-06 | D29: ='DF raw data'!F34 -> -3.1953957e-06 | F29: -7.424571971e-06 | G29: -4.509670927e-06 | H29: -3.198233211e-06 | J29: 2.277429163e-06 | K29: 4.687843671e-07 | L29: -2.028435152e-06 | N29: -8.247092707e-05 | O29: -0.0006640896554 | P29: 7.461066253e-06 | Q29: -4.38498783e-05 | R29: 4.474515726e-08
A30: 10.8834 | B30: ='DF raw data'!D35 -> -6.5450372e-06 | C30: ='DF raw data'!E35 -> 1.2170281e-05 | D30: ='DF raw data'!F35 -> 1.5041853e-06 | F30: -6.550849193e-06 | G30: 1.221025783e-05 | H30: 1.505521017e-06 | J30: 2.897414221e-06 | K30: 2.240361224e-06 | L30: -3.118816452e-07 | N30: -8.102193021e-05 | O30: -0.0007046087227 | P30: 8.581470901e-06 | Q30: -3.95582847e-05 | R30: 4.806491849e-08
A31: 11.3835 | B31: ='DF raw data'!D36 -> 2.1798494e-06 | C31: ='DF raw data'!E36 -> 1.0606003e-06 | D31: ='DF raw data'!F36 -> -2.9195278e-06 | F31: 2.181785106e-06 | G31: 1.06408415e-06 | H31: -2.922120341e-06 | J31: -3.879723338e-07 | K31: -2.014419182e-06 | L31: 4.201325167e-07 | N31: -8.121595518e-05 | O31: -0.0007452248218 | P31: 7.574059868e-06 | Q31: -3.577049736e-05 | R31: 5.139228271e-08
A32: 11.8836 | B32: ='DF raw data'!D37 -> 6.9318089e-06 | C32: ='DF raw data'!E37 -> 3.4730967e-06 | D32: ='DF raw data'!F37 -> -2.2439406e-06 | F32: 6.937964346e-06 | G32: 3.484505096e-06 | H32: -2.245933219e-06 | J32: -2.94848273e-06 | K32: -9.046105779e-06 | L32: 1.191270309e-05 | N32: -8.269049139e-05 | O32: -0.0007865783366 | P32: 3.050102368e-06 | Q32: -3.424514117e-05 | R32: 5.481647766e-08
A33: 12.3837 | B33: ='DF raw data'!D38 -> 6.5137569e-06 | C33: ='DF raw data'!E38 -> 4.3343703e-06 | D33: ='DF raw data'!F38 -> 6.595485e-07 | F33: 6.519541116e-06 | G33: 4.3486078e-06 | H33: 6.601341791e-07 | J33: -3.452887544e-06 | K33: -4.104860964e-06 | L33: -4.979328721e-07 | N33: -8.441728045e-05 | O33: -0.0008287954185 | P33: 9.972613996e-07 | Q33: -3.374641074e-05 | R33: 5.838082627e-08
A34: 12.8838 | B34: ='DF raw data'!D39 -> 5.206603e-06 | C34: ='DF raw data'!E39 -> -7.4002796e-06 | D34: ='DF raw data'!F39 -> -5.4939724e-06 | F34: 5.211226463e-06 | G34: -7.424587971e-06 | H34: -5.498851047e-06 | J34: -2.277722723e-06 | K34: -4.942326156e-06 | L34: -3.79914795e-06 | N34: -8.555636959e-05 | O34: -0.000871582159 | P34: -1.474395911e-06 | Q34: -3.448375614e-05 | R34: 6.204259158e-08
A35: 13.3839 | B35: ='DF raw data'!D40 -> 3.0494618e-06 | C35: ='DF raw data'!E40 -> 5.5545629e-06 | D35: ='DF raw data'!F40 -> 1.3723299e-07 | F35: 3.052169722e-06 | G35: 5.572808478e-06 | H35: 1.373548529e-07 | J35: -1.434863729e-06 | K35: -1.070802948e-06 | L35: -4.504369431e-07 | N35: -8.627394494e-05 | O35: -0.0009147277588 | P35: -2.009904465e-06 | Q35: -3.548890936e-05 | R35: 6.576695295e-08
A36: 13.884 | B36: ='DF raw data'!D41 -> 3.0555354e-06 | C36: ='DF raw data'!E41 -> -7.1256923e-06 | D36: ='DF raw data'!F41 -> 1.19971e-05 | F36: 3.058248715e-06 | G36: -7.149098709e-06 | H36: 1.200775342e-05 | J36: -2.638422741e-06 | K36: 2.238620224e-06 | L36: 1.119703515e-06 | N36: -8.759342015e-05 | O36: -0.0009585332282 | P36: -8.90370491e-07 | Q36: -3.593418364e-05 | R36: 6.96044203e-08
A37: 14.3841 | B37: ='DF raw data'!D42 -> -1.7296646e-06 | C37: ='DF raw data'!E42 -> -1.5689817e-06 | D37: ='DF raw data'!F42 -> 4.3283412e-06 | F37: -1.731200542e-06 | G37: -1.574135477e-06 | H37: 4.332184767e-06 | J37: -5.048813969e-06 | K37: 1.712526875e-06 | L37: 2.218755207e-06 | N37: -9.011833201e-05 | O37: -0.001003601406 | P37: -3.393580063e-08 | Q37: -3.595115494e-05 | R37: 7.366588989e-08
A38: 14.8842 | B38: ='DF raw data'!D43 -> -1.1657776e-05 | C38: ='DF raw data'!E43 -> 4.3450441e-06 | D38: ='DF raw data'!F43 -> 1.1659805e-05 | F38: -1.166812811e-05 | G38: 4.359316661e-06 | H38: 1.167015891e-05 | J38: -4.542938851e-06 | K38: -3.013324434e-06 | L38: -2.117695745e-06 | N38: -9.239025573e-05 | O38: -0.001049805773 | P38: -1.54089935e-06 | Q38: -3.67217587e-05 | R38: 7.793591058e-08
A39: 15.3843 | B39: ='DF raw data'!D44 -> -1.249368e-05 | C39: ='DF raw data'!E44 -> -1.2574288e-06 | D39: ='DF raw data'!F44 -> 3.0872409e-06 | F39: -1.250477439e-05 | G39: -1.261559191e-06 | H39: 3.08998237e-06 | J39: -2.004541954e-06 | K39: -1.672391571e-06 | L39: -2.943700387e-06 | N39: -9.339272716e-05 | O39: -0.001096511476 | P39: -2.377262375e-06 | Q39: -3.791062762e-05 | R39: 8.23007098e-08
A40: 15.8844 | B40: ='DF raw data'!D45 -> -4.0409309e-06 | C40: ='DF raw data'!E45 -> -6.5404797e-06 | D40: ='DF raw data'!F45 -> -4.0833606e-06 | F40: -4.044519247e-06 | G40: -6.561963808e-06 | H40: -4.086986624e-06 | J40: -1.75481129e-06 | K40: 3.270211291e-07 | L40: 2.669125481e-06 | N40: -9.427030829e-05 | O40: -0.001143656057 | P40: -2.213719108e-06 | Q40: -3.901770854e-05 | R40: 8.674749477e-08
A41: 16.3845 | B41: ='DF raw data'!D46 -> 3.0666158e-06 | C41: ='DF raw data'!E46 -> -8.8375582e-06 | D41: ='DF raw data'!F46 -> -3.0495244e-07 | F41: 3.069338955e-06 | G41: -8.866587731e-06 | H41: -3.052232378e-07 | J41: -4.699271451e-06 | K41: 5.532378208e-06 | L41: 2.801098168e-07 | N41: -9.662041394e-05 | O41: -0.001191975926 | P41: 5.530232337e-07 | Q41: -3.874114162e-05 | R41: 9.141633346e-08
A42: 16.8846 | B42: ='DF raw data'!D47 -> 6.643651e-06 | C42: ='DF raw data'!E47 -> -9.9359368e-06 | D42: ='DF raw data'!F47 -> 1.8435469e-06 | F42: 6.649550562e-06 | G42: -9.968574275e-06 | H42: 1.84518397e-06 | J42: -5.875772657e-06 | K42: 3.834431368e-06 | L42: -1.879785869e-07 | N42: -9.955888785e-05 | O42: -0.001241765326 | P42: 2.470622361e-06 | Q42: -3.750558338e-05 | R42: 9.637636333e-08
A43: 17.3847 | B43: ='DF raw data'!D48 -> 3.1641373e-06 | C43: ='DF raw data'!E48 -> -2.1052272e-06 | D43: ='DF raw data'!F48 -> -6.094559e-06 | F43: 3.166947054e-06 | G43: -2.112142431e-06 | H43: -6.099970968e-06 | J43: -7.712812301e-06 | K43: 2.490687903e-06 | L43: 9.388795453e-06 | N43: -0.0001034160653 | O43: -0.0012934837 | P43: 3.716215381e-06 | Q43: -3.564710407e-05 | R43: 1.017317806e-07
A44: 17.8848 | B44: ='DF raw data'!D49 -> -3.6119984e-06 | C44: ='DF raw data'!E49 -> -1.0435482e-05 | D44: ='DF raw data'!F49 -> 1.2911302e-07 | F44: -3.615205855e-06 | G44: -1.046976038e-05 | H44: 1.292276724e-07 | J44: -9.813010022e-06 | K44: 2.64289363e-06 | L44: 4.931506893e-06 | N44: -0.0001083235516 | O44: -0.001347656308 | P44: 5.037926485e-06 | Q44: -3.312763703e-05 | R44: 1.076126428e-07
A45: 18.3849 | B45: ='DF raw data'!D50 -> -7.4791956e-06 | C45: ='DF raw data'!E50 -> -1.0445094e-05 | D45: ='DF raw data'!F50 -> 1.0354463e-06 | F45: -7.485837126e-06 | G45: -1.047940395e-05 | H45: 1.036365776e-06 | J45: -1.051410124e-05 | K45: -3.134071364e-06 | L45: 1.180253135e-06 | N45: -0.0001135816536 | O45: -0.001404458493 | P45: 3.470577396e-06 | Q45: -3.139200128e-05 | R45: 1.140703526e-07
A46: 18.885 | B46: ='DF raw data'!D51 -> -2.672434e-06 | C46: ='DF raw data'!E51 -> -1.1080074e-05 | D46: ='DF raw data'!F51 -> -1.2055006e-05 | F46: -2.674807121e-06 | G46: -1.111646973e-05 | H46: -1.206571085e-05 | J46: -9.580115495e-06 | K46: 2.822273025e-06 | L46: -1.584724587e-06 | N46: -0.0001183726694 | O46: -0.001463656665 | P46: 4.881996136e-06 | Q46: -2.895051501e-05 | R46: 1.210897175e-07
A47: 19.3851 | B47: ='DF raw data'!D52 -> -8.8848935e-07 | C47: ='DF raw data'!E52 -> 1.3686825e-06 | D47: ='DF raw data'!F52 -> -1.0772043e-05 | F47: -8.892783285e-07 | G47: 1.373178336e-06 | H47: -1.078160857e-05 | J47: -9.166235596e-06 | K47: 1.013215103e-06 | L47: 8.28921209e-06 | N47: -0.0001229567038 | O47: -0.001525147313 | P47: 5.388705009e-06 | Q47: -2.625562363e-05 | R47: 1.286649268e-07
A48: 19.8852 | B48: ='DF raw data'!D53 -> -2.5379998e-06 | C48: ='DF raw data'!E53 -> -6.8178756e-06 | D48: ='DF raw data'!F53 -> -3.6638692e-06 | F48: -2.540253544e-06 | G48: -6.840270896e-06 | H48: -3.667122716e-06 | J48: -1.207642335e-05 | K48: 6.6027673e-06 | L48: 7.571387327e-06 | N48: -0.0001289961231 | O48: -0.001589658274 | P48: 8.690748936e-06 | Q48: -2.190938009e-05 | R48: 1.370243629e-07
A49: 20.3853 | B49: ='DF raw data'!D54 -> -2.8446468e-06 | C49: ='DF raw data'!E54 -> -9.0913363e-06 | D49: ='DF raw data'!F54 -> -3.6187473e-06 | F49: -2.847172846e-06 | G49: -9.121199439e-06 | H49: -3.621960748e-06 | J49: -1.463486223e-05 | K49: 2.489618502e-06 | L49: 4.535092089e-06 | N49: -0.0001363150177 | O49: -0.001657829414 | P49: 9.935807148e-06 | Q49: -1.694048294e-05 | R49: 1.463664831e-07
A50: 20.8854 | B50: ='DF raw data'!D55 -> -9.1432082e-07 | C50: ='DF raw data'!E55 -> 2.5206027e-08 | D50: ='DF raw data'!F55 -> 6.247295e-06 | F50: -9.151327369e-07 | G50: 2.528882353e-08 | H50: 6.252842598e-06 | J50: -1.148750385e-05 | K50: -1.258135381e-05 | L50: 1.450615103e-05 | N50: -0.0001420599184 | O50: -0.001728873579 | P50: 3.643872108e-06 | Q50: -1.51181825e-05 | R50: 1.564656516e-07
A51: 21.3855 | B51: ='DF raw data'!D56 -> 3.8275598e-06 | C51: ='DF raw data'!E56 -> -3.5047431e-06 | D51: ='DF raw data'!F56 -> 5.9090685e-06 | F51: 3.830958673e-06 | G51: -3.516255448e-06 | H51: 5.914315753e-06 | J51: -5.791125457e-06 | K51: -5.84631866e-06 | L51: 1.459228345e-05 | N51: -0.0001449560602 | O51: -0.001801366105 | P51: 7.201281461e-07 | Q51: -1.475804641e-05 | R51: 1.669741419e-07
A52: 21.8856 | B52: ='DF raw data'!D57 -> 4.5217535e-06 | C52: ='DF raw data'!E57 -> -1.8917182e-05 | D52: ='DF raw data'!F57 -> -2.9178652e-06 | F52: 4.525768817e-06 | G52: -1.897932099e-05 | H52: -2.920456264e-06 | J52: -6.289652456e-06 | K52: -6.724611924e-06 | L52: 1.460860393e-05 | N52: -0.0001481015154 | O52: -0.001875431673 | P52: -2.642850277e-06 | Q52: -1.607973583e-05 | R52: 1.779468577e-07
A53: 22.3857 | B53: ='DF raw data'!D58 -> 3.2101127e-07 | C53: ='DF raw data'!E58 -> -2.9376768e-06 | D53: ='DF raw data'!F58 -> -5.0929871e-06 | F53: 3.21296328e-07 | G53: -2.947326454e-06 | H53: -5.097509673e-06 | J53: -1.193853001e-05 | K53: -1.038271137e-06 | L53: 1.282110504e-05 | N53: -0.0001540719743 | O53: -0.001952483067 | P53: -3.162089673e-06 | Q53: -1.766109688e-05 | R53: 1.898233186e-07
A54: 22.8858 | B54: ='DF raw data'!D59 -> -1.0380066e-06 | C54: ='DF raw data'!E59 -> -5.1607071e-06 | D54: ='DF raw data'!F59 -> 4.570998e-06 | F54: -1.03892835e-06 | G54: -5.177658944e-06 | H54: 4.575057046e-06 | J54: -1.728429484e-05 | K54: -1.627042496e-05 | L54: 4.132017476e-06 | N54: -0.0001627158501 | O54: -0.002033857264 | P54: -1.12989292e-05 | Q54: -2.331169137e-05 | R54: 2.031280358e-07
A55: 23.3859 | B55: ='DF raw data'!D60 -> -2.6438649e-06 | C55: ='DF raw data'!E60 -> -3.5933198e-07 | D55: ='DF raw data'!F60 -> 2.4433987e-06 | F55: -2.646212652e-06 | G55: -3.605123104e-07 | H55: 2.445568438e-06 | J55: -1.632933058e-05 | K55: -6.43158103e-06 | L55: 1.293563966e-06 | N55: -0.0001708821484 | O55: -0.002119315426 | P55: -1.451536287e-05 | Q55: -3.057082434e-05 | R55: 2.178366792e-07
A56: 23.886 | B56: ='DF raw data'!D61 -> -3.9174452e-06 | C56: ='DF raw data'!E61 -> -3.5770624e-06 | D56: ='DF raw data'!F61 -> -9.0720164e-07 | F56: -3.920923891e-06 | G56: -3.588812302e-06 | H56: -9.080072351e-07 | J56: -1.243418276e-05 | K56: -3.853059658e-06 | L56: 1.071666095e-05 | N56: -0.0001771004832 | O56: -0.002207883378 | P56: -1.644227801e-05 | Q56: -3.879360757e-05 | R56: 2.336573075e-07
A57: 24.3861 | B57: ='DF raw data'!D62 -> -5.4600901e-06 | C57: ='DF raw data'!E62 -> -6.0411926e-06 | D57: ='DF raw data'!F62 -> -3.9628962e-06 | F57: -5.46493866e-06 | G57: -6.061036655e-06 | H57: -3.966415252e-06 | J57: -8.172389443e-06 | K57: -5.190911834e-06 | L57: 7.615751788e-06 | N57: -0.0001811874951 | O57: -0.002298495244 | P57: -1.903825301e-05 | Q57: -4.83146379e-05 | R57: 2.502563084e-07
A58: 24.8862 | B58: ='DF raw data'!D63 -> -7.3358829e-06 | C58: ='DF raw data'!E63 -> 1.9444217e-06 | D58: ='DF raw data'!F63 -> -6.1879314e-06 | F58: -7.342397164e-06 | G58: 1.950808719e-06 | H58: -6.193426283e-06 | J58: -4.626516502e-06 | K58: 1.49861181e-06 | L58: 1.648036258e-07 | N58: -0.000183501216 | O58: -0.002390264203 | P58: -1.828879725e-05 | Q58: -5.746086541e-05 | R58: 2.672632973e-07
A59: 25.3863 | B59: ='DF raw data'!D64 -> -4.488486e-06 | C59: ='DF raw data'!E64 -> 8.5552375e-07 | D59: ='DF raw data'!F64 -> 2.062375e-06 | F59: -4.492471776e-06 | G59: 8.583339666e-07 | H59: 2.064206389e-06 | J59: -3.646700097e-06 | K59: -1.631432068e-06 | L59: 1.488842519e-07 | N59: -0.0001853249307 | O59: -0.0024829452 | P59: -1.910467642e-05 | Q59: -6.701511409e-05 | R59: 2.846219276e-07
A60: 25.8864 | B60: ='DF raw data'!D65 -> 7.4433558e-07 | C60: ='DF raw data'!E65 -> -1.0583854e-05 | D60: ='DF raw data'!F65 -> -6.6464258e-06 | F60: 7.4499655e-07 | G60: -1.061861975e-05 | H60: -6.652327826e-06 | J60: -3.792743468e-06 | K60: 1.022650395e-05 | L60: 7.100098294e-06 | N60: -0.0001872216817 | O60: -0.002576574763 | P60: -1.39904018e-05 | Q60: -7.401171403e-05 | R60: 3.022492971e-07
A61: 26.3865 | B61: ='DF raw data'!D66 -> 2.9745022e-06 | C61: ='DF raw data'!E66 -> 3.0533358e-06 | D61: ='DF raw data'!F66 -> -5.4036595e-06 | F61: 2.977143558e-06 | G61: 3.06336537e-06 | H61: -5.40845795e-06 | J61: -5.109676767e-06 | K61: -1.416710361e-06 | L61: 1.293294827e-05 | N61: -0.0001897770311 | O61: -0.002671482257 | P61: -1.469889865e-05 | Q61: -8.136263324e-05 | R61: 3.203686098e-07
A62: 26.8866 | B62: ='DF raw data'!D67 -> 1.5250376e-06 | C62: ='DF raw data'!E67 -> 2.7741699e-08 | D62: ='DF raw data'!F67 -> -5.7323036e-06 | F62: 1.526391833e-06 | G62: 2.783282468e-08 | H62: -5.737393886e-06 | J62: -5.754113419e-06 | K62: 7.816525088e-06 | L62: 9.84876034e-06 | N62: -0.0001926546632 | O62: -0.002767828854 | P62: -1.078985446e-05 | Q62: -8.675863946e-05 | R62: 3.389884532e-07
A63: 27.3867 | B63: ='DF raw data'!D68 -> -1.1546857e-06 | C63: ='DF raw data'!E68 -> 9.0802405e-06 | D63: ='DF raw data'!F68 -> 1.9158226e-06 | F63: -1.155711061e-06 | G63: 9.110067191e-06 | H63: 1.91752385e-06 | J63: -6.480390882e-06 | K63: 3.070190816e-06 | L63: 3.844715178e-06 | N63: -0.0001958955067 | O63: -0.002865796197 | P63: -9.254452029e-06 | Q63: -9.138679092e-05 | R63: 3.582226464e-07
A64: 27.8868 | B64: ='DF raw data'!D69 -> -1.3813664e-06 | C64: ='DF raw data'!E69 -> -1.6930695e-06 | D64: ='DF raw data'!F69 -> 2.6435123e-07 | F64: -1.382593053e-06 | G64: -1.698630879e-06 | H64: 2.645859739e-07 | J64: -7.077795006e-06 | K64: 8.418772467e-08 | L64: -5.202353691e-06 | N64: -0.000199435112 | O64: -0.002965533696 | P64: -9.212349748e-06 | Q64: -9.599388703e-05 | R64: 3.78156248e-07
A65: 28.3869 | B65: ='DF raw data'!D70 -> 2.093743e-06 | C65: ='DF raw data'!E70 -> -8.8921352e-06 | D65: ='DF raw data'!F70 -> 8.2307201e-07 | F65: 2.095602244e-06 | G65: -8.921344005e-06 | H65: 8.238028979e-07 | J65: -8.453519866e-06 | K65: 7.514928349e-06 | L65: -4.348304469e-06 | N65: -0.0002036627173 | O65: -0.003067385421 | P65: -5.454134081e-06 | Q65: -9.872149948e-05 | R65: 3.989145238e-07
A66: 28.887 | B66: ='DF raw data'!D71 -> 3.6651579e-06 | C66: ='DF raw data'!E71 -> -4.1624057e-06 | D66: ='DF raw data'!F71 -> -1.9362585e-06 | F66: 3.66841256e-06 | G66: -4.176078332e-06 | H66: -1.937977898e-06 | J66: -1.067637921e-05 | K66: -2.129931373e-07 | L66: 5.864825344e-06 | N66: -0.0002090019745 | O66: -0.003171907308 | P66: -5.560651949e-06 | Q66: -0.0001015023815 | R66: 4.207752682e-07
A67: 29.3871 | B67: ='DF raw data'!D72 -> 2.9598016e-07 | C67: ='DF raw data'!E72 -> 3.6453514e-06 | D67: ='DF raw data'!F72 -> -3.0829858e-06 | F67: 2.962429904e-07 | G67: 3.657325617e-06 | H67: -3.085723491e-06 | J67: -1.175774561e-05 | K67: -1.153933821e-06 | L67: 1.252287945e-05 | N67: -0.0002148820231 | O67: -0.003279369808 | P67: -6.137734253e-06 | Q67: -0.0001045718624 | R67: 4.438858672e-07
A68: 29.8872 | B68: ='DF raw data'!D73 -> -3.698706e-06 | C68: ='DF raw data'!E73 -> 1.3853331e-05 | D68: ='DF raw data'!F73 -> -1.1675609e-06 | F68: -3.701990451e-06 | G68: 1.38988363e-05 | H68: -1.168597694e-06 | J68: -9.836860782e-06 | K68: -7.192467099e-06 | L68: 1.435966907e-05 | N68: -0.0002198014372 | O68: -0.003389292507 | P68: -9.734687049e-06 | Q68: -0.0001094401794 | R68: 4.680944259e-07
A69: 30.3873 | B69: ='DF raw data'!D74 -> -5.0383683e-06 | C69: ='DF raw data'!E74 -> 8.2895513e-06 | D69: ='DF raw data'!F74 -> 1.4363006e-06 | F69: -5.042842371e-06 | G69: 8.316780743e-06 | H69: 1.437576035e-06 | J69: -5.324801228e-06 | K69: -7.840609942e-07 | L69: 8.336442293e-06 | N69: -0.0002224643703 | O69: -0.003500546939 | P69: -1.012679595e-05 | Q69: -0.0001145045901 | R69: 4.928958592e-07
A70: 30.8874 | B70: ='DF raw data'!D75 -> -2.1080671e-06 | C70: ='DF raw data'!E75 -> 4.0960681e-06 | D70: ='DF raw data'!F75 -> 7.1876691e-08 | F70: -2.109939064e-06 | G70: 4.109522827e-06 | H70: 7.19405175e-08 | J70: -2.940197979e-06 | K70: 3.407801867e-06 | L70: -2.841182131e-06 | N70: -0.0002239347633 | O70: -0.003612536714 | P70: -8.422554239e-06 | Q70: -0.0001187167094 | R70: 5.180097398e-07
A71: 31.3875 | B71: ='DF raw data'!D76 -> 1.2321412e-06 | C71: ='DF raw data'!E76 -> 9.8956134e-06 | D71: ='DF raw data'!F76 -> 3.5056667e-06 | F71: 1.233235341e-06 | G71: =(1-$G$1*($B$2-$G$2))*C71*$M$2/$M$1 -> 9.928118421e-06 | H71: 3.508779732e-06 | J71: =-CELL("contents", INDEX($F$6:$F$1203,1204-CELL("row",F71))) -> -3.772167012e-06 | K71: =CELL("contents", INDEX($G$6:$G$1203,1204-CELL("row",G71))) -> 1.073187053e-06 | L71: =-CELL("contents", INDEX($H$6:$H$1203,1204-CELL("row",H71))) -> 1.534703007e-06 | N71: -0.000225821224 | O71: -0.003725469908 | P71: -7.885853393e-06 | Q71: -0.0001226604247 | R71: 5.435435515e-07
A72: =A71+$B$1 -> 31.8876 | B72: ='DF raw data'!D77 -> 1.7214148e-06 | C72: ='DF raw data'!E77 -> 9.971669e-06 | D72: ='DF raw data'!F77 -> 2.8834522e-06 | F72: 1.722943416e-06 | G72: 1.000442385e-05 | H72: 2.886012706e-06 | J72: -5.270485239e-06 | K72: 1.756837048e-06 | L72: 8.046605646e-06 | N72: =J72*$B$1+N71 -> -0.0002284569937 | O72: =N72*$B$1+O71 -> -0.00383972125 | P72: =K72*$B$1+P71 -> -7.007259185e-06 | Q72: =P72*$B$1+Q71 -> -0.000126164755 | R72: =(N72^2+P72^2)*$B$1+R71 -> 5.696696255e-07
A73: 32.3877 | B73: ='DF raw data'!D78 -> 2.8629636e-06 | C73: ='DF raw data'!E78 -> -5.1378934e-06 | D73: ='DF raw data'!F78 -> 1.4845511e-06 | F73: 2.865505912e-06 | G73: -5.154770306e-06 | H73: 1.485869381e-06 | J73: -6.612405607e-06 | K73: 3.556390452e-06 | L73: 2.674987782e-06 | N73: -0.0002317638577 | O73: -0.003955626356 | P73: -5.22870832e-06 | Q73: -0.0001287796321 | R73: 5.965459122e-07
A74: 32.8878 | B74: ='DF raw data'!D79 -> 3.3252034e-06 | C74: ='DF raw data'!E79 -> 4.6332484e-06 | D74: ='DF raw data'!F79 -> -1.8339003e-06 | F74: 3.328156181e-06 | G74: 4.648467652e-06 | H74: -1.835528803e-06 | J74: -6.523884169e-06 | K74: -5.0617336e-06 | L74: 5.8059397e-06 | N74: -0.0002350264522 | O74: -0.004073163084 | P74: -7.760081294e-06 | Q74: -0.0001326604487 | R74: 6.24200268e-07
A75: 33.3879 | B75: ='DF raw data'!D80 -> 5.8549399e-06 | C75: ='DF raw data'!E80 -> 3.9495667e-06 | D75: ='DF raw data'!F80 -> 9.5753976e-06 | F75: 5.860139087e-06 | G75: 3.962540201e-06 | H75: 9.583900553e-06 | J75: -4.546479992e-06 | K75: 1.318448348e-07 | L75: 2.005857321e-06 | N75: -0.0002373001468 | O75: -0.004191836888 | P75: -7.694145692e-06 | Q75: -0.000136508291 | R75: 6.523911849e-07
A76: 33.888 | B76: ='DF raw data'!D81 -> 3.9900274e-06 | C76: ='DF raw data'!E81 -> -1.6184837e-06 | D76: ='DF raw data'!F81 -> 7.8450585e-06 | F76: 3.993570544e-06 | G76: -1.623800081e-06 | H76: 7.852024912e-06 | J76: -4.833222494e-06 | K76: 1.148269978e-05 | L76: 5.645333208e-06 | N76: -0.0002397172414 | O76: -0.00431171948 | P76: -1.951647533e-06 | Q76: -0.0001374843099 | R76: 6.811310141e-07
A77: 34.3881 | B77: ='DF raw data'!D82 -> 1.3777886e-06 | C77: ='DF raw data'!E82 -> 7.3929209e-06 | D77: ='DF raw data'!F82 -> -7.2864736e-06 | F77: 1.379012076e-06 | G77: 7.417205099e-06 | H77: -7.292943989e-06 | J77: -5.284448427e-06 | K77: -5.424777419e-06 | L77: 4.618228148e-06 | N77: -0.0002423599941 | O77: -0.004432923713 | P77: -4.66457872e-06 | Q77: -0.0001398170657 | R77: 7.105169526e-07
A78: 34.8882 | B78: ='DF raw data'!D83 -> 3.7435891e-06 | C78: ='DF raw data'!E83 -> -5.1797696e-07 | D78: ='DF raw data'!F83 -> -5.6750673e-06 | F78: 3.746913407e-06 | G78: -5.19678406e-07 | H78: -5.68010676e-06 | J78: -3.072746278e-06 | K78: 3.01316431e-06 | L78: -5.184433492e-06 | N78: -0.0002438966745 | O78: -0.00455489644 | P78: -3.157695249e-06 | Q78: -0.0001413962291 | R78: 7.402706816e-07
A79: 35.3883 | B79: ='DF raw data'!D84 -> 2.6926189e-06 | C79: ='DF raw data'!E84 -> -5.6247677e-06 | D79: ='DF raw data'!F84 -> 5.1226493e-07 | F79: 2.695009946e-06 | G79: -5.643243886e-06 | H79: 5.127198213e-07 | J79: -3.331229307e-06 | K79: -9.939646966e-07 | L79: 1.925721624e-06 | N79: -0.0002455626222 | O79: -0.004677702307 | P79: -3.654776994e-06 | Q79: -0.0001432239831 | R79: 7.704338924e-07
A80: 35.8884 | B80: ='DF raw data'!D85 -> -1.4094006e-06 | C80: ='DF raw data'!E85 -> 5.2053824e-06 | D80: ='DF raw data'!F85 -> 5.1960064e-06 | F80: -1.410652148e-06 | G80: 5.222480993e-06 | H80: 5.200620454e-06 | J80: -4.192193065e-06 | K80: -1.293971811e-05 | L80: 1.079602837e-06 | N80: -0.000247659138 | O80: -0.004801556642 | P80: -1.012593002e-05 | Q80: -0.0001482879607 | R80: 8.011588277e-07
A81: 36.3885 | B81: ='DF raw data'!D86 -> 1.6034056e-08 | C81: ='DF raw data'!E86 -> 4.2669876e-06 | D81: ='DF raw data'!F86 -> 6.5175041e-06 | F81: 1.604829424e-08 | G81: 4.281003762e-06 | H81: 6.523291644e-06 | J81: -4.724324778e-06 | K81: -1.853110451e-06 | L81: -8.058845105e-07 | N81: -0.0002500217728 | O81: -0.004926592531 | P81: -1.105267056e-05 | Q81: -0.0001538154013 | R81: 8.324816152e-07
A82: 36.8886 | B82: ='DF raw data'!D87 -> 4.9757168e-06 | C82: ='DF raw data'!E87 -> -2.9011187e-06 | D82: ='DF raw data'!F87 -> 2.4322155e-06 | F82: 4.980135237e-06 | G82: -2.910648268e-06 | H82: 2.434375307e-06 | J82: -8.121414318e-06 | K82: -1.237265853e-05 | L82: 5.66072096e-06 | N82: -0.0002540832921 | O82: -0.005053659585 | P82: -1.724023709e-05 | Q82: -0.0001624372438 | R82: 8.649158733e-07
A83: 37.3887 | B83: ='DF raw data'!D88 -> 7.3806991e-06 | C83: ='DF raw data'!E88 -> -2.6638861e-06 | D83: ='DF raw data'!F88 -> -3.7489251e-06 | F83: 7.387253161e-06 | G83: -2.672636409e-06 | H83: -3.752254145e-06 | J83: -1.000969572e-05 | K83: -7.356589843e-06 | L83: 4.285028429e-06 | N83: -0.0002590891409 | O83: -0.005183230065 | P83: -2.091926767e-05 | Q83: -0.0001728989696 | R83: 8.987050292e-07
A84: 37.8888 | B84: ='DF raw data'!D89 -> 6.3608345e-06 | C84: ='DF raw data'!E89 -> -7.2919406e-06 | D84: ='DF raw data'!F89 -> -4.6281043e-06 | F84: 6.366482921e-06 | G84: -7.3158931e-06 | H84: -4.632214057e-06 | J84: -9.686407899e-06 | K84: -5.971346907e-06 | L84: 3.826862339e-06 | N84: -0.0002639333135 | O84: -0.005315223115 | P84: -2.390553826e-05 | Q84: -0.0001848541293 | R84: 9.338281868e-07
A85: 38.3889 | B85: ='DF raw data'!D90 -> 6.3428784e-06 | C85: ='DF raw data'!E90 -> -1.071835e-05 | D85: ='DF raw data'!F90 -> -1.4805653e-06 | F85: 6.348510876e-06 | G85: -1.075355754e-05 | H85: -1.481880042e-06 | J85: -1.002172039e-05 | K85: 2.704471538e-06 | L85: 6.218809103e-06 | N85: -0.0002689451759 | O85: -0.005449722597 | P85: -2.255303204e-05 | Q85: -0.0001961329006 | R85: 9.702555442e-07
A86: 38.889 | B86: ='DF raw data'!D91 -> 5.0583526e-06 | C86: ='DF raw data'!E91 -> -2.8450793e-06 | D86: ='DF raw data'!F91 -> 4.3878867e-07 | F86: 5.062844417e-06 | G86: -2.854424791e-06 | H86: 4.391783143e-07 | J86: -1.1378339e-05 | K86: 4.064143253e-06 | L86: 6.577396346e-07 | N86: -0.0002746354832 | O86: -0.005587067802 | P86: -2.0520554e-05 | Q86: -0.0002063952297 | R86: 1.008186e-06
A87: 39.3891 | B87: ='DF raw data'!D92 -> 2.1711055e-06 | C87: ='DF raw data'!E92 -> -1.3854426e-05 | D87: ='DF raw data'!F92 -> -3.0109065e-06 | F87: =(1-$G$1*($B$2-$G$2))*B87 -> 2.173033442e-06 | G87: -1.389993489e-05 | H87: -3.013580185e-06 | J87: -1.24593701e-05 | K87: 5.896360098e-06 | L87: 3.32046866e-06 | N87: -0.0002808664142 | O87: -0.005727529096 | P87: -1.757178432e-05 | Q87: -0.000215182879 | R87: 1.047791274e-06
A88: 39.8892 | B88: ='DF raw data'!D93 -> -6.2663128e-07 | C88: ='DF raw data'!E93 -> -3.107665e-06 | D88: ='DF raw data'!F93 -> -9.8965929e-06 | F88: -6.271877286e-07 | G88: -3.11787303e-06 | H88: -9.905381074e-06 | J88: -1.158958742e-05 | K88: 2.106627776e-06 | L88: 9.246577076e-06 | N88: -0.0002866623669 | O88: -0.005870888946 | P88: -1.651825977e-05 | Q88: -0.0002234436607 | R88: 1.089023602e-06
A89: 40.3893 | B89: ='DF raw data'!D94 -> -3.8870062e-06 | C89: ='DF raw data'!E94 -> 2.0240789e-06 | D89: ='DF raw data'!F94 -> -1.9325332e-06 | F89: -3.890457862e-06 | G89: 2.030727576e-06 | H89: -1.934249289e-06 | J89: -8.509038322e-06 | K89: -1.093333815e-05 | L89: 8.517228288e-06 | N89: -0.000290917737 | O89: -0.006016376906 | P89: -2.198602217e-05 | Q89: -0.0002344388704 | R89: 1.131590371e-06
A90: 40.8894 | B90: ='DF raw data'!D95 -> -5.8623232e-06 | C90: ='DF raw data'!E95 -> -4.9671048e-06 | D90: ='DF raw data'!F95 -> 5.2128448e-06 | F90: -5.867528943e-06 | G90: -4.983420701e-06 | H90: 5.217473806e-06 | J90: -6.687698607e-06 | K90: 1.342256196e-06 | L90: 5.430174116e-06 | N90: -0.000294262255 | O90: -0.00616353746 | P90: -2.131475985e-05 | Q90: -0.0002450983818 | R90: 1.175121372e-06
A91: 41.3895 | B91: ='DF raw data'!D96 -> -6.6111174e-06 | C91: ='DF raw data'!E96 -> -3.4485727e-06 | D91: ='DF raw data'!F96 -> 2.1808421e-06 | F91: -6.616988072e-06 | G91: -3.45990054e-06 | H91: 2.182778688e-06 | J91: -7.295524778e-06 | K91: 6.104117703e-06 | L91: 2.66253123e-06 | N91: -0.000297910747 | O91: -0.006312522624 | P91: -1.826209059e-05 | Q91: -0.0002542312533 | R91: 1.219672439e-06
A92: 41.8896 | B92: ='DF raw data'!D97 -> -6.0982152e-06 | C92: ='DF raw data'!E97 -> -1.5342899e-06 | D92: ='DF raw data'!F97 -> -2.6006007e-06 | F92: -6.103630415e-06 | G92: -1.539329722e-06 | H92: -2.602910033e-06 | J92: -7.136719785e-06 | K92: -6.74723419e-06 | L92: 1.549559188e-06 | N92: -0.0003014798205 | O92: -0.006463292683 | P92: -2.16363824e-05 | Q92: -0.0002650516081 | R92: 1.265360683e-06
A93: 42.3897 | B93: ='DF raw data'!D98 -> -3.6456406e-06 | C93: ='DF raw data'!E98 -> -4.4939378e-07 | D93: ='DF raw data'!F98 -> -4.2795605e-06 | F93: -3.648877929e-06 | G93: -4.508699446e-07 | H93: -4.28336075e-06 | J93: -4.162930503e-06 | K93: 7.648957866e-07 | L93: 6.438232078e-06 | N93: -0.0003035617021 | O93: -0.00661510389 | P93: -2.125385802e-05 | Q93: -0.0002756806625 | R93: 1.31167066e-06
A94: 42.8898 | B94: ='DF raw data'!D99 -> 5.0590791e-07 | C94: ='DF raw data'!E99 -> 4.573873e-06 | D94: ='DF raw data'!F99 -> -1.0845677e-06 | F94: 5.063571562e-07 | G94: 4.588897216e-06 | H94: -1.085530796e-06 | J94: -3.148040079e-06 | K94: 1.168844941e-05 | L94: 7.761102044e-06 | N94: -0.0003051360369 | O94: -0.006767702422 | P94: -1.540846447e-05 | Q94: -0.0002833864356 | R94: 1.358352705e-06
A95: 43.3899 | B95: ='DF raw data'!D100 -> 2.3171531e-06 | C95: ='DF raw data'!E100 -> -2.0397144e-06 | D95: ='DF raw data'!F100 -> -6.0654079e-06 | F95: 2.319210732e-06 | G95: -2.046414435e-06 | H95: -6.070793982e-06 | J95: -4.857807906e-06 | K95: -3.176505394e-06 | L95: 8.352627453e-06 | N95: -0.0003075654267 | O95: -0.006921515892 | P95: -1.699703482e-05 | Q95: -0.0002918866527 | R95: 1.405804889e-06
A96: 43.89 | B96: ='DF raw data'!D101 -> 3.5853925e-06 | C96: ='DF raw data'!E101 -> 3.5986507e-06 | D96: ='DF raw data'!F101 -> -9.2930122e-06 | F96: 3.588576329e-06 | G96: 3.610471515e-06 | H96: -9.301264395e-06 | J96: -5.201939524e-06 | K96: -2.520029268e-06 | L96: 1.365963199e-05 | N96: -0.0003101669166 | O96: -0.007076630367 | P96: -1.825730146e-05 | Q96: -0.0003010171292 | R96: 1.454082965e-06
A97: 44.3901 | B97: ='DF raw data'!D102 -> 4.5672764e-06 | C97: ='DF raw data'!E102 -> 3.3408708e-06 | D97: ='DF raw data'!F102 -> -1.4320841e-05 | F97: 4.571332141e-06 | G97: 3.351844862e-06 | H97: -1.433355791e-05 | J97: -4.882460678e-06 | K97: 3.406195909e-06 | L97: 5.611029373e-06 | N97: -0.0003126086352 | O97: -0.007232965945 | P97: -1.655386288e-05 | Q97: -0.000309295716 | R97: 1.50309186e-06
A98: 44.8902 | B98: ='DF raw data'!D103 -> 3.5400033e-06 | C98: ='DF raw data'!E103 -> 6.1245614e-06 | D98: ='DF raw data'!F103 -> -4.8640381e-06 | F98: 3.543146823e-06 | G98: 6.144679304e-06 | H98: -4.868357366e-06 | J98: -7.655356826e-06 | K98: -5.41362631e-07 | L98: 2.580662295e-06 | N98: -0.0003164370792 | O98: -0.007391216129 | P98: -1.682459833e-05 | Q98: -0.0003177096976 | R98: 1.553309647e-06
A99: 45.3903 | B99: ='DF raw data'!D104 -> 1.7476474e-06 | C99: ='DF raw data'!E104 -> 3.1581141e-07 | D99: ='DF raw data'!F104 -> -4.1556364e-06 | F99: 1.749199311e-06 | G99: 3.168487844e-07 | H99: -4.159326605e-06 | J99: -9.558535849e-06 | K99: 3.443009137e-06 | L99: 1.135148718e-05 | N99: -0.0003212173029 | O99: -0.007551856902 | P99: -1.510274946e-05 | Q99: -0.0003252625826 | R99: 1.605024313e-06
A100: 45.8904 | B100: ='DF raw data'!D105 -> -2.6077612e-07 | C100: ='DF raw data'!E105 -> -1.6863975e-06 | D100: ='DF raw data'!F105 -> -2.964053e-06 | F100: -2.610076892e-07 | G100: -1.691936963e-06 | H100: -2.966685079e-06 | J100: -4.519154549e-06 | K100: 3.69989469e-06 | L100: 1.373830379e-05 | N100: -0.0003234773321 | O100: -0.007713627916 | P100: -1.325243213e-05 | Q100: -0.0003318901239 | R100: 1.6574414e-06
A101: 46.3905 | B101: ='DF raw data'!D106 -> -7.7908624e-07 | C101: ='DF raw data'!E106 -> -4.3173145e-06 | D101: ='DF raw data'!F106 -> 1.3849215e-06 | F101: -7.797780686e-07 | G101: -4.331495975e-06 | H101: 1.38615131e-06 | J101: 1.307900886e-06 | K101: -7.332222864e-06 | L101: 1.304838969e-05 | N101: -0.0003228232509 | O101: -0.007875071823 | P101: -1.691927678e-05 | Q101: -0.0003403514543 | R101: 1.709702406e-06
A102: 46.8906 | B102: ='DF raw data'!D107 -> -1.1542182e-06 | C102: ='DF raw data'!E107 -> 1.0668426e-05 | D102: ='DF raw data'!F107 -> 4.7807748e-06 | F102: -1.155243146e-06 | G102: 1.070346955e-05 | H102: 4.785020128e-06 | J102: -4.869822766e-07 | K102: -7.85778387e-06 | L102: 5.926310795e-06 | N102: -0.0003230667907 | O102: -0.008036637525 | P102: -2.08489545e-05 | Q102: -0.0003507780164 | R102: 1.762116302e-06
A103: 47.3907 | B103: ='DF raw data'!D108 -> -4.173711e-07 | C103: ='DF raw data'!E108 -> 8.7117132e-06 | D103: ='DF raw data'!F108 -> 3.9710117e-06 | F103: -4.177417255e-07 | G103: 8.740329356e-06 | H103: 3.974537958e-06 | J103: -7.322649043e-06 | K103: -7.253508551e-06 | L103: 6.469604712e-06 | N103: -0.0003267288475 | O103: -0.008200034622 | P103: -2.447643412e-05 | Q103: -0.0003630186811 | R103: 1.815802455e-06
A104: 47.8908 | B104: ='DF raw data'!D109 -> 3.8662586e-07 | C104: ='DF raw data'!E109 -> 2.3402993e-06 | D104: ='DF raw data'!F109 -> 1.3756046e-06 | F104: 3.869691838e-07 | G104: 2.347986694e-06 | H104: 1.376826137e-06 | J104: -9.781543604e-06 | K104: 1.894851713e-06 | L104: 1.092183198e-05 | N104: -0.0003316205975 | O104: -0.008365878083 | P104: -2.352881878e-05 | Q104: -0.0003747854434 | R104: 1.871076421e-06
A105: 48.3909 | B105: ='DF raw data'!D110 -> 1.6889077e-06 | C105: ='DF raw data'!E110 -> 8.5234478e-06 | D105: ='DF raw data'!F110 -> 7.2349571e-06 | F105: 1.69040745e-06 | G105: 8.551445544e-06 | H105: 7.241381742e-06 | J105: -5.710286936e-06 | K105: 1.109863935e-05 | L105: 3.427381815e-06 | N105: -0.000334476312 | O105: -0.008533149686 | P105: -1.797838924e-05 | Q105: -0.0003837764358 | R105: 1.927186453e-06
A106: 48.891 | B106: ='DF raw data'!D111 -> 5.3750787e-06 | C106: ='DF raw data'!E111 -> 2.6813416e-06 | D106: ='DF raw data'!F111 -> 8.7166509e-06 | F106: 5.37985177e-06 | G106: 2.690149247e-06 | H106: 8.724391286e-06 | J106: -3.266157274e-06 | K106: 7.149475543e-06 | L106: 8.779486367e-06 | N106: -0.0003361097172 | O106: -0.008701238156 | P106: -1.440293652e-05 | Q106: -0.0003909793444 | R106: 1.983786364e-06
A107: 49.3911 | B107: ='DF raw data'!D112 -> 7.0700466e-06 | C107: ='DF raw data'!E112 -> -5.2011245e-07 | D107: ='DF raw data'!F112 -> 2.7992542e-07 | F107: 7.076324801e-06 | G107: -5.218209106e-07 | H107: 2.801739938e-07 | J107: -5.397622636e-06 | K107: 1.320179817e-05 | L107: 1.701966605e-05 | N107: -0.0003388090683 | O107: -0.008870676571 | P107: -7.800717261e-06 | Q107: -0.0003948804831 | R107: 2.041224067e-06
A108: 49.8912 | B108: ='DF raw data'!D113 -> 3.3456288e-06 | C108: ='DF raw data'!E113 -> 9.1687016e-06 | D108: ='DF raw data'!F113 -> 1.6318997e-07 | F108: 3.348599718e-06 | G108: 9.198818868e-06 | H108: 1.633348827e-07 | J108: -6.826126422e-06 | K108: -1.372666661e-06 | L108: 1.243022124e-05 | N108: -0.0003422228141 | O108: -0.0090418222 | P108: -8.487187858e-06 | Q108: -0.0003991249258 | R108: 2.09983003e-06
A109: 50.3913 | B109: ='DF raw data'!D114 -> -5.2123357e-07 | C109: ='DF raw data'!E114 -> 8.3945579e-06 | D109: ='DF raw data'!F114 -> 2.1533535e-06 | F109: -5.216964254e-07 | G109: 8.422132268e-06 | H109: 2.155265678e-06 | J109: -5.581480057e-06 | K109: -9.84742583e-06 | L109: 5.520636376e-06 | N109: -0.0003450141123 | O109: -0.009214363758 | P109: -1.341188552e-05 | Q109: -0.0004058322097 | R109: 2.159449259e-06
A110: 50.8914 | B110: ='DF raw data'!D115 -> 2.3684117e-07 | C110: ='DF raw data'!E115 -> 5.4837133e-06 | D110: ='DF raw data'!F115 -> 1.6723691e-06 | F110: 2.37051485e-07 | G110: 5.501726152e-06 | H110: 1.673854164e-06 | J110: -3.930837086e-06 | K110: 1.115354712e-06 | L110: -3.320263378e-06 | N110: -0.0003469799239 | O110: -0.009387888418 | P110: -1.285409662e-05 | Q110: -0.0004122605434 | R110: 2.219741463e-06
A111: 51.3915 | B111: ='DF raw data'!D116 -> 2.6059786e-06 | C111: ='DF raw data'!E116 -> 1.0571297e-06 | D111: ='DF raw data'!F116 -> 2.271024e-06 | F111: 2.608292709e-06 | G111: 1.06060215e-06 | H111: 2.273040669e-06 | J111: -6.006450196e-06 | K111: 6.794874567e-07 | L111: -1.172656195e-06 | N111: -0.0003499837497 | O111: -0.009562915291 | P111: -1.251428495e-05 | Q111: -0.0004185189373 | R111: 2.281076344e-06
A112: 51.8916 | B112: ='DF raw data'!D117 -> 2.597835e-06 | C112: ='DF raw data'!E117 -> 2.3241802e-07 | D112: ='DF raw data'!F117 -> 1.714697e-06 | F112: 2.600141877e-06 | G112: 2.331814646e-07 | H112: 1.716219651e-06 | J112: -8.720020008e-06 | K112: -2.316954493e-06 | L112: 3.740798882e-06 | N112: -0.0003543446317 | O112: -0.009740123042 | P112: -1.367299389e-05 | Q112: -0.0004253568016 | R112: 2.343962453e-06
A113: 52.3917 | B113: ='DF raw data'!D118 -> 1.3805186e-07 | C113: ='DF raw data'!E118 -> -4.6221953e-06 | D113: ='DF raw data'!F118 -> 9.7727866e-07 | F113: 1.381744501e-07 | G113: -4.637378245e-06 | H113: 9.781464835e-07 | J113: -6.285777318e-06 | K113: -1.97291951e-06 | L113: -2.51704175e-06 | N113: -0.0003574881489 | O113: -0.009918902865 | P113: -1.465965094e-05 | Q113: -0.000432688093 | R113: 2.407981595e-06
A114: 52.8918 | B114: ='DF raw data'!D119 -> -2.8660072e-06 | C114: ='DF raw data'!E119 -> -4.0380523e-06 | D114: ='DF raw data'!F119 -> 1.1372733e-06 | F114: -2.868552214e-06 | G114: -4.051316457e-06 | H114: 1.138283199e-06 | J114: -3.612761286e-06 | K114: 4.583419181e-07 | L114: -6.201618051e-06 | N114: -0.0003592948908 | O114: -0.01009858624 | P114: -1.443043414e-05 | Q114: -0.0004399047531 | R114: 2.472645053e-06
A115: 53.3919 | B115: ='DF raw data'!D120 -> -5.4843881e-06 | C115: ='DF raw data'!E120 -> 6.1205596e-06 | D115: ='DF raw data'!F120 -> 9.7408451e-07 | F115: -5.489258237e-06 | G115: 6.140664359e-06 | H115: 9.74949497e-07 | J115: -5.072130456e-06 | K115: -8.931610217e-07 | L115: 2.274870393e-07 | N115: -0.0003618314633 | O115: -0.01027953815 | P115: -1.487710397e-05 | Q115: -0.0004473447928 | R115: 2.538229836e-06
A116: 53.892 | B116: ='DF raw data'!D121 -> -5.3453482e-06 | C116: ='DF raw data'!E121 -> 8.2740753e-06 | D116: ='DF raw data'!F121 -> -2.0742252e-06 | F116: -5.350094869e-06 | G116: 8.301253907e-06 | H116: -2.076067112e-06 | J116: -5.309635573e-06 | K116: -6.682973599e-06 | L116: -1.734604062e-06 | N116: -0.000364486812 | O116: -0.01046181801 | P116: -1.821925907e-05 | Q116: -0.0004564562443 | R116: 2.604834443e-06
A117: 54.3921 | B117: ='DF raw data'!D122 -> -4.0751061e-06 | C117: ='DF raw data'!E122 -> 3.9247484e-06 | D117: ='DF raw data'!F122 -> 1.7877076e-06 | F117: -4.078724794e-06 | G117: 3.937640378e-06 | H117: 1.789295084e-06 | J117: -3.640753921e-06 | K117: -8.0069054e-06 | L117: 1.3695706e-06 | N117: -0.0003663075531 | O117: -0.01064500842 | P117: -2.222351246e-05 | Q117: -0.0004675702229 | R117: 2.672185464e-06
A118: 54.8922 | B118: ='DF raw data'!D123 -> -1.6285397e-06 | C118: ='DF raw data'!E123 -> 4.3164896e-06 | D118: ='DF raw data'!F123 -> 3.5491259e-06 | F118: -1.629985843e-06 | G118: 4.330668366e-06 | H118: 3.552277524e-06 | J118: -3.090450685e-06 | K118: -1.060360559e-06 | L118: 1.434841409e-05 | N118: -0.0003678530874 | O118: -0.01082897175 | P118: -2.275379877e-05 | Q118: -0.0004789493976 | R118: 2.740115862e-06
A119: 55.3923 | B119: ='DF raw data'!D124 -> 1.4843205e-06 | C119: ='DF raw data'!E124 -> 3.4676333e-07 | D119: ='DF raw data'!F124 -> 2.671278e-06 | F119: 1.485638577e-06 | G119: 3.47902375e-07 | H119: 2.673650095e-06 | J119: -4.403040931e-06 | K119: -1.237064594e-06 | L119: 8.554466927e-06 | N119: -0.0003700550482 | O119: -0.01101403628 | P119: -2.337245478e-05 | Q119: -0.0004906379623 | R119: 2.808873116e-06
A120: 55.8924 | B120: ='DF raw data'!D125 -> 4.6158641e-07 | C120: ='DF raw data'!E125 -> -5.0690295e-07 | D120: ='DF raw data'!F125 -> -1.0653337e-06 | F120: 4.619962987e-07 | G120: -5.085680202e-07 | H120: -1.066279716e-06 | J120: -5.186373313e-06 | K120: 2.65788752e-06 | L120: -2.088653479e-06 | N120: -0.0003726487535 | O120: -0.01120039792 | P120: -2.204324523e-05 | Q120: -0.0005016617892 | R120: 2.87856355e-06
A121: 56.3925 | B121: ='DF raw data'!D126 -> -1.8419381e-06 | C121: ='DF raw data'!E126 -> 1.3656527e-05 | D121: ='DF raw data'!F126 -> 5.3256485e-07 | F121: -1.843573741e-06 | G121: 1.370138584e-05 | H121: 5.330377676e-07 | J121: -6.168260956e-06 | K121: 7.345856301e-06 | L121: -8.74191093e-06 | N121: -0.0003757335008 | O121: -0.01138830224 | P121: -1.836958249e-05 | Q121: -0.0005108484174 | R121: 2.949334254e-06
A122: 56.8926 | B122: ='DF raw data'!D127 -> 9.483889e-07 | C122: ='DF raw data'!E127 -> 9.7613865e-06 | D122: ='DF raw data'!F127 -> 6.3883231e-06 | F122: 9.492310693e-07 | G122: 9.793450614e-06 | H122: 6.393995931e-06 | J122: -8.684344356e-06 | K122: -3.083067274e-06 | L122: -9.183221866e-06 | N122: -0.0003800765414 | O122: -0.01157837852 | P122: -1.991142444e-05 | Q122: -0.0005208061208 | R122: 3.021776061e-06
A123: 57.3927 | B123: ='DF raw data'!D128 -> 2.6749301e-06 | C123: ='DF raw data'!E128 -> -3.6306972e-06 | D123: ='DF raw data'!F128 -> 5.3420276e-06 | F123: 2.677305438e-06 | G123: -3.642623281e-06 | H123: 5.346771321e-06 | J123: -8.529949775e-06 | K123: 1.148284325e-06 | L123: -4.624417339e-06 | N123: -0.0003843423693 | O123: -0.01177058814 | P123: -1.933716744e-05 | Q123: -0.0005304766382 | R123: 3.095837362e-06
A124: 57.8928 | B124: ='DF raw data'!D129 -> 1.3790565e-06 | C124: ='DF raw data'!E129 -> -1.6893108e-07 | D124: ='DF raw data'!F129 -> 5.9829431e-06 | F124: 1.380281102e-06 | G124: -1.694859833e-07 | H124: 5.988255953e-06 | J124: -5.42120586e-06 | K124: 4.311258016e-06 | L124: 1.870367913e-06 | N124: -0.0003870535144 | O124: -0.0119641536 | P124: -1.718110731e-05 | Q124: -0.00053906891 | R124: 3.170905179e-06
A125: 58.3929 | B125: ='DF raw data'!D130 -> 6.3126356e-07 | C125: ='DF raw data'!E130 -> -6.4782994e-06 | D125: ='DF raw data'!F130 -> 1.3907786e-06 | F125: 6.31824122e-07 | G125: -6.499579259e-06 | H125: 1.392013611e-06 | J125: -3.564659009e-06 | K125: -4.0902722e-06 | L125: 1.458030082e-06 | N125: -0.0003888362003 | O125: -0.01215861058 | P125: -1.922665244e-05 | Q125: -0.0005486841588 | R125: 3.246701963e-06
A126: 58.893 | B126: ='DF raw data'!D131 -> 1.662475e-06 | C126: ='DF raw data'!E131 -> 1.164672e-06 | D126: ='DF raw data'!F131 -> -5.3434946e-06 | F126: 1.663951278e-06 | G126: 1.168497704e-06 | H126: -5.348239623e-06 | J126: -2.868111223e-06 | K126: -5.393450052e-06 | L126: -5.56152165e-07 | N126: -0.0003902705428 | O126: -0.01235378488 | P126: -2.192391681e-05 | Q126: -0.0005596483096 | R126: 3.323113119e-06
A127: 59.3931 | B127: ='DF raw data'!D132 -> 2.6310761e-06 | C127: ='DF raw data'!E132 -> 1.9917882e-06 | D127: ='DF raw data'!F132 -> 1.0235932e-07 | F127: 2.633412496e-06 | G127: 1.998330808e-06 | H127: 1.024502151e-07 | J127: -2.209500596e-07 | K127: 1.822298472e-06 | L127: -9.860042149e-07 | N127: -0.0003903810399 | O127: -0.01254901444 | P127: -2.101258534e-05 | Q127: -0.0005701567036 | R127: 3.399547846e-06
A128: 59.8932 | B128: ='DF raw data'!D133 -> 2.6683226e-06 | C128: ='DF raw data'!E133 -> -2.5612806e-06 | D128: ='DF raw data'!F133 -> 2.8496445e-06 | F128: 2.67069207e-06 | G128: -2.569693871e-06 | H128: 2.852174984e-06 | J128: 1.525898296e-06 | K128: -2.808377229e-06 | L128: -7.086173439e-06 | N128: -0.0003896179381 | O128: -0.01274386237 | P128: -2.24170548e-05 | Q128: -0.0005813674727 | R128: 3.475715407e-06
A129: 60.3933 | B129: ='DF raw data'!D134 -> 3.8487192e-06 | C129: ='DF raw data'!E134 -> -3.0920544e-06 | D129: ='DF raw data'!F134 -> -2.1643676e-07 | F129: 3.852136863e-06 | G129: -3.102211152e-06 | H129: -2.166289558e-07 | J129: 3.018948248e-07 | K129: -5.175917944e-06 | L129: -7.695416467e-06 | N129: -0.0003894669605 | O129: -0.0129386348 | P129: -2.500553136e-05 | Q129: -0.0005938727389 | R129: 3.551885533e-06
A130: 60.8934 | B130: ='DF raw data'!D135 -> 4.4881122e-06 | C130: ='DF raw data'!E135 -> 3.6953882e-06 | D130: ='DF raw data'!F135 -> -4.8752868e-06 | F130: 4.492097644e-06 | G130: 3.707526778e-06 | H130: -4.879616055e-06 | J130: -2.22006697e-06 | K130: 3.761739171e-06 | L130: -5.552472421e-06 | N130: -0.000390577216 | O130: -0.01313396246 | P130: -2.31242856e-05 | Q130: -0.0006054371941 | R130: 3.628443489e-06
A131: 61.3935 | B131: ='DF raw data'!D136 -> 2.6089817e-06 | C131: ='DF raw data'!E136 -> 6.9700974e-07 | D131: ='DF raw data'!F136 -> -9.447419e-06 | F131: 2.611298476e-06 | G131: 6.992992713e-07 | H131: -9.455808308e-06 | J131: -3.53967214e-06 | K131: 4.362127063e-06 | L131: 1.345254526e-06 | N131: -0.0003923474061 | O131: -0.0133301754 | P131: -2.094278586e-05 | Q131: -0.0006159106813 | R131: 3.70564647e-06
A132: 61.8936 | B132: ='DF raw data'!D137 -> 4.6946263e-07 | C132: ='DF raw data'!E137 -> 7.9150213e-06 | D132: ='DF raw data'!F137 -> 1.6292076e-07 | F132: 4.698795128e-07 | G132: 7.94102049e-06 | H132: 1.630654336e-07 | J132: -4.057172473e-06 | K132: -8.203826326e-06 | L132: 1.544573164e-05 | N132: -0.000394376398 | O132: -0.01352740304 | P132: -2.50455194e-05 | Q132: -0.0006284359456 | R132: 3.783742096e-06
A133: 62.3937 | B133: ='DF raw data'!D138 -> 3.9595424e-08 | C133: ='DF raw data'!E138 -> 5.9859326e-06 | D133: ='DF raw data'!F138 -> 1.0403996e-05 | F133: 3.963058474e-08 | G133: 6.005595137e-06 | H133: 1.041323475e-05 | J133: -6.438902973e-06 | K133: -7.368371817e-06 | L133: 8.931495932e-06 | N133: -0.0003975964934 | O133: -0.01372624104 | P133: -2.873044215e-05 | Q133: -0.0006428040397 | R133: 3.863212192e-06
A134: 62.8938 | B134: ='DF raw data'!D139 -> 1.4337244e-06 | C134: ='DF raw data'!E139 -> -1.326012e-06 | D134: ='DF raw data'!F139 -> -6.7376045e-06 | F134: 1.434997547e-06 | G134: -1.330367672e-06 | H134: -6.743587493e-06 | J134: -6.077868859e-06 | K134: -3.694163927e-06 | L134: -1.688309789e-06 | N134: -0.0004006360356 | O134: -0.01392659913 | P134: -3.057789353e-05 | Q134: -0.0006580960443 | R134: 3.943950457e-06
A135: 63.3939 | B135: ='DF raw data'!D140 -> 4.8477582e-06 | C135: ='DF raw data'!E140 -> -1.9076194e-06 | D135: ='DF raw data'!F140 -> -5.6298763e-06 | F135: 4.852063009e-06 | G135: =(1-$G$1*($B$2-$G$2))*C135*$M$2/$M$1 -> -1.913885531e-06 | H135: -5.63487563e-06 | J135: =-CELL("contents", INDEX($F$6:$F$1203,1204-CELL("row",F135))) -> -5.208887889e-06 | K135: =CELL("contents", INDEX($G$6:$G$1203,1204-CELL("row",G135))) -> 8.950766034e-06 | L135: =-CELL("contents", INDEX($H$6:$H$1203,1204-CELL("row",H135))) -> 3.836988523e-06 | N135: -0.0004032410004 | O135: -0.01412825995 | P135: -2.610161543e-05 | Q135: -0.0006711494621 | R135: 4.025609085e-06
A136: =A135+$B$1 -> 63.894 | B136: ='DF raw data'!D141 -> 7.1838544e-06 | C136: ='DF raw data'!E141 -> 3.0684116e-06 | D136: ='DF raw data'!F141 -> 7.9352385e-06 | F136: 7.190233663e-06 | G136: 3.078490691e-06 | H136: 7.942284992e-06 | J136: -5.294469918e-06 | K136: 1.220650956e-05 | L136: 9.433123982e-07 | N136: =J136*$B$1+N135 -> -0.0004058887649 | O136: =N136*$B$1+O135 -> -0.01433124492 | P136: =K136*$B$1+P135 -> -1.999714001e-05 | Q136: =P136*$B$1+Q135 -> -0.0006811500319 | R136: =(N136^2+P136^2)*$B$1+R135 -> 4.108198387e-06
A137: 64.3941 | B137: ='DF raw data'!D142 -> 8.0393156e-06 | C137: ='DF raw data'!E142 -> -1.7074796e-06 | D137: ='DF raw data'!F142 -> 9.8841419e-06 | F137: 8.046454512e-06 | G137: -1.713088313e-06 | H137: 9.892919018e-06 | J137: -3.265088526e-06 | K137: 1.901279257e-06 | L137: 2.259788011e-06 | N137: -0.0004075216356 | O137: -0.01453504649 | P137: -1.904631025e-05 | Q137: -0.0006906750916 | R137: 4.191433353e-06
A138: 64.8942 | B138: ='DF raw data'!D143 -> 5.3621957e-06 | C138: ='DF raw data'!E143 -> -3.1786492e-06 | D138: ='DF raw data'!F143 -> 2.2828692e-06 | F138: 5.36695733e-06 | G138: -3.189090398e-06 | H138: 2.284896388e-06 | J138: -1.309931988e-06 | K138: -1.900231026e-06 | L138: 4.642806354e-06 | N138: -0.0004081767326 | O138: -0.01473917568 | P138: -1.999661578e-05 | Q138: -0.0007006753992 | R138: 4.274954109e-06
A139: 65.3943 | B139: ='DF raw data'!D144 -> -2.3848772e-06 | C139: ='DF raw data'!E144 -> 4.0124091e-06 | D139: ='DF raw data'!F144 -> 1.0409033e-06 | F139: -2.386994971e-06 | G139: 4.025589025e-06 | H139: 1.041827622e-06 | J139: -7.934337341e-07 | K139: -3.047192118e-06 | L139: -7.971727814e-06 | N139: -0.0004085735288 | O139: -0.0149435033 | P139: -2.152051656e-05 | Q139: -0.0007114378095 | R139: 4.358668579e-06
A140: 65.8944 | B140: ='DF raw data'!D145 -> -6.3052053e-06 | C140: ='DF raw data'!E145 -> 3.7615173e-08 | D140: ='DF raw data'!F145 -> -1.2971462e-07 | F140: -6.310804322e-06 | G140: 3.773873098e-08 | H140: -1.298298066e-07 | J140: 1.657087088e-09 | K140: 5.433487636e-07 | L140: -3.61109771e-06 | N140: -0.0004085727001 | O140: -0.0151478305 | P140: -2.124878785e-05 | Q140: -0.0007220643283 | R140: 4.442376898e-06
A141: 66.3945 | B141: ='DF raw data'!D146 -> -2.9907626e-06 | C141: ='DF raw data'!E146 -> 1.485298e-06 | D141: ='DF raw data'!F146 -> -1.4275199e-06 | F141: -2.993418397e-06 | G141: 1.490176893e-06 | H141: -1.428787538e-06 | J141: 2.183429565e-06 | K141: 1.720293905e-06 | L141: 9.131933663e-06 | N141: -0.000407480767 | O141: -0.01535161164 | P141: -2.038846886e-05 | Q141: -0.0007322606016 | R141: 4.525621677e-06
A142: 66.8946 | B142: ='DF raw data'!D147 -> 6.4120798e-07 | C142: ='DF raw data'!E147 -> 7.1302043e-06 | D142: ='DF raw data'!F147 -> 3.5808055e-06 | F142: 6.417773727e-07 | G142: 7.15362553e-06 | H142: 3.583985255e-06 | J142: -1.046304794e-06 | K142: 3.867225938e-06 | L142: 9.059528224e-06 | N142: -0.000408004024 | O142: -0.01555565445 | P142: -1.845446917e-05 | Q142: -0.0007414896816 | R142: 4.609042283e-06
A143: 67.3947 | B143: ='DF raw data'!D148 -> 1.9747956e-06 | C143: ='DF raw data'!E148 -> 3.3075258e-07 | D143: ='DF raw data'!F148 -> -4.8762872e-06 | F143: 1.976549218e-06 | G143: 3.318390331e-07 | H143: -4.880617343e-06 | J143: -7.026886339e-06 | K143: 1.058996192e-06 | L143: 7.918176502e-06 | N143: -0.0004115181699 | O143: -0.01576145469 | P143: -1.792486518e-05 | Q143: -0.0007504539067 | R143: 4.693893502e-06
A144: 67.8948 | B144: ='DF raw data'!D149 -> 3.0151521e-06 | C144: ='DF raw data'!E149 -> 1.1837532e-06 | D144: ='DF raw data'!F149 -> -1.2246083e-05 | F144: 3.017829555e-06 | G144: 1.187641582e-06 | H144: -1.225695752e-05 | J144: -5.606199288e-06 | K144: 2.419740619e-06 | L144: 1.255105445e-05 | N144: -0.0004143218301 | O144: -0.01596865703 | P144: -1.671475289e-05 | Q144: -0.0007588129546 | R144: 4.779881677e-06
A145: 68.3949 | B145: ='DF raw data'!D150 -> 3.7242314e-06 | C145: ='DF raw data'!E150 -> 6.8780269e-06 | D145: ='DF raw data'!F150 -> -1.0138384e-05 | F145: 3.727538517e-06 | G145: 6.90061978e-06 | H145: -1.014738688e-05 | J145: -1.181324485e-06 | K145: 6.503573135e-06 | L145: 9.510499231e-06 | N145: -0.0004149126105 | O145: -0.01617615483 | P145: -1.346231597e-05 | Q145: -0.0007655454588 | R145: 4.866065765e-06
A146: 68.895 | B146: ='DF raw data'!D151 -> 3.8924395e-06 | C146: ='DF raw data'!E151 -> 4.5417169e-06 | D146: ='DF raw data'!F151 -> -2.2574484e-06 | F146: 3.895895986e-06 | G146: 4.55663549e-06 | H146: -2.259453014e-06 | J146: 2.768138626e-06 | K146: 4.735744801e-06 | L146: -2.401600829e-06 | N146: -0.0004135282644 | O146: -0.01638296031 | P146: -1.109396999e-05 | Q146: -0.0007710935532 | R146: 4.951647229e-06
A147: 69.3951 | B147: ='DF raw data'!D152 -> 5.5311389e-06 | C147: ='DF raw data'!E152 -> 3.3838353e-06 | D147: ='DF raw data'!F152 -> -6.5316522e-07 | F147: 5.536050551e-06 | G147: 3.394950491e-06 | H147: -6.537452307e-07 | J147: 3.534634971e-06 | K147: -9.982093537e-06 | L147: 1.700771345e-06 | N147: -0.0004117605934 | O147: -0.01658888179 | P147: -1.608601497e-05 | Q147: -0.0007791381693 | R147: 5.036566982e-06
A148: 69.8952 | B148: ='DF raw data'!D153 -> 5.4297466e-06 | C148: ='DF raw data'!E153 -> 1.4380768e-05 | D148: ='DF raw data'!F153 -> -7.7359136e-06 | F148: 5.434568215e-06 | G148: 1.442800582e-05 | H148: -7.742783091e-06 | J148: -1.314140321e-06 | K148: -1.072316804e-05 | L148: 1.049903687e-05 | N148: -0.000412417795 | O148: -0.01679513193 | P148: -2.144867131e-05 | Q148: -0.0007898646498 | R148: 5.121858279e-06
A149: 70.3953 | B149: ='DF raw data'!D154 -> 4.0890168e-06 | C149: ='DF raw data'!E154 -> 8.7257231e-06 | D149: ='DF raw data'!F154 -> -6.1724263e-06 | F149: 4.092647847e-06 | G149: 8.754385276e-06 | H149: -6.177907415e-06 | J149: -6.740076478e-06 | K149: -1.120883513e-05 | L149: 1.121612909e-05 | N149: -0.0004157885073 | O149: -0.01700306776 | P149: -2.705420976e-05 | Q149: -0.0008033944601 | R149: 5.208681646e-06
A150: 70.8954 | B150: ='DF raw data'!D155 -> 4.1963499e-06 | C150: ='DF raw data'!E155 -> 6.494824e-06 | D150: ='DF raw data'!F155 -> 6.7064516e-06 | F150: 4.200076259e-06 | G150: 6.516158139e-06 | H150: 6.712406929e-06 | J150: -8.457461463e-06 | K150: -4.930277709e-06 | L150: 8.347365884e-06 | N150: -0.0004200180837 | O150: -0.0172131188 | P150: -2.951984164e-05 | Q150: -0.0008181573329 | R150: 5.297342681e-06
A151: 71.3955 | B151: ='DF raw data'!D156 -> 3.4416141e-06 | C151: ='DF raw data'!E156 -> -1.3629702e-06 | D151: ='DF raw data'!F156 -> 5.1659913e-06 | F151: =(1-$G$1*($B$2-$G$2))*B151 -> 3.444670253e-06 | G151: -1.367447272e-06 | H151: 5.1705787e-06 | J151: -8.559745811e-06 | K151: 6.852433918e-07 | L151: 8.363154192e-06 | N151: -0.0004242988126 | O151: -0.01742531064 | P151: -2.917715142e-05 | Q151: -0.0008327488264 | R151: 5.387801163e-06
A152: 71.8956 | B152: ='DF raw data'!D157 -> 2.2847796e-06 | C152: ='DF raw data'!E157 -> 5.3710996e-06 | D152: ='DF raw data'!F157 -> 3.3702283e-06 | F152: 2.286808484e-06 | G152: 5.388742539e-06 | H152: 3.373221063e-06 | J152: -8.667842415e-06 | K152: 1.659383883e-06 | L152: 7.5704552e-06 | N152: -0.0004286336006 | O152: -0.0176396703 | P152: -2.834729354e-05 | Q152: -0.0008469253079 | R152: 5.480084783e-06
A153: 72.3957 | B153: ='DF raw data'!D158 -> 6.8521763e-06 | C153: ='DF raw data'!E158 -> 7.8265602e-06 | D153: ='DF raw data'!F158 -> -3.3421481e-06 | F153: 6.858261033e-06 | G153: 7.852268814e-06 | H153: -3.345115928e-06 | J153: -7.866738966e-06 | K153: 1.881332451e-06 | L153: 5.232201573e-06 | N153: -0.0004325677568 | O153: -0.01785599744 | P153: -2.740643918e-05 | Q153: -0.0008606312681 | R153: 5.574036558e-06
A154: 72.8958 | B154: ='DF raw data'!D159 -> 1.0643412e-05 | C154: ='DF raw data'!E159 -> -6.6888396e-07 | D154: ='DF raw data'!F159 -> -6.8259201e-06 | F154: 1.065286335e-05 | G154: -6.71081104e-07 | H154: -6.831981517e-06 | J154: -7.586542973e-06 | K154: -3.791616992e-06 | L154: 6.425374971e-06 | N154: -0.0004363617869 | O154: -0.01807422197 | P154: -2.930262684e-05 | Q154: -0.0008752855118 | R154: 5.669690811e-06
A155: 73.3959 | B155: ='DF raw data'!D160 -> 6.0033913e-06 | C155: ='DF raw data'!E160 -> 6.5543304e-06 | D155: ='DF raw data'!F160 -> 5.2086521e-06 | F155: 6.008722311e-06 | G155: 6.575860005e-06 | H155: 5.213277383e-06 | J155: -7.064432651e-06 | K155: -6.805195056e-06 | L155: 7.871015561e-06 | N155: -0.0004398947097 | O155: -0.01829421331 | P155: -3.270590489e-05 | Q155: -0.0008916417348 | R155: 5.766998785e-06
A156: 73.896 | B156: ='DF raw data'!D161 -> 7.263737e-08 | C156: ='DF raw data'!E161 -> 1.1945323e-05 | D156: ='DF raw data'!F161 -> 5.7444136e-06 | F156: 7.270187198e-08 | G156: 1.198456089e-05 | H156: 5.749514639e-06 | J156: -2.856018695e-06 | K156: -8.091109286e-06 | L156: 3.409663695e-06 | N156: -0.0004413230046 | O156: -0.01851491895 | P156: -3.675226864e-05 | Q156: -0.0009100215444 | R156: 5.865076758e-06
A157: 74.3961 | B157: ='DF raw data'!D162 -> -2.7485278e-06 | C157: ='DF raw data'!E162 -> 1.2814866e-05 | D157: ='DF raw data'!F162 -> -4.0155414e-06 | F157: -2.750968493e-06 | G157: 1.285696016e-05 | H157: -4.019107201e-06 | J157: 2.539319515e-06 | K157: -7.098364704e-06 | L157: -6.683960891e-07 | N157: -0.0004400530909 | O157: -0.0187349895 | P157: -4.030216083e-05 | Q157: -0.000930176655 | R157: 5.962731779e-06
A158: 74.8962 | B158: ='DF raw data'!D163 -> -1.8255836e-06 | C158: ='DF raw data'!E163 -> 6.6214438e-06 | D158: ='DF raw data'!F163 -> -3.6142872e-06 | F158: -1.827204718e-06 | G158: 6.643193858e-06 | H158: -3.617496687e-06 | J158: 3.836409509e-06 | K158: -4.73469998e-06 | L158: 4.900400095e-06 | N158: -0.0004381345025 | O158: -0.01895410056 | P158: -4.266998429e-05 | Q158: -0.0009515159141 | R158: 6.059642442e-06
A159: 75.3963 | B159: ='DF raw data'!D164 -> -7.1841021e-07 | C159: ='DF raw data'!E164 -> 4.0333754e-07 | D159: ='DF raw data'!F164 -> -4.4632493e-06 | F159: -7.190481583e-07 | G159: 4.046624195e-07 | H159: -4.467212665e-06 | J159: 4.33307896e-07 | K159: -3.017740793e-06 | L159: 5.424712371e-06 | N159: -0.0004379178053 | O159: -0.01917310326 | P159: -4.417915646e-05 | Q159: -0.0009736099103 | R159: 6.156523716e-06
A160: 75.8964 | B160: ='DF raw data'!D165 -> -1.0287298e-06 | C160: ='DF raw data'!E165 -> 4.3549176e-06 | D160: ='DF raw data'!F165 -> -2.41728e-07 | F160: -1.029643312e-06 | G160: 4.369222594e-06 | H160: -2.419426545e-07 | J160: -4.319062825e-06 | K160: -3.858282758e-06 | L160: 1.026862044e-05 | N160: -0.0004400777686 | O160: -0.01939318615 | P160: -4.610868367e-05 | Q160: -0.000996668863 | R160: 6.254440522e-06
A161: 76.3965 | B161: ='DF raw data'!D166 -> 4.3254988e-07 | C161: ='DF raw data'!E166 -> 1.7556216e-06 | D161: ='DF raw data'!F166 -> 4.0615282e-06 | F161: 4.329339843e-07 | G161: 1.76138845e-06 | H161: 4.065134837e-06 | J161: -6.15683662e-06 | K161: -6.746694022e-06 | L161: 6.89386382e-06 | N161: -0.0004431568026 | O161: -0.01961480887 | P161: -4.948270535e-05 | Q161: -0.001021415164 | R161: 6.35387865e-06
A162: 76.8966 | B162: ='DF raw data'!D167 -> 4.741338e-07 | C162: ='DF raw data'!E167 -> 3.8787171e-06 | D162: ='DF raw data'!F167 -> 1.4784284e-06 | F162: 4.745548308e-07 | G162: 3.891457875e-06 | H162: 1.479741244e-06 | J162: -4.672013367e-06 | K162: -3.003016987e-06 | L162: 4.423803052e-07 | N162: -0.0004454932765 | O162: -0.01983760005 | P162: -5.098451414e-05 | Q162: -0.001046912519 | R162: 6.454430597e-06
A163: 77.3967 | B163: ='DF raw data'!D168 -> -2.4146468e-06 | C163: ='DF raw data'!E168 -> 2.5707288e-06 | D163: ='DF raw data'!F168 -> -6.3752191e-07 | F163: -2.416791006e-06 | G163: 2.579173107e-06 | H163: -6.380880295e-07 | J163: -4.938446149e-06 | K163: -1.066654265e-05 | L163: 3.625023065e-06 | N163: -0.0004479629934 | O163: -0.02006162635 | P163: -5.631885212e-05 | Q163: -0.001075077577 | R163: 6.556372309e-06
A164: 77.8968 | B164: ='DF raw data'!D169 -> -1.6176585e-06 | C164: ='DF raw data'!E169 -> 7.8002722e-06 | D164: ='DF raw data'!F169 -> -2.4423377e-06 | F164: -1.619094981e-06 | G164: 7.825894463e-06 | H164: -2.444506496e-06 | J164: -7.075790527e-06 | K164: -1.306233456e-05 | L164: 8.880602779e-06 | N164: -0.0004515015962 | O164: -0.02028742229 | P164: -6.285132564e-05 | Q164: -0.001106509525 | R164: 6.66029508e-06
A165: 78.3969 | B165: ='DF raw data'!D170 -> 5.0122949e-06 | C165: ='DF raw data'!E170 -> 9.446363e-06 | D165: ='DF raw data'!F170 -> 5.3859526e-06 | F165: 5.016745818e-06 | G165: 9.477392327e-06 | H165: 5.390735326e-06 | J165: -8.665370022e-06 | K165: -6.74362076e-06 | L165: 3.285228995e-06 | N165: -0.0004558351478 | O165: -0.02051538545 | P165: -6.622381038e-05 | Q165: -0.001139628053 | R165: 6.766401934e-06
A166: 78.897 | B166: ='DF raw data'!D171 -> 9.506869e-06 | C166: ='DF raw data'!E171 -> 9.250225e-06 | D166: ='DF raw data'!F171 -> 4.1443868e-06 | F166: 9.5153111e-06 | G166: 9.280610055e-06 | H166: 4.148067015e-06 | J166: -7.75790781e-06 | K166: 3.504452003e-06 | L166: 8.327047958e-06 | N166: -0.0004597148775 | O166: -0.02074528886 | P166: -6.447123393e-05 | Q166: -0.001171870117 | R166: 6.874170638e-06
A167: 79.3971 | B167: ='DF raw data'!D172 -> 4.8769275e-06 | C167: ='DF raw data'!E172 -> 1.7285611e-05 | D167: ='DF raw data'!F172 -> -4.3443856e-06 | F167: 4.881258212e-06 | G167: 1.734239062e-05 | H167: -4.348243414e-06 | J167: -4.123914887e-06 | K167: -7.956974323e-06 | L167: 1.234075687e-05 | N167: -0.0004617772473 | O167: -0.02097622366 | P167: -6.845051679e-05 | Q167: -0.00120610222 | R167: 6.98315428e-06
A168: 79.8972 | B168: ='DF raw data'!D173 -> -4.5613765e-06 | C168: ='DF raw data'!E173 -> 1.0432925e-05 | D168: ='DF raw data'!F173 -> -4.5531001e-06 | F168: -4.565427002e-06 | G168: 1.046719498e-05 | H168: -4.557143253e-06 | J168: 3.671671452e-07 | K168: -6.659015459e-06 | L168: -6.812495529e-07 | N168: -0.000461593627 | O168: -0.02120706664 | P168: -7.178069042e-05 | Q168: -0.001241999744 | R168: 7.092286674e-06
A169: 80.3973 | B169: ='DF raw data'!D174 -> -6.4204819e-06 | C169: ='DF raw data'!E174 -> 8.1398448e-06 | D169: ='DF raw data'!F174 -> -2.8103811e-06 | F169: -6.426183288e-06 | G169: 8.166582488e-06 | H169: -2.812876718e-06 | J169: 2.277629441e-06 | K169: -1.155404737e-06 | L169: 2.975744417e-06 | N169: -0.0004604545845 | O169: -0.02143733997 | P169: -7.235850833e-05 | Q169: -0.001278186234 | R169: 7.200935489e-06
A170: 80.8974 | B170: ='DF raw data'!D175 -> 1.3426112e-06 | C170: ='DF raw data'!E175 -> 3.03412e-06 | D170: ='DF raw data'!F175 -> -2.5415673e-06 | F170: 1.343803439e-06 | G170: 3.04408645e-06 | H170: -2.543824212e-06 | J170: -1.951896446e-06 | K170: -7.453510063e-06 | L170: 1.529378783e-05 | N170: -0.0004614307279 | O170: -0.02166810148 | P170: -7.608600871e-05 | Q170: -0.001316236847 | R170: 7.310311058e-06
A171: 81.3975 | B171: ='DF raw data'!D176 -> 7.0658421e-06 | C171: ='DF raw data'!E176 -> -5.5900759e-06 | D171: ='DF raw data'!F176 -> 4.0095488e-06 | F171: 7.072116568e-06 | G171: -5.608438131e-06 | H171: 4.013109279e-06 | J171: -9.437879902e-06 | K171: -6.680301851e-06 | L171: 7.131875186e-06 | N171: -0.0004661506117 | O171: -0.0219012234 | P171: -7.942682767e-05 | Q171: -0.001355958203 | R171: 7.422135926e-06
A172: 81.8976 | B172: ='DF raw data'!D177 -> 5.067564e-06 | C172: ='DF raw data'!E177 -> -6.1604783e-06 | D172: ='DF raw data'!F177 -> 9.8808805e-06 | F172: 5.072063997e-06 | G172: -6.180714183e-06 | H172: 9.889654722e-06 | J172: -1.165866771e-05 | K172: -6.529837124e-06 | L172: -1.527171625e-06 | N172: -0.0004719811114 | O172: -0.02213726116 | P172: -8.269239921e-05 | Q172: -0.001397312672 | R172: 7.536960987e-06
A173: 82.3977 | B173: ='DF raw data'!D178 -> 1.2349994e-07 | C173: ='DF raw data'!E178 -> -5.5148244e-06 | D173: ='DF raw data'!F178 -> -4.4598551e-06 | F173: 1.236096079e-07 | G173: -5.532939445e-06 | H173: -4.463815451e-06 | J173: -1.004583879e-05 | K173: -1.272097794e-05 | L173: -4.09963895e-06 | N173: -0.0004770050354 | O173: -0.02237581137 | P173: -8.905416028e-05 | Q173: -0.001441848658 | R173: 7.654716757e-06
A174: 82.8978 | B174: ='DF raw data'!D179 -> -1.7566311e-06 | C174: ='DF raw data'!E179 -> 6.8127797e-06 | D174: ='DF raw data'!F179 -> -1.5985688e-05 | F174: -1.758190988e-06 | G174: 6.835158257e-06 | H174: -1.599988329e-05 | J174: -6.776821779e-06 | K174: -5.731192533e-06 | L174: 5.101250091e-07 | N174: -0.000480394124 | O174: -0.02261605647 | P174: -9.192032967e-05 | Q174: -0.001487818015 | R174: 7.774354611e-06
A175: 83.3979 | B175: ='DF raw data'!D180 -> -2.050396e-06 | C175: ='DF raw data'!E180 -> 1.1723967e-05 | D175: ='DF raw data'!F180 -> -1.3789405e-05 | F175: -2.052216752e-06 | G175: 1.176247778e-05 | H175: -1.380164999e-05 | J175: -2.599473685e-06 | K175: 4.095200536e-06 | L175: 1.211007521e-05 | N175: -0.0004816941207 | O175: -0.0228569517 | P175: -8.987231988e-05 | Q175: -0.001532763162 | R175: 7.894431751e-06
A176: 83.898 | B176: ='DF raw data'!D181 -> -2.297302e-06 | C176: ='DF raw data'!E181 -> 1.0070669e-05 | D176: ='DF raw data'!F181 -> -1.4672513e-05 | F176: -2.299342004e-06 | G176: 1.010374904e-05 | H176: -1.468554219e-05 | J176: -3.174696429e-06 | K176: -1.200919354e-06 | L176: 1.42764052e-05 | N176: -0.0004832817864 | O176: -0.02309864093 | P176: -9.047289965e-05 | Q176: -0.001578008659 | R176: 8.015329241e-06
A177: 84.3981 | B177: ='DF raw data'!D182 -> 3.5545384e-07 | C177: ='DF raw data'!E182 -> -3.8887461e-06 | D177: ='DF raw data'!F182 -> -5.4065881e-06 | F177: 3.55769483e-07 | G177: -3.901519818e-06 | H177: -5.41138915e-06 | J177: -8.58279466e-06 | K177: -6.197314032e-06 | L177: 4.206756986e-06 | N177: -0.000487574042 | O177: -0.0233424767 | P177: -9.35721764e-05 | Q177: -0.001624804104 | R177: 8.138595989e-06
A178: 84.8982 | B178: ='DF raw data'!D183 -> 1.9519673e-06 | C178: ='DF raw data'!E183 -> 1.6614234e-06 | D178: ='DF raw data'!F183 -> 2.4431688e-07 | F178: 1.953700647e-06 | G178: 1.666880828e-06 | H178: 2.445338334e-07 | J178: -9.742260352e-06 | K178: -1.028583319e-05 | L178: -8.226049451e-07 | N178: -0.0004924461464 | O178: -0.02358874902 | P178: -9.871612158e-05 | Q178: -0.001674172037 | R178: 8.264745254e-06
A179: 85.3983 | B179: ='DF raw data'!D184 -> 6.5155439e-07 | C179: ='DF raw data'!E184 -> 8.4203111e-06 | D179: ='DF raw data'!F184 -> 2.0217788e-06 | F179: 6.521329703e-07 | G179: 8.447970061e-06 | H179: 2.02357414e-06 | J179: -1.498733294e-06 | K179: -4.609135076e-06 | L179: 7.226998081e-06 | N179: -0.000493195663 | O179: -0.02383539617 | P179: -0.00010102115 | Q179: -0.001724692714 | R179: 8.391494216e-06
A180: 85.8984 | B180: ='DF raw data'!D185 -> -8.1786709e-07 | C180: ='DF raw data'!E185 -> -4.2284532e-06 | D180: ='DF raw data'!F185 -> 5.8520977e-06 | F180: -8.18593356e-07 | G180: -4.242342785e-06 | H180: 5.857294363e-06 | J180: 5.353168096e-06 | K180: 1.993437888e-08 | L180: 1.267455702e-05 | N180: -0.0004905185436 | O180: -0.0240807045 | P180: -0.0001010111808 | Q180: -0.001775208405 | R180: 8.516925147e-06
A181: 86.3985 | B181: ='DF raw data'!D186 -> -1.0693788e-06 | C181: ='DF raw data'!E186 -> 2.8824163e-06 | D181: ='DF raw data'!F186 -> 2.6397331e-06 | F181: -1.070328408e-06 | G181: 2.891884435e-06 | H181: 2.642077183e-06 | J181: 4.068436566e-06 | K181: 2.886019834e-07 | L181: 2.325991948e-05 | N181: -0.0004884839185 | O181: -0.0243249953 | P181: -0.000100866851 | Q181: -0.001825651917 | R181: 8.641345356e-06
A182: 86.8986 | B182: ='DF raw data'!D187 -> 2.1207768e-06 | C182: ='DF raw data'!E187 -> 2.5900756e-06 | D182: ='DF raw data'!F187 -> -4.8046081e-06 | F182: 2.12266005e-06 | G182: 2.598583457e-06 | H182: -4.808874592e-06 | J182: 1.103467009e-06 | K182: 4.224667716e-07 | L182: 2.204070078e-05 | N182: -0.0004879320746 | O182: -0.02456901014 | P182: -0.0001006555754 | Q182: -0.001875989771 | R182: 8.765474804e-06
A183: 87.3987 | B183: ='DF raw data'!D188 -> 6.0609959e-06 | C183: ='DF raw data'!E188 -> -5.0807844e-06 | D183: ='DF raw data'!F188 -> -1.1099225e-05 | F183: 6.066378064e-06 | G183: -5.097473714e-06 | H183: -1.110908111e-05 | J183: -1.758819346e-06 | K183: -1.867250145e-05 | L183: 1.647423814e-05 | N183: -0.0004888116602 | O183: -0.02481346485 | P183: -0.0001099936933 | Q183: -0.001930997617 | R183: 8.891017634e-06
A184: 87.8988 | B184: ='DF raw data'!D189 -> 5.4998332e-06 | C184: ='DF raw data'!E189 -> 5.5691117e-07 | D184: ='DF raw data'!F189 -> -4.7371891e-06 | F184: 5.504717052e-06 | G184: 5.587405068e-07 | H184: -4.741395724e-06 | J184: -4.022365191e-06 | K184: -2.209317085e-05 | L184: 1.564723642e-05 | N184: -0.000490823245 | O184: -0.02505892555 | P184: -0.0001210424881 | Q184: -0.001991530965 | R184: 9.01882256e-06
A185: 88.3989 | B185: ='DF raw data'!D190 -> -8.9816638e-07 | C185: ='DF raw data'!E190 -> 5.2368728e-06 | D185: ='DF raw data'!F190 -> 5.3890139e-06 | F185: -8.989639517e-07 | G185: 5.254074832e-06 | H185: 5.393799344e-06 | J185: -3.704823765e-06 | K185: -5.819677837e-06 | L185: 1.278959709e-05 | N185: -0.0004926760274 | O185: -0.02530531283 | P185: -0.000123952909 | Q185: -0.002053519815 | R185: 9.147895366e-06
A186: 88.899 | B186: ='DF raw data'!D191 -> -6.4268229e-06 | C186: ='DF raw data'!E191 -> 5.2470118e-06 | D186: ='DF raw data'!F191 -> 3.1663087e-06 | F186: -6.432529919e-06 | G186: 5.264247137e-06 | H186: 3.169120382e-06 | J186: -4.215175455e-06 | K186: 2.383463948e-06 | L186: 1.571304681e-05 | N186: -0.0004947840366 | O186: -0.02555275433 | P186: -0.0001227609386 | Q186: -0.00211491256 | R186: 9.277862099e-06
A187: 89.3991 | B187: ='DF raw data'!D192 -> -1.7106416e-06 | C187: ='DF raw data'!E192 -> 5.4048564e-06 | D187: ='DF raw data'!F192 -> -1.9718671e-06 | F187: -1.71216065e-06 | G187: 5.422610223e-06 | H187: -1.973618118e-06 | J187: -5.609874249e-06 | K187: -6.184729128e-06 | L187: 3.975609309e-06 | N187: -0.0004975895347 | O187: -0.02580159886 | P187: -0.0001258539217 | Q187: -0.002177852106 | R187: 9.40960572e-06
A188: 89.8992 | B188: ='DF raw data'!D193 -> 7.2456646e-06 | C188: ='DF raw data'!E193 -> 3.438274e-06 | D188: ='DF raw data'!F193 -> -4.2075503e-06 | F188: 7.25209875e-06 | G188: 3.449568011e-06 | H188: -4.211286605e-06 | J188: -5.719239779e-06 | K188: -1.125823286e-05 | L188: 8.911513003e-06 | N188: -0.0005004497265 | O188: -0.02605187376 | P188: -0.0001314841639 | Q188: -0.002243607337 | R188: 9.543501501e-06
A189: 90.3993 | B189: ='DF raw data'!D194 -> 1.007998e-05 | C189: ='DF raw data'!E194 -> 9.540965e-06 | D189: ='DF raw data'!F194 -> -7.758742e-06 | F189: 1.008893102e-05 | G189: 9.572305075e-06 | H189: -7.765631763e-06 | J189: -7.33033196e-06 | K189: -7.076538043e-06 | L189: 6.9057888e-06 | N189: -0.0005041156255 | O189: -0.02630398199 | P189: -0.0001350231406 | Q189: -0.002311132409 | R189: 9.679710644e-06
A190: 90.8994 | B190: ='DF raw data'!D195 -> 6.3483517e-06 | C190: ='DF raw data'!E195 -> 5.2491473e-06 | D190: ='DF raw data'!F195 -> -3.556054e-06 | F190: 6.353989036e-06 | G190: 5.266389651e-06 | H190: -3.559211776e-06 | J190: -1.134139322e-05 | K190: -5.152226276e-06 | L190: -1.334223439e-07 | N190: -0.0005097874563 | O190: -0.0265589267 | P190: -0.000137599769 | Q190: -0.002379946054 | R190: 9.819146999e-06
A191: 91.3995 | B191: ='DF raw data'!D196 -> 7.0500057e-08 | C191: ='DF raw data'!E196 -> 1.4918214e-05 | D191: ='DF raw data'!F196 -> -4.6415039e-07 | F191: 7.056266105e-08 | G191: 1.496721721e-05 | H191: -4.645625555e-07 | J191: -1.533121004e-05 | K191: -2.910914741e-06 | L191: 1.030539307e-05 | N191: -0.0005174545944 | O191: -0.02681770574 | P191: -0.0001390555174 | Q191: -0.002449487718 | R191: 9.962723555e-06
A192: 91.8996 | B192: ='DF raw data'!D197 -> -1.696157e-06 | C192: ='DF raw data'!E197 -> 1.6342283e-05 | D192: ='DF raw data'!F197 -> -1.4741079e-06 | F192: -1.697663187e-06 | G192: 1.639596398e-05 | H192: -1.475416908e-06 | J192: -1.765595258e-05 | K192: -5.317816224e-06 | L192: 5.753448029e-06 | N192: -0.0005262843363 | O192: -0.02708090053 | P192: -0.0001417149573 | Q192: -0.002520359368 | R192: 1.011128243e-05
A193: 92.3997 | B193: ='DF raw data'!D198 -> 2.714112e-06 | C193: ='DF raw data'!E198 -> 2.0711754e-05 | D193: ='DF raw data'!F198 -> -5.8453793e-06 | F193: 2.716522131e-06 | G193: 2.077978778e-05 | H193: -5.850569997e-06 | J193: -1.801484899e-05 | K193: -7.334631852e-06 | L193: 3.990134996e-07 | N193: -0.0005352935623 | O193: -0.02734860084 | P193: -0.0001453830067 | Q193: -0.00259306541 | R193: 1.02651509e-05
A194: 92.8998 | B194: ='DF raw data'!D199 -> 8.0335085e-06 | C194: ='DF raw data'!E199 -> 1.2991526e-05 | D194: ='DF raw data'!F199 -> -1.1007315e-05 | F194: 8.040642256e-06 | G194: 1.303420045e-05 | H194: -1.10170895e-05 | J194: -1.625971682e-05 | K194: -1.51151636e-05 | L194: 1.057031311e-05 | N194: -0.0005434250467 | O194: -0.02762036771 | P194: -0.0001529421 | Q194: -0.002669551754 | R194: 1.042453381e-05
A195: 93.3999 | B195: ='DF raw data'!D200 -> 8.8310308e-06 | C195: ='DF raw data'!E200 -> -1.2302095e-06 | D195: ='DF raw data'!F200 -> -8.8311963e-06 | F195: 8.838872755e-06 | G195: -1.234250481e-06 | H195: -8.839038402e-06 | J195: -1.13304365e-05 | K195: -2.062881148e-05 | L195: 1.2258626e-05 | N195: -0.000549091398 | O195: -0.02789496832 | P195: -0.0001632585687 | Q195: -0.002751197364 | R195: 1.058864398e-05
A196: 93.9 | B196: ='DF raw data'!D201 -> 8.1036624e-06 | C196: ='DF raw data'!E201 -> -4.3217165e-06 | D196: ='DF raw data'!F201 -> -2.933705e-06 | F196: 8.110858452e-06 | G196: -4.335912435e-06 | H196: -2.93631013e-06 | J196: -4.64969917e-06 | K196: -1.254628499e-05 | L196: 5.489660594e-06 | N196: -0.0005514167125 | O196: -0.02817073182 | P196: -0.0001695329658 | Q196: -0.002835980801 | R196: 1.075507817e-05
A197: 94.4001 | B197: ='DF raw data'!D202 -> 5.5777969e-06 | C197: ='DF raw data'!E202 -> 1.2473827e-05 | D197: ='DF raw data'!F202 -> -7.8074913e-07 | F197: 5.582749984e-06 | G197: 1.251480091e-05 | H197: -7.814424352e-07 | J197: -2.73409282e-06 | K197: -4.502444066e-06 | L197: 8.059728589e-06 | N197: -0.0005527840324 | O197: -0.02844717911 | P197: -0.0001717846381 | Q197: -0.002921890298 | R197: 1.092265176e-05
A198: 94.9002 | B198: ='DF raw data'!D203 -> 1.4121648e-06 | C198: ='DF raw data'!E203 -> 1.2100632e-05 | D198: ='DF raw data'!F203 -> -1.732539e-06 | F198: 1.413418802e-06 | G198: 1.214038005e-05 | H198: -1.734077495e-06 | J198: -5.776961991e-06 | K198: -6.070008127e-06 | L198: 6.901594178e-06 | N198: -0.000555673091 | O198: -0.02872507122 | P198: -0.0001748202491 | Q198: -0.003009317905 | R198: 1.109235304e-05
A199: 95.4003 | B199: ='DF raw data'!D204 -> -2.2600068e-07 | C199: ='DF raw data'!E204 -> 2.4020758e-06 | D199: ='DF raw data'!F204 -> -4.2192646e-06 | F199: -2.262013686e-07 | G199: =(1-$G$1*($B$2-$G$2))*C199*$M$2/$M$1 -> 2.409966117e-06 | H199: -4.223011307e-06 | J199: =-CELL("contents", INDEX($F$6:$F$1203,1204-CELL("row",F199))) -> -8.693764113e-06 | K199: =CELL("contents", INDEX($G$6:$G$1203,1204-CELL("row",G199))) -> -1.129129411e-05 | L199: =-CELL("contents", INDEX($H$6:$H$1203,1204-CELL("row",H199))) -> 3.97780866e-06 | N199: -0.0005600208425 | O199: -0.02900513765 | P199: -0.0001804670253 | Q199: -0.003099569464 | R199: 1.126548351e-05
A200: =A199+$B$1 -> 95.9004 | B200: ='DF raw data'!D205 -> 1.3710466e-06 | C200: ='DF raw data'!E205 -> 1.6514537e-05 | D200: ='DF raw data'!F205 -> 1.7390569e-06 | F200: 1.372264089e-06 | G200: 1.65687838e-05 | H200: 1.740601183e-06 | J200: -1.168485695e-05 | K200: -1.389872995e-05 | L200: 3.638411743e-06 | N200: =J200*$B$1+N199 -> -0.0005658644394 | O200: =N200*$B$1+O199 -> -0.02928812645 | P200: =K200*$B$1+P199 -> -0.0001874177801 | Q200: =P200*$B$1+Q199 -> -0.003193297096 | R200: =(N200^2+P200^2)*$B$1+R199 -> 1.144318303e-05
... 1003 more rows

Sheet 10 y=0
A1: dz | B1: ='DF raw data'!H7 -> 0.50008 | C1: mm | F1: T_coeff | G1: -0.0008 | H1: /degC | L1: Hallref | M1: ='PI vs y'!B44 -> 0.50529 | N1: T | P1: IBy total | Q1: =P1203*1000 -> -11.68380562 | R1: muTm
A2: Tref | B2: ='DF raw data'!H8 -> 21.12 | C2: degC | F2: Tcorr | G2: 20 | H2: degC | L2: NMRref | M2: ='PI vs y'!B45 -> 0.5065 | N2: T | P2: JBy total | Q2: =Q1203 -> -8.1773463 | R2: muTm^2
A3: Encoder | B3: ='DF raw data'!H9 -> 390665 | P3: PI total | Q3: =R1203 -> 4518.892897 | R3: T^2mm^3
J4: SXR-rotation
A5: z [mm] | B5: Bx | C5: By | D5: Bz | F5: Bx_corr | G5: By_corr | H5: Bz_corr | J5: Bx_rot | K5: By_rot | L5: Bz_rot | N5: Ix | O5: Jx | P5: Iy | Q5: Jy | R5: PI
A6: ='PI vs y'!B53 -> -1.119 | B6: ='DF raw data'!G11 -> 3.0046474e-06 | C6: ='DF raw data'!H11 -> -6.959167e-07 | D6: ='DF raw data'!I11 -> -1.7129137e-06 | F6: =(1-$G$1*($B$2-$G$2))*B6 -> 3.007339564e-06 | G6: =(1-$G$1*($B$2-$G$2))*C6*$M$2/$M$1 -> -6.982082215e-07 | H6: =(1-$G$1*($B$2-$G$2))*D6 -> -1.714448471e-06 | J6: =-CELL("contents", INDEX($F$6:$F$1203,1204-CELL("row",F6))) -> 2.506627828e-06 | K6: =CELL("contents", INDEX($G$6:$G$1203,1204-CELL("row",G6))) -> 1.930126481e-06 | L6: =-CELL("contents", INDEX($H$6:$H$1203,1204-CELL("row",H6))) -> -2.61324357e-06 | N6: =J6*$B$1 -> 1.253514444e-06 | O6: =N6*$B$1 -> 6.268575033e-07 | P6: =K6*$B$1 -> 9.652176506e-07 | Q6: =P6*$B$1 -> 4.826860427e-07 | R6: =(N6^2+P6^2)*$B$1 -> 1.251672023e-12
A7: =A6+$B$1 -> -0.61892 | B7: ='DF raw data'!G12 -> 2.7428566e-06 | C7: ='DF raw data'!H12 -> 6.3591792e-06 | D7: ='DF raw data'!I12 -> -1.9915756e-06 | F7: =(1-$G$1*($B$2-$G$2))*B7 -> 2.7453142e-06 | G7: =(1-$G$1*($B$2-$G$2))*C7*$M$2/$M$1 -> 6.380118769e-06 | H7: -1.993360052e-06 | J7: =-CELL("contents", INDEX($F$6:$F$1203,1204-CELL("row",F7))) -> 2.467076722e-06 | K7: =CELL("contents", INDEX($G$6:$G$1203,1204-CELL("row",G7))) -> -5.115938526e-06 | L7: =-CELL("contents", INDEX($H$6:$H$1203,1204-CELL("row",H7))) -> -3.193846325e-06 | N7: =J7*$B$1+N6 -> 2.487250171e-06 | O7: =N7*$B$1+O6 -> 1.870681569e-06 | P7: =K7*$B$1+P6 -> -1.593160887e-06 | Q7: =P7*$B$1+Q6 -> -3.140218538e-07 | R7: =(N7^2+P7^2)*$B$1+R6 -> 5.614657503e-12
A8: =A7+$B$1 -> -0.11884 | B8: ='DF raw data'!G13 -> 2.9979062e-06 | C8: ='DF raw data'!H13 -> -7.1953446e-07 | D8: ='DF raw data'!I13 -> -2.5190861e-06 | F8: 3.000592324e-06 | G8: -7.219037503e-07 | H8: -2.521343201e-06 | J8: 9.068805876e-07 | K8: -3.102450151e-06 | L8: -3.955709943e-06 | N8: =J8*$B$1+N7 -> 2.940763016e-06 | O8: =N8*$B$1+O7 -> 3.341298338e-06 | P8: =K8*$B$1+P7 -> -3.144634159e-06 | Q8: =P8*$B$1+Q7 -> -1.886590504e-06 | R8: =(N8^2+P8^2)*$B$1+R7 -> 1.4884546e-11
A9: 0.38124 | B9: ='DF raw data'!G14 -> 2.9965711e-06 | C9: ='DF raw data'!H14 -> 1.0567815e-06 | D9: ='DF raw data'!I14 -> 7.6919723e-06 | F9: 2.999256028e-06 | G9: 1.060261281e-06 | H9: 7.698864307e-06 | J9: -2.163873095e-06 | K9: 4.419507337e-06 | L9: -3.936189168e-06 | N9: 1.858653358e-06 | O9: 4.270773709e-06 | P9: -9.3452693e-07 | Q9: -2.353928731e-06 | R9: 1.704885868e-11
A10: 0.88132 | B10: ='DF raw data'!G15 -> 2.8772236e-06 | C10: ='DF raw data'!H15 -> 4.5049414e-06 | D10: ='DF raw data'!I15 -> 8.8755705e-06 | F10: 2.879801592e-06 | G10: 4.519775316e-06 | H10: 8.883523011e-06 | J10: -7.262755003e-06 | K10: -1.958429171e-06 | L10: -3.697247468e-06 | N10: -1.773305164e-06 | O10: 3.383979263e-06 | P10: -1.91389819e-06 | Q10: -3.311030938e-06 | R10: 2.045321203e-11
A11: 1.3814 | B11: ='DF raw data'!G16 -> 2.6635578e-06 | C11: ='DF raw data'!H16 -> 9.6550966e-06 | D11: ='DF raw data'!I16 -> 5.3758918e-06 | F11: 2.665944348e-06 | G11: 9.686888999e-06 | H11: 5.380708599e-06 | J11: -1.217837906e-05 | K11: -3.721100463e-07 | L11: -3.796900878e-06 | N11: -7.863468964e-06 | O11: -5.483842963e-07 | P11: -2.099982982e-06 | Q11: -4.361190427e-06 | R11: 5.358054789e-11
A12: 1.88148 | B12: ='DF raw data'!G17 -> 3.1166535e-06 | C12: ='DF raw data'!H17 -> -1.281795e-06 | D12: ='DF raw data'!I17 -> 1.4398892e-05 | F12: 3.119446022e-06 | G12: -1.286015707e-06 | H12: 1.441179341e-05 | J12: -1.381313349e-05 | K12: 1.389440046e-06 | L12: -4.187325385e-06 | N12: -1.477114076e-05 | O12: -7.935136367e-06 | P12: -1.405151803e-06 | Q12: -5.063878741e-06 | R12: 1.636786862e-10
A13: 2.38156 | B13: ='DF raw data'!G18 -> 3.0598492e-06 | C13: ='DF raw data'!H18 -> -4.6362086e-07 | D13: ='DF raw data'!I18 -> 9.9031649e-06 | F13: 3.062590825e-06 | G13: -4.651474754e-07 | H13: 9.912038136e-06 | J13: -1.086283739e-05 | K13: -1.101816967e-06 | L13: -4.331875286e-06 | N13: -2.020342848e-05 | O13: -1.803846688e-05 | P13: -1.956148432e-06 | Q13: -6.042109449e-06 | R13: 3.697141661e-10
A14: 2.88164 | B14: ='DF raw data'!G19 -> 3.4975253e-06 | C14: ='DF raw data'!H19 -> -1.3693862e-05 | D14: ='DF raw data'!I19 -> 1.7188136e-06 | F14: 3.500659083e-06 | G14: -1.373895329e-05 | H14: 1.720353657e-06 | J14: -8.478148521e-06 | K14: 1.070065759e-05 | L14: -3.54450123e-06 | N14: -2.444318099e-05 | O14: -3.026201283e-05 | P14: 3.395036416e-06 | Q14: -4.344319638e-06 | R14: 6.742605704e-10
A15: 3.38172 | B15: ='DF raw data'!G20 -> 2.8978491e-06 | C15: ='DF raw data'!H20 -> 1.6008994e-06 | D15: ='DF raw data'!I20 -> -4.792972e-06 | F15: 2.900445573e-06 | G15: 1.606170858e-06 | H15: -4.797266503e-06 | J15: -8.612435534e-06 | K15: 4.695006225e-06 | L15: -2.845525408e-06 | N15: -2.875008775e-05 | O15: -4.463935672e-05 | P15: 5.742915129e-06 | Q15: -1.47240264e-06 | R15: 1.104103644e-09
A16: 3.8818 | B16: ='DF raw data'!G21 -> 3.2428768e-06 | C16: ='DF raw data'!H21 -> -7.6299957e-06 | D16: ='DF raw data'!I21 -> -3.7279719e-06 | F16: 3.245782418e-06 | G16: -7.655119827e-06 | H16: -3.731312163e-06 | J16: -8.796895262e-06 | K16: -8.597944179e-06 | L16: -3.658544822e-06 | N16: -3.314923914e-05 | O16: -6.121662822e-05 | P16: 1.443255204e-06 | Q16: -7.506595773e-07 | R16: 1.654669241e-09
A17: 4.38188 | B17: ='DF raw data'!G22 -> 3.4512684e-06 | C17: ='DF raw data'!H22 -> -1.2164784e-05 | D17: ='DF raw data'!I22 -> 2.6817829e-06 | F17: 3.454360736e-06 | G17: -1.220484032e-05 | H17: 2.684185777e-06 | J17: -1.006994559e-05 | K17: -7.348866502e-07 | L17: -4.670206459e-06 | N17: -3.818501753e-05 | O17: -8.031219179e-05 | P17: 1.075753088e-06 | Q17: -2.12696973e-07 | R17: 2.384412386e-09
A18: 4.88196 | B18: ='DF raw data'!G23 -> 2.9533846e-06 | C18: ='DF raw data'!H23 -> 4.7303863e-07 | D18: ='DF raw data'!I23 -> -3.46961e-06 | F18: 2.956030833e-06 | G18: 4.745962564e-07 | H18: -3.472718771e-06 | J18: -1.065292247e-05 | K18: 1.439778357e-05 | L18: -4.030380788e-06 | N18: -4.3512331e-05 | O18: -0.0001020718383 | P18: 8.275796696e-06 | Q18: 3.925863439e-06 | R18: 3.365475211e-09
A19: 5.38204 | B19: ='DF raw data'!G24 -> 2.95512e-06 | C19: ='DF raw data'!H24 -> 8.2898147e-08 | D19: ='DF raw data'!I24 -> -5.4764137e-06 | F19: 2.957767788e-06 | G19: 8.317111485e-08 | H19: -5.481320567e-06 | J19: -9.630073422e-06 | K19: 2.633728906e-06 | L19: -2.948641618e-06 | N19: -4.832813812e-05 | O19: -0.0001262397736 | P19: 9.592871847e-06 | Q19: 8.723066792e-06 | R19: 4.579485483e-09
A20: 5.88212 | B20: ='DF raw data'!G25 -> 2.6771747e-06 | C20: ='DF raw data'!H25 -> 7.8793119e-06 | D20: ='DF raw data'!I25 -> -3.6914357e-06 | F20: 2.679573449e-06 | G20: 7.905256978e-06 | H20: -3.694743226e-06 | J20: -8.384014352e-06 | K20: -2.644628579e-06 | L20: -2.803090421e-06 | N20: -5.252081601e-05 | O20: -0.0001525043833 | P20: 8.270345987e-06 | Q20: 1.285890141e-05 | R20: 5.993128999e-09
A21: 6.3822 | B21: ='DF raw data'!G26 -> 2.6580844e-06 | C21: ='DF raw data'!H26 -> 7.8544972e-06 | D21: ='DF raw data'!I26 -> -6.4027813e-06 | F21: 2.660466044e-06 | G21: 7.880360567e-06 | H21: -6.408518192e-06 | J21: -7.369716355e-06 | K21: 1.67618073e-06 | L21: -3.206037138e-06 | N21: -5.620626377e-05 | O21: -0.0001806120116 | P21: 9.108570447e-06 | Q21: 1.741391532e-05 | R21: 7.614443439e-09
A22: 6.88228 | B22: ='DF raw data'!G27 -> 6.8157742e-06 | C22: ='DF raw data'!H27 -> -6.7536939e-07 | D22: ='DF raw data'!I27 -> -8.2553133e-06 | F22: 6.821881134e-06 | G22: -6.775932531e-07 | H22: -8.262710061e-06 | J22: -6.037139635e-06 | K22: -6.024088176e-06 | L22: -4.019125713e-06 | N22: -5.922531656e-05 | O22: -0.0002102294079 | P22: 6.096044432e-06 | Q22: 2.046242522e-05 | R22: 9.387126962e-09
A23: 7.38236 | B23: ='DF raw data'!G28 -> 1.357362e-05 | C23: ='DF raw data'!H28 -> 4.6798627e-06 | D23: ='DF raw data'!I28 -> 3.9944592e-07 | F23: =(1-$G$1*($B$2-$G$2))*B23 -> 1.358578196e-05 | G23: 4.695272599e-06 | H23: 3.998038235e-07 | J23: -3.343456856e-06 | K23: -3.736710596e-06 | L23: 2.857542466e-06 | N23: -6.089731246e-05 | O23: -0.000240682936 | P23: 4.227390197e-06 | Q23: 2.257645851e-05 | R23: 1.125060182e-08
A24: 7.88244 | B24: ='DF raw data'!G29 -> 1.1329504e-05 | C24: ='DF raw data'!H29 -> -4.2035831e-06 | D24: ='DF raw data'!I29 -> 9.6999747e-06 | F24: 1.133965524e-05 | G24: -4.217424701e-06 | H24: 9.708665877e-06 | J24: 2.727261439e-07 | K24: 8.373791108e-06 | L24: -1.784967399e-06 | N24: -6.076092757e-05 | O24: -0.0002710682606 | P24: 8.414955655e-06 | Q24: 2.678460954e-05 | R24: 1.313225373e-08
A25: 8.38252 | B25: ='DF raw data'!G30 -> 2.9009195e-06 | C25: ='DF raw data'!H30 -> -6.981671e-06 | D25: ='DF raw data'!I30 -> 2.234206e-06 | F25: 2.903518724e-06 | G25: -7.004660317e-06 | H25: 2.236207849e-06 | J25: 1.921646554e-06 | K25: 1.293542811e-05 | L25: -4.491281486e-06 | N25: -5.979995056e-05 | O25: -0.0003009730199 | P25: 1.488370455e-05 | Q25: 3.42276525e-05 | R25: 1.503133691e-08
A26: 8.8826 | B26: ='DF raw data'!G31 -> -5.1819034e-06 | C26: ='DF raw data'!H31 -> -1.7990938e-06 | D26: ='DF raw data'!I31 -> -1.2364549e-06 | F26: -5.186546385e-06 | G26: -1.805017874e-06 | H26: -1.237562764e-06 | J26: -1.43678801e-06 | K26: 2.912976297e-06 | L26: 9.776107151e-06 | N26: -6.051845951e-05 | O26: -0.0003312370911 | P26: 1.634042573e-05 | Q26: 4.239917261e-05 | R26: 1.6996398e-08
A27: 9.38268 | B27: ='DF raw data'!G32 -> -8.7079434e-06 | C27: ='DF raw data'!H32 -> -2.0511366e-06 | D27: ='DF raw data'!I32 -> -2.5017148e-06 | F27: -8.715745717e-06 | G27: -2.057890603e-06 | H27: -2.503956336e-06 | J27: -4.732488514e-06 | K27: -7.004857965e-07 | L27: 1.137130457e-05 | N27: -6.288508237e-05 | O27: -0.0003626846631 | P27: 1.59901268e-05 | Q27: 5.039551521e-05 | R27: 1.910184368e-08
A28: 9.88276 | B28: ='DF raw data'!G33 -> -8.5850579e-06 | C28: ='DF raw data'!H33 -> -1.4915427e-06 | D28: ='DF raw data'!I33 -> -1.8737778e-06 | F28: -8.592750112e-06 | G28: -1.496454067e-06 | H28: -1.875456705e-06 | J28: -4.367776524e-06 | K28: -5.864519371e-06 | L28: 5.379933906e-06 | N28: -6.506932005e-05 | O28: -0.0003952245287 | P28: 1.305739795e-05 | Q28: 5.692525878e-05 | R28: 2.130445207e-08
A29: 10.38284 | B29: ='DF raw data'!G34 -> -7.1422683e-06 | C29: ='DF raw data'!H34 -> -7.0889478e-06 | D29: ='DF raw data'!I34 -> -3.0377419e-06 | F29: -7.148667772e-06 | G29: -7.112290359e-06 | H29: -3.040463717e-06 | J29: -5.097467042e-06 | K29: -1.145251017e-05 | L29: 3.764753299e-06 | N29: -6.761846137e-05 | O29: -0.0004290391689 | P29: 7.330226661e-06 | Q29: 6.059095853e-05 | R29: 2.361781642e-08
A30: 10.88292 | B30: ='DF raw data'!G35 -> -4.4888448e-06 | C30: ='DF raw data'!H35 -> -1.2943864e-05 | D30: ='DF raw data'!I35 -> -6.7549195e-06 | F30: -4.492866805e-06 | G30: -1.298648569e-05 | H30: -6.760971908e-06 | J30: -8.019904101e-06 | K30: -5.599598098e-06 | L30: 7.961791479e-07 | N30: -7.162905501e-05 | O30: -0.0004648594267 | P30: 4.529979644e-06 | Q30: 6.285631075e-05 | R30: 2.619384964e-08
A31: 11.383 | B31: ='DF raw data'!G36 -> -5.2165808e-07 | C31: ='DF raw data'!H36 -> -8.6257651e-06 | D31: ='DF raw data'!I36 -> -5.2284345e-06 | F31: -5.221254856e-07 | G31: -8.654168106e-06 | H31: -5.233119177e-06 | J31: -8.892900106e-06 | K31: 8.294408173e-06 | L31: -4.761466855e-06 | N31: -7.60762165e-05 | O31: -0.000502903621 | P31: 8.677847284e-06 | Q31: 6.719592862e-05 | R31: 2.912576655e-08
A32: 11.88308 | B32: ='DF raw data'!G37 -> 3.7582492e-06 | C32: ='DF raw data'!H37 -> -6.918694e-06 | D32: ='DF raw data'!I37 -> -2.0552038e-06 | F32: 3.761616591e-06 | G32: -6.941475945e-06 | H32: -2.057045263e-06 | J32: -6.939598714e-06 | K32: 1.365977743e-05 | L32: 2.3000506e-06 | N32: -7.954657102e-05 | O32: -0.0005426832703 | P32: 1.550882878e-05 | Q32: 7.495158372e-05 | R32: 3.241038237e-08
A33: 12.38316 | B33: ='DF raw data'!G38 -> 1.552581e-06 | C33: ='DF raw data'!H38 -> -1.2944733e-06 | D33: ='DF raw data'!I38 -> 7.9486717e-06 | F33: 1.553972113e-06 | G33: -1.298735755e-06 | H33: 7.95579371e-06 | J33: -4.6193133e-06 | K33: 4.129686143e-06 | L33: 1.145435792e-06 | N33: -8.185659722e-05 | O33: -0.0005836181174 | P33: 1.757400223e-05 | Q33: 8.373999075e-05 | R33: 3.591561715e-08
A34: 12.88324 | B34: ='DF raw data'!G39 -> -5.076773e-06 | C34: ='DF raw data'!H39 -> -7.2140074e-07 | D34: ='DF raw data'!I39 -> 3.3136893e-09 | F34: -5.081321789e-06 | G34: -7.237761756e-07 | H34: 3.316658366e-09 | J34: -3.197078118e-06 | K34: -3.479687946e-06 | L34: -3.067680982e-06 | N34: -8.345539204e-05 | O34: -0.0006253524899 | P34: 1.583387988e-05 | Q34: 9.16581974e-05 | R34: 3.952395149e-08
A35: 13.38332 | B35: ='DF raw data'!G40 -> -8.7118815e-06 | C35: ='DF raw data'!H40 -> -6.0278444e-07 | D35: ='DF raw data'!I40 -> 4.9390978e-06 | F35: -8.719687346e-06 | G35: -6.047692947e-07 | H35: 4.943523232e-06 | J35: -4.247119613e-06 | K35: -5.756487911e-06 | L35: 2.656367675e-06 | N35: -8.557929162e-05 | O35: -0.000668148982 | P35: 1.29551754e-05 | Q35: 9.813682152e-05 | R35: 4.327037669e-08
A36: 13.8834 | B36: ='DF raw data'!G41 -> -4.9382006e-06 | C36: ='DF raw data'!H41 -> 8.2038086e-06 | D36: ='DF raw data'!I41 -> -2.282552e-06 | F36: -4.942625228e-06 | G36: 8.230822184e-06 | H36: -2.284597167e-06 | J36: -5.286471038e-06 | K36: 3.385656736e-06 | L36: 7.604632251e-06 | N36: -8.822295005e-05 | O36: -0.0007122675149 | P36: 1.464827463e-05 | Q36: 0.0001054621307 | R36: 4.726994695e-08
A37: 14.38348 | B37: ='DF raw data'!G42 -> 2.8515913e-06 | C37: ='DF raw data'!H42 -> -5.0264284e-06 | D37: ='DF raw data'!I42 -> -1.048506e-06 | F37: 2.854146326e-06 | G37: -5.042979474e-06 | H37: -1.049445461e-06 | J37: -2.999055748e-06 | K37: 4.252310095e-06 | L37: 1.596651719e-05 | N37: -8.972271785e-05 | O37: -0.0007571360516 | P37: 1.677476986e-05 | Q37: 0.0001138508576 | R37: 5.143639298e-08
A38: 14.88356 | B38: ='DF raw data'!G43 -> 7.3872825e-06 | C38: ='DF raw data'!H43 -> -8.1933258e-06 | D38: ='DF raw data'!I43 -> 4.5333177e-06 | F38: 7.393901505e-06 | G38: -8.220304866e-06 | H38: 4.537379553e-06 | J38: 1.511905154e-06 | K38: 4.077480704e-06 | L38: 8.889876999e-06 | N38: -8.896664432e-05 | O38: -0.0008016264911 | P38: 1.881383641e-05 | Q38: 0.0001232592809 | R38: 5.557156662e-08
A39: 15.38364 | B39: ='DF raw data'!G44 -> 5.2992264e-06 | C39: ='DF raw data'!H44 -> -1.3074136e-06 | D39: ='DF raw data'!I44 -> 2.6367292e-07 | F39: 5.303974507e-06 | G39: -1.311718665e-06 | H39: 2.639091709e-07 | J39: 2.695429743e-06 | K39: -2.737530985e-06 | L39: -3.181344933e-07 | N39: -8.761871382e-05 | O39: -0.0008454428575 | P39: 1.744485191e-05 | Q39: 0.0001319831025 | R39: 5.956288606e-08
A40: 15.88372 | B40: ='DF raw data'!G45 -> 8.316191e-07 | C40: ='DF raw data'!H45 -> -1.267274e-05 | D40: ='DF raw data'!I45 -> -1.5086594e-06 | F40: 8.323642307e-07 | G40: -1.271446893e-05 | H40: -1.510011159e-06 | J40: -4.72221862e-08 | K40: -5.211651356e-06 | L40: 8.428845285e-06 | N40: -8.764232869e-05 | O40: -0.0008892710332 | P40: 1.48386093e-05 | Q40: 0.0001394035942 | R40: 6.351419922e-08
A41: 16.3838 | B41: ='DF raw data'!G46 -> -2.6445571e-06 | C41: ='DF raw data'!H46 -> -3.758807e-08 | D41: ='DF raw data'!I46 -> 2.0838629e-06 | F41: -2.646926623e-06 | G41: -3.771184038e-08 | H41: 2.085730041e-06 | J41: -3.020968765e-06 | K41: -3.289196553e-06 | L41: 1.924984042e-05 | N41: -8.915305475e-05 | O41: -0.0009338546929 | P41: 1.319374789e-05 | Q41: 0.0001460015236 | R41: 6.757602009e-08
A42: 16.88388 | B42: ='DF raw data'!G47 -> -1.9370793e-06 | C42: ='DF raw data'!H47 -> -8.8081588e-06 | D42: ='DF raw data'!I47 -> 3.782588e-06 | F42: -1.938814923e-06 | G42: -8.837162394e-06 | H42: 3.785977199e-06 | J42: -4.312458904e-06 | K42: -2.046915182e-06 | L42: 1.097015646e-05 | N42: -9.13096292e-05 | O42: -0.0009795168122 | P42: 1.217012655e-05 | Q42: 0.0001520875605 | R42: 7.181947911e-08
A43: 17.38396 | B43: ='DF raw data'!G48 -> -6.6964196e-07 | C43: ='DF raw data'!H48 -> -8.1346161e-06 | D43: ='DF raw data'!I48 -> 9.076706e-08 | F43: -6.702419592e-07 | G43: -8.161401846e-06 | H43: 9.084838729e-08 | J43: -2.854012506e-06 | K43: -1.487486034e-06 | L43: -3.555424909e-06 | N43: -9.273686377e-05 | O43: -0.001025892663 | P43: 1.142626453e-05 | Q43: 0.0001578016069 | R43: 7.618552028e-08
A44: 17.88404 | B44: ='DF raw data'!G49 -> 7.0943194e-08 | C44: ='DF raw data'!H49 -> -2.6064595e-06 | D44: ='DF raw data'!I49 -> -1.6167437e-06 | F44: 7.10067591e-08 | G44: -2.615042076e-06 | H44: -1.618192302e-06 | J44: 1.471285292e-06 | K44: -3.481158874e-06 | L44: -1.112168511e-06 | N44: -9.200110342e-05 | O44: -0.001071900575 | P44: 9.685406601e-06 | Q44: 0.000162645085 | R44: 8.046520999e-08
A45: 18.38412 | B45: ='DF raw data'!G50 -> -2.3631412e-06 | C45: ='DF raw data'!H50 -> 6.8754084e-06 | D45: ='DF raw data'!I50 -> -2.3636135e-06 | F45: -2.365258575e-06 | G45: 6.898047814e-06 | H45: -2.365731298e-06 | J45: 3.063214783e-06 | K45: -1.035895412e-05 | L45: 5.498175855e-06 | N45: -9.046925097e-05 | O45: -0.001117142438 | P45: 4.505100825e-06 | Q45: 0.0001648979958 | R45: 8.456835704e-08
A46: 18.8842 | B46: ='DF raw data'!G51 -> -4.9862601e-06 | C46: ='DF raw data'!H51 -> -4.5854952e-07 | D46: ='DF raw data'!I51 -> -5.6619007e-07 | F46: -4.990727789e-06 | G46: -4.600594365e-07 | H46: -5.666973763e-07 | J46: -1.682150758e-07 | K46: 2.240161216e-06 | L46: 4.151114269e-06 | N46: -9.055337197e-05 | O46: -0.001162426368 | P46: 5.625360646e-06 | Q46: 0.0001677111262 | R46: 8.868479449e-08
A47: 19.38428 | B47: ='DF raw data'!G52 -> -3.5128335e-06 | C47: ='DF raw data'!H52 -> -1.0902827e-05 | D47: ='DF raw data'!I52 -> 4.6445289e-06 | F47: -3.515980999e-06 | G47: -1.093872794e-05 | H47: 4.648690398e-06 | J47: -3.134544438e-06 | K47: 9.889428836e-06 | L47: 7.284339025e-07 | N47: -9.212089495e-05 | O47: -0.001208494185 | P47: 1.057086622e-05 | Q47: 0.000172997405 | R47: 9.298448358e-08
A48: 19.88436 | B48: ='DF raw data'!G53 -> -9.9257625e-07 | C48: ='DF raw data'!H53 -> -1.624041e-08 | D48: ='DF raw data'!I53 -> 8.7903339e-07 | F48: -9.934655983e-07 | G48: -1.629388659e-08 | H48: 8.798210039e-07 | J48: -3.598334421e-06 | K48: 7.911283055e-06 | L48: -2.72521891e-06 | N48: -9.392035003e-05 | O48: -0.001255461874 | P48: 1.452714065e-05 | Q48: 0.0001802621375 | R48: 9.750124113e-08
A49: 20.38444 | B49: ='DF raw data'!G54 -> 8.5458203e-07 | C49: ='DF raw data'!H54 -> -2.2798896e-07 | D49: ='DF raw data'!I54 -> 5.5098957e-07 | F49: 8.553477355e-07 | G49: -2.287396843e-07 | H49: 5.514832567e-07 | J49: -4.578426798e-06 | K49: -7.91602251e-06 | L49: -3.720903645e-07 | N49: -9.62099297e-05 | O49: -0.001303574536 | P49: 1.056849611e-05 | Q49: 0.000185547231 | R49: 1.021860124e-07
A50: 20.88452 | B50: ='DF raw data'!G55 -> 2.8516577e-06 | C50: ='DF raw data'!H55 -> 4.470198e-07 | D50: ='DF raw data'!I55 -> 1.143564e-05 | F50: 2.854212785e-06 | G50: 4.484917513e-07 | H50: 1.144588633e-05 | J50: -5.900915487e-06 | K50: -5.684923637e-07 | L50: 9.804985803e-07 | N50: -9.916085952e-05 | O50: -0.001353162898 | P50: 1.028420445e-05 | Q50: 0.000190690156 | R50: 1.07156128e-07
A51: 21.3846 | B51: ='DF raw data'!G56 -> 3.6509161e-06 | C51: ='DF raw data'!H56 -> 9.6507826e-08 | D51: ='DF raw data'!I56 -> 1.0015508e-05 | F51: 3.654187321e-06 | G51: 9.682560794e-08 | H51: 1.00244819e-05 | J51: -5.710108177e-06 | K51: 1.414069882e-06 | L51: -1.895544487e-06 | N51: -0.0001020163704 | O51: -0.001404179245 | P51: 1.099135252e-05 | Q51: 0.0001961867115 | R51: 1.124210451e-07
A52: 21.88468 | B52: ='DF raw data'!G57 -> 2.775764e-06 | C52: ='DF raw data'!H57 -> -7.3344531e-06 | D52: ='DF raw data'!I57 -> 5.8388409e-06 | F52: 2.778251085e-06 | G52: -7.358604061e-06 | H52: 5.844072501e-06 | J52: -2.177368376e-06 | K52: -1.849058215e-06 | L52: 5.246107404e-06 | N52: -0.0001031052288 | O52: -0.001455740108 | P52: 1.006667548e-05 | Q52: 0.0002012208546 | R52: 1.177879167e-07
A53: 22.38476 | B53: ='DF raw data'!G58 -> -2.9313135e-06 | C53: ='DF raw data'!H58 -> -3.9797354e-07 | D53: ='DF raw data'!I58 -> 3.8857465e-06 | F53: -2.933939957e-06 | G53: -3.992839913e-07 | H53: 3.889228129e-06 | J53: 5.728333692e-07 | K53: 1.390378025e-06 | L53: 5.695618306e-06 | N53: -0.0001028187663 | O53: -0.001507157716 | P53: 1.076197573e-05 | Q53: 0.0002066027034 | R53: 1.231325311e-07
A54: 22.88484 | B54: ='DF raw data'!G59 -> -7.5810121e-06 | C54: ='DF raw data'!H59 -> -3.9926349e-06 | D54: ='DF raw data'!I59 -> -1.0499721e-06 | F54: -7.587804687e-06 | G54: -4.005781888e-06 | H54: -1.050912875e-06 | J54: -4.568979341e-07 | K54: -7.977334436e-06 | L54: -2.448706877e-06 | N54: -0.0001030472518 | O54: -0.001558689586 | P54: 6.772670323e-06 | Q54: 0.0002099895804 | R54: 1.284656869e-07
A55: 23.38492 | B55: ='DF raw data'!G60 -> -4.7422245e-06 | C55: ='DF raw data'!H60 -> -2.9364278e-06 | D55: ='DF raw data'!I60 -> -3.9872689e-06 | F55: -4.746473533e-06 | G55: -2.946096899e-06 | H55: -3.990841493e-06 | J55: -2.98108346e-06 | K55: -4.943518142e-06 | L55: 4.278743322e-06 | N55: -0.000104538032 | O55: -0.001610966965 | P55: 4.30051577e-06 | Q55: 0.0002121401823 | R55: 1.339399099e-07
A56: 23.885 | B56: ='DF raw data'!G61 -> -6.9433838e-07 | C56: ='DF raw data'!H61 -> 1.2984196e-06 | D56: ='DF raw data'!I61 -> 2.8919599e-06 | F56: -6.949605072e-07 | G56: 1.302695049e-06 | H56: 2.894551096e-06 | J56: -7.458105681e-06 | K56: 5.502307089e-07 | L56: 4.631663055e-06 | N56: -0.0001082676815 | O56: -0.001665109467 | P56: 4.575675143e-06 | Q56: 0.000214428386 | R56: 1.398122631e-07
A57: 24.38508 | B57: ='DF raw data'!G62 -> 3.0022682e-07 | C57: ='DF raw data'!H62 -> -7.391468e-07 | D57: ='DF raw data'!I62 -> -3.3022266e-06 | F57: 3.004958232e-07 | G57: -7.4158067e-07 | H57: -3.305185395e-06 | J57: -1.039590739e-05 | K57: 9.848932527e-07 | L57: 6.861357173e-06 | N57: -0.0001134664669 | O57: -0.001721851778 | P57: 5.068200561e-06 | Q57: 0.0002169628917 | R57: 1.46263458e-07
A58: 24.88516 | B58: ='DF raw data'!G63 -> 1.6741977e-06 | C58: ='DF raw data'!H63 -> 5.7223292e-06 | D58: ='DF raw data'!I63 -> -7.1666778e-07 | F58: 1.675697781e-06 | G58: 5.741171743e-06 | H58: -7.173099143e-07 | J58: -1.010274896e-05 | K58: 1.855779976e-07 | L58: 7.213210051e-06 | N58: -0.0001185186496 | O58: -0.001781120584 | P58: 5.161004406e-06 | Q58: 0.0002195438068 | R58: 1.53301237e-07
A59: 25.38524 | B59: ='DF raw data'!G64 -> 5.2627147e-06 | C59: ='DF raw data'!H64 -> 8.0854579e-06 | D59: ='DF raw data'!I64 -> -4.7494228e-07 | F59: 5.267430092e-06 | G59: 8.112081777e-06 | H59: -4.753678283e-07 | J59: -9.164346304e-06 | K59: 4.529947803e-06 | L59: -1.179447639e-06 | N59: -0.0001231015559 | O59: -0.00184268121 | P59: 7.426340703e-06 | Q59: 0.0002232575712 | R59: 1.609070256e-07
A60: 25.88532 | B60: ='DF raw data'!G65 -> 7.4785294e-06 | C60: ='DF raw data'!H65 -> 9.3775661e-06 | D60: ='DF raw data'!I65 -> -2.4949263e-06 | F60: 7.485230162e-06 | G60: 9.408444644e-06 | H60: -2.497161754e-06 | J60: -8.420692486e-06 | K60: 3.63719358e-06 | L60: -7.110598993e-06 | N60: -0.0001273125758 | O60: -0.001906347683 | P60: 9.245228469e-06 | Q60: 0.0002278809251 | R60: 1.690553122e-07
A61: 26.3854 | B61: ='DF raw data'!G66 -> 6.1386008e-06 | C61: ='DF raw data'!H66 -> 2.9263642e-06 | D61: ='DF raw data'!I66 -> -4.8263796e-06 | F61: 6.144100986e-06 | G61: 2.936000162e-06 | H61: -4.830704036e-06 | J61: -8.982157809e-06 | K61: -7.188231799e-07 | L61: -4.611853822e-06 | N61: -0.0001318043733 | O61: -0.001972260414 | P61: 8.885759373e-06 | Q61: 0.0002323245156 | R61: 1.777823831e-07
A62: 26.88548 | B62: ='DF raw data'!G67 -> 2.8201528e-06 | C62: ='DF raw data'!H67 -> -2.9204134e-06 | D62: ='DF raw data'!I67 -> -1.0802339e-05 | F62: 2.822679657e-06 | G62: -2.930029767e-06 | H62: -1.08120179e-05 | J62: -8.50280149e-06 | K62: -2.836241152e-07 | L62: 1.526266611e-07 | N62: -0.0001360564542 | O62: -0.002040299526 | P62: 8.743924626e-06 | Q62: 0.0002366971775 | R62: 1.870777776e-07
A63: 27.38556 | B63: ='DF raw data'!G68 -> 9.0217407e-07 | C63: ='DF raw data'!H68 -> -6.7280275e-06 | D63: ='DF raw data'!I68 -> -9.047174e-06 | F63: 9.02982418e-07 | G63: -6.750181617e-06 | H63: -9.055280268e-06 | J63: -6.08758079e-06 | K63: 2.386878643e-06 | L63: 1.984770362e-06 | N63: -0.0001391007316 | O63: -0.00210986102 | P63: 9.937554897e-06 | Q63: 0.0002416667499 | R63: 1.968032176e-07
A64: 27.88564 | B64: ='DF raw data'!G69 -> -5.0074174e-08 | C64: ='DF raw data'!H69 -> 1.1414067e-05 | D64: ='DF raw data'!I69 -> 4.1714833e-07 | F64: -5.011904046e-08 | G64: 1.145165135e-05 | H64: 4.175220949e-07 | J64: -5.612834297e-06 | K64: 1.207506741e-05 | L64: 9.476946543e-06 | N64: -0.0001419075978 | O64: -0.002180826171 | P64: 1.597605461e-05 | Q64: 0.0002496560553 | R64: 2.070013494e-07
A65: 28.38572 | B65: ='DF raw data'!G70 -> 1.7947865e-07 | C65: ='DF raw data'!H70 -> -1.2168171e-06 | D65: ='DF raw data'!I70 -> 2.9983817e-06 | F65: 1.796394629e-07 | G65: -1.220823848e-06 | H65: 3.00106825e-06 | J65: -7.013155362e-06 | K65: 3.649643642e-06 | L65: 1.120117527e-05 | N65: -0.0001454147365 | O65: -0.002253545172 | P65: 1.78011684e-05 | Q65: 0.0002585580636 | R65: 2.1773423e-07
A66: 28.8858 | B66: ='DF raw data'!G71 -> 2.0002688e-06 | C66: ='DF raw data'!H71 -> 2.3247001e-07 | D66: ='DF raw data'!I71 -> 2.0493203e-06 | F66: 2.002061041e-06 | G66: 2.332354896e-07 | H66: 2.051156491e-06 | J66: -6.667885877e-06 | K66: 1.13616901e-05 | L66: 7.998986076e-06 | N66: -0.0001487492129 | O66: -0.002327931679 | P66: 2.348292239e-05 | Q66: 0.0002703014034 | R66: 2.290749322e-07
A67: 29.38588 | B67: ='DF raw data'!G72 -> 3.2773858e-06 | C67: ='DF raw data'!H72 -> 2.6657794e-06 | D67: ='DF raw data'!I72 -> -7.4557979e-06 | F67: 3.280322338e-06 | G67: 2.674557305e-06 | H67: -7.462478295e-06 | J67: -6.886752506e-06 | K67: 5.662726887e-06 | L67: 7.839780255e-06 | N67: -0.0001521931401 | O67: -0.002404040424 | P67: 2.631473885e-05 | Q67: 0.000283460878 | R67: 2.410044493e-07
A68: 29.88596 | B68: ='DF raw data'!G73 -> 2.8455167e-06 | C68: ='DF raw data'!H73 -> 8.0607379e-07 | D68: ='DF raw data'!I73 -> -9.5958467e-06 | F68: 2.848066283e-06 | G68: 8.087280379e-07 | H68: -9.604444579e-06 | J68: -6.627132195e-06 | K68: -4.814605249e-06 | L68: 6.096300195e-06 | N68: -0.0001555072364 | O68: -0.002481806483 | P68: 2.390705105e-05 | Q68: 0.0002954163161 | R68: 2.533834535e-07
A69: 30.38604 | B69: ='DF raw data'!G74 -> 3.2461473e-06 | C69: ='DF raw data'!H74 -> 4.3274808e-06 | D69: ='DF raw data'!I74 -> 2.4554315e-06 | F69: 3.249055848e-06 | G69: 4.341730372e-06 | H69: 2.457631567e-06 | J69: -3.97032903e-06 | K69: 1.84940405e-06 | L69: 5.160909736e-06 | N69: -0.0001574927185 | O69: -0.002560565442 | P69: 2.483190103e-05 | Q69: 0.0003078342532 | R69: 2.660957769e-07
A70: 30.88612 | B70: ='DF raw data'!G75 -> 1.8040254e-06 | C70: ='DF raw data'!H75 -> -8.0986547e-07 | D70: ='DF raw data'!I75 -> 2.1824958e-06 | F70: 1.805641807e-06 | G70: -8.125322032e-07 | H70: 2.184451316e-06 | J70: 5.036862589e-07 | K70: 6.058969958e-06 | L70: 4.774417749e-06 | N70: -0.0001572408351 | O70: -0.002639198439 | P70: 2.786187073e-05 | Q70: 0.0003217674175 | R70: 2.788482991e-07
A71: 31.3862 | B71: ='DF raw data'!G76 -> -2.2803063e-06 | C71: ='DF raw data'!H76 -> 1.2068881e-06 | D71: ='DF raw data'!I76 -> -3.1355063e-07 | F71: -2.282349454e-06 | G71: =(1-$G$1*($B$2-$G$2))*C71*$M$2/$M$1 -> 1.210862153e-06 | H71: -3.138315714e-07 | J71: =-CELL("contents", INDEX($F$6:$F$1203,1204-CELL("row",F71))) -> 5.323238452e-06 | K71: =CELL("contents", INDEX($G$6:$G$1203,1204-CELL("row",G71))) -> 3.923934365e-06 | L71: =-CELL("contents", INDEX($H$6:$H$1203,1204-CELL("row",H71))) -> 2.732109078e-06 | N71: -0.00015457879 | O71: -0.0027165002 | P71: 2.982415182e-05 | Q71: 0.0003366818793 | R71: 2.91242323e-07
A72: =A71+$B$1 -> 31.88628 | B72: ='DF raw data'!G77 -> -2.94186e-06 | C72: ='DF raw data'!H77 -> -6.1772926e-07 | D72: ='DF raw data'!I77 -> -6.3486045e-06 | F72: -2.944495907e-06 | G72: -6.197633251e-07 | H72: -6.35429285e-06 | J72: 5.867467044e-06 | K72: 9.644133375e-07 | L72: 5.617671328e-07 | N72: =J72*$B$1+N71 -> -0.0001516445871 | O72: =N72*$B$1+O71 -> -0.002792334625 | P72: =K72*$B$1+P71 -> 3.030643565e-05 | Q72: =P72*$B$1+Q71 -> 0.0003518375217 | R72: =(N72^2+P72^2)*$B$1+R71 -> 3.032015165e-07
A73: 32.38636 | B73: ='DF raw data'!G78 -> -1.3771852e-06 | C73: ='DF raw data'!H78 -> 2.7610472e-06 | D73: ='DF raw data'!I78 -> -6.5239078e-06 | F73: -1.378419158e-06 | G73: 2.770138804e-06 | H73: -6.529753221e-06 | J73: 1.386036577e-06 | K73: -8.382315585e-07 | L73: 4.57491065e-06 | N73: -0.0001509514579 | O73: -0.00286782243 | P73: 2.988725281e-05 | Q73: 0.0003667835391 | R73: 3.150432062e-07
A74: 32.88644 | B74: ='DF raw data'!G79 -> 5.6615761e-07 | C74: ='DF raw data'!H79 -> 5.9483568e-06 | D74: ='DF raw data'!I79 -> -4.6231912e-06 | F74: 5.666648872e-07 | G74: 5.967943609e-06 | H74: -4.627333579e-06 | J74: -5.130137188e-06 | K74: 3.464101692e-06 | L74: 7.206415468e-06 | N74: -0.0001535169369 | O74: -0.00294459318 | P74: 3.161958078e-05 | Q74: 0.000382595859 | R74: 3.273287954e-07
A75: 33.38652 | B75: ='DF raw data'!G80 -> 3.2831929e-06 | C75: ='DF raw data'!H80 -> 9.6469548e-06 | D75: ='DF raw data'!I80 -> 7.463093e-06 | F75: 3.286134641e-06 | G75: 9.67872039e-06 | H75: 7.469779931e-06 | J75: -1.239203432e-05 | K75: -5.311382775e-06 | L75: 3.939281537e-06 | N75: -0.0001597139454 | O75: -0.00302446293 | P75: 2.896346449e-05 | Q75: 0.0003970799083 | R75: 3.405046166e-07
A76: 33.8866 | B76: ='DF raw data'!G81 -> 3.5455184e-06 | C76: ='DF raw data'!H81 -> -1.5122246e-06 | D76: ='DF raw data'!I81 -> 1.4065722e-05 | F76: 3.548695184e-06 | G76: -1.517204068e-06 | H76: 1.407832489e-05 | J76: -1.662306393e-05 | K76: -3.8755295e-06 | L76: 3.877664477e-06 | N76: -0.0001680268072 | O76: -0.003108489775 | P76: 2.702538969e-05 | Q76: 0.0004105947652 | R76: 3.549886234e-07
A77: 34.38668 | B77: ='DF raw data'!G82 -> -3.5464084e-06 | C77: ='DF raw data'!H82 -> 6.6364405e-06 | D77: ='DF raw data'!I82 -> 7.8385247e-06 | F77: -3.549585982e-06 | G77: 6.658293038e-06 | H77: 7.845548018e-06 | J77: -1.631700995e-05 | K77: 1.933874984e-06 | L77: 7.434904211e-07 | N77: -0.0001761866176 | O77: -0.003196597179 | P77: 2.799248189e-05 | Q77: 0.0004245932456 | R77: 3.709038211e-07
A78: 34.88676 | B78: ='DF raw data'!G83 -> -1.2768379e-05 | C78: ='DF raw data'!H83 -> -1.473531e-06 | D78: ='DF raw data'!I83 -> 1.8510541e-06 | F78: -1.277981947e-05 | G78: -1.478383058e-06 | H78: 1.852712644e-06 | J78: -1.298055717e-05 | K78: -1.096563525e-05 | L78: 1.355870172e-06 | N78: -0.0001826779346 | O78: -0.003287950761 | P78: 2.250878702e-05 | Q78: 0.0004358494398 | R78: 3.87845468e-07
A79: 35.38684 | B79: ='DF raw data'!G84 -> -1.5766431e-05 | C79: ='DF raw data'!H84 -> 9.4523739e-07 | D79: ='DF raw data'!I84 -> -1.6822346e-06 | F79: -1.578055772e-05 | G79: 9.483498772e-07 | H79: -1.683741882e-06 | J79: -6.079563713e-06 | K79: -7.21162026e-06 | L79: 6.703452216e-07 | N79: -0.0001857182028 | O79: -0.00338082472 | P79: 1.890239996e-05 | Q79: 0.000445302152 | R79: 4.052725317e-07
A80: 35.88692 | B80: ='DF raw data'!G85 -> -1.1389334e-05 | C80: ='DF raw data'!H85 -> 3.4786203e-06 | D80: ='DF raw data'!I85 -> -1.3714275e-06 | F80: -1.139953884e-05 | G80: 3.490074736e-06 | H80: -1.372656299e-06 | J80: -1.515556123e-06 | K80: -3.68369861e-06 | L80: -2.0131857e-06 | N80: -0.0001864761021 | O80: -0.003474077689 | P80: 1.706025596e-05 | Q80: 0.0004538336448 | R80: 4.228075313e-07
A81: 36.387 | B81: ='DF raw data'!G86 -> -6.5210306e-06 | C81: ='DF raw data'!H86 -> 2.9087528e-06 | D81: ='DF raw data'!I86 -> -5.0200547e-06 | F81: -6.526873443e-06 | G81: 2.918330771e-06 | H81: -5.024552669e-06 | J81: -2.718323538e-06 | K81: -5.461848704e-06 | L81: -2.470088218e-06 | N81: -0.0001878354814 | O81: -0.003568010456 | P81: 1.432889466e-05 | Q81: 0.0004609992384 | R81: 4.405541129e-07
A82: 36.88708 | B82: ='DF raw data'!G87 -> -6.8583149e-06 | C82: ='DF raw data'!H87 -> 7.9704432e-06 | D82: ='DF raw data'!I87 -> -9.4341858e-06 | F82: -6.86445995e-06 | G82: 7.996688356e-06 | H82: -9.44263883e-06 | J82: -7.344996926e-06 | K82: -3.475402883e-06 | L82: -2.126562895e-06 | N82: -0.0001915085674 | O82: -0.003663780061 | P82: 1.259091519e-05 | Q82: 0.0004672957033 | R82: 4.589740909e-07
A83: 37.38716 | B83: ='DF raw data'!G88 -> -5.0918579e-06 | C83: ='DF raw data'!H88 -> -3.0623819e-06 | D83: ='DF raw data'!I88 -> -6.6437719e-06 | F83: -5.096420205e-06 | G83: -3.072465742e-06 | H83: -6.64972472e-06 | J83: -1.280585077e-05 | K83: -4.694123829e-06 | L83: -1.051618307e-06 | N83: -0.0001979125173 | O83: -0.003762752152 | P83: 1.024347774e-05 | Q83: 0.0004724182616 | R83: 4.786143796e-07
A84: 37.88724 | B84: ='DF raw data'!G89 -> -6.371348e-07 | C84: ='DF raw data'!H89 -> 5.5550113e-06 | D84: ='DF raw data'!I89 -> -4.7382641e-06 | F84: -6.377056728e-07 | G84: 5.573302897e-06 | H84: -4.742509585e-06 | J84: -1.556614178e-05 | K84: -8.226458662e-06 | L84: 1.099272166e-06 | N84: -0.0002056968335 | O84: -0.003865617025 | P84: 6.129590293e-06 | Q84: 0.0004754835471 | R84: 4.99792147e-07
A85: 38.38732 | B85: ='DF raw data'!G90 -> 4.9672153e-06 | C85: ='DF raw data'!H90 -> -5.0347012e-06 | D85: ='DF raw data'!I90 -> -2.2734353e-06 | F85: 4.971665925e-06 | G85: -5.051279515e-06 | H85: -2.275472298e-06 | J85: -1.563702523e-05 | K85: -9.693099382e-06 | L85: 8.696498087e-06 | N85: -0.000213516597 | O85: -0.003972392405 | P85: 1.282265155e-06 | Q85: 0.0004761247823 | R85: 5.22591285e-07
A86: 38.8874 | B86: ='DF raw data'!G91 -> 9.4426314e-06 | C86: ='DF raw data'!H91 -> -7.9905158e-06 | D86: ='DF raw data'!I91 -> -9.8920691e-07 | F86: 9.451091998e-06 | G86: -8.016827051e-06 | H86: -9.900932394e-07 | J86: -1.374625762e-05 | K86: -1.446121074e-06 | L86: 9.170255994e-06 | N86: -0.0002203908256 | O86: -0.004082605449 | P86: 5.590889279e-07 | Q86: 0.0004764043715 | R86: 5.468813851e-07
A87: 39.38748 | B87: ='DF raw data'!G92 -> 7.5689077e-06 | C87: ='DF raw data'!H92 -> 1.8049799e-05 | D87: ='DF raw data'!I92 -> -2.8830696e-06 | F87: =(1-$G$1*($B$2-$G$2))*B87 -> 7.575689441e-06 | G87: 1.810923356e-05 | H87: -2.88565283e-06 | J87: -1.161885117e-05 | K87: -5.157434917e-06 | L87: -7.35001672e-07 | N87: -0.0002262011806 | O87: -0.004195724135 | P87: -2.020041125e-06 | Q87: 0.0004753941893 | R87: 5.724710061e-07
A88: 39.88756 | B88: ='DF raw data'!G93 -> 1.2551453e-06 | C88: ='DF raw data'!H93 -> 9.4673624e-06 | D88: ='DF raw data'!I93 -> -7.2088847e-06 | F88: 1.25626991e-06 | G88: 9.498536626e-06 | H88: -7.215343861e-06 | J88: -1.14000513e-05 | K88: -2.575954691e-06 | L88: -9.640866083e-07 | N88: -0.0002319021183 | O88: -0.004311693746 | P88: -3.308224547e-06 | Q88: 0.0004737398124 | R88: 5.993700777e-07
A89: 40.38764 | B89: ='DF raw data'!G94 -> -5.0373246e-06 | C89: ='DF raw data'!H94 -> -2.9357584e-06 | D89: ='DF raw data'!I94 -> -7.5996909e-06 | F89: -5.041838043e-06 | G89: -2.945425295e-06 | H89: -7.606500223e-06 | J89: -1.248957664e-05 | K89: 4.804910029e-06 | L89: 1.04225032e-06 | N89: -0.0002381479058 | O89: -0.004430786751 | P89: -9.053851399e-07 | Q89: 0.0004732870474 | R89: 6.277322373e-07
A90: 40.88772 | B90: ='DF raw data'!G95 -> -6.2179215e-06 | C90: ='DF raw data'!H95 -> -3.0898668e-06 | D90: ='DF raw data'!I95 -> 1.1435836e-06 | F90: -6.223492758e-06 | G90: -3.100041145e-06 | H90: 1.144608251e-06 | J90: -1.235575685e-05 | K90: -1.740358863e-06 | L90: -5.388968693e-06 | N90: -0.0002443267727 | O90: -0.004552969684 | P90: -1.7757038e-06 | Q90: 0.0004723990534 | R90: 6.575863757e-07
A91: 41.3878 | B91: ='DF raw data'!G96 -> -3.2476394e-06 | C91: ='DF raw data'!H96 -> -6.6813268e-06 | D91: ='DF raw data'!I96 -> 5.5075357e-06 | F91: -3.250549285e-06 | G91: -6.70332714e-06 | H91: 5.512470452e-06 | J91: -9.355019694e-06 | K91: -1.060325993e-05 | L91: -6.841413219e-06 | N91: -0.0002490050309 | O91: -0.00467749212 | P91: -7.078182027e-06 | Q91: 0.0004688593962 | R91: 6.88618143e-07
A92: 41.88788 | B92: ='DF raw data'!G97 -> 1.0595694e-06 | C92: ='DF raw data'!H97 -> -6.2052573e-06 | D92: ='DF raw data'!I97 -> 7.7434328e-07 | F92: 1.060518774e-06 | G92: -6.225690034e-06 | H92: 7.750370916e-07 | J92: -4.068137188e-06 | K92: 1.937222069e-06 | L92: 6.618866295e-07 | N92: -0.000251039425 | O92: -0.004803031915 | P92: -6.109416015e-06 | Q92: 0.0004658041994 | R92: 7.201522466e-07
A93: 42.38796 | B93: ='DF raw data'!G98 -> 5.2816049e-06 | C93: ='DF raw data'!H98 -> -9.8729079e-06 | D93: ='DF raw data'!I98 -> -1.4125585e-06 | F93: 5.286337218e-06 | G93: -9.905417511e-06 | H93: -1.413824152e-06 | J93: -4.120783116e-06 | K93: 3.130375101e-06 | L93: 7.628748139e-06 | N93: -0.0002531001462 | O93: -0.004929602236 | P93: -4.543978034e-06 | Q93: 0.0004635318469 | R93: 7.521975389e-07
A94: 42.88804 | B94: ='DF raw data'!G99 -> 8.1777962e-06 | C94: ='DF raw data'!H99 -> -7.9179308e-06 | D94: ='DF raw data'!I99 -> 4.0741611e-06 | F94: 8.185123505e-06 | G94: -7.944003042e-06 | H94: 4.077811548e-06 | J94: -9.560324583e-06 | K94: -8.280010921e-06 | L94: 7.583917207e-06 | N94: -0.0002578810733 | O94: -0.005058563403 | P94: -8.684645896e-06 | Q94: 0.0004591888291 | R94: 7.854919007e-07
A95: 43.38812 | B95: ='DF raw data'!G100 -> 8.0274767e-06 | C95: ='DF raw data'!H100 -> -5.4527891e-07 | D95: ='DF raw data'!I100 -> 2.87998e-06 | F95: 8.034669319e-06 | G95: -5.470744099e-07 | H95: 2.882560462e-06 | J95: -1.226716854e-05 | K95: 1.241383123e-06 | L95: 1.093092234e-05 | N95: -0.000264015639 | O95: -0.005190592344 | P95: -8.063855023e-06 | Q95: 0.0004551562565 | R95: 8.203821239e-07
A96: 43.8882 | B96: ='DF raw data'!G101 -> 5.5899873e-06 | C96: ='DF raw data'!H101 -> -1.0405683e-05 | D96: ='DF raw data'!I101 -> -4.1453318e-06 | F96: 5.594995929e-06 | G96: -1.043994694e-05 | H96: -4.149046017e-06 | J96: -1.126489531e-05 | K96: -9.020828286e-06 | L96: 1.290322094e-05 | N96: -0.0002696489878 | O96: -0.00532543841 | P96: -1.257499083e-05 | Q96: 0.0004488677551 | R96: 8.568223069e-07
A97: 44.38828 | B97: ='DF raw data'!G102 -> 2.3815417e-06 | C97: ='DF raw data'!H102 -> -9.6514132e-06 | D97: ='DF raw data'!I102 -> -6.2594886e-06 | F97: 2.383675561e-06 | G97: -9.683193471e-06 | H97: -6.265097102e-06 | J97: -8.325089102e-06 | K97: -1.320080408e-05 | L97: 1.01506088e-05 | N97: -0.0002738121984 | O97: -0.005462366414 | P97: -1.917644894e-05 | Q97: 0.0004392779965 | R97: 8.944987622e-07
A98: 44.88836 | B98: ='DF raw data'!G103 -> 2.8407419e-07 | C98: ='DF raw data'!H103 -> -6.3140037e-06 | D98: ='DF raw data'!I103 -> -1.1554999e-07 | F98: 2.843287205e-07 | G98: -6.334794515e-06 | H98: -1.156535228e-07 | J98: -4.943805885e-06 | K98: 2.719134307e-06 | L98: 5.43355841e-06 | N98: -0.0002762844968 | O98: -0.005600530765 | P98: -1.781666425e-05 | Q98: 0.0004303682391 | R98: 9.328301726e-07
A99: 45.38844 | B99: ='DF raw data'!G104 -> -1.7826216e-06 | C99: ='DF raw data'!H104 -> 7.6338065e-06 | D99: ='DF raw data'!I104 -> 7.2051967e-06 | F99: -1.784218829e-06 | G99: 7.658943175e-06 | H99: 7.211652556e-06 | J99: -2.853545488e-06 | K99: 7.984205487e-07 | L99: -1.755800089e-07 | N99: -0.0002777114978 | O99: -0.005739408731 | P99: -1.74173901e-05 | Q99: 0.0004216581506 | R99: 9.715498876e-07
A100: 45.88852 | B100: ='DF raw data'!G105 -> -3.2908258e-06 | C100: ='DF raw data'!H105 -> 5.9835797e-06 | D100: ='DF raw data'!I105 -> 3.3697538e-06 | F100: -3.29377438e-06 | G100: 6.003282491e-06 | H100: 3.372773099e-06 | J100: -2.25206114e-06 | K100: -2.301930443e-06 | L100: -2.881763048e-06 | N100: -0.0002788377086 | O100: -0.005878849892 | P100: -1.856853948e-05 | Q100: 0.0004123723954 | R100: 1.010603764e-06
A101: 46.3886 | B101: ='DF raw data'!G106 -> -3.4172492e-06 | C101: ='DF raw data'!H106 -> 1.5746114e-06 | D101: ='DF raw data'!I106 -> 1.2682426e-06 | F101: -3.420311055e-06 | G101: 1.579796296e-06 | H101: 1.269378945e-06 | J101: -2.948748413e-06 | K101: 4.021523252e-06 | L101: 4.131793773e-06 | N101: -0.0002803123187 | O101: -0.006019028477 | P101: -1.655745613e-05 | Q101: 0.0004040923427 | R101: 1.050034645e-06
A102: 46.88868 | B102: ='DF raw data'!G107 -> -3.4739853e-06 | C102: ='DF raw data'!H107 -> 7.5101193e-06 | D102: ='DF raw data'!I107 -> 5.2223509e-06 | F102: -3.477097991e-06 | G102: 7.534848696e-06 | H102: 5.227030126e-06 | J102: -4.017829853e-06 | K102: 4.346683428e-06 | L102: 9.688043716e-06 | N102: -0.000282321555 | O102: -0.00616021184 | P102: -1.438376668e-05 | Q102: 0.0003968993087 | R102: 1.089997215e-06
A103: 47.38876 | B103: ='DF raw data'!G108 -> -1.9745942e-06 | C103: ='DF raw data'!H108 -> 1.1011783e-05 | D103: ='DF raw data'!I108 -> 4.7391018e-06 | F103: -1.976363436e-06 | G103: 1.104804271e-05 | H103: 4.743348035e-06 | J103: -4.921491509e-06 | K103: -2.317190928e-06 | L103: 9.456428175e-06 | N103: -0.0002847826945 | O103: -0.00630262597 | P103: -1.554254752e-05 | Q103: 0.0003891267915 | R103: 1.130675099e-06
A104: 47.88884 | B104: ='DF raw data'!G109 -> 3.7437646e-06 | C104: ='DF raw data'!H109 -> 1.5832843e-06 | D104: ='DF raw data'!I109 -> 1.45892e-06 | F104: 3.747119013e-06 | G104: 1.588497754e-06 | H104: 1.460227192e-06 | J104: -5.338581687e-06 | K104: 5.734211299e-06 | L104: 1.657003846e-05 | N104: -0.0002874524124 | O104: -0.006446375172 | P104: -1.267498314e-05 | Q104: 0.000382788286 | R104: 1.172076494e-06
A105: 48.38892 | B105: ='DF raw data'!G110 -> 9.3530534e-06 | C105: ='DF raw data'!H110 -> -8.8930183e-06 | D105: ='DF raw data'!I110 -> 1.4723623e-06 | F105: 9.361433736e-06 | G105: -8.92230132e-06 | H105: 1.473681537e-06 | J105: -7.545425249e-06 | K105: -1.340768707e-06 | L105: 9.030832983e-06 | N105: -0.0002912257287 | O105: -0.006592011335 | P105: -1.334547475e-05 | Q105: 0.0003761144809 | R105: 1.214578557e-06
A106: 48.889 | B106: ='DF raw data'!G111 -> 9.4831476e-06 | C106: ='DF raw data'!H111 -> 5.7767679e-06 | D106: ='DF raw data'!I111 -> 5.0599868e-07 | F106: 9.4916445e-06 | G106: 5.7957897e-06 | H106: 5.064520548e-07 | J106: -1.054723086e-05 | K106: -1.411450184e-06 | L106: 6.10927501e-07 | N106: -0.0002965001879 | O106: -0.006740285149 | P106: -1.405131276e-05 | Q106: 0.0003690877005 | R106: 1.258640506e-06
A107: 49.38908 | B107: ='DF raw data'!G112 -> 6.7743222e-06 | C107: ='DF raw data'!H112 -> 4.7120188e-06 | D107: ='DF raw data'!I112 -> 5.9271719e-07 | F107: 6.780391993e-06 | G107: 4.727534583e-06 | H107: 5.932482646e-07 | J107: -1.155584977e-05 | K107: 3.199803766e-07 | L107: 5.417307562e-06 | N107: -0.0003022790373 | O107: -0.00689144885 | P107: -1.389129697e-05 | Q107: 0.0003621409407 | R107: 1.304430624e-06
A108: 49.88916 | B108: ='DF raw data'!G113 -> 2.2448392e-06 | C108: ='DF raw data'!H113 -> 2.8505779e-06 | D108: ='DF raw data'!I113 -> 1.8467421e-07 | F108: 2.246850576e-06 | G108: 2.859964312e-06 | H108: 1.848396781e-07 | J108: -9.824287982e-06 | K108: -3.539525333e-06 | L108: 1.108546769e-05 | N108: -0.0003071919672 | O108: -0.007045069409 | P108: -1.56613428e-05 | Q108: 0.0003543090164 | R108: 1.351744284e-06
A109: 50.38924 | B109: ='DF raw data'!G114 -> -1.7509514e-07 | C109: ='DF raw data'!H114 -> 5.1766142e-06 | D109: ='DF raw data'!I114 -> 2.6083067e-06 | F109: -1.752520252e-07 | G109: 5.193659807e-06 | H109: 2.610643743e-06 | J109: -9.454031329e-06 | K109: 1.094264279e-06 | L109: 8.381549145e-06 | N109: -0.0003119197392 | O109: -0.007201054232 | P109: -1.511412312e-05 | Q109: 0.0003467507457 | R109: 1.400513266e-06
A110: 50.88932 | B110: ='DF raw data'!G115 -> 9.2119706e-07 | C110: ='DF raw data'!H115 -> 6.2876602e-06 | D110: ='DF raw data'!I115 -> 1.1186593e-05 | F110: 9.220224526e-07 | G110: 6.308364271e-06 | H110: 1.119661619e-05 | J110: -1.050400516e-05 | K110: 4.32914898e-06 | L110: 2.801117755e-06 | N110: -0.0003171725821 | O110: -0.007359665897 | P110: -1.29492023e-05 | Q110: 0.0003402751086 | R110: 1.450904391e-06
A111: 51.3894 | B111: ='DF raw data'!G116 -> 4.0330569e-06 | C111: ='DF raw data'!H116 -> 2.4425567e-06 | D111: ='DF raw data'!I116 -> 1.101402e-05 | F111: 4.036670519e-06 | G111: 2.450599575e-06 | H111: 1.102388856e-05 | J111: -9.41194135e-06 | K111: -2.472343338e-06 | L111: 8.210818808e-06 | N111: -0.0003218793057 | O111: -0.0075206313 | P111: -1.418557176e-05 | Q111: 0.0003331811879 | R111: 1.502816455e-06
A112: 51.88948 | B112: ='DF raw data'!G117 -> 6.9634907e-06 | C112: ='DF raw data'!H117 -> -1.1224388e-05 | D112: ='DF raw data'!I117 -> 3.3302199e-06 | F112: 6.969729988e-06 | G112: -1.126134778e-05 | H112: 3.333203777e-06 | J112: -8.582170541e-06 | K112: -4.792249277e-06 | L112: 7.982731625e-06 | N112: -0.0003261710775 | O112: -0.007683742932 | P112: -1.658207977e-05 | Q112: 0.0003248888214 | R112: 1.556156257e-06
A113: 52.38956 | B113: ='DF raw data'!G118 -> 7.1690783e-06 | C113: ='DF raw data'!H118 -> -8.4475041e-06 | D113: ='DF raw data'!I118 -> -2.4087109e-07 | F113: 7.175501794e-06 | G113: -8.475320127e-06 | H113: -2.410869105e-07 | J113: -9.391965568e-06 | K113: -1.213593217e-06 | L113: 7.044278423e-06 | N113: -0.0003308678117 | O113: -0.007849203307 | P113: -1.718897347e-05 | Q113: 0.0003162929595 | R113: 1.611049523e-06
A114: 52.88964 | B114: ='DF raw data'!G119 -> 4.3674709e-06 | C114: ='DF raw data'!H119 -> 1.2786727e-06 | D114: ='DF raw data'!I119 -> 1.9912181e-06 | F114: 4.371384154e-06 | G114: 1.282883126e-06 | H114: 1.993002231e-06 | J114: -8.375530257e-06 | K114: 7.476824862e-07 | L114: 1.121942461e-05 | N114: -0.0003350562469 | O114: -0.008016758235 | P114: -1.681507241e-05 | Q114: 0.0003078840781 | R114: 1.667331244e-06
A115: 53.38972 | B115: ='DF raw data'!G120 -> 1.5198738e-06 | C115: ='DF raw data'!H120 -> 1.0386541e-05 | D115: ='DF raw data'!I120 -> 3.0180158e-06 | F115: 1.521235607e-06 | G115: 1.042074191e-05 | H115: 3.020719942e-06 | J115: -6.392364331e-06 | K115: 6.388550241e-06 | L115: 7.81859549e-06 | N115: -0.0003382529404 | O115: -0.008185911766 | P115: -1.362028621e-05 | Q115: 0.0003010728454 | R115: 1.724640694e-06
A116: 53.8898 | B116: ='DF raw data'!G121 -> 2.3808467e-07 | C116: ='DF raw data'!H121 -> -1.8595351e-06 | D116: ='DF raw data'!I121 -> 3.0757833e-06 | F116: 2.382979939e-07 | G116: -1.865658196e-06 | H116: 3.078539202e-06 | J116: -7.283799542e-06 | K116: -6.264916074e-06 | L116: 4.034936867e-06 | N116: -0.0003418954229 | O116: -0.008356886829 | P116: -1.675324544e-05 | Q116: 0.0002926948824 | R116: 1.783236644e-06
A117: 54.38988 | B117: ='DF raw data'!G122 -> -9.9544479e-07 | C117: ='DF raw data'!H122 -> -1.4153561e-06 | D117: ='DF raw data'!I122 -> 9.7827697e-06 | F117: -9.963367085e-07 | G117: -1.420016599e-06 | H117: 9.791535062e-06 | J117: -6.567003568e-06 | K117: -1.429623629e-05 | L117: 3.61074353e-06 | N117: -0.00034517945 | O117: -0.008529504168 | P117: -2.390250728e-05 | Q117: 0.0002807417166 | R117: 1.843106313e-06
A118: 54.88996 | B118: ='DF raw data'!G123 -> -1.2856718e-06 | C118: ='DF raw data'!H123 -> 9.9283525e-06 | D118: ='DF raw data'!I123 -> 7.3518163e-06 | F118: -1.286823762e-06 | G118: 9.961044679e-06 | H118: 7.358403527e-06 | J118: -8.063093564e-07 | K118: -4.791577673e-06 | L118: 1.043877977e-05 | N118: -0.0003455826692 | O118: -0.00870232315 | P118: -2.629867944e-05 | Q118: 0.000267590273 | R118: 1.903175423e-06
A119: 55.39004 | B119: ='DF raw data'!G124 -> -2.0786969e-07 | C119: ='DF raw data'!H124 -> 2.4432225e-06 | D119: ='DF raw data'!I124 -> -3.2406647e-06 | F119: -2.080559412e-07 | G119: 2.451267568e-06 | H119: -3.243568336e-06 | J119: 4.621140335e-06 | K119: 2.798198897e-07 | L119: 1.303225144e-05 | N119: -0.0003432717294 | O119: -0.008873986476 | P119: -2.615874711e-05 | Q119: 0.0002545088067 | R119: 1.962444785e-06
A120: 55.89012 | B120: ='DF raw data'!G125 -> -3.5387654e-08 | C120: ='DF raw data'!H125 -> 8.355516e-06 | D120: ='DF raw data'!I125 -> -1.1862413e-05 | F120: -3.541936134e-08 | G120: 8.383029127e-06 | H120: -1.187304172e-05 | J120: 2.635769836e-06 | K120: 6.830176861e-06 | L120: 9.294691689e-06 | N120: -0.0003419536336 | O120: -0.009044990649 | P120: -2.274311227e-05 | Q120: 0.0002431354311 | R120: 2.021178949e-06
A121: 56.3902 | B121: ='DF raw data'!G126 -> 6.3867326e-08 | C121: ='DF raw data'!H126 -> 1.5033546e-05 | D121: ='DF raw data'!I126 -> -6.6524922e-06 | F121: 6.392455112e-08 | G121: 1.508304861e-05 | H121: -6.658452833e-06 | J121: -6.020704022e-06 | K121: 2.63386395e-06 | L121: 5.826047465e-06 | N121: -0.0003449644672 | O121: -0.00921750048 | P121: -2.142596958e-05 | Q121: 0.0002324207323 | R121: 2.080918284e-06
A122: 56.89028 | B122: ='DF raw data'!G127 -> 6.1668732e-07 | C122: ='DF raw data'!H127 -> 5.285433e-07 | D122: ='DF raw data'!I127 -> -6.5039426e-06 | F122: 6.172398718e-07 | G122: 5.302836927e-07 | H122: -6.509770133e-06 | J122: -1.127685402e-05 | K122: -7.281363658e-06 | L122: 4.751900391e-06 | N122: -0.0003506037964 | O122: -0.009392830426 | P122: -2.506723392e-05 | Q122: 0.0002198851099 | R122: 2.142703862e-06
A123: 57.39036 | B123: ='DF raw data'!G128 -> 2.8620968e-07 | C123: ='DF raw data'!H128 -> -9.4562459e-08 | D123: ='DF raw data'!I128 -> -7.9345236e-06 | F123: 2.864661239e-07 | G123: -9.487383522e-08 | H123: -7.941632933e-06 | J123: -9.881009359e-06 | K123: 5.438755011e-08 | L123: 4.699677742e-06 | N123: -0.0003555450916 | O123: -0.009570631416 | P123: -2.50400358e-05 | Q123: 0.0002073630888 | R123: 2.206233683e-06
A124: 57.89044 | B124: ='DF raw data'!G129 -> -8.3411317e-07 | C124: ='DF raw data'!H129 -> 2.0835027e-06 | D124: ='DF raw data'!I129 -> -1.709323e-06 | F124: -8.348605354e-07 | G124: 2.090363279e-06 | H124: -1.710854553e-06 | J124: -8.478816719e-06 | K124: 4.206660071e-06 | L124: 8.605503529e-06 | N124: -0.0003597851782 | O124: -0.009750552788 | P124: -2.293636923e-05 | Q124: 0.0001958930693 | R124: 2.271229806e-06
A125: 58.39052 | B125: ='DF raw data'!G130 -> -1.4092249e-06 | C125: ='DF raw data'!H130 -> -5.3842818e-06 | D125: ='DF raw data'!I130 -> 4.6923155e-06 | F125: -1.410487566e-06 | G125: -5.402011217e-06 | H125: 4.696519815e-06 | J125: -7.037073774e-06 | K125: 1.168157597e-06 | L125: 1.173588394e-05 | N125: -0.0003633042781 | O125: -0.009932233991 | P125: -2.235219698e-05 | Q125: 0.0001847151826 | R125: 2.337485215e-06
A126: 58.8906 | B126: ='DF raw data'!G131 -> -5.1097879e-07 | C126: ='DF raw data'!H131 -> 6.7012838e-06 | D126: ='DF raw data'!I131 -> 6.0084872e-06 | F126: -5.11436627e-07 | G126: 6.723349855e-06 | H126: 6.013870805e-06 | J126: -2.420421056e-06 | K126: -4.074189402e-06 | L126: 1.342627017e-05 | N126: -0.0003645146822 | O126: -0.01011452049 | P126: -2.438961761e-05 | Q126: 0.0001725184227 | R126: 2.404228796e-06
A127: 59.39068 | B127: ='DF raw data'!G132 -> -3.6272752e-07 | C127: ='DF raw data'!H132 -> -1.7737407e-06 | D127: ='DF raw data'!I132 -> 4.1063718e-06 | F127: -3.630525239e-07 | G127: -1.779581291e-06 | H127: 4.110051109e-06 | J127: 3.732752953e-07 | K127: 3.656333999e-06 | L127: 1.351539996e-05 | N127: -0.0003643280147 | O127: -0.01029671365 | P127: -2.256115811e-05 | Q127: 0.0001612360387 | R127: 2.470861409e-06
A128: 59.89076 | B128: ='DF raw data'!G133 -> -2.7135768e-06 | C128: ='DF raw data'!H133 -> 6.7537217e-06 | D128: ='DF raw data'!I133 -> -3.5446178e-06 | F128: -2.716008165e-06 | G128: 6.775960423e-06 | H128: -3.547793778e-06 | J128: -8.674402807e-07 | K128: 8.344609634e-06 | L128: 3.791130512e-06 | N128: -0.0003647618043 | O128: -0.01047912373 | P128: -1.838818572e-05 | Q128: 0.0001520404748 | R128: 2.53756673e-06
A129: 60.39084 | B129: ='DF raw data'!G134 -> -3.2778764e-06 | C129: ='DF raw data'!H134 -> 5.4822954e-06 | D129: ='DF raw data'!I134 -> -5.3524896e-06 | F129: -3.280813377e-06 | G129: 5.500347557e-06 | H129: -5.357285431e-06 | J129: -1.194769055e-08 | K129: 1.0616993e-05 | L129: 2.073696669e-06 | N129: -0.0003647677791 | O129: -0.0106615368 | P129: -1.307883986e-05 | Q129: 0.0001455000086 | R129: 2.604190683e-06
A130: 60.89092 | B130: ='DF raw data'!G135 -> -1.7854919e-06 | C130: ='DF raw data'!H135 -> 1.5494832e-07 | D130: ='DF raw data'!I135 -> -1.7999669e-06 | F130: -1.787091701e-06 | G130: 1.554585354e-07 | H130: -1.80157967e-06 | J130: 1.895322088e-06 | K130: 1.076518136e-05 | L130: 1.604139222e-05 | N130: -0.0003638199664 | O130: -0.01084347589 | P130: -7.695387967e-06 | Q130: 0.0001416516989 | R130: 2.67041337e-06
A131: 61.391 | B131: ='DF raw data'!G136 -> -5.9485625e-08 | C131: ='DF raw data'!H136 -> -3.7736831e-06 | D131: ='DF raw data'!I136 -> -3.9384836e-06 | F131: -5.953892412e-08 | G131: -3.786109122e-06 | H131: -3.942012481e-06 | J131: 8.093390887e-07 | K131: 1.30833506e-05 | L131: 1.124900308e-05 | N131: -0.0003634152321 | O131: -0.01102521258 | P131: -1.152666e-06 | Q131: 0.0001410752737 | R131: 2.736459916e-06
A132: 61.89108 | B132: ='DF raw data'!G137 -> 2.279882e-06 | C132: ='DF raw data'!H137 -> -8.0592299e-06 | D132: ='DF raw data'!I137 -> -9.5097903e-06 | F132: 2.281924774e-06 | G132: -8.085767413e-06 | H132: -9.518311072e-06 | J132: -2.326821266e-06 | K132: 7.44034032e-06 | L132: -7.019892393e-08 | N132: -0.0003645788289 | O132: -0.01120753116 | P132: 2.568099387e-06 | Q132: 0.0001423595289 | R132: 2.802932708e-06
A133: 62.39116 | B133: ='DF raw data'!G138 -> 4.6544938e-06 | C133: ='DF raw data'!H138 -> -8.936554e-07 | D133: ='DF raw data'!I138 -> -6.2392578e-06 | F133: 4.658664226e-06 | G133: -8.965980375e-07 | H133: -6.244848175e-06 | J133: -4.031459054e-06 | K133: 6.517196659e-06 | L133: -2.173793375e-06 | N133: -0.0003665948809 | O133: -0.01139085793 | P133: 5.827219092e-06 | Q133: 0.0001452736046 | R133: 2.870156344e-06
A134: 62.89124 | B134: ='DF raw data'!G139 -> 7.3222682e-06 | C134: ='DF raw data'!H139 -> -4.6405589e-06 | D134: ='DF raw data'!I139 -> -5.2429427e-06 | F134: 7.328828952e-06 | G134: -4.655839379e-06 | H134: -5.247640377e-06 | J134: -4.164876789e-06 | K134: 2.627436354e-06 | L134: 3.572637918e-06 | N134: -0.0003686776525 | O134: -0.01157522625 | P134: 7.141147464e-06 | Q134: 0.0001488447496 | R134: 2.938154326e-06
A135: 63.39132 | B135: ='DF raw data'!G140 -> 8.0707969e-06 | C135: ='DF raw data'!H140 -> -5.7749571e-06 | D135: ='DF raw data'!I140 -> -7.1362051e-06 | F135: 8.078028334e-06 | G135: =(1-$G$1*($B$2-$G$2))*C135*$M$2/$M$1 -> -5.793972937e-06 | H135: -7.14259914e-06 | J135: =-CELL("contents", INDEX($F$6:$F$1203,1204-CELL("row",F135))) -> -2.763085308e-06 | K135: =CELL("contents", INDEX($G$6:$G$1203,1204-CELL("row",G135))) -> 7.625414634e-07 | L135: =-CELL("contents", INDEX($H$6:$H$1203,1204-CELL("row",H135))) -> 5.844967403e-06 | N135: -0.0003700594162 | O135: -0.01176028556 | P135: 7.522479199e-06 | Q135: 0.000152606591 | R135: 3.006665565e-06
A136: =A135+$B$1 -> 63.8914 | B136: ='DF raw data'!G141 -> 6.1722421e-06 | C136: ='DF raw data'!H141 -> 2.4655051e-06 | D136: ='DF raw data'!I141 -> -6.2617514e-06 | F136: 6.177772429e-06 | G136: 2.47362354e-06 | H136: -6.267361929e-06 | J136: -3.14089202e-06 | K136: -6.694282957e-07 | L136: 2.73517132e-06 | N136: =J136*$B$1+N135 -> -0.0003716301135 | O136: =N136*$B$1+O135 -> -0.01194613035 | P136: =K136*$B$1+P135 -> 7.187711497e-06 | Q136: =P136*$B$1+Q135 -> 0.0001562010218 | R136: =(N136^2+P136^2)*$B$1+R135 -> 3.07575692e-06
A137: 64.39148 | B137: ='DF raw data'!G142 -> 4.3730779e-06 | C137: ='DF raw data'!H142 -> 4.0702357e-06 | D137: ='DF raw data'!I142 -> -1.3006143e-06 | F137: 4.376996178e-06 | G137: 4.083638213e-06 | H137: -1.30177965e-06 | J137: -5.393832948e-06 | K137: -6.49235222e-06 | L137: 8.484800175e-06 | N137: -0.0003743274615 | O137: -0.01213332403 | P137: 3.941015999e-06 | Q137: 0.0001581718451 | R137: 3.145836421e-06
A138: 64.89156 | B138: ='DF raw data'!G143 -> 4.0618252e-06 | C138: ='DF raw data'!H143 -> -1.3064787e-06 | D138: ='DF raw data'!I143 -> 1.1876432e-06 | F138: 4.065464595e-06 | G138: -1.310780686e-06 | H138: 1.188707328e-06 | J138: -6.198550329e-06 | K138: -1.93152176e-06 | L138: 8.650669461e-06 | N138: -0.0003774272325 | O138: -0.01232206784 | P138: 2.975100597e-06 | Q138: 0.0001596596334 | R138: 3.217077902e-06
A139: 65.39164 | B139: ='DF raw data'!G144 -> 5.4251159e-06 | C139: ='DF raw data'!H144 -> -3.0928027e-06 | D139: ='DF raw data'!I144 -> 4.7880853e-06 | F139: 5.429976804e-06 | G139: -3.102986712e-06 | H139: 4.792375424e-06 | J139: -9.400116465e-06 | K139: -1.536542537e-05 | L139: 1.199674146e-05 | N139: -0.0003821280428 | O139: -0.01251316243 | P139: -4.708841323e-06 | Q139: 0.000157304836 | R139: 3.290111592e-06
A140: 65.89172 | B140: ='DF raw data'!G145 -> 7.1624036e-06 | C140: ='DF raw data'!H145 -> 1.3311069e-06 | D140: ='DF raw data'!I145 -> 6.0533453e-06 | F140: 7.168821114e-06 | G140: 1.335489982e-06 | H140: 6.058769097e-06 | J140: -1.268906823e-05 | K140: -1.567238682e-05 | L140: 1.323089227e-05 | N140: -0.000388473592 | O140: -0.0127074303 | P140: -1.254628853e-05 | Q140: 0.000151030688 | R140: 3.365658248e-06
A141: 66.3918 | B141: ='DF raw data'!G146 -> 7.4614409e-06 | C141: ='DF raw data'!H146 -> 2.0764342e-06 | D141: ='DF raw data'!I146 -> 6.0637281e-06 | F141: 7.468126351e-06 | G141: 2.083271503e-06 | H141: 6.0691612e-06 | J141: -1.3476348e-05 | K141: -1.292976152e-06 | L141: 5.730257414e-06 | N141: -0.0003952128441 | O141: -0.01290506834 | P141: -1.319288004e-05 | Q141: 0.0001444331926 | R141: 3.44385438e-06
A142: 66.89188 | B142: ='DF raw data'!G147 -> 5.4628299e-06 | C142: ='DF raw data'!H147 -> 8.3547156e-06 | D142: ='DF raw data'!I147 -> 4.5910851e-06 | F142: 5.467724596e-06 | G142: 8.382226092e-06 | H142: 4.595198712e-06 | J142: -1.323135969e-05 | K142: 4.980005895e-06 | L142: 9.130621113e-06 | N142: -0.0004018295825 | O142: -0.01310601528 | P142: -1.070247869e-05 | Q142: 0.000139081097 | R142: 3.524658085e-06
A143: 67.39196 | B143: ='DF raw data'!G148 -> 1.4942415e-06 | C143: ='DF raw data'!H148 -> -2.0050403e-07 | D143: ='DF raw data'!I148 -> -2.0949342e-06 | F143: 1.49558034e-06 | G143: -2.011642517e-07 | H143: -2.096811261e-06 | J143: -1.202799143e-05 | K143: 5.046807437e-06 | L143: 2.206459818e-06 | N143: -0.0004078445404 | O143: -0.01330997018 | P143: -8.178671228e-06 | Q143: 0.0001349911071 | R143: 3.607873427e-06
A144: 67.89204 | B144: ='DF raw data'!G149 -> -1.4795124e-06 | C144: ='DF raw data'!H149 -> 7.323189e-06 | D144: ='DF raw data'!I149 -> -9.7473212e-06 | F144: -1.480838043e-06 | G144: 7.34730287e-06 | H144: -9.7560548e-06 | J144: -1.00825729e-05 | K144: -6.303335567e-06 | L144: -9.019080862e-06 | N144: -0.0004128866335 | O144: -0.01351644652 | P144: -1.133084328e-05 | Q144: 0.000129324779 | R144: 3.693188955e-06
A145: 68.39212 | B145: ='DF raw data'!G150 -> 1.7992869e-06 | C145: ='DF raw data'!H150 -> 5.1571328e-06 | D145: ='DF raw data'!I150 -> -7.4040186e-06 | F145: 1.800899061e-06 | G145: 5.174114259e-06 | H145: -7.410652601e-06 | J145: -7.568674562e-06 | K145: -4.049555855e-06 | L145: -3.262458146e-06 | N145: -0.0004166715763 | O145: -0.01372481565 | P145: -1.335594517e-05 | Q145: 0.000122645738 | R145: 3.780099651e-06
A146: 68.8922 | B146: ='DF raw data'!G151 -> 5.9749982e-06 | C146: ='DF raw data'!H151 -> 3.4489963e-06 | D146: ='DF raw data'!I151 -> -3.6737988e-06 | F146: 5.980351798e-06 | G146: 3.46035319e-06 | H146: -3.677090524e-06 | J146: -6.867645101e-06 | K146: -5.573818891e-07 | L146: 7.869955167e-06 | N146: -0.0004201059482 | O146: -0.01393490223 | P146: -1.36346807e-05 | Q146: 0.0001158273068 | R146: 3.868451241e-06
A147: 69.39228 | B147: ='DF raw data'!G152 -> 4.0858558e-06 | C147: ='DF raw data'!H152 -> 5.2395912e-06 | D147: ='DF raw data'!I152 -> -1.0718814e-05 | F147: 4.089516727e-06 | G147: 5.256844179e-06 | H147: -1.072841806e-05 | J147: -7.563730636e-06 | K147: 3.062504048e-06 | L147: 1.215927896e-05 | N147: -0.0004238884186 | O147: -0.01414688035 | P147: -1.210318368e-05 | Q147: 0.0001097747467 | R147: 3.958379566e-06
A148: 69.89236 | B148: ='DF raw data'!G153 -> -6.2488773e-08 | C148: ='DF raw data'!H153 -> 7.1570716e-06 | D148: ='DF raw data'!I153 -> -1.0394096e-05 | F148: -6.254476294e-08 | G148: 7.180638477e-06 | H148: -1.040340911e-05 | J148: -9.995519969e-06 | K148: 1.057450757e-06 | L148: 1.161777621e-05 | N148: -0.0004288869783 | O148: -0.01436135815 | P148: -1.157437371e-05 | Q148: 0.0001039866339 | R148: 4.050433296e-06
A149: 70.39244 | B149: ='DF raw data'!G154 -> -8.4439228e-07 | C149: ='DF raw data'!H154 -> 2.2872478e-06 | D149: ='DF raw data'!I154 -> -1.2732603e-06 | F149: -8.451488555e-07 | G149: 2.294779273e-06 | H149: -1.274401141e-06 | J149: -1.078720969e-05 | K149: -2.432449206e-06 | L149: 3.513952083e-06 | N149: -0.0004342814461 | O149: -0.01457853361 | P149: -1.279079291e-05 | Q149: 9.759021423e-05 | R149: 4.144830386e-06
A150: 70.89252 | B150: ='DF raw data'!G155 -> -2.80893e-07 | C150: ='DF raw data'!H155 -> -1.255245e-06 | D150: ='DF raw data'!I155 -> 5.2032497e-06 | F150: -2.811446801e-07 | G150: -1.259378283e-06 | H150: 5.207911812e-06 | J150: -8.789947743e-06 | K150: -5.803477431e-06 | L150: -1.029566966e-06 | N150: -0.0004386771231 | O150: -0.01479790727 | P150: -1.56929959e-05 | Q150: 8.974246084e-05 | R150: 4.241187745e-06
A151: 71.3926 | B151: ='DF raw data'!G156 -> -2.8303214e-06 | C151: ='DF raw data'!H156 -> 8.7610015e-06 | D151: ='DF raw data'!I156 -> 5.7482625e-06 | F151: =(1-$G$1*($B$2-$G$2))*B151 -> -2.832857368e-06 | G151: 8.789849814e-06 | H151: 5.753412943e-06 | J151: -6.605686297e-06 | K151: 2.702001377e-06 | L151: 3.173558263e-06 | N151: -0.0004419804947 | O151: -0.01501893288 | P151: -1.434177905e-05 | Q151: 8.257042397e-05 | R151: 4.338979611e-06
A152: 71.89268 | B152: ='DF raw data'!G157 -> -3.8658045e-06 | C152: ='DF raw data'!H157 -> 6.7298383e-06 | D152: ='DF raw data'!I157 -> 1.3972235e-06 | F152: -3.869268261e-06 | G152: 6.751998379e-06 | H152: 1.398475412e-06 | J152: -3.398307558e-06 | K152: 7.011028617e-06 | L152: 8.737134364e-06 | N152: -0.0004436799204 | O152: -0.01524080833 | P152: -1.083570386e-05 | Q152: 7.715170519e-05 | R152: 4.437480011e-06
A153: 72.39276 | B153: ='DF raw data'!G158 -> -1.6296318e-06 | C153: ='DF raw data'!H158 -> 4.3487623e-07 | D153: ='DF raw data'!I158 -> -2.9278505e-07 | F153: -1.63109195e-06 | G153: 4.363081948e-07 | H153: -2.930473854e-07 | J153: -1.121715257e-06 | K153: -5.58005255e-06 | L153: 1.225307092e-05 | N153: -0.0004442408678 | O153: -0.0154629643 | P153: -1.362617654e-05 | Q153: 7.033752682e-05 | R153: 4.536263625e-06
A154: 72.89284 | B154: ='DF raw data'!G159 -> 6.4351923e-07 | C154: ='DF raw data'!H159 -> 1.1397387e-05 | D154: ='DF raw data'!I159 -> 5.999636e-06 | F154: 6.440958232e-07 | G154: 1.143491643e-05 | H154: 6.005011674e-06 | J154: -2.189394541e-06 | K154: -7.477344568e-06 | L154: 9.652006456e-06 | N154: -0.0004453357402 | O154: -0.0156856678 | P154: -1.736544701e-05 | Q154: 6.165341408e-05 | R154: 4.635592255e-06
A155: 73.39292 | B155: ='DF raw data'!G160 -> 5.8126592e-08 | C155: ='DF raw data'!H160 -> 4.3876566e-06 | D155: ='DF raw data'!I160 -> 5.8875589e-06 | F155: 5.817867343e-08 | G155: 4.40210432e-06 | H155: 5.892834153e-06 | J155: -5.627665975e-06 | K155: -7.649896283e-06 | L155: 3.813979266e-06 | N155: -0.0004481500234 | O155: -0.01590977866 | P155: -2.119100714e-05 | Q155: 5.105621523e-05 | R155: 4.736252109e-06
A156: 73.893 | B156: ='DF raw data'!G161 -> -4.7924868e-06 | C156: ='DF raw data'!H161 -> -6.3011944e-06 | D156: ='DF raw data'!I161 -> -2.3698708e-06 | F156: -4.796780868e-06 | G156: -6.321943036e-06 | H156: -2.371994204e-06 | J156: -8.078896711e-06 | K156: -9.325103318e-06 | L156: 2.787262852e-06 | N156: -0.000452190118 | O156: -0.0161359099 | P156: -2.585430481e-05 | Q156: 3.812699448e-05 | R156: 4.838840694e-06
A157: 74.39308 | B157: ='DF raw data'!G162 -> -1.0916282e-05 | C157: ='DF raw data'!H162 -> 5.7360735e-06 | D157: ='DF raw data'!I162 -> -2.922539e-07 | F157: -1.092606299e-05 | G157: 5.754961301e-06 | H157: -2.925157595e-07 | J157: -8.973004615e-06 | K157: -1.288293282e-06 | L157: 6.641932544e-06 | N157: -0.0004566773382 | O157: -0.0163642851 | P157: -2.649855451e-05 | Q157: 2.487559734e-05 | R157: 4.943485617e-06
A158: 74.89316 | B158: ='DF raw data'!G163 -> -1.2887192e-05 | C158: ='DF raw data'!H163 -> 1.3921162e-05 | D158: ='DF raw data'!I163 -> 1.5085675e-06 | F158: -1.289873892e-05 | G158: 1.396700174e-05 | H158: 1.509919176e-06 | J158: -1.062439594e-05 | K158: -7.740255141e-06 | L158: 8.007714189e-06 | N158: -0.0004619903861 | O158: -0.01659531725 | P158: -3.036930131e-05 | Q158: 9.688517142e-06 | R158: 5.050681471e-06
A159: 75.39324 | B159: ='DF raw data'!G164 -> -1.0756949e-05 | C159: ='DF raw data'!H164 -> 1.3351563e-05 | D159: ='DF raw data'!I164 -> -8.6962364e-06 | F159: -1.076658723e-05 | G159: 1.339552716e-05 | H159: -8.704028228e-06 | J159: -1.072146884e-05 | K159: -1.34991954e-05 | L159: 6.617951276e-06 | N159: -0.0004673519783 | O159: -0.01682903063 | P159: -3.711997894e-05 | Q159: -8.874441927e-06 | R159: 5.160596937e-06
A160: 75.89332 | B160: ='DF raw data'!G165 -> -7.9795054e-06 | C160: ='DF raw data'!H165 -> 6.1803871e-06 | D160: ='DF raw data'!I165 -> -2.8692925e-06 | F160: -7.986655037e-06 | G160: 6.200737941e-06 | H160: -2.871863386e-06 | J160: -8.056114417e-06 | K160: -7.72673567e-06 | L160: 1.471042574e-06 | N160: -0.0004713806799 | O160: -0.01706475868 | P160: -4.098396492e-05 | Q160: -2.93697031e-05 | R160: 5.272554563e-06
A161: 76.3934 | B161: ='DF raw data'!G166 -> -3.5589576e-06 | C161: ='DF raw data'!H166 -> 3.6409979e-06 | D161: ='DF raw data'!I166 -> 7.9683714e-06 | F161: -3.562146426e-06 | G161: 3.652987015e-06 | H161: 7.975511061e-06 | J161: -5.599605655e-06 | K161: -8.709990515e-06 | L161: 2.952466942e-07 | N161: -0.0004741809307 | O161: -0.01730188708 | P161: -4.533965697e-05 | Q161: -5.204315876e-05 | R161: 5.386024335e-06
A162: 76.89348 | B162: ='DF raw data'!G167 -> 9.8214048e-07 | C162: ='DF raw data'!H167 -> 3.3365172e-06 | D162: ='DF raw data'!I167 -> 4.9998612e-06 | F162: 9.830204779e-07 | G162: 3.347503717e-06 | H162: 5.004341076e-06 | J162: -4.263420505e-06 | K162: -4.237236724e-06 | L162: 7.588111962e-06 | N162: -0.0004763129821 | O162: -0.01754008168 | P162: -4.745861431e-05 | Q162: -7.577626261e-05 | R162: 5.500605854e-06
A163: 77.39356 | B163: ='DF raw data'!G168 -> 6.6915243e-07 | C163: ='DF raw data'!H168 -> 3.8603534e-06 | D163: ='DF raw data'!I168 -> 4.8703026e-07 | F163: 6.697519906e-07 | G163: 3.873064811e-06 | H163: 4.874666391e-07 | J163: -3.56432888e-06 | K163: 2.380586091e-06 | L163: 6.934232911e-06 | N163: -0.0004780954317 | O163: -0.01777916764 | P163: -4.626813082e-05 | Q163: -9.891402947e-05 | R163: 5.615982302e-06
A164: 77.89364 | B164: ='DF raw data'!G169 -> -1.0452414e-06 | C164: ='DF raw data'!H169 -> -5.2651308e-06 | D164: ='DF raw data'!I169 -> 1.0693788e-07 | F164: -1.046177936e-06 | G164: -5.282467876e-06 | H164: 1.070336963e-07 | J164: -2.635746615e-06 | K164: -2.337404368e-06 | L164: 7.405259873e-06 | N164: -0.0004794135158 | O164: -0.01801891275 | P164: -4.743702e-05 | Q164: -0.0001226363344 | R164: 5.732044664e-06
A165: 78.39372 | B165: ='DF raw data'!G170 -> -2.0328655e-06 | C165: ='DF raw data'!H170 -> -5.5343885e-06 | D165: ='DF raw data'!I170 -> 2.5627191e-06 | F165: -2.034686947e-06 | G165: -5.55261219e-06 | H165: 2.565015296e-06 | J165: -3.694473085e-06 | K165: -1.461845481e-05 | L165: 6.544343683e-06 | N165: -0.0004812610479 | O165: -0.01825958178 | P165: -5.474741688e-05 | Q165: -0.0001500144227 | R165: 5.849368171e-06
A166: 78.8938 | B166: ='DF raw data'!G171 -> -3.6592148e-06 | C166: ='DF raw data'!H171 -> -4.4480888e-07 | D166: ='DF raw data'!I171 -> -5.1325113e-08 | F166: -3.662493456e-06 | G166: -4.462735512e-07 | H166: -5.13711003e-08 | J166: -8.22494135e-06 | K166: -1.808364859e-06 | L166: 8.400865938e-06 | N166: -0.0004853741766 | O166: -0.01850230769 | P166: -5.565174398e-05 | Q166: -0.0001778447468 | R166: 5.968729869e-06
A167: 79.39388 | B167: ='DF raw data'!G172 -> -4.8595712e-06 | C167: ='DF raw data'!H172 -> 1.120632e-05 | D167: ='DF raw data'!I172 -> 9.391328e-07 | F167: -4.863925376e-06 | G167: 1.124322028e-05 | H167: 9.39974263e-07 | J167: -1.217076224e-05 | K167: 1.004605217e-05 | L167: 9.272775069e-06 | N167: -0.0004914605314 | O167: -0.01874807728 | P167: -5.062791421e-05 | Q167: -0.0002031627541 | R167: 6.090797717e-06
A168: 79.89396 | B168: ='DF raw data'!G173 -> -2.9140913e-06 | C168: ='DF raw data'!H173 -> 1.2941541e-05 | D168: ='DF raw data'!I173 -> 1.9657268e-06 | F168: -2.916702326e-06 | G168: 1.298415504e-05 | H168: 1.967488091e-06 | J168: -1.213849335e-05 | K168: -7.076013398e-06 | L168: 7.062732243e-06 | N168: -0.0004975307491 | O168: -0.01899688245 | P168: -5.416648699e-05 | Q168: -0.0002302503309 | R168: 6.216053182e-06
A169: 80.39404 | B169: ='DF raw data'!G174 -> 8.4210012e-07 | C169: ='DF raw data'!H174 -> 2.5474287e-06 | D169: ='DF raw data'!I174 -> 1.9310532e-06 | F169: 8.428546417e-07 | G169: 2.555816899e-06 | H169: 1.932783424e-06 | J169: -8.868782415e-06 | K169: -7.373999589e-06 | L169: 6.951219317e-06 | N169: -0.0005019658498 | O169: -0.01924790554 | P169: -5.78540767e-05 | Q169: -0.0002591819976 | R169: 6.343732011e-06
A170: 80.89412 | B170: ='DF raw data'!G175 -> 1.3670168e-06 | C170: ='DF raw data'!H175 -> -1.2405658e-06 | D170: ='DF raw data'!I175 -> 5.6815074e-06 | F170: 1.368241647e-06 | G170: -1.244650748e-06 | H170: 5.686598031e-06 | J170: -7.237434736e-06 | K170: 6.905274733e-06 | L170: 1.033825979e-05 | N170: -0.0005055851462 | O170: -0.01950073856 | P170: -5.440088691e-05 | Q170: -0.0002863867931 | R170: 6.473040596e-06
A171: 81.3942 | B171: ='DF raw data'!G176 -> -1.4242443e-06 | C171: ='DF raw data'!H176 -> 7.26282e-07 | D171: ='DF raw data'!I176 -> 8.0116324e-06 | F171: -1.425520423e-06 | G171: 7.286735087e-07 | H171: 8.018810823e-06 | J171: -9.012689641e-06 | K171: -2.003674064e-06 | L171: 7.373216988e-06 | N171: -0.000510092212 | O171: -0.01975582547 | P171: -5.540288424e-05 | Q171: -0.0003140926675 | R171: 6.604693429e-06
A172: 81.89428 | B172: ='DF raw data'!G177 -> -6.2812353e-07 | C172: ='DF raw data'!H177 -> 5.3427279e-06 | D172: ='DF raw data'!I177 -> 1.7793095e-06 | F172: -6.286863287e-07 | G172: 5.360320488e-06 | H172: 1.780903761e-06 | J172: -1.126609839e-05 | K172: -6.417254348e-06 | L172: 4.771952642e-06 | N172: -0.0005157261625 | O172: -0.02001372981 | P172: -5.861202479e-05 | Q172: -0.0003434033689 | R172: 6.739419404e-06
A173: 82.39436 | B173: ='DF raw data'!G178 -> 2.0445902e-06 | C173: ='DF raw data'!H178 -> 3.0456463e-06 | D173: ='DF raw data'!I178 -> -9.9320141e-07 | F173: 2.046422153e-06 | G173: 3.055675035e-06 | H173: -9.940913185e-07 | J173: -1.377097675e-05 | K173: -9.934193754e-06 | L173: 5.230453791e-06 | N173: -0.0005226127526 | O173: -0.02027507799 | P173: -6.357991641e-05 | Q173: -0.0003751984135 | R173: 6.878024825e-06
A174: 82.89444 | B174: ='DF raw data'!G179 -> 1.7253556e-07 | C174: ='DF raw data'!H179 -> 5.7249995e-06 | D174: ='DF raw data'!I179 -> 3.5285797e-07 | F174: 1.726901519e-07 | G174: 5.743850836e-06 | H174: 3.531741307e-07 | J174: -1.244514787e-05 | K174: -1.397201118e-05 | L174: 1.870260653e-06 | N174: -0.0005288363221 | O174: -0.02053953846 | P174: -7.056703976e-05 | Q174: -0.0004104875787 | R174: 7.020371378e-06
A175: 83.39452 | B175: ='DF raw data'!G180 -> -4.1816629e-06 | C175: ='DF raw data'!H180 -> 7.5710955e-06 | D175: ='DF raw data'!I180 -> -3.6143651e-06 | F175: -4.18540967e-06 | G175: 7.596025679e-06 | H175: -3.617603571e-06 | J175: -6.837179829e-06 | K175: -8.573847092e-06 | L175: 8.86449758e-06 | N175: -0.000532255459 | O175: -0.02080570877 | P175: -7.485464921e-05 | Q175: -0.0004479208917 | R175: 7.164844036e-06
A176: 83.8946 | B176: ='DF raw data'!G181 -> -5.9072036e-06 | C176: ='DF raw data'!H181 -> 8.7082944e-06 | D176: ='DF raw data'!I181 -> -1.0459776e-06 | F176: -5.912496454e-06 | G176: 8.736969159e-06 | H176: -1.046914796e-06 | J176: -6.067805287e-06 | K176: -2.568056168e-06 | L176: 1.536099813e-05 | N176: -0.0005352898471 | O176: -0.02107339652 | P176: -7.613888274e-05 | Q176: -0.0004859964242 | R176: 7.311033597e-06
A177: 84.39468 | B177: ='DF raw data'!G182 -> -4.7867461e-06 | C177: ='DF raw data'!H182 -> 8.3144178e-06 | D177: ='DF raw data'!I182 -> 2.7925303e-06 | F177: -4.791035025e-06 | G177: 8.341795599e-06 | H177: 2.795032407e-06 | J177: -1.18159376e-05 | K177: -6.28198379e-07 | L177: 7.644402353e-06 | N177: -0.0005411987612 | O177: -0.0213440392 | P177: -7.645303219e-05 | Q177: -0.0005242290565 | R177: 7.460428079e-06
A178: 84.89476 | B178: ='DF raw data'!G183 -> -4.1918092e-06 | C178: ='DF raw data'!H183 -> 1.2802509e-05 | D178: ='DF raw data'!I183 -> 2.6866396e-06 | F178: -4.195565061e-06 | G178: 1.284466523e-05 | H178: 2.689046829e-06 | J178: -1.683645296e-05 | K178: 4.187737969e-07 | L178: 4.204003215e-06 | N178: -0.0005496183345 | O178: -0.02161889233 | P178: -7.624361179e-05 | Q178: -0.0005623569619 | R178: 7.614399412e-06
A179: 85.39484 | B179: ='DF raw data'!G184 -> -3.3755307e-06 | C179: ='DF raw data'!H184 -> 1.6169812e-05 | D179: ='DF raw data'!I184 -> 1.321619e-06 | F179: -3.378555176e-06 | G179: 1.622305612e-05 | H179: 1.322803171e-06 | J179: -1.832676608e-05 | K179: 4.730345107e-06 | L179: 5.506233869e-06 | N179: -0.0005587831837 | O179: -0.02189832863 | P179: -7.387806081e-05 | Q179: -0.0005993019025 | R179: 7.773273135e-06
A180: 85.89492 | B180: ='DF raw data'!G185 -> -1.774678e-06 | C180: ='DF raw data'!H185 -> 1.1623014e-05 | D180: ='DF raw data'!I185 -> 5.2690716e-06 | F180: -1.776268111e-06 | G180: 1.166128638e-05 | H180: 5.273792688e-06 | J180: -1.836905794e-05 | K180: -5.163059477e-06 | L180: 4.794000379e-06 | N180: -0.0005679691822 | O180: -0.02218235866 | P180: -7.646000359e-05 | Q180: -0.0006375380211 | R180: 7.937516971e-06
A181: 86.395 | B181: ='DF raw data'!G186 -> -1.2968859e-06 | C181: ='DF raw data'!H186 -> 1.6041322e-05 | D181: ='DF raw data'!I186 -> 9.7236689e-06 | F181: -1.29804791e-06 | G181: 1.609414303e-05 | H181: 9.732381307e-06 | J181: -1.706908221e-05 | K181: -6.46183135e-06 | L181: 1.30164493e-06 | N181: -0.0005765050889 | O181: -0.02247065732 | P181: -7.969143621e-05 | Q181: -0.0006773901145 | R181: 8.106898489e-06
A182: 86.89508 | B182: ='DF raw data'!G187 -> -9.3336814e-07 | C182: ='DF raw data'!H187 -> 1.3620817e-05 | D182: ='DF raw data'!I187 -> -1.8769475e-07 | F182: -9.342044379e-07 | G182: 1.366566776e-05 | H182: -1.878629245e-07 | J182: -1.396432283e-05 | K182: -4.086570838e-07 | L182: 1.268738972e-06 | N182: -0.0005834883674 | O182: -0.02276244818 | P182: -7.989579745e-05 | Q182: -0.0007173444049 | R182: 8.280347243e-06
A183: 87.39516 | B183: ='DF raw data'!G188 -> -9.9801703e-08 | C183: ='DF raw data'!H188 -> 1.0556664e-05 | D183: ='DF raw data'!I188 -> -5.3140216e-06 | F183: -9.989112533e-08 | G183: 1.059142509e-05 | H183: -5.318782963e-06 | J183: -9.013958577e-06 | K183: -9.528048284e-06 | L183: 6.834113384e-06 | N183: -0.0005879960678 | O183: -0.02305649326 | P183: -8.466058383e-05 | Q183: -0.0007596814697 | R183: 8.456828871e-06
A184: 87.89524 | B184: ='DF raw data'!G189 -> 7.0940121e-07 | C184: ='DF raw data'!H189 -> 1.7140494e-05 | D184: ='DF raw data'!I189 -> -3.1742425e-06 | F184: 7.100368335e-07 | G184: 1.719693439e-05 | H184: -3.177086621e-06 | J184: -5.296893168e-06 | K184: -8.198748217e-06 | L184: 5.677900044e-06 | N184: -0.0005906449382 | O184: -0.02335186298 | P184: -8.876061384e-05 | Q184: -0.0008040688775 | R184: 8.635227355e-06
A185: 88.39532 | B185: ='DF raw data'!G190 -> 3.0537083e-06 | C185: ='DF raw data'!H190 -> 1.6696715e-05 | D185: ='DF raw data'!I190 -> -1.143279e-06 | F185: 3.056444423e-06 | G185: 1.675169411e-05 | H185: -1.144303378e-06 | J185: -6.998057046e-06 | K185: -9.609165009e-06 | L185: 5.043403344e-06 | N185: -0.0005941445265 | O185: -0.02364898277 | P185: -9.356596508e-05 | Q185: -0.0008508593453 | R185: 8.81613745e-06
A186: 88.8954 | B186: ='DF raw data'!G191 -> 4.5379493e-06 | C186: ='DF raw data'!H191 -> 1.7270318e-05 | D186: ='DF raw data'!I191 -> 4.5186748e-06 | F186: 4.542015303e-06 | G186: 1.732718588e-05 | H186: 4.522723533e-06 | J186: -1.000761249e-05 | K186: -1.117192329e-05 | L186: 7.799213239e-06 | N186: -0.0005991491334 | O186: -0.02394860527 | P186: -9.915282047e-05 | Q186: -0.0009004436877 | R186: 9.000572438e-06
A187: 89.39548 | B187: ='DF raw data'!G192 -> 4.8626853e-06 | C187: ='DF raw data'!H192 -> 8.4885423e-06 | D187: ='DF raw data'!I192 -> 1.5090986e-06 | F187: 4.867042266e-06 | G187: 8.516493458e-06 | H187: 1.510450752e-06 | J187: -9.43980049e-06 | K187: -4.461599583e-06 | L187: 1.047155411e-05 | N187: -0.0006038697888 | O187: -0.02425058847 | P187: -0.0001013839772 | Q187: -0.0009511437871 | R187: 9.188071149e-06
A188: 89.89556 | B188: ='DF raw data'!G193 -> 4.6981477e-06 | C188: ='DF raw data'!H193 -> 2.6170778e-06 | D188: ='DF raw data'!I193 -> -5.6306858e-06 | F188: 4.70235724e-06 | G188: 2.62569534e-06 | H188: -5.635730894e-06 | J188: -5.609627327e-06 | K188: -1.352014215e-06 | L188: 8.399733524e-06 | N188: -0.0006066750512 | O188: -0.02455397453 | P188: -0.0001020600925 | Q188: -0.001002181998 | R188: 9.377336867e-06
A189: 90.39564 | B189: ='DF raw data'!G194 -> 2.4341405e-06 | C189: ='DF raw data'!H194 -> 1.0073388e-05 | D189: ='DF raw data'!I194 -> -6.3046141e-06 | F189: 2.43632149e-06 | G189: 1.010655775e-05 | H189: -6.310263034e-06 | J189: -1.774843236e-06 | K189: -7.058741812e-06 | L189: 1.059538897e-05 | N189: -0.0006075626149 | O189: -0.02485780445 | P189: -0.0001055900281 | Q189: -0.001054985459 | R189: 9.567508082e-06
A190: 90.89572 | B190: ='DF raw data'!G195 -> 4.1306397e-08 | C190: ='DF raw data'!H195 -> -7.632797e-06 | D190: ='DF raw data'!I195 -> -8.0435393e-06 | F190: 4.134340753e-08 | G190: -7.657930351e-06 | H190: -8.050746311e-06 | J190: -1.857686897e-06 | K190: -8.440112676e-06 | L190: 1.268938951e-05 | N190: -0.0006084916069 | O190: -0.02516209893 | P190: -0.0001098107596 | Q190: -0.001109899624 | R190: 9.758698887e-06
A191: 91.3958 | B191: ='DF raw data'!G196 -> -1.3907367e-06 | C191: ='DF raw data'!H196 -> -5.7857656e-06 | D191: ='DF raw data'!I196 -> -2.0800294e-06 | F191: -1.3919828e-06 | G191: -5.804817027e-06 | H191: -2.081893106e-06 | J191: -7.486031179e-06 | K191: -9.065671662e-06 | L191: 7.612894247e-06 | N191: -0.0006122352214 | O191: -0.02546826552 | P191: -0.0001143443207 | Q191: -0.001167080932 | R191: 9.952683215e-06
A192: 91.89588 | B192: ='DF raw data'!G197 -> -1.9068422e-06 | C192: ='DF raw data'!H197 -> 1.1818082e-05 | D192: ='DF raw data'!I197 -> 6.6987209e-06 | F192: -1.908550731e-06 | G192: 1.18569967e-05 | H192: 6.704722954e-06 | J192: -1.285241746e-05 | K192: -1.157258727e-05 | L192: 1.845744206e-06 | N192: -0.0006186624583 | O192: -0.02577764624 | P192: -0.0001201315401 | Q192: -0.001227156312 | R192: 1.01513024e-05
A193: 92.39596 | B193: ='DF raw data'!G198 -> -1.3257626e-07 | C193: ='DF raw data'!H198 -> 1.9936462e-05 | D193: ='DF raw data'!I198 -> 1.1943314e-05 | F193: -1.326950483e-07 | G193: 2.000210898e-05 | H193: 1.195401521e-05 | J193: -1.438762677e-05 | K193: -1.82649737e-05 | L193: 7.607426152e-07 | N193: -0.0006258574227 | O193: -0.02609062502 | P193: -0.0001292654882 | Q193: -0.001291799398 | R193: 1.035553861e-05
A194: 92.89604 | B194: ='DF raw data'!G199 -> 3.7477027e-06 | C194: ='DF raw data'!H199 -> 9.8978007e-06 | D194: ='DF raw data'!I199 -> 5.867128e-06 | F194: 3.751060642e-06 | G194: 9.930392278e-06 | H194: 5.872384947e-06 | J194: -1.085923016e-05 | K194: -6.000392707e-06 | L194: 4.373204283e-06 | N194: -0.0006312879065 | O194: -0.02640631948 | P194: -0.0001322661646 | Q194: -0.001357943061 | R194: 1.056358127e-05
A195: 93.39612 | B195: ='DF raw data'!G200 -> 6.3374473e-06 | C195: ='DF raw data'!H200 -> 6.6581883e-06 | D195: ='DF raw data'!I200 -> -2.3249454e-06 | F195: 6.343125653e-06 | G195: 6.680112449e-06 | H195: -2.327028551e-06 | J195: -3.918151021e-06 | K195: 5.079277003e-07 | L195: 8.087781365e-06 | N195: -0.0006332472955 | O195: -0.02672299379 | P195: -0.0001320121601 | Q195: -0.001423959702 | R195: 1.077282942e-05
A196: 93.8962 | B196: ='DF raw data'!G201 -> 5.709936e-06 | C196: ='DF raw data'!H201 -> 9.1676875e-06 | D196: ='DF raw data'!I201 -> -8.7885979e-07 | F196: 5.715052103e-06 | G196: 9.197874954e-06 | H196: -8.796472484e-07 | J196: 1.807535402e-06 | K196: -3.867499545e-06 | L196: 7.453353326e-06 | N196: -0.0006323433832 | O196: -0.02703921606 | P196: -0.0001339462193 | Q196: -0.001490943528 | R196: 1.098176272e-05
A197: 94.39628 | B197: ='DF raw data'!G202 -> 2.4123799e-06 | C197: ='DF raw data'!H202 -> 6.5248928e-06 | D197: ='DF raw data'!I202 -> -9.6078702e-07 | F197: 2.414541392e-06 | G197: 6.546378033e-06 | H197: -9.616478852e-07 | J197: 3.115393794e-06 | K197: -2.889069936e-06 | L197: 7.133810272e-07 | N197: -0.0006307854371 | O197: -0.02735465925 | P197: -0.0001353909854 | Q197: -0.001558649852 | R197: 1.118990651e-05
A198: 94.89636 | B198: ='DF raw data'!G203 -> -1.4476055e-06 | C198: ='DF raw data'!H203 -> 1.2398624e-05 | D198: ='DF raw data'!I203 -> -1.0135668e-06 | F198: -1.448902555e-06 | G198: 1.243945031e-05 | H198: -1.014474956e-06 | J198: -1.061387252e-06 | K198: -1.838599188e-05 | L198: -3.828142745e-06 | N198: -0.0006313162156 | O198: -0.02767036786 | P198: -0.0001445854522 | Q198: -0.001630954145 | R198: 1.139967263e-05
A199: 95.39644 | B199: ='DF raw data'!G204 -> -2.4774174e-06 | C199: ='DF raw data'!H204 -> 4.5583106e-06 | D199: ='DF raw data'!I204 -> -3.098769e-06 | F199: -2.479637166e-06 | G199: =(1-$G$1*($B$2-$G$2))*C199*$M$2/$M$1 -> 4.573320251e-06 | H199: -3.101545497e-06 | J199: =-CELL("contents", INDEX($F$6:$F$1203,1204-CELL("row",F199))) -> -6.757677058e-06 | K199: =CELL("contents", INDEX($G$6:$G$1203,1204-CELL("row",G199))) -> -1.70609842e-05 | L199: =-CELL("contents", INDEX($H$6:$H$1203,1204-CELL("row",H199))) -> -6.072558442e-06 | N199: -0.0006346955947 | O199: -0.02798776643 | P199: -0.0001531173092 | Q199: -0.001707525049 | R199: 1.161284843e-05
A200: =A199+$B$1 -> 95.89652 | B200: ='DF raw data'!G205 -> -1.2677166e-06 | C200: ='DF raw data'!H205 -> 2.413602e-06 | D200: ='DF raw data'!I205 -> -2.9361804e-06 | F200: -1.268852474e-06 | G200: 2.421549533e-06 | H200: -2.938811218e-06 | J200: -1.181353245e-05 | K200: -3.902973571e-06 | L200: -2.318959027e-09 | N200: =J200*$B$1+N199 -> -0.000640603306 | O200: =N200*$B$1+O199 -> -0.02830811933 | P200: =K200*$B$1+P199 -> -0.0001550691082 | Q200: =P200*$B$1+Q199 -> -0.001785072008 | R200: =(N200^2+P200^2)*$B$1+R199 -> 1.18300927e-05
... 1003 more rows

Sheet 10 y=0.1
A1: dz | B1: ='DF raw data'!K7 -> 0.50008 | C1: mm | F1: T_coeff | G1: -0.0008 | H1: /degC | L1: Hallref | M1: ='PI vs y'!B44 -> 0.50529 | N1: T | P1: IBy total | Q1: =P1203*1000 -> -12.35898855 | R1: muTm
A2: Tref | B2: ='DF raw data'!K8 -> 21.11 | C2: degC | F2: Tcorr | G2: 20 | H2: degC | L2: NMRref | M2: ='PI vs y'!B45 -> 0.5065 | N2: T | P2: JBy total | Q2: =Q1203 -> -8.38405673 | R2: muTm^2
A3: Encoder | B3: ='DF raw data'!K9 -> 390667 | P3: PI total | Q3: =R1203 -> 4519.00061 | R3: T^2mm^3
J4: SXR-rotation
A5: z [mm] | B5: Bx | C5: By | D5: Bz | F5: Bx_corr | G5: By_corr | H5: Bz_corr | J5: Bx_rot | K5: By_rot | L5: Bz_rot | N5: Ix | O5: Jx | P5: Iy | Q5: Jy | R5: PI
A6: ='PI vs y'!B53 -> -1.119 | B6: ='DF raw data'!J11 -> -7.0145725e-06 | C6: ='DF raw data'!K11 -> -1.2317972e-06 | D6: ='DF raw data'!L11 -> 8.5874663e-06 | F6: =(1-$G$1*($B$2-$G$2))*B6 -> -7.02080144e-06 | G6: =(1-$G$1*($B$2-$G$2))*C6*$M$2/$M$1 -> -1.235843396e-06 | H6: =(1-$G$1*($B$2-$G$2))*D6 -> 8.59509197e-06 | J6: =-CELL("contents", INDEX($F$6:$F$1203,1204-CELL("row",F6))) -> -8.849007147e-06 | K6: =CELL("contents", INDEX($G$6:$G$1203,1204-CELL("row",G6))) -> -1.194561036e-05 | L6: =-CELL("contents", INDEX($H$6:$H$1203,1204-CELL("row",H6))) -> -2.351105629e-06 | N6: =J6*$B$1 -> -4.425211494e-06 | O6: =N6*$B$1 -> -2.212959764e-06 | P6: =K6*$B$1 -> -5.97376083e-06 | Q6: =P6*$B$1 -> -2.987358316e-06 | R6: =(N6^2+P6^2)*$B$1 -> 2.763857908e-11
A7: =A6+$B$1 -> -0.61892 | B7: ='DF raw data'!J12 -> -6.6595312e-06 | C7: ='DF raw data'!K12 -> -1.2084091e-05 | D7: ='DF raw data'!L12 -> 1.1023973e-06 | F7: =(1-$G$1*($B$2-$G$2))*B7 -> -6.665444864e-06 | G7: =(1-$G$1*($B$2-$G$2))*C7*$M$2/$M$1 -> -1.212378471e-05 | H7: 1.103376229e-06 | J7: =-CELL("contents", INDEX($F$6:$F$1203,1204-CELL("row",F7))) -> -8.042959912e-06 | K7: =CELL("contents", INDEX($G$6:$G$1203,1204-CELL("row",G7))) -> -9.913402842e-06 | L7: =-CELL("contents", INDEX($H$6:$H$1203,1204-CELL("row",H7))) -> -2.431306885e-06 | N7: =J7*$B$1+N6 -> -8.447334887e-06 | O7: =N7*$B$1+O6 -> -6.437302994e-06 | P7: =K7*$B$1+P6 -> -1.093125532e-05 | Q7: =P7*$B$1+Q6 -> -8.453860478e-06 | R7: =(N7^2+P7^2)*$B$1+R6 -> 1.230787519e-10
A8: =A7+$B$1 -> -0.11884 | B8: ='DF raw data'!J13 -> -7.0252518e-06 | C8: ='DF raw data'!K13 -> -3.310189e-06 | D8: ='DF raw data'!L13 -> -6.8394343e-06 | F8: -7.031490224e-06 | G8: -3.321062279e-06 | H8: -6.845507718e-06 | J8: -6.869464572e-06 | K8: 8.306757125e-06 | L8: -2.029430335e-06 | N8: =J8*$B$1+N7 -> -1.188261673e-05 | O8: =N8*$B$1+O7 -> -1.237956197e-05 | P8: =K8*$B$1+P7 -> -6.77721222e-06 | Q8: =P8*$B$1+Q7 -> -1.184300877e-05 | R8: =(N8^2+P8^2)*$B$1+R7 -> 2.16657315e-10
A9: 0.38124 | B9: ='DF raw data'!J14 -> -7.0847927e-06 | C9: ='DF raw data'!K14 -> -6.9835306e-07 | D9: ='DF raw data'!L14 -> -9.7768623e-07 | F9: -7.091083996e-06 | G9: -7.006470038e-07 | H9: -9.785544154e-07 | J9: -6.853296728e-06 | K9: 8.862166756e-06 | L9: -1.101642991e-06 | N9: -1.530981336e-05 | O9: -2.003569343e-05 | P9: -2.345419869e-06 | Q9: -1.301590633e-05 | R9: 3.36622196e-10
A10: 0.88132 | B10: ='DF raw data'!J15 -> -7.2383173e-06 | C10: ='DF raw data'!K15 -> 3.4856573e-06 | D10: ='DF raw data'!L15 -> -6.4278481e-07 | F10: -7.244744926e-06 | G10: 3.497106955e-06 | H10: -6.433556029e-07 | J10: -6.827040834e-06 | K10: 7.823367791e-06 | L10: -1.775185967e-07 | N10: -1.872387994e-05 | O10: -2.939913131e-05 | P10: 1.566889896e-06 | Q10: -1.223233603e-05 | R10: 5.13169851e-10
A11: 1.3814 | B11: ='DF raw data'!J16 -> -6.9578346e-06 | C11: ='DF raw data'!K16 -> -4.1631934e-06 | D11: ='DF raw data'!L16 -> -5.3603196e-07 | F11: -6.964013157e-06 | G11: -4.17686862e-06 | H11: -5.365079564e-07 | J11: -9.206299841e-06 | K11: 1.454970827e-05 | L11: 7.697893164e-07 | N11: -2.332776636e-05 | O11: -4.106488071e-05 | P11: 8.84290801e-06 | Q11: -7.810174596e-06 | R11: 8.244104943e-10
A12: 1.88148 | B12: ='DF raw data'!J17 -> -7.1681625e-06 | C12: ='DF raw data'!K17 -> 1.4849144e-06 | D12: ='DF raw data'!L17 -> -1.0964189e-06 | F12: -7.174527828e-06 | G12: 1.489792033e-06 | H12: -1.09739252e-06 | J12: -1.234751186e-05 | K12: 3.877148325e-06 | L12: 1.434455667e-06 | N12: -2.950251009e-05 | O12: -5.581849596e-05 | P12: 1.078179234e-05 | Q12: -2.418415881e-06 | R12: 1.317812e-09
A13: 2.38156 | B13: ='DF raw data'!J18 -> -7.2372477e-06 | C13: ='DF raw data'!K18 -> 2.7397989e-06 | D13: ='DF raw data'!L18 -> -4.9049754e-06 | F13: -7.243674376e-06 | G13: 2.748798567e-06 | H13: -4.909331018e-06 | J13: -9.352811228e-06 | K13: 9.906333797e-08 | L13: 1.284175636e-06 | N13: -3.417966393e-05 | O13: -7.29110623e-05 | P13: 1.083133194e-05 | Q13: 2.998116595e-06 | R13: 1.960698434e-09
A14: 2.88164 | B14: ='DF raw data'!J19 -> -6.9333382e-06 | C14: ='DF raw data'!K19 -> -5.3789768e-06 | D14: ='DF raw data'!L19 -> -4.1140461e-06 | F14: -6.939495004e-06 | G14: -5.396645614e-06 | H14: -4.117699373e-06 | J14: -1.146423421e-05 | K14: -5.458497319e-06 | L14: 5.084633649e-07 | N14: -3.991269818e-05 | O14: -9.287060441e-05 | P14: 8.101646599e-06 | Q14: 7.049588026e-06 | R14: 2.790161204e-09
A15: 3.38172 | B15: ='DF raw data'!J20 -> -7.3975807e-06 | C15: ='DF raw data'!K20 -> 6.5834324e-06 | D15: ='DF raw data'!L20 -> -8.3673158e-06 | F15: -7.404149752e-06 | G15: 6.605057599e-06 | H15: -8.374745976e-06 | J15: -1.594369044e-05 | K15: -3.69749403e-06 | L15: 2.745235206e-08 | N15: -4.788581889e-05 | O15: -0.0001168173447 | P15: 6.252603784e-06 | Q15: 1.017639013e-05 | R15: 3.956421128e-09
A16: 3.8818 | B16: ='DF raw data'!J21 -> -7.4482432e-06 | C16: ='DF raw data'!K21 -> 7.4221575e-06 | D16: ='DF raw data'!L21 -> -1.1285248e-05 | F16: -7.45485724e-06 | G16: 7.446537736e-06 | H16: -1.12952693e-05 | J16: -1.293836708e-05 | K16: 2.631665067e-06 | L16: -3.066140317e-07 | N16: -5.43560375e-05 | O16: -0.0001439997119 | P16: 7.568646851e-06 | Q16: 1.396131904e-05 | R16: 5.462593691e-09
A17: 4.38188 | B17: ='DF raw data'!J22 -> -7.1388604e-06 | C17: ='DF raw data'!K22 -> -4.6645738e-07 | D17: ='DF raw data'!L22 -> -7.7271989e-06 | F17: -7.145199708e-06 | G17: -4.67989595e-07 | H17: -7.734060653e-06 | J17: -1.427621203e-05 | K17: -1.316178115e-05 | L17: -1.00698611e-06 | N17: -6.149528561e-05 | O17: -0.0001747522744 | P17: 9.867033336e-07 | Q17: 1.445474965e-05 | R17: 7.35421817e-09
A18: 4.88196 | B18: ='DF raw data'!J23 -> -7.3204847e-06 | C18: ='DF raw data'!K23 -> 6.3399279e-06 | D18: ='DF raw data'!L23 -> 3.5216349e-06 | F18: -7.32698529e-06 | G18: 6.360753238e-06 | H18: 3.524762112e-06 | J18: -1.748864314e-05 | K18: 1.245698863e-05 | L18: -6.503369368e-07 | N18: -7.024100627e-05 | O18: -0.0002098783968 | P18: 7.21619421e-06 | Q18: 1.806342405e-05 | R18: 9.84755325e-09
A19: 5.38204 | B19: ='DF raw data'!J24 -> -7.0646347e-06 | C19: ='DF raw data'!K24 -> -4.6298675e-07 | D19: ='DF raw data'!L24 -> 4.9895521e-06 | F19: -7.070908096e-06 | G19: -4.645075647e-07 | H19: 4.993982822e-06 | J19: -1.513644123e-05 | K19: 7.066361224e-06 | L19: 6.375624431e-07 | N19: -7.78104378e-05 | O19: -0.0002487898405 | P19: 1.074994013e-05 | Q19: 2.343925411e-05 | R19: 1.293305957e-08
A20: 5.88212 | B20: ='DF raw data'!J25 -> -7.0325277e-06 | C20: ='DF raw data'!K25 -> -7.8614841e-07 | D20: ='DF raw data'!L25 -> 8.4590165e-06 | F20: -7.038772585e-06 | G20: -7.887307432e-07 | H20: 8.466528107e-06 | J20: -1.24932882e-05 | K20: -5.176978215e-06 | L20: 1.030976895e-06 | N20: -8.405808136e-05 | O20: -0.0002908256059 | P20: 8.161036865e-06 | Q20: 2.752042542e-05 | R20: 1.649981195e-08
A21: 6.3822 | B21: ='DF raw data'!J26 -> -6.4869182e-06 | C21: ='DF raw data'!K26 -> -1.692323e-05 | D21: ='DF raw data'!L26 -> 3.3502747e-07 | F21: -6.492678583e-06 | G21: -1.697881927e-05 | H21: 3.353249744e-07 | J21: -6.183005538e-06 | K21: -4.643117736e-06 | L21: 2.255596292e-07 | N21: -8.715007877e-05 | O21: -0.0003344076172 | P21: 5.839106547e-06 | Q21: 3.044044583e-05 | R21: 2.031503798e-08
A22: 6.88228 | B22: ='DF raw data'!J27 -> -2.4521141e-06 | C22: ='DF raw data'!K27 -> -8.5589481e-06 | D22: ='DF raw data'!L27 -> 2.7466144e-06 | F22: -2.454291577e-06 | G22: -8.587062455e-06 | H22: 2.749053394e-06 | J22: -1.66486639e-06 | K22: -2.199807751e-06 | L22: -2.495926917e-07 | N22: -8.798264516e-05 | O22: -0.0003784059784 | P22: 4.739026687e-06 | Q22: 3.281033829e-05 | R22: 2.419736117e-08
A23: 7.38236 | B23: ='DF raw data'!J28 -> 5.0252238e-06 | C23: ='DF raw data'!K28 -> -8.5299627e-07 | D23: ='DF raw data'!L28 -> -3.0744718e-06 | F23: =(1-$G$1*($B$2-$G$2))*B23 -> 5.029686199e-06 | G23: -8.557981844e-07 | H23: -3.077201931e-06 | J23: -2.102263153e-06 | K23: 1.383100923e-06 | L23: 5.335123086e-06 | N23: -8.903394491e-05 | O23: -0.0004229300736 | P23: 5.430687797e-06 | Q23: 3.552611664e-05 | R23: 2.817626555e-08
A24: 7.88244 | B24: ='DF raw data'!J29 -> 2.186971e-06 | C24: ='DF raw data'!K29 -> -3.478842e-06 | D24: ='DF raw data'!L29 -> -1.4056958e-05 | F24: 2.18891303e-06 | G24: -3.490269269e-06 | H24: -1.406944058e-05 | J24: 2.077820367e-07 | K24: -3.74608552e-06 | L24: 1.008037543e-05 | N24: -8.893003727e-05 | O24: -0.0004674022066 | P24: 3.55734535e-06 | Q24: 3.730507391e-05 | R24: 3.213750236e-08
A25: 8.38252 | B25: ='DF raw data'!J30 -> -3.6306428e-06 | C25: ='DF raw data'!K30 -> 2.3531254e-06 | D25: ='DF raw data'!L30 -> -8.1638618e-06 | F25: -3.633866811e-06 | G25: 2.360854925e-06 | H25: -8.171111309e-06 | J25: -8.205373607e-07 | K25: -5.849244038e-06 | L25: 1.122072616e-05 | N25: -8.93403716e-05 | O25: -0.0005120795397 | P25: 6.322553912e-07 | Q25: 3.762125218e-05 | R25: 3.61291918e-08
A26: 8.8826 | B26: ='DF raw data'!J31 -> -1.1159919e-06 | C26: ='DF raw data'!K31 -> -6.4778516e-07 | D26: ='DF raw data'!L31 -> 1.9460335e-06 | F26: -1.116982901e-06 | G26: -6.499129988e-07 | H26: 1.947761578e-06 | J26: -5.126425827e-06 | K26: -6.571046646e-06 | L26: 2.330000305e-06 | N26: -9.190399462e-05 | O26: -0.0005580388893 | P26: -2.653793615e-06 | Q26: 3.629414307e-05 | R26: 4.03565615e-08
A27: 9.38268 | B27: ='DF raw data'!J32 -> 7.6934697e-07 | C27: ='DF raw data'!K32 -> 5.7654387e-07 | D27: ='DF raw data'!L32 -> 3.0419819e-06 | F27: 7.700301501e-07 | G27: 5.784376961e-07 | H27: 3.04468318e-06 | J27: -8.125802811e-06 | K27: -1.328587143e-05 | L27: 5.532494897e-06 | N27: -9.596754609e-05 | O27: -0.0006060303398 | P27: -9.297792198e-06 | Q27: 3.164450315e-05 | R27: 4.500541461e-08
A28: 9.88276 | B28: ='DF raw data'!J33 -> -4.4532626e-06 | C28: ='DF raw data'!K33 -> -2.6511946e-06 | D28: ='DF raw data'!L33 -> 5.4147915e-07 | F28: -4.457217097e-06 | G28: -2.65990322e-06 | H28: 5.419599835e-07 | J28: -1.57744653e-05 | K28: 8.124432187e-06 | L28: -1.380752621e-06 | N28: -0.0001038560407 | O28: -0.0006579666686 | P28: -5.234926151e-06 | Q28: 2.902662128e-05 | R28: 5.041302051e-08
A29: 10.38284 | B29: ='DF raw data'!J34 -> -8.7947792e-06 | C29: ='DF raw data'!K34 -> -1.7349666e-05 | D29: ='DF raw data'!L34 -> -9.3142933e-07 | F29: -8.802588964e-06 | G29: -1.740665603e-05 | H29: -9.322564392e-07 | J29: -2.508472647e-05 | K29: 6.660879662e-06 | L29: -3.525770206e-07 | N29: -0.0001164004107 | O29: -0.000716176186 | P29: -1.903953449e-06 | Q29: 2.807449224e-05 | R29: 5.719044506e-08
A30: 10.88292 | B30: ='DF raw data'!J35 -> -7.9200945e-06 | C30: ='DF raw data'!K35 -> -7.5663843e-06 | D30: ='DF raw data'!L35 -> 2.94348e-06 | F30: -7.927127544e-06 | G30: -7.59123829e-06 | H30: 2.94609381e-06 | J30: -2.109497672e-05 | K30: 3.34945273e-06 | L30: 9.35968943e-06 | N30: -0.0001269495867 | O30: -0.0007796611353 | P30: -2.289591277e-07 | Q30: 2.795999436e-05 | R30: 6.524985934e-08
A31: 11.383 | B31: ='DF raw data'!J36 -> -1.3020218e-06 | C31: ='DF raw data'!K36 -> 9.8763178e-07 | D31: ='DF raw data'!L36 -> -2.6694884e-06 | F31: -1.303177995e-06 | G31: 9.908759439e-07 | H31: -2.671858906e-06 | J31: -1.183248292e-05 | K31: 2.361526524e-06 | L31: -3.829696653e-08 | N31: -0.0001328667747 | O31: -0.000846105152 | P31: 9.519930563e-07 | Q31: 2.843606705e-05 | R31: 7.407851476e-08
A32: 11.88308 | B32: ='DF raw data'!J37 -> 1.9144336e-06 | C32: ='DF raw data'!K37 -> -3.7821221e-06 | D32: ='DF raw data'!L37 -> 1.4443491e-06 | F32: 1.916133617e-06 | G32: -3.79454558e-06 | H32: 1.445631682e-06 | J32: -1.286995538e-05 | K32: 6.12903388e-06 | L32: 8.428169775e-06 | N32: -0.000139302782 | O32: -0.0009157676872 | P32: 4.017000319e-06 | Q32: 3.044488857e-05 | R32: 8.379076916e-08
A33: 12.38316 | B33: ='DF raw data'!J38 -> 1.4614724e-06 | C33: ='DF raw data'!K38 -> 4.1426506e-06 | D33: ='DF raw data'!L38 -> 7.6796687e-06 | F33: 1.462770187e-06 | G33: 4.156258341e-06 | H33: 7.686488246e-06 | J33: -1.432725431e-05 | K33: 6.287397067e-06 | L33: 1.437346331e-05 | N33: -0.0001464675554 | O33: -0.0009890131823 | P33: 7.161201844e-06 | Q33: 3.402606238e-05 | R33: 9.454450327e-08
A34: 12.88324 | B34: ='DF raw data'!J39 -> 4.8562815e-06 | C34: ='DF raw data'!K39 -> -1.0425195e-05 | D34: ='DF raw data'!L39 -> 6.1387423e-06 | F34: 4.860593878e-06 | G34: -1.045943959e-05 | H34: 6.144193503e-06 | J34: -1.199355883e-05 | K34: -7.927456581e-07 | L34: 1.160188834e-05 | N34: -0.0001524652943 | O34: -0.001065258027 | P34: 6.764765595e-06 | Q34: 3.740898636e-05 | R34: 1.061920806e-07
A35: 13.38332 | B35: ='DF raw data'!J40 -> 2.0503358e-06 | C35: ='DF raw data'!K40 -> -3.9402362e-06 | D35: ='DF raw data'!L40 -> 2.2671579e-06 | F35: 2.052156498e-06 | G35: -3.953179052e-06 | H35: 2.269171136e-06 | J35: -1.229907589e-05 | K35: -7.095534137e-06 | L35: 4.737800935e-06 | N35: -0.0001586158161 | O35: -0.001144578624 | P35: 3.216430884e-06 | Q35: 3.901745912e-05 | R35: 1.187787554e-07
A36: 13.8834 | B36: ='DF raw data'!J41 -> -1.5079441e-06 | C36: ='DF raw data'!K41 -> -1.5311969e-05 | D36: ='DF raw data'!L41 -> -2.489794e-06 | F36: -1.509283154e-06 | G36: -1.536226562e-05 | H36: -2.492004937e-06 | J36: -1.079327392e-05 | K36: -1.389921554e-06 | L36: -3.417047846e-06 | N36: -0.0001640133166 | O36: -0.001226598403 | P36: 2.521358914e-06 | Q36: 4.027834028e-05 | R36: 1.322342706e-07
A37: 14.38348 | B37: ='DF raw data'!J42 -> 5.787096e-07 | C37: ='DF raw data'!K42 -> -6.9861121e-06 | D37: ='DF raw data'!L42 -> -1.8646509e-06 | F37: 5.792234941e-07 | G37: -7.009060018e-06 | H37: -1.86630671e-06 | J37: -7.151798463e-06 | K37: -1.642792262e-06 | L37: 3.369966075e-06 | N37: -0.0001675897879 | O37: -0.001310406704 | P37: 1.699831359e-06 | Q37: 4.112839195e-05 | R37: 1.462811309e-07
A38: 14.88356 | B38: ='DF raw data'!J43 -> -1.6694777e-06 | C38: ='DF raw data'!K43 -> -4.814022e-07 | D38: ='DF raw data'!L43 -> 7.8563689e-06 | F38: -1.670960196e-06 | G38: -4.829835056e-07 | H38: 7.863345356e-06 | J38: -6.898058942e-06 | K38: -2.431125694e-06 | L38: 1.142820324e-06 | N38: -0.0001710393692 | O38: -0.001395940072 | P38: 4.840740224e-07 | Q38: 4.137046769e-05 | R38: 1.609108214e-07
A39: 15.38364 | B39: ='DF raw data'!J44 -> -5.8044716e-06 | C39: ='DF raw data'!K44 -> -3.8108112e-06 | D39: ='DF raw data'!L44 -> 2.1062319e-06 | F39: -5.809625971e-06 | G39: -3.823328918e-06 | H39: 2.108102234e-06 | J39: -1.014509585e-05 | K39: -2.188697375e-06 | L39: -1.180111009e-06 | N39: -0.0001761127288 | O39: -0.001484010526 | P39: -6.104497608e-07 | Q39: 4.106519397e-05 | R39: 1.764213356e-07
A40: 15.88372 | B40: ='DF raw data'!J45 -> -1.4501385e-06 | C40: ='DF raw data'!K45 -> -6.3990296e-06 | D40: ='DF raw data'!L45 -> 3.8055573e-06 | F40: -1.451426223e-06 | G40: -6.420049074e-06 | H40: 3.808936635e-06 | J40: -1.528148392e-05 | K40: 1.09336e-05 | L40: -3.515101441e-07 | N40: -0.0001837546933 | O40: -0.001575902573 | P40: 4.857224929e-06 | Q40: 4.349419501e-05 | R40: 1.933187287e-07
A41: 16.3838 | B41: ='DF raw data'!J46 -> 5.9847471e-06 | C41: ='DF raw data'!K46 -> 7.8345811e-06 | D41: ='DF raw data'!L46 -> 4.5622096e-06 | F41: 5.990061555e-06 | G41: 7.860316061e-06 | H41: 4.566260842e-06 | J41: -2.252996086e-05 | K41: 4.072189497e-06 | L41: 5.38361671e-06 | N41: -0.0001950214761 | O41: -0.001673428912 | P41: 6.893645453e-06 | Q41: 4.694156923e-05 | R41: 2.123622245e-07
A42: 16.88388 | B42: ='DF raw data'!J47 -> 7.4280033e-06 | C42: ='DF raw data'!K47 -> 1.3819086e-06 | D42: ='DF raw data'!L47 -> -6.6512198e-06 | F42: 7.434599367e-06 | G42: 1.386447881e-06 | H42: -6.657126083e-06 | J42: -2.092962402e-05 | K42: -3.585313447e-06 | L42: 4.295222874e-06 | N42: -0.0002054879625 | O42: -0.001776189333 | P42: 5.100701904e-06 | Q42: 4.949232824e-05 | R42: 2.334912645e-07
A43: 17.38396 | B43: ='DF raw data'!J48 -> 9.8512082e-06 | C43: ='DF raw data'!K48 -> -7.9599913e-06 | D43: ='DF raw data'!L48 -> -1.3557071e-05 | F43: 9.859956073e-06 | G43: -7.986138207e-06 | H43: -1.356910968e-05 | J43: -1.345807217e-05 | K43: 1.429287138e-06 | L43: 5.937237189e-06 | N43: -0.0002122180752 | O43: -0.001882315348 | P43: 5.815459816e-06 | Q43: 5.240052339e-05 | R43: 2.560300356e-07
A44: 17.88404 | B44: ='DF raw data'!J49 -> 1.3023742e-05 | C44: ='DF raw data'!K49 -> 3.7356992e-06 | D44: ='DF raw data'!L49 -> 7.2935893e-07 | F44: 1.303530708e-05 | G44: 3.747970191e-06 | H44: 7.300066007e-07 | J44: -1.065431163e-05 | K44: 8.28346326e-06 | L44: 6.690301116e-06 | N44: -0.0002175460833 | O44: -0.001991105793 | P44: 9.957854123e-06 | Q44: 5.738024708e-05 | R44: 2.797465583e-07
A45: 18.38412 | B45: ='DF raw data'!J50 -> 9.737134e-06 | C45: ='DF raw data'!K50 -> 6.610921e-06 | D45: ='DF raw data'!L50 -> 4.8292227e-06 | F45: 9.745780575e-06 | G45: 6.632636493e-06 | H45: 4.83351105e-06 | J45: -1.4367473e-05 | K45: 1.077218653e-06 | L45: 7.764901615e-06 | N45: -0.0002247309692 | O45: -0.002103489256 | P45: 1.049654963e-05 | Q45: 6.262936161e-05 | R45: 3.050577005e-07
A46: 18.8842 | B46: ='DF raw data'!J51 -> 7.6986726e-06 | C46: ='DF raw data'!K51 -> -1.0182091e-05 | D46: ='DF raw data'!L51 -> 6.0327861e-06 | F46: 7.705509021e-06 | G46: -1.021553704e-05 | H46: 6.038143214e-06 | J46: -1.708070921e-05 | K46: -1.945061e-06 | L46: 6.858565102e-06 | N46: -0.0002332726903 | O46: -0.002220144263 | P46: 9.523863522e-06 | Q46: 6.739205528e-05 | R46: 3.32315487e-07
A47: 19.38428 | B47: ='DF raw data'!J52 -> 7.9621996e-06 | C47: ='DF raw data'!K52 -> -6.0082234e-06 | D47: ='DF raw data'!L52 -> 8.4128287e-06 | F47: 7.969270033e-06 | G47: -6.027959158e-06 | H47: 8.420299292e-06 | J47: -1.305909118e-05 | K47: 3.561093851e-06 | L47: 8.997046889e-06 | N47: -0.0002398032806 | O47: -0.002340065088 | P47: 1.130469534e-05 | Q47: 7.304530733e-05 | R47: 3.611368025e-07
A48: 19.88436 | B48: ='DF raw data'!J53 -> 7.0377864e-06 | C48: ='DF raw data'!K53 -> 1.7472345e-06 | D48: ='DF raw data'!L53 -> 3.7374034e-06 | F48: 7.044035954e-06 | G48: 1.7529738e-06 | H48: 3.740722214e-06 | J48: -9.57788982e-06 | K48: 2.867939538e-06 | L48: 8.606760222e-06 | N48: -0.0002445929918 | O48: -0.002462381151 | P48: 1.273889454e-05 | Q48: 7.941577371e-05 | R48: 3.91135607e-07
A49: 20.38444 | B49: ='DF raw data'!J54 -> -3.5584957e-08 | C49: ='DF raw data'!K54 -> -4.2561874e-06 | D49: ='DF raw data'!L54 -> 3.0447936e-07 | F49: -3.561655644e-08 | G49: -4.270168086e-06 | H49: 3.047497377e-07 | J49: -1.007634986e-05 | K49: 1.644943204e-06 | L49: 7.074791041e-06 | N49: -0.0002496319728 | O49: -0.002587217108 | P49: 1.356149774e-05 | Q49: 8.61976075e-05 | R49: 4.223906251e-07
A50: 20.88452 | B50: ='DF raw data'!J55 -> -6.3905318e-06 | C50: ='DF raw data'!K55 -> -4.5785487e-06 | D50: ='DF raw data'!L55 -> 2.9090065e-06 | F50: -6.396206592e-06 | G50: -4.593588275e-06 | H50: 2.911589698e-06 | J50: -1.104975247e-05 | K50: 2.217084214e-06 | L50: 3.478212012e-06 | N50: -0.000255157733 | O50: -0.002714816387 | P50: 1.467021721e-05 | Q50: 9.353388972e-05 | R50: 4.550561927e-07
A51: 21.3846 | B51: ='DF raw data'!J56 -> -6.247829e-07 | C51: ='DF raw data'!K56 -> -1.4692726e-05 | D51: ='DF raw data'!L56 -> 2.2780719e-06 | F51: -6.253377072e-07 | G51: -1.474098853e-05 | H51: 2.280094828e-06 | J51: -8.526454174e-06 | K51: 5.138965159e-06 | L51: 2.57067013e-07 | N51: -0.0002594216422 | O51: -0.002844547962 | P51: 1.724011091e-05 | Q51: 0.0001021553244 | R51: 4.888600054e-07
A52: 21.88468 | B52: ='DF raw data'!J57 -> 5.8776141e-06 | C52: ='DF raw data'!K57 -> -8.0820819e-06 | D52: ='DF raw data'!L57 -> 2.3110829e-06 | F52: 5.882833421e-06 | G52: -8.108629849e-06 | H52: 2.313135142e-06 | J52: -5.043983383e-06 | K52: 1.618179478e-05 | L52: -5.30952998e-06 | N52: -0.0002619440374 | O52: -0.002975540936 | P52: 2.533230284e-05 | Q52: 0.0001148235024 | R52: 5.234937481e-07
A53: 22.38476 | B53: ='DF raw data'!J58 -> 3.0969004e-06 | C53: ='DF raw data'!K58 -> -2.7153721e-06 | D53: ='DF raw data'!L58 -> -4.6687724e-06 | F53: 3.099650448e-06 | G53: -2.72429153e-06 | H53: -4.67291827e-06 | J53: -8.355491293e-06 | K53: 8.312914485e-06 | L53: 6.203489611e-06 | N53: -0.0002661224515 | O53: -0.003108623452 | P53: 2.948942512e-05 | Q53: 0.0001295705741 | R53: 5.59344876e-07
A54: 22.88484 | B54: ='DF raw data'!J59 -> -2.7491496e-06 | C54: ='DF raw data'!K59 -> -2.4122266e-06 | D54: ='DF raw data'!L59 -> -3.3110059e-06 | F54: -2.751590845e-06 | G54: -2.42015026e-06 | H54: -3.313946073e-06 | J54: -1.255281401e-05 | K54: -9.932764533e-07 | L54: 1.40871593e-05 | N54: -0.0002723998628 | O54: -0.003244845175 | P54: 2.899270743e-05 | Q54: 0.0001440692472 | R54: 5.968720106e-07
A55: 23.38492 | B55: ='DF raw data'!J60 -> -5.720367e-06 | C55: ='DF raw data'!K60 -> -1.1842961e-06 | D55: ='DF raw data'!L60 -> 6.1421365e-06 | F55: -5.725446686e-06 | G55: -1.188186265e-06 | H55: 6.147590717e-06 | J55: -1.465127579e-05 | K55: 6.306807317e-06 | L55: 7.150331561e-06 | N55: -0.0002797266728 | O55: -0.00338473089 | P55: 3.214661563e-05 | Q55: 0.0001601451268 | R55: 6.365185612e-07
A56: 23.885 | B56: ='DF raw data'!J61 -> -3.6907168e-06 | C56: ='DF raw data'!K61 -> 8.684111e-06 | D56: ='DF raw data'!L61 -> 1.4580127e-05 | F56: -3.693994157e-06 | G56: 8.712636489e-06 | H56: 1.459307415e-05 | J56: -1.763542136e-05 | K56: -1.798074762e-06 | L56: -3.512840735e-06 | N56: -0.0002885457943 | O56: -0.00352902687 | P56: 3.124743441e-05 | Q56: 0.0001757713438 | R56: 6.786428388e-07
A57: 24.38508 | B57: ='DF raw data'!J62 -> 4.9467229e-07 | C57: ='DF raw data'!K62 -> 7.0597675e-06 | D57: ='DF raw data'!L62 -> 5.6117881e-07 | F57: 4.95111559e-07 | G57: 7.08295736e-06 | H57: 5.616771368e-07 | J57: -1.583926979e-05 | K57: 3.814632546e-06 | L57: -3.028163023e-06 | N57: -0.0002964666963 | O57: -0.003677283936 | P57: 3.315505585e-05 | Q57: 0.0001923515241 | R57: 7.23145838e-07
A58: 24.88516 | B58: ='DF raw data'!J63 -> 7.5081698e-06 | C58: ='DF raw data'!K63 -> 6.4122473e-06 | D58: ='DF raw data'!L63 -> -4.1151125e-07 | F58: 7.514837055e-06 | G58: 6.433310192e-06 | H58: -4.11876672e-07 | J58: -1.197585512e-05 | K58: -2.180262358e-06 | L58: -1.118894997e-06 | N58: -0.0003024555819 | O58: -0.003828535923 | P58: 3.206475025e-05 | Q58: 0.0002083864644 | R58: 7.694070022e-07
A59: 25.38524 | B59: ='DF raw data'!J64 -> 1.16724e-05 | C59: ='DF raw data'!K64 -> -6.5982381e-06 | D59: ='DF raw data'!L64 -> 6.0485604e-06 | F59: 1.168276509e-05 | G59: -6.619911933e-06 | H59: 6.053931522e-06 | J59: -1.097866741e-05 | K59: -6.985364738e-06 | L59: 3.205430797e-06 | N59: -0.0003079457939 | O59: -0.003982533456 | P59: 2.857150905e-05 | Q59: 0.0002226745047 | R59: 8.172381255e-07
A60: 25.88532 | B60: ='DF raw data'!J65 -> 7.014758e-06 | C60: ='DF raw data'!K65 -> 2.2753381e-06 | D60: ='DF raw data'!L65 -> -3.4489726e-06 | F60: 7.020987105e-06 | G60: 2.28281211e-06 | H60: -3.452035288e-06 | J60: -1.455306666e-05 | K60: 5.385276993e-06 | L60: 3.332265026e-06 | N60: -0.0003152234915 | O60: -0.00414017042 | P60: 3.126457837e-05 | Q60: 0.000238309295 | R60: 8.674178147e-07
A61: 26.3854 | B61: ='DF raw data'!J66 -> 4.149605e-06 | C61: ='DF raw data'!K66 -> 8.5482834e-06 | D61: ='DF raw data'!L66 -> -5.9042845e-06 | F61: 4.153289849e-06 | G61: 8.576362724e-06 | H61: -5.909527505e-06 | J61: -1.63018522e-05 | K61: 1.313759597e-06 | L61: 1.171065183e-06 | N61: -0.0003233757218 | O61: -0.004301884151 | P61: 3.192156327e-05 | Q61: 0.0002542726304 | R61: 9.202216838e-07
A62: 26.88548 | B62: ='DF raw data'!J67 -> 7.9977099e-06 | C62: ='DF raw data'!K67 -> 3.6891331e-06 | D62: ='DF raw data'!L67 -> 7.943755e-06 | F62: 8.004811866e-06 | G62: 3.701251131e-06 | H62: 7.950809054e-06 | J62: -9.767559498e-06 | K62: 1.058983149e-05 | L62: 5.218480599e-06 | N62: -0.0003282602829 | O62: -0.004466040553 | P62: 3.72173262e-05 | Q62: 0.0002728842709 | R62: 9.748003863e-07
A63: 27.38556 | B63: ='DF raw data'!J68 -> 7.8849698e-06 | C63: ='DF raw data'!K68 -> -9.8949329e-07 | D63: ='DF raw data'!L68 -> 5.6603551e-07 | F63: 7.891971653e-06 | G63: -9.927435686e-07 | H63: 5.665381495e-07 | J63: -7.281407353e-06 | K63: 9.984895812e-06 | L63: 4.818603023e-06 | N63: -0.0003319015691 | O63: -0.004632017889 | P63: 4.22105729e-05 | Q63: 0.0002939929342 | R63: 1.030779534e-06
A64: 27.88564 | B64: ='DF raw data'!J69 -> 4.9297723e-06 | C64: ='DF raw data'!K69 -> 6.2781514e-06 | D64: ='DF raw data'!L69 -> -2.548562e-06 | F64: 4.934149938e-06 | G64: 6.298773815e-06 | H64: -2.550825123e-06 | J64: -1.126213791e-05 | K64: 9.848487005e-06 | L64: 5.41312509e-06 | N64: -0.000337533539 | O64: -0.004800811662 | P64: 4.713560428e-05 | Q64: 0.0003175645071 | R64: 1.088864153e-06
A65: 28.38572 | B65: ='DF raw data'!J70 -> 6.9070911e-06 | C65: ='DF raw data'!K70 -> -2.8446623e-06 | D65: ='DF raw data'!L70 -> -6.5164472e-06 | F65: 6.913224597e-06 | G65: -2.854006421e-06 | H65: -6.522233805e-06 | J65: -9.372720391e-06 | K65: 5.43440504e-06 | L65: -3.532689045e-06 | N65: -0.000342220649 | O65: -0.004971949364 | P65: 4.985324155e-05 | Q65: 0.0003424951162 | R65: 1.14867388e-06
A66: 28.8858 | B66: ='DF raw data'!J71 -> 3.9330698e-06 | C66: ='DF raw data'!K71 -> -2.6750779e-06 | D66: ='DF raw data'!L71 -> -2.1277388e-06 | F66: 3.936562366e-06 | G66: -2.683864972e-06 | H66: -2.129628232e-06 | J66: -3.366683963e-06 | K66: 7.397811203e-06 | L66: -7.21686459e-06 | N66: -0.0003439042603 | O66: -0.005143929006 | P66: 5.355273898e-05 | Q66: 0.0003692757699 | R66: 1.20925259e-06
A67: 29.38588 | B67: ='DF raw data'!J72 -> 4.0022223e-06 | C67: ='DF raw data'!K72 -> 6.5519457e-06 | D67: ='DF raw data'!L72 -> 1.0334777e-05 | F67: 4.005776273e-06 | G67: 6.573467472e-06 | H67: 1.034395428e-05 | J67: -9.733554228e-06 | K67: 6.952173168e-06 | L67: -2.896868337e-06 | N67: -0.0003487718161 | O67: -0.005318342816 | P67: 5.702938174e-05 | Q67: 0.0003977950231 | R67: 1.271709646e-06
A68: 29.88596 | B68: ='DF raw data'!J73 -> 9.1203019e-06 | C68: ='DF raw data'!K73 -> 8.596985e-06 | D68: ='DF raw data'!L73 -> 1.0294777e-05 | F68: 9.128400728e-06 | G68: 8.625224298e-06 | H68: 1.030391876e-05 | J68: -1.99472024e-05 | K68: 2.9528077e-06 | L68: 9.320852273e-06 | N68: -0.0003587470131 | O68: -0.005497745023 | P68: 5.850602181e-05 | Q68: 0.0004270527145 | R68: 1.337781403e-06
A69: 30.38604 | B69: ='DF raw data'!J74 -> 8.0956979e-06 | C69: ='DF raw data'!K74 -> -2.1181506e-06 | D69: ='DF raw data'!L74 -> 5.0095864e-06 | F69: 8.10288688e-06 | G69: -2.125108282e-06 | H69: 5.014034913e-06 | J69: -1.918832311e-05 | K69: 1.709065141e-06 | L69: 1.674722334e-05 | N69: -0.0003683427097 | O69: -0.005681945845 | P69: 5.936069111e-05 | Q69: 0.0004567378089 | R69: 1.407392561e-06
A70: 30.88612 | B70: ='DF raw data'!J75 -> 5.8702717e-06 | C70: ='DF raw data'!K75 -> 5.908193e-07 | D70: ='DF raw data'!L75 -> 1.6055443e-06 | F70: 5.875484501e-06 | G70: 5.927600179e-07 | H70: 1.606970023e-06 | J70: -1.207980935e-05 | K70: 1.041745011e-06 | L70: 1.147105926e-05 | N70: -0.0003743835808 | O70: -0.005869167586 | P70: 5.988164695e-05 | Q70: 0.0004866834229 | R70: 1.479278499e-06
A71: 31.3862 | B71: ='DF raw data'!J76 -> -1.2881375e-06 | C71: ='DF raw data'!K76 -> 1.0176093e-05 | D71: ='DF raw data'!L76 -> 1.6174587e-06 | F71: -1.289281366e-06 | G71: =(1-$G$1*($B$2-$G$2))*C71*$M$2/$M$1 -> 1.020951934e-05 | H71: 1.618895003e-06 | J71: =-CELL("contents", INDEX($F$6:$F$1203,1204-CELL("row",F71))) -> -3.990878256e-06 | K71: =CELL("contents", INDEX($G$6:$G$1203,1204-CELL("row",G71))) -> 8.417598123e-06 | L71: =-CELL("contents", INDEX($H$6:$H$1203,1204-CELL("row",H71))) -> 3.411665171e-06 | N71: -0.0003763793392 | O71: -0.006057387366 | P71: 6.409111942e-05 | Q71: 0.0005187341099 | R71: 1.5521747e-06
A72: =A71+$B$1 -> 31.88628 | B72: ='DF raw data'!J77 -> -6.4646229e-06 | C72: ='DF raw data'!K77 -> -7.3678103e-07 | D72: ='DF raw data'!L77 -> 5.2642195e-06 | F72: -6.470363485e-06 | G72: -7.392012016e-07 | H72: 5.268894127e-06 | J72: -1.696250634e-08 | K72: -2.799523943e-06 | L72: 1.033241705e-06 | N72: =J72*$B$1+N71 -> -0.0003763878218 | O72: =N72*$B$1+O71 -> -0.006245611388 | P72: =K72*$B$1+P71 -> 6.269113349e-05 | Q72: =P72*$B$1+Q71 -> 0.0005500846919 | R72: =(N72^2+P72^2)*$B$1+R71 -> 1.624985333e-06
A73: 32.38636 | B73: ='DF raw data'!J78 -> -7.5368862e-06 | C73: ='DF raw data'!K78 -> -2.424101e-06 | D73: ='DF raw data'!L78 -> 2.2109875e-06 | F73: -7.543578955e-06 | G73: -2.432063665e-06 | H73: 2.212950857e-06 | J73: -5.383371393e-06 | K73: -6.300375258e-06 | L73: 1.747403017e-06 | N73: -0.0003790799382 | O73: -0.006435181683 | P73: 5.954044183e-05 | Q73: 0.0005798596761 | R73: 1.698620445e-06
A74: 32.88644 | B74: ='DF raw data'!J79 -> -5.6642311e-06 | C74: ='DF raw data'!K79 -> 3.8329676e-06 | D74: ='DF raw data'!L79 -> 2.5344402e-06 | F74: -5.669260937e-06 | G74: 3.845558097e-06 | H74: 2.536690783e-06 | J74: -1.454458313e-05 | K74: 2.348138591e-06 | L74: 4.170035006e-07 | N74: -0.0003863533933 | O74: -0.006628389288 | P74: 6.071469898e-05 | Q74: 0.0006102218828 | R74: 1.775110291e-06
A75: 33.38652 | B75: ='DF raw data'!J80 -> -4.2139654e-06 | C75: ='DF raw data'!K80 -> 1.4272742e-06 | D75: ='DF raw data'!L80 -> -8.5675617e-07 | F75: -4.217707401e-06 | G75: 1.431962497e-06 | H75: -8.575169695e-07 | J75: -2.031732378e-05 | K75: 2.597797383e-06 | L75: 3.934779584e-06 | N75: -0.0003965136806 | O75: -0.00682667785 | P75: 6.201380549e-05 | Q75: 0.0006412337466 | R75: 1.855657582e-06
A76: 33.8866 | B76: ='DF raw data'!J81 -> -1.7150015e-06 | C76: ='DF raw data'!K81 -> -5.9481255e-07 | D76: ='DF raw data'!L81 -> -8.4521062e-06 | F76: -1.716524421e-06 | G76: -5.967663849e-07 | H76: -8.45961167e-06 | J76: -2.090951518e-05 | K76: -3.63926308e-06 | L76: 7.723402797e-06 | N76: -0.0004069701109 | O76: -0.007030195463 | P76: 6.019388281e-05 | Q76: 0.0006713355035 | R76: 1.940295109e-06
A77: 34.38668 | B77: ='DF raw data'!J82 -> -2.8274462e-06 | C77: ='DF raw data'!K82 -> 1.5476755e-05 | D77: ='DF raw data'!L82 -> -1.1447571e-05 | F77: -2.829956972e-06 | G77: 1.55275929e-05 | H77: -1.145773644e-05 | J77: -1.700868731e-05 | K77: -5.966114777e-06 | L77: -2.203691342e-06 | N77: -0.0004154758153 | O77: -0.007237966608 | P77: 5.721034813e-05 | Q77: 0.0006999452544 | R77: 2.028255769e-06
A78: 34.88676 | B78: ='DF raw data'!J83 -> -1.8409575e-06 | C78: ='DF raw data'!K83 -> 1.9122785e-05 | D78: ='DF raw data'!L83 -> -5.6585645e-06 | F78: -1.84259227e-06 | G78: 1.918559935e-05 | H78: -5.663589305e-06 | J78: -1.288719167e-05 | K78: 6.374677727e-06 | L78: -2.275765387e-06 | N78: -0.0004219204421 | O78: -0.007448960583 | P78: 6.039819697e-05 | Q78: 0.0007301491848 | R78: 2.119102703e-06
A79: 35.38684 | B79: ='DF raw data'!J84 -> -3.7021309e-06 | C79: ='DF raw data'!K84 -> 7.1507679e-06 | D79: ='DF raw data'!L84 -> 3.1007093e-07 | F79: -3.705418392e-06 | G79: 7.174256677e-06 | H79: 3.10346273e-07 | J79: -1.322497736e-05 | K79: 9.515188172e-07 | L79: 2.103582624e-06 | N79: -0.0004285339888 | O79: -0.00766326186 | P79: 6.08740325e-05 | Q79: 0.0007605910709 | R79: 2.212791204e-06
A80: 35.88692 | B80: ='DF raw data'!J85 -> -3.3932811e-06 | C80: ='DF raw data'!K85 -> -3.1088285e-07 | D80: ='DF raw data'!L85 -> -4.5999564e-06 | F80: -3.396294334e-06 | G80: -3.119040352e-07 | H80: -4.604041161e-06 | J80: -1.239160498e-05 | K80: -8.544759855e-06 | L80: 8.052911041e-07 | N80: -0.0004347307826 | O80: -0.00788066203 | P80: 5.660096899e-05 | Q80: 0.0007888960835 | R80: 2.308903841e-06
A81: 36.387 | B81: ='DF raw data'!J86 -> -2.16843e-06 | C81: ='DF raw data'!K86 -> 7.9549562e-07 | D81: ='DF raw data'!L86 -> -3.1003597e-06 | F81: -2.170355566e-06 | G81: 7.981086568e-07 | H81: -3.103112819e-06 | J81: -7.336123798e-06 | K81: 8.447582292e-06 | L81: -9.42629082e-06 | N81: -0.0004383994314 | O81: -0.008099896818 | P81: 6.082543595e-05 | Q81: 0.0008193136675 | R81: 2.40686641e-06
A82: 36.88708 | B82: ='DF raw data'!J87 -> -2.2074109e-06 | C82: ='DF raw data'!K87 -> 6.9414205e-06 | D82: ='DF raw data'!L87 -> -8.4018518e-07 | F82: -2.209371081e-06 | G82: 6.964221615e-06 | H82: -8.409312644e-07 | J82: -7.996528117e-06 | K82: 1.137254412e-05 | L82: -1.056264531e-05 | N82: -0.0004423983352 | O82: -0.008321131377 | P82: 6.651261781e-05 | Q82: 0.0008525752974 | R82: 2.506952529e-06
A83: 37.38716 | B83: ='DF raw data'!J88 -> -1.1395533e-06 | C83: ='DF raw data'!K88 -> 5.5053429e-06 | D83: ='DF raw data'!L88 -> -4.710038e-06 | F83: -1.140565223e-06 | G83: 5.5234268e-06 | H83: -4.714220514e-06 | J83: -1.431228804e-05 | K83: 2.926572003e-06 | L83: -2.107235665e-06 | N83: -0.0004495556242 | O83: -0.008545945154 | P83: 6.797613794e-05 | Q83: 0.0008865688045 | R83: 2.610329574e-06
A84: 37.88724 | B84: ='DF raw data'!J89 -> -3.1706059e-06 | C84: ='DF raw data'!K89 -> -8.4361955e-06 | D84: ='DF raw data'!L89 -> -2.2976506e-06 | F84: -3.173421398e-06 | G84: -8.463906638e-06 | H84: -2.299690914e-06 | J84: -1.5224095e-05 | K84: -2.698453736e-06 | L84: -1.663190303e-06 | N84: -0.0004571688896 | O84: -0.008774566172 | P84: 6.662669519e-05 | Q84: 0.0009198874822 | R84: 2.717067905e-06
A85: 38.38732 | B85: ='DF raw data'!J90 -> -2.4224033e-07 | C85: ='DF raw data'!K90 -> -1.5184806e-05 | D85: ='DF raw data'!L90 -> -2.5881614e-06 | F85: -2.424554394e-07 | G85: -1.523468491e-05 | H85: -2.590459687e-06 | J85: -1.085634088e-05 | K85: -3.047040221e-06 | L85: -2.278831307e-06 | N85: -0.0004625979285 | O85: -0.009005902144 | P85: 6.510293132e-05 | Q85: 0.0009524441561 | R85: 2.826202981e-06
A86: 38.8874 | B86: ='DF raw data'!J91 -> 5.6475292e-06 | C86: ='DF raw data'!K91 -> -8.7205253e-06 | D86: ='DF raw data'!L91 -> 4.9870891e-06 | F86: 5.652544206e-06 | G86: -8.749170402e-06 | H86: 4.991517635e-06 | J86: -8.801037788e-06 | K86: -2.251344785e-06 | L86: 3.198570711e-06 | N86: -0.0004669991515 | O86: -0.00923943908 | P86: 6.397707882e-05 | Q86: 0.0009844378137 | R86: 2.937311393e-06
A87: 39.38748 | B87: ='DF raw data'!J92 -> 2.1072065e-06 | C87: ='DF raw data'!K92 -> -1.1455652e-05 | D87: ='DF raw data'!L92 -> 1.3816558e-06 | F87: =(1-$G$1*($B$2-$G$2))*B87 -> 2.109077699e-06 | G87: -1.149328142e-05 | H87: 1.38288271e-06 | J87: -7.656805111e-06 | K87: -7.836615264e-06 | L87: 1.179592849e-06 | N87: -0.0004708281666 | O87: -0.009474890829 | P87: 6.005814426e-05 | Q87: 0.00101447169 | R87: 3.049972487e-06
A88: 39.88756 | B88: ='DF raw data'!J93 -> -2.2203603e-06 | C88: ='DF raw data'!K93 -> -6.9611556e-06 | D88: ='DF raw data'!L93 -> -7.6064694e-06 | F88: -2.22233198e-06 | G88: -6.984021541e-06 | H88: -7.613223945e-06 | J88: -7.086860249e-06 | K88: -1.735953575e-05 | L88: 4.412994162e-06 | N88: -0.0004743721637 | O88: -0.009712114861 | P88: 5.137698762e-05 | Q88: 0.001040164294 | R88: 3.163824973e-06
A89: 40.38764 | B89: ='DF raw data'!J94 -> -7.1856454e-07 | C89: ='DF raw data'!K94 -> 1.352792e-05 | D89: ='DF raw data'!L94 -> -7.8464627e-06 | F89: -7.192026253e-07 | G89: 1.357235639e-05 | H89: -7.853430359e-06 | J89: -7.096147188e-06 | K89: -6.685501174e-06 | L89: 8.309997931e-06 | N89: -0.000477920805 | O89: -0.009951113497 | P89: 4.803370219e-05 | Q89: 0.001064184988 | R89: 3.279201196e-06
A90: 40.88772 | B90: ='DF raw data'!J95 -> -4.3577438e-06 | C90: ='DF raw data'!K95 -> 8.6755726e-06 | D90: ='DF raw data'!L95 -> 2.5857539e-06 | F90: -4.361613476e-06 | G90: 8.704070042e-06 | H90: 2.588050049e-06 | J90: -8.327631476e-06 | K90: 1.848820907e-06 | L90: 4.648074228e-06 | N90: -0.0004820852869 | O90: -0.01019219471 | P90: 4.895826055e-05 | Q90: 0.001088668035 | R90: 3.396621548e-06
A91: 41.3878 | B91: ='DF raw data'!J96 -> -8.3081759e-06 | C91: ='DF raw data'!K96 -> -1.1022379e-06 | D91: ='DF raw data'!L96 -> -3.1755676e-06 | F91: -8.31555356e-06 | G91: -1.105858521e-06 | H91: -3.178387504e-06 | J91: -1.223387004e-05 | K91: -1.918821592e-06 | L91: -1.53236163e-06 | N91: -0.0004882032007 | O91: -0.01043633536 | P91: 4.799869625e-05 | Q91: 0.001112671223 | R91: 3.51696392e-06
A92: 41.88788 | B92: ='DF raw data'!J97 -> -1.1556471e-05 | C92: ='DF raw data'!K97 -> -2.7556664e-06 | D92: ='DF raw data'!L97 -> -7.8863313e-06 | F92: -1.156673315e-05 | G92: -2.764718188e-06 | H92: -7.893334362e-06 | J92: -1.396154385e-05 | K92: -2.905948581e-06 | L92: -3.921111358e-06 | N92: -0.0004951850895 | O92: -0.01068396752 | P92: 4.654548948e-05 | Q92: 0.001135947692 | R92: 3.640671088e-06
A93: 42.38796 | B93: ='DF raw data'!J98 -> -1.0930562e-05 | C93: ='DF raw data'!K98 -> -1.1913972e-05 | D93: ='DF raw data'!L98 -> -1.0023047e-05 | F93: -1.094026834e-05 | G93: -1.195310691e-05 | H93: -1.003194747e-05 | J93: -1.560904654e-05 | K93: -4.722233665e-06 | L93: 5.472345732e-06 | N93: -0.0005029908615 | O93: -0.01093550319 | P93: 4.418399487e-05 | Q93: 0.001158043224 | R93: 3.7681675e-06
A94: 42.88804 | B94: ='DF raw data'!J99 -> -5.9552585e-06 | C94: ='DF raw data'!K99 -> -4.6164419e-06 | D94: ='DF raw data'!L99 -> -7.4803515e-06 | F94: -5.96054677e-06 | G94: -4.631605946e-06 | H94: -7.486994052e-06 | J94: -1.390114727e-05 | K94: -5.408427589e-06 | L94: 6.751517128e-06 | N94: -0.0005099425472 | O94: -0.01119051526 | P94: 4.147934841e-05 | Q94: 0.001178786216 | R94: 3.89906941e-06
A95: 43.38812 | B95: ='DF raw data'!J100 -> -1.5485276e-06 | C95: ='DF raw data'!K100 -> 6.3264529e-06 | D95: ='DF raw data'!L100 -> 4.5143187e-07 | F95: -1.549902693e-06 | G95: 6.347233975e-06 | H95: 4.518327415e-07 | J95: -1.028298919e-05 | K95: -1.009073343e-06 | L95: 5.103906348e-06 | N95: -0.0005150848645 | O95: -0.0114480989 | P95: 4.097473101e-05 | Q95: 0.00119927686 | R95: 4.032586442e-06
A96: 43.8882 | B96: ='DF raw data'!J101 -> 2.8688186e-07 | C96: ='DF raw data'!K101 -> -2.4551875e-06 | D96: ='DF raw data'!L101 -> -2.7134824e-06 | F96: 2.871366111e-07 | G96: -2.463252278e-06 | H96: -2.715891972e-06 | J96: -7.566546732e-06 | K96: -1.771012158e-07 | L96: 1.137240474e-05 | N96: -0.0005188687431 | O96: -0.01170757478 | P96: 4.088616623e-05 | Q96: 0.001219723214 | R96: 4.168056339e-06
A97: 44.38828 | B97: ='DF raw data'!J102 -> -9.9557485e-07 | C97: ='DF raw data'!K102 -> 3.4485645e-06 | D97: ='DF raw data'!L102 -> 3.5139806e-06 | F97: -9.964589205e-07 | G97: 3.459892313e-06 | H97: 3.517101015e-06 | J97: -4.793785004e-06 | K97: -5.742370931e-08 | L97: 8.14146821e-06 | N97: -0.0005212660192 | O97: -0.01196824949 | P97: 4.085744978e-05 | Q97: 0.001240155207 | R97: 4.304772007e-06
A98: 44.88836 | B98: ='DF raw data'!J103 -> -2.4140681e-06 | C98: ='DF raw data'!K103 -> 1.0936362e-05 | D98: ='DF raw data'!L103 -> 3.4237332e-06 | F98: -2.416211792e-06 | G98: 1.097228566e-05 | H98: 3.426773475e-06 | J98: -7.026732903e-06 | K98: 9.166443068e-06 | L98: 8.426608389e-07 | N98: -0.0005247799477 | O98: -0.01223068145 | P98: 4.544140463e-05 | Q98: 0.001262879545 | R98: 4.443523662e-06
A99: 45.38844 | B99: ='DF raw data'!J104 -> -8.311381e-06 | C99: ='DF raw data'!K104 -> 6.0585303e-06 | D99: ='DF raw data'!L104 -> 1.9165514e-06 | F99: -8.318761506e-06 | G99: 6.078431305e-06 | H99: 1.918253298e-06 | J99: -8.771976404e-06 | K99: 2.072375533e-06 | L99: 6.020835659e-06 | N99: -0.0005291666377 | O99: -0.0124953071 | P99: 4.647775819e-05 | Q99: 0.001286122142 | R99: 4.584634992e-06
A100: 45.88852 | B100: ='DF raw data'!J105 -> -1.4323303e-05 | C100: ='DF raw data'!K105 -> -8.2852921e-06 | D100: ='DF raw data'!L105 -> -4.8380221e-06 | F100: -1.433602209e-05 | G100: -8.312507552e-06 | H100: -4.842318264e-06 | J100: -9.37933466e-06 | K100: 4.809522552e-06 | L100: 6.050478758e-06 | N100: -0.0005338570554 | O100: -0.01276227834 | P100: 4.888290423e-05 | Q100: 0.001310567505 | R100: 4.72835443e-06
A101: 46.3886 | B101: ='DF raw data'!J106 -> -1.1298218e-05 | C101: ='DF raw data'!K106 -> 9.6607145e-08 | D101: ='DF raw data'!L106 -> -5.7841497e-08 | F101: -1.130825082e-05 | G101: 9.692447927e-08 | H101: -5.789286025e-08 | J101: -1.207352878e-05 | K101: 1.62934353e-05 | L101: 2.53770218e-06 | N101: -0.0005398947857 | O101: -0.01303226892 | P101: 5.703092535e-05 | Q101: 0.00133908753 | R101: 4.875747462e-06
A102: 46.88868 | B102: ='DF raw data'!J107 -> -3.3619763e-06 | C102: ='DF raw data'!K107 -> 1.1188674e-05 | D102: ='DF raw data'!L107 -> 1.2494153e-06 | F102: -3.364961735e-06 | G102: 1.122542645e-05 | H102: 1.250524781e-06 | J102: -1.36182803e-05 | K102: 1.122997735e-05 | L102: 3.560346683e-06 | N102: -0.0005467050153 | O102: -0.01330566517 | P102: 6.264681243e-05 | Q102: 0.001370415948 | R102: 5.027177186e-06
A103: 47.38876 | B103: ='DF raw data'!J108 -> 2.3531775e-06 | C103: ='DF raw data'!K108 -> 1.2738316e-06 | D103: ='DF raw data'!L108 -> 6.3405992e-06 | F103: 2.355267122e-06 | G103: 1.27801587e-06 | H103: 6.346229652e-06 | J103: -1.296382266e-05 | K103: 1.507059869e-06 | L103: -2.081055338e-06 | N103: -0.0005531879637 | O103: -0.0135823034 | P103: 6.340046293e-05 | Q103: 0.001402121252 | R103: 5.18222026e-06
A104: 47.88884 | B104: ='DF raw data'!J109 -> 7.5375392e-06 | C104: ='DF raw data'!K109 -> 6.5739591e-06 | D104: ='DF raw data'!L109 -> 1.0713799e-06 | F104: 7.544232535e-06 | G104: 6.595553181e-06 | H104: 1.072331285e-06 | J104: -1.245928303e-05 | K104: -9.504408379e-07 | L104: 3.910998786e-06 | N104: -0.000559418602 | O104: -0.01386205746 | P104: 6.292516647e-05 | Q104: 0.001433588869 | R104: 5.340699987e-06
A105: 48.38892 | B105: ='DF raw data'!J110 -> 8.11886e-06 | C105: ='DF raw data'!K110 -> 5.3205445e-06 | D105: ='DF raw data'!L110 -> 4.9793694e-06 | F105: 8.126069548e-06 | G105: 5.338021376e-06 | H105: 4.98379108e-06 | J105: -1.431389246e-05 | K105: 1.212287875e-06 | L105: 9.723395315e-06 | N105: -0.0005665766933 | O105: -0.01414539113 | P105: 6.353140739e-05 | Q105: 0.001465359655 | R105: 5.503248685e-06
A106: 48.889 | B106: ='DF raw data'!J111 -> -9.2862507e-07 | C106: ='DF raw data'!K111 -> -1.1832266e-06 | D106: ='DF raw data'!L111 -> 9.8273676e-06 | F106: -9.294496891e-07 | G106: -1.187113252e-06 | H106: 9.836094302e-06 | J106: -1.47738035e-05 | K106: -7.52162688e-06 | L106: 5.298882133e-06 | N106: -0.000573964777 | O106: -0.01443241944 | P106: 5.976999222e-05 | Q106: 0.001495249433 | R106: 5.669779334e-06
A107: 49.38908 | B107: ='DF raw data'!J112 -> -5.7746347e-06 | C107: ='DF raw data'!K112 -> -6.6756252e-06 | D107: ='DF raw data'!L112 -> 2.2322188e-06 | F107: -5.779762576e-06 | G107: -6.697553233e-06 | H107: 2.23420101e-06 | J107: -1.549500436e-05 | K107: -3.711549849e-06 | L107: 1.074457572e-05 | N107: -0.0005817135187 | O107: -0.01472332273 | P107: 5.791392037e-05 | Q107: 0.001524211026 | R107: 5.840678994e-06
A108: 49.88916 | B108: ='DF raw data'!J113 -> -3.0402443e-06 | C108: ='DF raw data'!K113 -> -2.3575187e-06 | D108: ='DF raw data'!L113 -> -7.6519254e-06 | F108: -3.042944037e-06 | G108: -2.365262656e-06 | H108: -7.65872031e-06 | J108: -1.092114537e-05 | K108: -5.974414751e-06 | L108: 1.09900445e-05 | N108: -0.0005871749651 | O108: -0.01501695719 | P108: 5.492623505e-05 | Q108: 0.001551678538 | R108: 6.014602483e-06
A109: 50.38924 | B109: ='DF raw data'!J114 -> -5.8640126e-06 | C109: ='DF raw data'!K114 -> 1.0879522e-05 | D109: ='DF raw data'!L114 -> -5.4896532e-06 | F109: -5.869219843e-06 | G109: 1.091525895e-05 | H109: -5.494528012e-06 | J109: -4.310691198e-06 | K109: 1.188059651e-06 | L109: 6.640405649e-06 | N109: -0.0005893306556 | O109: -0.01531166966 | P109: 5.552035992e-05 | Q109: 0.001579443159 | R109: 6.18982708e-06
A110: 50.88932 | B110: ='DF raw data'!J115 -> -2.3232878e-06 | C110: ='DF raw data'!K115 -> 1.0337809e-05 | D110: ='DF raw data'!L115 -> 9.7256734e-06 | F110: -2.32535088e-06 | G110: 1.037176654e-05 | H110: 9.734309798e-06 | J110: -7.9870409e-06 | K110: 4.575927152e-06 | L110: 3.846451118e-06 | N110: -0.000593324815 | O110: -0.01560837954 | P110: 5.780868957e-05 | Q110: 0.001608352129 | R110: 6.3675436e-06
A111: 51.3894 | B111: ='DF raw data'!J116 -> 2.2343629e-06 | C111: ='DF raw data'!K116 -> -2.3204295e-06 | D111: ='DF raw data'!L116 -> 6.3381381e-06 | F111: 2.236347014e-06 | G111: -2.328051626e-06 | H111: 6.343766367e-06 | J111: -1.637514122e-05 | K111: 2.621492662e-06 | L111: 9.832849023e-08 | N111: -0.0006015136956 | O111: -0.01590918451 | P111: 5.911964562e-05 | Q111: 0.001637916681 | R111: 6.550229755e-06
A112: 51.88948 | B112: ='DF raw data'!J117 -> 2.4406854e-06 | C112: ='DF raw data'!K117 -> -4.3633331e-06 | D112: ='DF raw data'!L117 -> -3.5001486e-07 | F112: 2.442852729e-06 | G112: -4.377665737e-06 | H112: -3.503256732e-07 | J112: -1.800059735e-05 | K112: 2.669817781e-06 | L112: -8.556392435e-07 | N112: -0.0006105154343 | O112: -0.01621449106 | P112: 6.045476809e-05 | Q112: 0.001668148902 | R112: 6.738451803e-06
A113: 52.38956 | B113: ='DF raw data'!J118 -> 1.4936448e-06 | C113: ='DF raw data'!K118 -> 8.0794207e-06 | D113: ='DF raw data'!L118 -> 1.3266168e-06 | F113: 1.494971157e-06 | G113: 8.105959908e-06 | H113: 1.327794836e-06 | J113: -1.284997966e-05 | K113: -2.18330813e-07 | L113: 2.949028214e-07 | N113: -0.0006169414522 | O113: -0.01652301115 | P113: 6.034558522e-05 | Q113: 0.001698326522 | R113: 6.930611716e-06
A114: 52.88964 | B114: ='DF raw data'!J119 -> 2.6398624e-07 | C114: ='DF raw data'!K119 -> -1.7081323e-06 | D114: ='DF raw data'!L119 -> -6.2117629e-06 | F114: 2.642206598e-07 | G114: -1.713743157e-06 | H114: -6.217278945e-06 | J114: -1.023074484e-05 | K114: 6.069864959e-06 | L114: -4.431703061e-07 | N114: -0.000622057643 | O114: -0.01683408973 | P114: 6.338100329e-05 | Q114: 0.001730022094 | R114: 7.126129425e-06
A115: 53.38972 | B115: ='DF raw data'!J120 -> -4.5340294e-06 | C115: ='DF raw data'!K120 -> 2.3700711e-06 | D115: ='DF raw data'!L120 -> -9.6593294e-06 | F115: -4.538055618e-06 | G115: 2.377856288e-06 | H115: -9.667906885e-06 | J115: -1.338318072e-05 | K115: 1.2294611e-05 | L115: -2.118293976e-06 | N115: -0.000628750304 | O115: -0.01714851518 | P115: 6.952929236e-05 | Q115: 0.001764792302 | R115: 7.326242072e-06
A116: 53.8898 | B116: ='DF raw data'!J121 -> -2.6006328e-06 | C116: ='DF raw data'!K121 -> 1.2112547e-06 | D116: ='DF raw data'!L121 -> 6.8809697e-07 | F116: -2.602942162e-06 | G116: 1.215233418e-06 | H116: 6.887080001e-07 | J116: -1.558405937e-05 | K116: 8.741952671e-06 | L116: 8.865592561e-07 | N116: -0.0006365435805 | O116: -0.0174668379 | P116: 7.390096805e-05 | Q116: 0.001801748699 | R116: 7.531599465e-06
A117: 54.38988 | B117: ='DF raw data'!J122 -> 4.5768684e-06 | C117: ='DF raw data'!K122 -> -8.5662896e-06 | D117: ='DF raw data'!L122 -> 3.9421234e-06 | F117: 4.580932659e-06 | G117: -8.59442807e-06 | H117: 3.945624006e-06 | J117: -9.085108619e-06 | K117: 4.718628461e-06 | L117: 3.797688055e-06 | N117: -0.0006410868616 | O117: -0.01778743262 | P117: 7.626065977e-05 | Q117: 0.001839885129 | R117: 7.740036836e-06
A118: 54.88996 | B118: ='DF raw data'!J123 -> 6.0278671e-06 | C118: ='DF raw data'!K123 -> -7.2576363e-06 | D118: ='DF raw data'!L123 -> 7.7641255e-07 | F118: 6.033219846e-06 | G118: -7.281476118e-06 | H118: 7.771020043e-07 | J118: -5.555537841e-06 | K118: 8.172757204e-06 | L118: 6.096510899e-06 | N118: -0.0006438650749 | O118: -0.01810941666 | P118: 8.034769219e-05 | Q118: 0.001880065403 | R118: 7.950579511e-06
A119: 55.39004 | B119: ='DF raw data'!J124 -> 1.0494276e-06 | C119: ='DF raw data'!K124 -> -1.1201186e-06 | D119: ='DF raw data'!L124 -> -7.4583199e-06 | F119: 1.050359492e-06 | G119: -1.123797955e-06 | H119: -7.464942888e-06 | J119: -1.03046354e-05 | K119: 1.012304522e-05 | L119: 1.273351433e-05 | N119: -0.000649018217 | O119: -0.01843397769 | P119: 8.541002465e-05 | Q119: 0.001922777248 | R119: 8.164873551e-06
A120: 55.89012 | B120: ='DF raw data'!J125 -> -5.0808412e-06 | C120: ='DF raw data'!K125 -> -3.5084624e-06 | D120: ='DF raw data'!L125 -> -7.7143532e-06 | F120: -5.085352987e-06 | G120: -3.519986965e-06 | H120: -7.721203546e-06 | J120: -1.701523612e-05 | K120: 9.037302959e-07 | L120: 1.286121062e-05 | N120: -0.0006575271963 | O120: -0.01876279389 | P120: 8.586196209e-05 | Q120: 0.001965715098 | R120: 8.384765874e-06
A121: 56.3902 | B121: ='DF raw data'!J126 -> -7.8019493e-06 | C121: ='DF raw data'!K126 -> -2.511096e-06 | D121: ='DF raw data'!L126 -> -1.140012e-05 | F121: -7.808877431e-06 | G121: -2.519344425e-06 | H121: -1.141024331e-05 | J121: -2.211815149e-05 | K121: -3.835775468e-06 | L121: 7.174378095e-06 | N121: -0.0006685880415 | O121: -0.0190971414 | P121: 8.39437675e-05 | Q121: 0.002007693698 | R121: 8.611830461e-06
A122: 56.89028 | B122: ='DF raw data'!J127 -> -6.4979977e-06 | C122: ='DF raw data'!K127 -> 4.8336701e-06 | D122: ='DF raw data'!L127 -> -1.1277459e-05 | F122: -6.503767922e-06 | G122: 4.849547696e-06 | H122: -1.128747338e-05 | J122: -2.30428509e-05 | K122: 5.285816355e-06 | L122: 1.131545221e-05 | N122: -0.0006801113104 | O122: -0.01943725146 | P122: 8.658709854e-05 | Q122: 0.002050994174 | R122: 8.846892425e-06
A123: 57.39036 | B123: ='DF raw data'!J128 -> 3.6484556e-07 | C123: ='DF raw data'!K128 -> 1.5685702e-05 | D123: ='DF raw data'!L128 -> 1.5863103e-06 | F123: 3.651695429e-07 | G123: 1.573722625e-05 | H123: 1.587718944e-06 | J123: -2.301679578e-05 | K123: 8.590820057e-06 | L123: 5.127486769e-06 | N123: -0.0006916215496 | O123: -0.01978311757 | P123: 9.088319583e-05 | Q123: 0.002096443042 | R123: 9.090231414e-06
A124: 57.89044 | B124: ='DF raw data'!J129 -> 5.1761444e-06 | C124: ='DF raw data'!K129 -> 2.6485329e-06 | D124: ='DF raw data'!L129 -> 4.1235494e-06 | F124: 5.180740816e-06 | G124: 2.657232777e-06 | H124: 4.127211112e-06 | J124: -1.777765655e-05 | K124: -1.623381911e-06 | L124: 1.741405997e-06 | N124: -0.0007005118001 | O124: -0.02013342951 | P124: 9.007137501e-05 | Q124: 0.002141485936 | R124: 9.339686138e-06
A125: 58.39052 | B125: ='DF raw data'!J130 -> 2.9623334e-06 | C125: ='DF raw data'!K130 -> -1.431002e-06 | D125: ='DF raw data'!L130 -> -2.8758091e-06 | F125: 2.964963952e-06 | G125: -1.435702542e-06 | H125: -2.878362818e-06 | J125: -9.717920757e-06 | K125: -2.323766596e-06 | L125: 6.41911842e-06 | N125: -0.0007053715379 | O125: -0.02048617171 | P125: 8.890930581e-05 | Q125: 0.002185947701 | R125: 9.59245351e-06
A126: 58.8906 | B126: ='DF raw data'!J131 -> -4.8253975e-07 | C126: ='DF raw data'!K131 -> 2.3882174e-06 | D126: ='DF raw data'!L131 -> -5.0155847e-07 | F126: -4.829682453e-07 | G126: 2.396062195e-06 | H126: -5.020038539e-07 | J126: -1.072512947e-05 | K126: -5.152611337e-06 | L126: 1.03286447e-05 | N126: -0.0007107349606 | O126: -0.02084159605 | P126: 8.633258793e-05 | Q126: 0.002229120902 | R126: 9.848793268e-06
A127: 59.39068 | B127: ='DF raw data'!J132 -> -1.3928676e-06 | C127: ='DF raw data'!K132 -> 8.0264481e-06 | D127: ='DF raw data'!L132 -> -5.5380349e-07 | F127: -1.394104466e-06 | G127: 8.052813304e-06 | H127: -5.542952675e-07 | J127: -1.071751271e-05 | K127: -5.962362692e-06 | L127: 4.805079525e-06 | N127: -0.0007160945744 | O127: -0.02119970062 | P127: 8.33509296e-05 | Q127: 0.002270803035 | R127: 1.010870426e-05
A128: 59.89076 | B128: ='DF raw data'!J133 -> 1.6302146e-06 | C128: ='DF raw data'!K133 -> -4.4938201e-06 | D128: ='DF raw data'!L133 -> 2.6081821e-06 | F128: 1.631662231e-06 | G128: -4.508581359e-06 | H128: 2.610498166e-06 | J128: -1.441724015e-06 | K128: -2.393374395e-06 | L128: -6.037611642e-06 | N128: -0.0007168155517 | O128: -0.02155816574 | P128: 8.215405093e-05 | Q128: 0.002311886632 | R128: 1.036903281e-05
